Workbook

Sheet LDC Info
AA3: Algoma Power Inc.
AA4: Atikokan Hydro Inc.
AA5: Attawapiskat Power Corporation
AA6: Bluewater Power Distribution Corp.
AA7: Brant County Power
AA8: Brantford Power Inc.
AA9: Burlington Hydro Inc.
AA10: Cambridge and North Dumfries Hydro
AA11: Canadian Niagara Power Inc. – Eastern Ontario Power/Fort Erie/Port Colborne
AA12: Centre Wellington Hydro Ltd.
N13: Version 1.1 | AA13: Chapleau Public Utilities Corporation
D14: Utility Name | E14: Kitchener-Wilmot Hydro Inc. | AA14: COLLUS Power Corp.
AA15: Cooperative Hydro Embrun Inc.
D16: Service Territory | AA16: E.L.K. Energy Inc.
AA17: Enersource Hydro Mississauga Inc.
D18: Assigned EB Number | E18: EB-2013-0147 | AA18: Entegrus Powerlines Inc.
AA19: ENWIN Utilities Ltd.
D20: Name of Contact and Title | E20: Margaret Nanninga, Vice-President Finance | AA20: Erie Thames Powerlines Corp.
AA21: Espanola Regional Hydro Distribution Corporation
D22: Phone Number | E22: 519-749-6177 | AA22: Essex Powerlines Corporation
AA23: Festival Hydro Inc.
D24: Email Address | E24: mnanninga@kwhydro.on.ca | AA24: Fort Albany Power Corporation
AA25: Fort Frances Power Corporation
D26: Bridge Year | E26: 2013 | AA26: Greater Sudbury Hydro Inc.
AA27: Grimsby Power Inc.
D28: Test Year | E28: 2013 | AA28: Guelph Hydro Electric Systems Inc.
AA29: Haldimand County Hydro Inc.
D30: Last Rebasing Year | E30: 2010 | AA30: Guelph Hydro Electric Systems Inc.
AA31: Halton Hills Hydro Inc.
B32: Notes | AA32: Hearst Power Distribution Co. Ltd.
AA33: Horizon Utilities Corporation
C34: Pale green cells represent input cells. | AA34: Hydro 2000 Inc.
AA35: Hydro Hawkesbury Inc.
C36: Pale blue cells represent drop-down lists. The applicant should select the appropriate item from the drop-down list. | AA36: Hydro One Brampton Networks Inc.
AA37: Hydro One Networks Inc.
C38: White cells contain fixed values, automatically generated values or formulae. | AA38: Hydro One Remote Communities Inc.
AA39: Hydro Ottawa Limited
AA40: Innisfil Hydro Dist. Systems Limited
AA41: Kashechewan Power Corporation
AA42: Kenora Hydro Electric Corporation Ltd.
AA43: Kingston Hydro Corporation
AA44: Kitchener-Wilmot Hydro Inc.
AA45: Lakefront Utilities Inc.
AA46: Lakeland Power Distribution Ltd.
AA47: London Hydro Inc.
AA48: Midland Power Utility Corporation
AA49: Milton Hydro Distribution Inc.
AA50: Newmarket – Tay Power Distribution Ltd.
AA51: Niagara Peninsula Energy Inc.
AA52: Niagara-on-the-Lake Hydro Inc.
AA53: Norfolk Power Distribution Ltd.
AA54: North Bay Hydro Distribution Limited
AA55: Northern Ontario Wires Inc.
AA56: Oakville Hydro Distribution Inc.
AA57: Orangeville Hydro Limited
AA58: Orillia Power Distribution Corp.
AA59: Oshawa PUC Networks Inc.
AA60: Ottawa River Power Corporation
AA61: Parry Sound Power Corporation
AA62: Peterborough Distribution Inc.
AA63: PowerStream Inc.
AA64: PUC Distribution Inc.
AA65: Renfrew Hydro Inc.
AA66: Rideau St. Lawrence Distribution Inc.
AA67: St. Thomas Energy Inc.
AA68: Sioux Lookout Hydro Inc.
AA69: Thunder Bay Hydro Electricity Distribution
AA70: Tillsonburg Hydro Inc.
AA71: Toronto Hydro-Electric System Limited
AA72: Veridian Connections Inc.
AA73: Wasaga Distribution Inc.
AA74: Waterloo North Hydro Inc.
AA75: Welland Hydro Electric System Corp.
AA76: Wellington North Power Inc.
AA77: West Coast Huron Energy Inc.
AA78: Westario Power Inc.
AA79: Whitby Hydro Electric Corporation
AA80: Woodstock Hydro Services Inc.

Sheet Index
A15: 1 | B15: LDC Information Sheet | E15: 19 | F15: Appendix 2-H OM&A Detailed Analysis
A16: 2 | B16: Index | E16: 20 | F16: Appendix 2-I OM&A Summary Analysis
A17: 3 | B17: Appendix 2-A Capital Projects | E17: 21 | F17: Appendix 2-J OM&A Cost Drivers
A18: 4 | B18: Appendix 2-B Fixed Asset Continuity | E18: 22 | F18: Appendix 2-K Employee Costs
A19: 5 | B19: Appendix 2-CA CGAAP Depreciation Expense 2011 | E19: 23 | F19: Appendix 2-L OM&A per Cust FTEE
A20: 6 | B20: Appendix 2-CB MIFRS Depreciation Expense 2011 | E20: 24 | F20: Appendix 2-M Regulatory Costs
A21: 7 | B21: Appendix 2-CC MIFRS Depreciation Expense 2012 | E21: 25 | F21: Appendix 2-N Corp Cost Allocation
A22: 8 | B22: Appendix 2-CD MIFRS Depreciation Expense 2013 | E22: 26 | F22: Appendix 2-OA Capital Structure and Cost of Capital
A23: 9 | B23: Appendix 2-CE CGAAP Depreciation Expense 2011 | E23: 27 | F23: Appendix 2-OB Debt Instruments
A24: 10 | B24: Appendix 2-CF CGAAP Depreciation Expense 2012 | E24: 28 | F24: Appendix 2-P Cost Allocation
A25: 11 | B25: Appendix 2-CG MIFRS Depreciation Expense 2012 | E25: 29 | F25: Appendix 2-Q Cost of Service Embedded Distributor
A26: 12 | B26: Appendix 2-CH MIFRS Depreciation Expense 2013 | E26: 30 | F26: Appendix 2-R Loss Factors
A27: 13 | B27: Appendix 2-CI Alternative Accounting Standards Depreciation Expense | E27: 31 | F27: Appendix 2-S Stranded Meters
A28: 14 | B28: Appendix 2-D Overhead | E28: 32 | F28: Appendix 2-T 1592 Tax Variance
A29: 15 | B29: Appendix 2-EA PP&E Deferral Account - 2012 IFRS Adopters | E29: 33 | F29: Appendix 2-U IFRS Transition Costs
A30: 16 | B30: Appendix 2-EB PP&E Deferral Account - 2013 IFRS Adopters | E30: 34 | F30: Appendix 2-V Rev Reconciliation
A31: 17 | B31: Appendix 2-F Other Operating Revenue | E31: 35 | F31: Appendix 2-W Bill Impacts
A32: 18 | B32: Appendix 2-G Detailed OM&A Expenses | E32: 36 | F32: Appendix 2-X CoS Flowchart

Sheet App.2-A_Capital Projects
G1: File Number: | H1: ='[3]LDC Info'!$E$18 -> EB-2013-0147
G2: Exhibit:
G3: Tab:
G4: Schedule:
G5: Page:
G7: Date:
A9: Appendix 2-A
A10: Capital Projects Table
A13: Projects | B13: =IF(ISBLANK('[3]LDC Info'!E26), "Year 1", '[3]LDC Info'!E26-5) -> 2008 | C13: =IF(ISBLANK('[3]LDC Info'!E26), "Year 2", '[3]LDC Info'!E26-4) -> 2009 | D13: =IF(ISBLANK('[3]LDC Info'!E26), "Year 3", '[3]LDC Info'!E26-3) -> 2010 | E13: =IF(ISBLANK('[3]LDC Info'!E26), "Year 4", '[3]LDC Info'!E26-2) -> 2011 | F13: =IF(ISBLANK('[3]LDC Info'!E26), "Year 5", '[3]LDC Info'!E26-1) -> 2012 | G13: ='[3]LDC Info'!E26 & " Bridge Year" -> 2013 Bridge Year | H13: 2014 Test Year
A14: Reporting Basis | B14: CGAAP | C14: CGAAP | D14: CGAAP | E14: CGAAP | F14: CGAAP | G14: CGAAP | H14: CGAAP
A15: Commercial Services
A16: 1855 | B16: 537847.49 | C16: 539580.46 | D16: 721043.76 | E16: 576677.3 | F16: 314847.07 | G16: 350000 | H16: 350000
A17: Sub-Total | B17: =SUM(B16:B16) -> 537847.49 | C17: 539580.46 | D17: 721043.76 | E17: 576677.3 | F17: 314847.07 | G17: 350000 | H17: 350000
A18: Rbld-Front/South/Main,ND
A19: 1830 | C19: 33694.98
A20: 1835 | C20: 82037.14
A21: 1850 | C21: 29923.1
A22: 1855 | C22: 38289.23
A23: Sub-Total | B23: =SUM(B19:B22) -> 0 | C23: 183944.45 | D23: 0 | E23: 0 | F23: 0 | G23: 0 | H23: 0
A24: Subd-Nithview Heights
A25: 1840 | C25: 27584.51 | D25: 58164.78
A26: 1845 | C26: 8457.72 | D26: 91828.24
A27: 1850 | C27: 37021.01 | D27: 9739.65
A28: 1855 | C28: 23582.16 | D28: 84790.39
A29: Sub-Total | B29: =SUM(B25:B28) -> 0 | C29: 96645.4 | D29: 244523.06 | E29: 0 | F29: 0 | G29: 0 | H29: 0
A30: 4TS-P&C Reconstruction
A31: 1806 | C31: 32917.88
A32: 1809 | B32: 323.4
A33: 1815 | C33: 1053959.26 | D33: 16680.2
A34: Sub-Total | B34: =SUM(B31:B33) -> 323.4 | C34: 1086877.14 | D34: 16680.2 | E34: 0 | F34: 0 | G34: 0 | H34: 0
A35: Rbld-Victoria to Queen St
A36: 1840 | B36: 185960.42
A37: Sub-Total | B37: =SUM(B36:B36) -> 185960.42 | C37: 0 | D37: 0 | E37: 0 | F37: 0 | G37: 0 | H37: 0
A38: Rbld-East Ave,Krug-Weber
A39: 1830 | C39: 95089.02 | D39: 8062.23
A40: 1835 | C40: 157167.67 | D40: 62438.21
A41: 1850 | C41: 28377.84 | D41: 23455.75
A42: 1855 | C42: 18168.13 | D42: 19524.14
A43: Sub-Total | B43: =SUM(B39:B42) -> 0 | C43: 298802.66 | D43: 113480.33 | E43: 0 | F43: 0 | G43: 0 | H43: 0
A44: Rbld-Erbs Rd-Sandhills-Twp 16A
A45: 1830 | B45: 173950.32
A46: 1835 | B46: 185931.19 | C46: -1963.5
A47: 1850 | B47: 10924.61
A48: 1855 | B48: 3386.75
A49: Sub-Total | B49: =SUM(B45:B48) -> 374192.87 | C49: -1963.5 | D49: 0 | E49: 0 | F49: 0 | G49: 0 | H49: 0
A50: Rbld-Joseph St-Phase 2
A51: 1830 | B51: -4169.2
A52: 1835 | B52: 1277.22
A53: 1840 | B53: 317520.81
A54: 1845 | B54: 38828.1
A55: 1855 | B55: 6334.29
A56: Sub-Total | B56: =SUM(B51:B55) -> 359791.22 | C56: 0 | D56: 0 | E56: 0 | F56: 0 | G56: 0 | H56: 0
A57: Rbld-Old Huron Road
A58: 1840 | B58: 46552.27 | C58: 4267.35
A59: 1845 | B59: 41580.02
A60: 1850 | B60: 29473.43
A61: 1855 | B61: 59863.54
A62: Sub-Total | B62: =SUM(B58:B61) -> 177469.26 | C62: 4267.35 | D62: 0 | E62: 0 | F62: 0 | G62: 0 | H62: 0
A63: Subd-Chicopee,S2 P1
A64: 1840 | B64: 64368.5
A65: 1845 | B65: 66092.59
A66: 1850 | B66: 47589.78
A67: 1855 | B67: 114622.11
A68: Sub-Total | B68: =SUM(B64:B67) -> 292672.98 | C68: 0 | D68: 0 | E68: 0 | F68: 0 | G68: 0 | H68: 0
A69: Subd-Eby Estates,P1
A70: 1840 | B70: 158923.54
A71: 1845 | B71: 125117.17
A72: 1850 | B72: 133723.88
A73: 1855 | B73: 173148.41
A74: Sub-Total | B74: =SUM(B70:B73) -> 590913 | C74: 0 | D74: 0 | E74: 0 | F74: 0 | G74: 0 | H74: 0
A75: Subd-Baden Village 15 & 16
A76: 1840 | B76: 40374.44
A77: 1845 | B77: 82924.61 | C77: 1042.63
A78: 1850 | B78: 54369.34 | C78: 881.83
A79: 1855 | B79: 88543.85
A80: Sub-Total | B80: =SUM(B76:B79) -> 266212.24 | C80: 1924.46 | D80: 0 | E80: 0 | F80: 0 | G80: 0 | H80: 0
A81: Subd-Doon Creek
A82: 1840 | C82: 219358.03 | D82: 16826.99
A83: 1845 | C83: 114427.2 | D83: 57361.2
A84: 1850 | C84: 114881.15 | D84: 10515.2
A85: 1855 | C85: 246958.31 | D85: 18708.97
A86: Sub-Total | B86: =SUM(B82:B85) -> 0 | C86: 695624.69 | D86: 103412.36 | E86: 0 | F86: 0 | G86: 0 | H86: 0
A87: Subd-Topper Woods South S1
A88: 1840 | E88: 32679.61 | F88: 52655.9
A89: 1845 | E89: 1479.57 | F89: 55241.63
A90: 1850 | E90: 42703.81 | F90: 11024.1
A91: 1855 | E91: 36618.76 | F91: 74344.22
A92: Sub-Total | B92: =SUM(B88:B91) -> 0 | C92: 0 | D92: 0 | E92: 113481.75 | F92: 193265.85 | G92: 0 | H92: 0
A93: Subd-Huron Village 8A, 9 & 10
A94: 1840 | C94: 98743.96
A95: 1845 | C95: 124747.79 | D95: 11880.1
A96: 1850 | C96: 79368.86
A97: 1855 | C97: 217049 | D97: 6272.66
A98: Sub-Total | B98: =SUM(B94:B97) -> 0 | C98: 519909.61 | D98: 18152.76 | E98: 0 | F98: 0 | G98: 0 | H98: 0
A99: Subd-921 Glasgow St
A100: 1830 | E100: 18001.43
A101: 1840 | E101: 91820.74
A102: 1845 | E102: 66210.84
A103: 1850 | E103: 23788.76
A104: 1855 | E104: 99207.57
A105: Sub-Total | B105: =SUM(B100:B104) -> 0 | C105: 0 | D105: 0 | E105: 299029.34 | F105: 0 | G105: 0 | H105: 0
A106: Subd-Eby Stage 2 & 3
A107: 1840 | D107: 59153.14 | E107: 24290.12
A108: 1845 | D108: 40196.11 | E108: 31723.93
A109: 1850 | D109: 74193.55 | E109: 4103.44
A110: 1855 | D110: 74133.11 | E110: 26730.66
A111: Sub-Total | B111: =SUM(B107:B110) -> 0 | C111: 0 | D111: 247675.91 | E111: 86848.15 | F111: 0 | G111: 0 | H111: 0
A112: Subd-Grand River South,S4
A113: 1840 | B113: 25316.94 | C113: 30061.59
A114: 1845 | B114: 8706.89 | C114: 42860.32
A115: 1850 | B115: 35702.34 | C115: 5070.52
A116: 1855 | B116: 86082.75 | C116: 10878.9
A117: Sub-Total | B117: =SUM(B113:B116) -> 155808.92 | C117: 88871.33 | D117: 0 | E117: 0 | F117: 0 | G117: 0 | H117: 0
A118: Robert Ferrie Drive
A119: 1830 | D119: 143359.93
A120: 1835 | D120: 52439.75
A121: Sub-Total | B121: =SUM(B119:B120) -> 0 | C121: 0 | D121: 195799.68 | E121: 0 | F121: 0 | G121: 0 | H121: 0
A122: Rbld-Queen St S
A123: 1830 | C123: 104122.8
A124: 1835 | C124: 109984.61
A125: 1845 | C125: 9568.16
A126: 1850 | C126: 17132.26
A127: 1855 | C127: 79613.24
A128: Sub-Total | B128: =SUM(B123:B127) -> 0 | C128: 320421.07 | D128: 0 | E128: 0 | F128: 0 | G128: 0 | H128: 0
A129: Rbld-Erbs Rd,Twp 16A-St.Agatha
A130: 1830 | B130: 39528.44
A131: 1835 | B131: 167284.5 | C131: -2180.08
A132: 1850 | B132: 9690.04
A133: 1855 | B133: 9224.89
A134: Sub-Total | B134: =SUM(B130:B133) -> 225727.87 | C134: -2180.08 | D134: 0 | E134: 0 | F134: 0 | G134: 0 | H134: 0
A135: Rbld-Doon Valley Drive
A136: 1830 | B136: 169653.05
A137: 1835 | B137: 157765.05
A138: 1850 | B138: 18408.87
A139: 1855 | B139: 57508.56
A140: Sub-Total | B140: =SUM(B136:B139) -> 403335.53 | C140: 0 | D140: 0 | E140: 0 | F140: 0 | G140: 0 | H140: 0
A141: 2nd Feeder To Bridgeport
A142: 1830 | B142: 96335.11
A143: 1835 | B143: 54462.39
A144: 1840 | B144: 43592.61
A145: 1845 | B145: 58435.23
A146: 1850 | B146: 2828.41
A147: Sub-Total | B147: =SUM(B142:B146) -> 255653.75 | C147: 0 | D147: 0 | E147: 0 | F147: 0 | G147: 0 | H147: 0
A148: Retention Load Transfer
A149: 1830 | B149: 118927.33
A150: 1835 | B150: 84865.04
A151: 1850 | B151: 4998.58
A152: 1855 | B152: 5353.61
A153: Sub-Total | B153: =SUM(B149:B152) -> 214144.56 | C153: 0 | D153: 0 | E153: 0 | F153: 0 | G153: 0 | H153: 0
A154: Replace Revenue Metering
A155: 1815 | B155: 279052.99 | C155: 3589.15 | D155: 139.16
A156: Sub-Total | B156: =SUM(B155:B155) -> 279052.99 | C156: 3589.15 | D156: 139.16 | E156: 0 | F156: 0 | G156: 0 | H156: 0
A157: 5TS-Upgrades & Modifications
A158: 1815 | B158: 286039.91
A159: Sub-Total | B159: =SUM(B158:B158) -> 286039.91 | C159: 0 | D159: 0 | E159: 0 | F159: 0 | G159: 0 | H159: 0
A160: 9TS-Design & Construction
A161: 1806 | C161: 642580.22 | D161: 14403.95
A162: 1815 | C162: 2260769.29 | D162: 5704112.07 | E162: 205801.79 | F162: 2287.46
A163: 1840 | C163: 441104.89 | D163: 7839.92
A164: 1845 | C164: 108495.47 | D164: 641859.73 | E164: 5302.17
A165: 1850 | D165: 12101.61 | E165: 17018.46
A166: Sub-Total | B166: =SUM(B161:B165) -> 0 | C166: 3452949.87 | D166: 6380317.28 | E166: 228122.42 | F166: 2287.46 | G166: 0 | H166: 0
A167: Rbld-Wilmot Ctr Rd
A168: 1830 | B168: 64681.4
A169: 1835 | B169: 141371.41
A170: 1840 | B170: 29465.12
A171: 1850 | B171: 3891.35
A172: 1855 | B172: 15782.76
A173: Sub-Total | B173: =SUM(B168:B172) -> 255192.04 | C173: 0 | D173: 0 | E173: 0 | F173: 0 | G173: 0 | H173: 0
A174: Rbld-Foundry St,BA
A175: 1830 | C175: 15807.05 | D175: 118473.33
A176: 1835 | D176: 174554.58
A177: 1850 | D177: 2733.61
A178: 1855 | D178: 1018.7
A179: Sub-Total | B179: =SUM(B175:B178) -> 0 | C179: 15807.05 | D179: 296780.22 | E179: 0 | F179: 0 | G179: 0 | H179: 0
A180: Rbld-Pioneer/Green Valley
A181: 1830 | B181: 222902.43 | C181: 16427.59
A182: 1835 | B182: 146674.38 | C182: 8087.43
A183: 1845 | B183: 44954.86
A184: 1850 | B184: 1319.32
A185: 1855 | B185: 54989.4
A186: Sub-Total | B186: =SUM(B181:B185) -> 470840.39 | C186: 24515.02 | D186: 0 | E186: 0 | F186: 0 | G186: 0 | H186: 0
A187: Rbld-Patricia Ave-In Front of KWH
A188: 1830 | D188: 70265.7
A189: 1835 | D189: 79700.9
A190: 1850 | D190: 6880.07
A191: 1855 | D191: 23931.57
A192: Sub-Total | B192: =SUM(B188:B191) -> 0 | C192: 0 | D192: 180778.24 | E192: 0 | F192: 0 | G192: 0 | H192: 0
A193: Rbld-Cherry-Walnut/IronHorseTrl
A194: 1830 | D194: 68463.1
A195: 1835 | D195: 88930.08
A196: 1850 | D196: 14791.02
A197: 1855 | D197: 18925.12
A198: Sub-Total | B198: =SUM(B194:B197) -> 0 | C198: 0 | D198: 191109.32 | E198: 0 | F198: 0 | G198: 0 | H198: 0
A199: Rbld-Erbs Rd,Lot 15/16-Sandhills
A200: 1830 | B200: 132735.16
A201: 1835 | B201: 108768.3 | C201: -1605.73
A202: 1850 | B202: 4917.88
A203: 1855 | B203: 12230.71
A205: Sub-Total | B205: =SUM(B200:B204) -> 258652.05 | C205: -1605.73 | D205: 0 | E205: 0 | F205: 0 | G205: 0 | H205: 0
... 403 more rows

Sheet App.2-B_FA Continuity 2009 GAAP
M1: File Number: | N1: ='LDC Info'!$E$18 -> EB-2013-0147
M2: Exhibit:
M3: Tab:
M4: Schedule:
M5: Page:
M7: Date:
A9: Appendix 2-B
A10: Fixed Asset Continuity Schedule
F12: Year | G12: 2009 | H12: GAAP
E14: Cost | K14: Accumulated Depreciation
A15: CCA Class | B15: OEB | C15: Description | D15: Depreciation Rate | E15: Opening Balance | F15: Additions | G15: Disposals | H15: Closing Balance | J15: Opening Balance | K15: Additions | L15: Disposals | M15: Closing Balance | N15: Net Book Value
A16: N/A | B16: 1805 | C16: Land | E16: 2331738 | F16: 1434 | H16: =E16+F16+G16 -> 2333172 | M16: =J16+K16+L16 -> 0 | N16: =H16+M16 -> 2333172
A17: CEC | B17: 1806 | C17: Land Rights | E17: 265447 | H17: =E17+F17+G17 -> 265447 | J17: -244610 | K17: -2653 | M17: =J17+K17+L17 -> -247263 | N17: =H17+M17 -> 18184
A18: 47 | B18: 1808 | C18: Buildings | E18: 6227536 | F18: 102357 | H18: =E18+F18+G18 -> 6329893 | J18: -1561369 | K18: -120848 | M18: =J18+K18+L18 -> -1682217 | N18: =H18+M18 -> 4647676
A19: 13 | B19: 1810 | C19: Leasehold Improvements | H19: 0 | M19: 0 | N19: 0
A20: 47 | B20: 1815 | C20: Transformer Station Equipment >50 kV | E20: 38712090 | F20: 2251300 | H20: 40963390 | J20: -13689711.77 | K20: -984463.12 | M20: -14674174.89 | N20: 26289215.11
A21: 47 | B21: 1820 | C21: Distribution Station Equipment <50 kV | E21: 2853105 | H21: 2853105 | I21: -1965929 | J21: -1733558.44 | K21: -77456.79 | M21: -1811015.23 | N21: 1042089.77
A22: 47 | B22: 1825 | C22: Storage Battery Equipment | H22: 0 | J22: 0 | K22: 0 | M22: 0 | N22: 0
A23: 47 | B23: 1830 | C23: Poles, Towers & Fixtures | E23: 25851567 | F23: 1473318.89 | G23: -505439 | H23: 26819446.89 | J23: -10871392.57 | K23: -1092997.85 | L23: 505438.54 | M23: -11458951.88 | N23: 15360495.01
A24: 47 | B24: 1835 | C24: Overhead Conductors & Devices | E24: 29774758 | F24: 1350817.36 | G24: -697480 | H24: 30428095.36 | J24: -14001766.79 | K24: -1245019.4 | L24: 697479.85 | M24: -14549306.34 | N24: 15878789.02
A25: 47 | B25: 1840 | C25: Underground Conduit | E25: 20010044 | F25: 817650.39 | H25: 20827694.39 | J25: -8096264.2 | K25: -818962.83 | M25: -8915227.03 | N25: 11912467.36
A26: 47 | B26: 1845 | C26: Underground Conductors & Devices | E26: 35933596 | F26: 560777.59 | H26: 36494373.59 | J26: -17898677.19 | K26: -1424663.94 | M26: -19323341.13 | N26: 17171032.46
A27: 47 | B27: 1850 | C27: Line Transformers | E27: 48710018 | F27: 1870667.66 | G27: -389183 | H27: 50191502.66 | J27: -23857364.04 | K27: -2000230.48 | L27: 389182.6 | M27: -25468411.92 | N27: 24723090.74
A28: 47 | B28: 1855 | C28: Services (Overhead & Underground) | E28: 36788796 | F28: 1969923.36 | G28: -63845 | H28: 38694874.36 | J28: -14275083.17 | K28: -1529116.3 | L28: 63844.87 | M28: -15740354.6 | N28: 22954519.76
A29: 47 | B29: 1860 | C29: Meters | E29: 11606960 | F29: 441558.12 | H29: 12048518.12 | J29: -5953615.69 | K29: -473209.07 | M29: -6426824.76 | N29: 5621693.36
A30: 47 | B30: 1860 | C30: Meters (Smart Meters) | H30: 0 | J30: 0 | K30: 0 | M30: 0 | N30: 0
A31: N/A | B31: 1905 | C31: Land | E31: 1395300 | H31: 1395300 | J31: 0 | K31: 0 | M31: 0 | N31: 1395300
A32: 47 | B32: 1908 | C32: Buildings & Fixtures | E32: 9369791 | F32: 59842 | H32: 9429633 | J32: -2896572.67 | K32: -167367.3 | M32: -3063939.97 | N32: 6365693.03
A33: 13 | B33: 1910 | C33: Leasehold Improvements | H33: 0 | J33: 0 | K33: 0 | M33: 0 | N33: 0
A34: 8 | B34: 1915 | C34: Office Furniture & Equipment (10 years) | E34: 969240 | F34: 146149 | G34: -98312.4 | H34: =E34+F34+G34 -> 1017076.6 | J34: -683091.45 | K34: -56627.37 | L34: 98312 | M34: -641406.82 | N34: 375669.78
A35: 8 | B35: 1915 | C35: Office Furniture & Equipment (5 years) | H35: =E35+F35+G35 -> 0 | M35: 0 | N35: 0
A36: 10 | B36: 1920 | C36: Computer Equipment - Hardware | E36: 2179346 | F36: =160424.31-66871 -> 93553.31 | H36: 2272899.31 | J36: -1582538.53 | K36: -223526.53 | M36: -1806065.06 | N36: 466834.25
A37: 45 | B37: 1920 | C37: Computer Equip.-Hardware(Post Mar. 22/04) | E37: 0 | F37: 0 | H37: 0 | M37: 0 | N37: 0
A38: 45.1 | B38: 1920 | C38: Computer Equip.-Hardware(Post Mar. 19/07) | H38: 0 | M38: 0 | N38: 0
A39: 12 | B39: 1925 | C39: Computer Software | E39: 2360459 | F39: 92800.58 | H39: =E39+F39+G39 -> 2453259.58 | J39: -1650178.92 | K39: -227327.38 | M39: =J39+K39+L39 -> -1877506.3 | N39: =H39+M39 -> 575753.28
A40: 10 | B40: 1930 | C40: Transportation Equipment | E40: 6874197 | F40: =713316+516269+1 -> 1229586 | G40: -384499 | H40: 7719284 | J40: -4524919.55 | K40: -657854.78 | L40: 384499 | M40: -4798275.33 | N40: 2921008.67
A41: 8 | B41: 1935 | C41: Stores Equipment | E41: 36630 | F41: 18706.83 | H41: 55336.83 | J41: -36629.72 | K41: -646.98 | M41: -37276.7 | N41: 18060.13
A42: 8 | B42: 1940 | C42: Tools, Shop & Garage Equipment | E42: 828508 | F42: 71500.19 | G42: -2082 | H42: 897926.19 | J42: -454526.63 | K42: -65906.47 | L42: 1180 | M42: -519253.1 | N42: 378673.09
A43: 8 | B43: 1945 | C43: Measurement & Testing Equipment | E43: 622261 | F43: 8751.33 | H43: 631012.33 | J43: -504342.57 | K43: -24550.29 | M43: -528892.86 | N43: 102119.47
A44: 8 | B44: 1950 | C44: Power Operated Equipment | E44: 680955 | F44: 118288.08 | G44: -39528 | H44: 759715.08 | J44: -343143.05 | K44: -64538.18 | L44: 33269 | M44: -374412.23 | N44: 385302.85
A45: 8 | B45: 1955 | C45: Communications Equipment | E45: 173729 | H45: 173729 | J45: -84995.54 | K45: -9951.36 | M45: -94946.9 | N45: 78782.1
A46: 8 | B46: 1955 | C46: Communication Equipment (Smart Meters) | H46: 0 | M46: 0 | N46: 0
A47: 8 | B47: 1960 | C47: Miscellaneous Equipment | E47: 30566 | F47: 68290 | H47: 98856 | J47: -19688 | K47: -7506 | M47: -27194 | N47: 71662
A48: 47 | B48: 1975 | C48: Load Management Controls Utility Premises | H48: 0 | J48: 0 | K48: 0 | M48: 0 | N48: 0
A49: 47 | B49: 1980 | C49: System Supervisor Equipment | E49: 1608893 | G49: -9061 | H49: 1599832 | J49: -1296760 | K49: -66576 | L49: 9061 | M49: -1354275 | N49: =H49+M49 -> 245557
A50: 47 | B50: 1985 | C50: Miscellaneous Fixed Assets | H50: 0 | J50: 0 | K50: 0 | M50: 0 | N50: 0
A51: 47 | B51: 1995 | C51: Contributions & Grants | E51: -35269965 | F51: -2349073 | H51: -37619038 | J51: 6363499 | K51: 1504762 | M51: 7868261 | N51: =H51+M51 -> -29750777
B52: etc. | H52: 0 | M52: 0 | N52: 0
C54: Total | E54: =SUM(E16:E53) -> 250925565 | F54: =SUM(F16:F53) -> 10398198.69 | G54: =SUM(G16:G53) -> -2189429.4 | H54: =SUM(H16:H53) -> 259134334.3 | J54: =SUM(J16:J53) -> -119897300.5 | K54: =SUM(K16:K53) -> -9837237.42 | L54: =SUM(L16:L53) -> 2182266.86 | M54: =SUM(M16:M53) -> -127552271.1 | N54: =SUM(N16:N53) -> 131582063.2
J56: Less: Fully Allocated Depreciation
A57: 10 | C57: Transportation | J57: Transportation | L57: =K40 -> -657854.78
J58: Loss on disposals | L58: 0
J59: Smart Meter Misclass | L59: -206934
A60: 8 | C60: Stores Equipment | J60: Stores Equipment
J61: Net Depreciation | L61: =K54-L57-L60-L58+L59 -> -9386316.64
A63: Notes:
A65: 1 | B65: Tables in the format outlined above covering all fixed asset accounts should be submitted for the Test Year, Bridge Year and all relevant historical years. At a minimum , the applicant must provide data for the earlier of: 1) all historical years back to its last rebasing; or 2) at least three years of historical actuals, in addition to Bridge Year and Test Year forecasts.
A68: 2 | B68: The "CCA Class" for fixed assets should agree with the CCA Class used for tax purposes in Tax Returns. Fixed Assets sub-components may be used where the underlying asset components are classified under multiple CCA Classes for tax purposes. If an applicant uses any different classes from those shown in the table, an explanation should be provided. (also see note 3 below).
A71: 3 | B71: The table may need to be customized for a utility's asset categories or for any new asset accounts announced or authorized by the Board.
A73: 4 | B73: The depreciation column (D) is not required as the relevant information will be provided in the following 2-C series of appendices.

Sheet App.2-B_FA Continuity 2010 GAAP
M1: File Number: | N1: ='LDC Info'!$E$18 -> EB-2013-0147
M2: Exhibit:
M3: Tab:
M4: Schedule:
M5: Page:
M7: Date:
A9: Appendix 2-B
A10: Fixed Asset Continuity Schedule
F12: Year | G12: 2010 | H12: GAAP
E14: Cost | K14: Accumulated Depreciation
A15: CCA Class | B15: OEB | C15: Description | D15: Depreciation Rate | E15: Opening Balance | F15: Additions | G15: Disposals | H15: Closing Balance | J15: Opening Balance | K15: Additions | L15: Disposals | M15: Closing Balance | N15: Net Book Value
A16: N/A | B16: 1805 | C16: Land | E16: 2333172 | F16: 2008 | H16: =E16+F16+G16 -> 2335180 | J16: 0 | M16: =J16+K16+L16 -> 0 | N16: =H16+M16 -> 2335180
A17: CEC | B17: 1806 | C17: Land Rights | E17: 265447 | H17: =E17+F17+G17 -> 265447 | J17: -247263 | K17: -2653 | M17: =J17+K17+L17 -> -249916 | N17: =H17+M17 -> 15531
A18: 47 | B18: 1808 | C18: Buildings | E18: 6329893 | F18: 2074902 | H18: =E18+F18+G18 -> 8404795 | J18: -1682217 | K18: -162346 | M18: =J18+K18+L18 -> -1844563 | N18: =H18+M18 -> 6560232
A19: 13 | B19: 1810 | C19: Leasehold Improvements | E19: 0 | H19: 0 | J19: 0 | M19: 0 | N19: 0
A20: 47 | B20: 1815 | C20: Transformer Station Equipment >50 kV | E20: 40963390.87 | F20: 10491135 | H20: 51454525.87 | J20: -14674174.89 | K20: -1246742 | M20: -15920916.89 | N20: 35533608.98
A21: 47 | B21: 1820 | C21: Distribution Station Equipment <50 kV | E21: 2853105 | H21: 2853105 | I21: -1965929 | J21: -1811015.23 | K21: -77457 | M21: -1888472.23 | N21: 964632.77
A22: 47 | B22: 1825 | C22: Storage Battery Equipment | E22: 0 | H22: 0 | J22: 0 | M22: 0 | N22: 0
A23: 47 | B23: 1830 | C23: Poles, Towers & Fixtures | E23: 26819446.89 | F23: 2307567 | G23: -529910 | H23: 28597103.89 | J23: -11458951.88 | K23: -1165083 | L23: 529910 | M23: -12094124.88 | N23: 16502979.01
A24: 47 | B24: 1835 | C24: Overhead Conductors & Devices | E24: 30428095.36 | F24: 2169333 | G24: -731249 | H24: 31866179.36 | J24: -14549306.34 | K24: -1303893 | L24: 731249 | M24: -15121950.34 | N24: 16744229.02
A25: 47 | B25: 1840 | C25: Underground Conduit | E25: 20827694.39 | F25: 1418579 | G25: -601433 | H25: 21644840.39 | J25: -8915227.03 | K25: -875706 | L25: 601433 | M25: -9189500.03 | N25: 12455340.36
A26: 47 | B26: 1845 | C26: Underground Conductors & Devices | E26: 36494373.59 | F26: 1842857 | G26: -1492881 | H26: 36844349.59 | J26: -19323341.13 | K26: -1498378 | L26: 1492881 | M26: -19328838.13 | N26: 17515511.46
A27: 47 | B27: 1850 | C27: Line Transformers | E27: 50191502.66 | F27: 1922027 | G27: -2004412 | H27: 50109117.66 | J27: -25468411.92 | K27: -2064139 | L27: 2004412 | M27: -25528138.92 | N27: 24580978.74
A28: 47 | B28: 1855 | C28: Services (Overhead & Underground) | E28: 38694874.36 | F28: 2282415 | G28: -987325 | H28: 39989964.36 | J28: -15740354.6 | K28: -1617859 | L28: 987325 | M28: -16370888.6 | N28: 23619075.76
A29: 47 | B29: 1860 | C29: Meters | E29: 12048518.12 | F29: 173210 | G29: -374316 | H29: 11847412.12 | J29: -6426824.76 | K29: -480138 | L29: 374316 | M29: -6532646.76 | N29: 5314765.36
A30: 47 | B30: 1860 | C30: Meters (Smart Meters) | E30: 0 | H30: 0 | J30: 0 | M30: 0 | N30: 0
A31: N/A | B31: 1905 | C31: Land | E31: 1395300 | H31: 1395300 | J31: 0 | M31: 0 | N31: 1395300
A32: 47 | B32: 1908 | C32: Buildings & Fixtures | E32: 9429633 | H32: 9429633 | J32: -3063939.97 | K32: -167367 | M32: -3231306.97 | N32: 6198326.03
A33: 13 | B33: 1910 | C33: Leasehold Improvements | E33: 0 | H33: 0 | J33: 0 | M33: 0 | N33: 0
A34: 8 | B34: 1915 | C34: Office Furniture & Equipment (10 years) | E34: 1017076.6 | F34: 68485 | H34: 1085561.6 | J34: -641406.82 | K34: -64008 | M34: -705414.82 | N34: 380146.78
A35: 8 | B35: 1915 | C35: Office Furniture & Equipment (5 years) | E35: 0 | H35: 0 | M35: 0 | N35: 0
A36: 10 | B36: 1920 | C36: Computer Equipment - Hardware | E36: 2272899.31 | F36: =155180+66871 -> 222051 | G36: -88475 | H36: 2406475.31 | J36: -1806065 | K36: -225444 | L36: 88421 | M36: -1943088 | N36: 463387.31
A37: 45 | B37: 1920 | C37: Computer Equip.-Hardware(Post Mar. 22/04) | E37: 0 | H37: 0 | J37: 0 | M37: 0 | N37: 0
A38: 45.1 | B38: 1920 | C38: Computer Equip.-Hardware(Post Mar. 19/07) | E38: 0 | H38: 0 | M38: 0 | N38: 0
A39: 12 | B39: 1925 | C39: Computer Software | E39: 2453259.58 | F39: 420280 | G39: -37383 | H39: =E39+F39+G39 -> 2836156.58 | J39: -1877506.3 | K39: -259075 | L39: 37383 | M39: =J39+K39+L39 -> -2099198.3 | N39: =H39+M39 -> 736958.28
A40: 10 | B40: 1930 | C40: Transportation Equipment | E40: 7719284 | F40: 809961 | G40: -719550 | H40: 7809695 | J40: -4798275.33 | K40: -679525 | L40: 715657 | M40: -4762143.33 | N40: 3047551.67
A41: 8 | B41: 1935 | C41: Stores Equipment | E41: 55336.83 | F41: 8735 | H41: 64071.83 | J41: -37276.7 | K41: -2567 | M41: -39843.7 | N41: 24228.13
A42: 8 | B42: 1940 | C42: Tools, Shop & Garage Equipment | E42: 897926.19 | F42: 69276 | H42: 967202.19 | J42: -519253.1 | K42: -71001 | M42: -590254.1 | N42: 376948.09
A43: 8 | B43: 1945 | C43: Measurement & Testing Equipment | E43: 631012.33 | F43: 32892 | H43: 663904.33 | J43: -528892.86 | K43: -26650 | M43: -555542.86 | N43: 108361.47
A44: 8 | B44: 1950 | C44: Power Operated Equipment | E44: 759715.08 | F44: 44500 | G44: -20520 | H44: 783695.08 | J44: -374412.23 | K44: -65945 | L44: 17784 | M44: -422573.23 | N44: 361121.85
A45: 8 | B45: 1955 | C45: Communications Equipment | E45: 173729 | H45: 173729 | J45: -94946.9 | K45: -9951 | M45: -104897.9 | N45: 68831.1
A46: 8 | B46: 1955 | C46: Communication Equipment (Smart Meters) | E46: 0 | H46: 0 | M46: 0 | N46: 0
A47: 8 | B47: 1960 | C47: Miscellaneous Equipment | E47: 98856 | H47: 98856 | J47: -27194 | K47: -16107 | M47: -43301 | N47: 55555
A48: 47 | B48: 1975 | C48: Load Management Controls Utility Premises | E48: 0 | H48: 0 | J48: 0 | M48: 0 | N48: 0
A49: 47 | B49: 1980 | C49: System Supervisor Equipment | E49: 1599832 | G49: -33352 | H49: 1566480 | J49: -1354274 | K49: -66092 | L49: 33353 | M49: -1387013 | N49: =H49+M49 -> 179467
A50: 47 | B50: 1985 | C50: Miscellaneous Fixed Assets | E50: 0 | H50: 0 | J50: 0 | M50: 0 | N50: 0
A51: 47 | B51: 1995 | C51: Contributions & Grants | E51: -37619038 | F51: -4105073 | H51: -41724111 | J51: 7868261 | K51: 1669967 | M51: 9538228 | N51: =H51+M51 -> -32185883
B52: etc. | H52: 0 | M52: 0 | N52: 0
C54: Total | E54: =SUM(E16:E53) -> 259134335.2 | F54: =SUM(F16:F53) -> 22255140 | G54: =SUM(G16:G53) -> -7620806 | H54: =SUM(H16:H53) -> 273768669.2 | J54: =SUM(J16:J53) -> -127552270 | K54: =SUM(K16:K53) -> -10478159 | L54: =SUM(L16:L53) -> 7614124 | M54: =SUM(M16:M53) -> -130416305 | N54: =SUM(N16:N53) -> 143352364.2
J56: Less: Fully Allocated Depreciation
A57: 10 | C57: Transportation | J57: Transportation | L57: -679525.38
A58: 8 | C58: Stores Equipment | J58: Stores Equipment
J59: Net Depreciation | L59: =K54-L57-L58 -> -9798633.62
A61: Notes:
A63: 1 | B63: Tables in the format outlined above covering all fixed asset accounts should be submitted for the Test Year, Bridge Year and all relevant historical years. At a minimum , the applicant must provide data for the earlier of: 1) all historical years back to its last rebasing; or 2) at least three years of historical actuals, in addition to Bridge Year and Test Year forecasts.
A66: 2 | B66: The "CCA Class" for fixed assets should agree with the CCA Class used for tax purposes in Tax Returns. Fixed Assets sub-components may be used where the underlying asset components are classified under multiple CCA Classes for tax purposes. If an applicant uses any different classes from those shown in the table, an explanation should be provided. (also see note 3 below).
A69: 3 | B69: The table may need to be customized for a utility's asset categories or for any new asset accounts announced or authorized by the Board.
A71: 4 | B71: The depreciation column (D) is not required as the relevant information will be provided in the following 2-C series of appendices.

Sheet App.2-B_FA Continuity 2011 GAAP
M1: File Number: | N1: ='LDC Info'!$E$18 -> EB-2013-0147
M2: Exhibit:
M3: Tab:
M4: Schedule:
M5: Page:
M7: Date:
A9: Appendix 2-B
A10: Fixed Asset Continuity Schedule
F12: Year | G12: 2011 | H12: GAAP
E14: Cost | K14: Accumulated Depreciation
A15: CCA Class | B15: OEB | C15: Description | D15: Depreciation Rate | E15: Opening Balance | F15: Additions | G15: Disposals | H15: Closing Balance | J15: Opening Balance | K15: Additions | L15: Disposals | M15: Closing Balance | N15: Net Book Value
A16: N/A | B16: 1805 | C16: Land | E16: 2335180 | F16: 4779 | H16: =E16+F16+G16 -> 2339959 | J16: 0 | M16: =J16+K16+L16 -> 0 | N16: =H16+M16 -> 2339959
A17: CEC | B17: 1806 | C17: Land Rights | E17: 265447 | H17: =E17+F17+G17 -> 265447 | J17: -249916 | K17: -2653 | M17: =J17+K17+L17 -> -252569 | N17: =H17+M17 -> 12878
A18: 47 | B18: 1808 | C18: Buildings | E18: 8404795 | F18: 863870 | H18: =E18+F18+G18 -> 9268665 | J18: -1844563 | K18: -179622 | M18: =J18+K18+L18 -> -2024185 | N18: =H18+M18 -> 7244480
A19: 13 | B19: 1810 | C19: Leasehold Improvements | E19: 0 | H19: 0 | J19: 0 | M19: 0 | N19: 0
A20: 47 | B20: 1815 | C20: Transformer Station Equipment >50 kV | E20: 51454525.87 | F20: 8423605 | H20: 59878130.87 | J20: -15920916.89 | K20: -1457332 | M20: -17378248.89 | N20: 42499881.98
A21: 47 | B21: 1820 | C21: Distribution Station Equipment <50 kV | E21: 2853105 | H21: 2853105 | I21: -1965929 | J21: -1888472.23 | K21: -77457 | M21: -1965929.23 | N21: 887175.77
A22: 47 | B22: 1825 | C22: Storage Battery Equipment | E22: 0 | H22: 0 | J22: 0 | M22: 0 | N22: 0
A23: 47 | B23: 1830 | C23: Poles, Towers & Fixtures | E23: 28597103.89 | F23: 1751105 | G23: -703439 | H23: 29644769.89 | J23: -12094124.88 | K23: -1225682 | L23: 703439 | M23: -12616367.88 | N23: 17028402.01
A24: 47 | B24: 1835 | C24: Overhead Conductors & Devices | E24: 31866179.36 | F24: 1308791 | G24: -970711 | H24: 32204259.36 | J24: -15121950.34 | K24: -1361746 | L24: 970711 | M24: -15512985.34 | N24: 16691274.02
A25: 47 | B25: 1840 | C25: Underground Conduit | E25: 21644840.39 | F25: 962361 | G25: -566460 | H25: 22040741.39 | J25: -9189500.03 | K25: -890144 | L25: 566460 | M25: -9513184.03 | N25: 12527557.36
A26: 47 | B26: 1845 | C26: Underground Conductors & Devices | E26: 36844349.59 | F26: 1886678 | G26: -1406071 | H26: 37324956.59 | J26: -19328838.13 | K26: -1514130 | L26: 1406071 | M26: -19436897.13 | N26: 17888059.46
A27: 47 | B27: 1850 | C27: Line Transformers | E27: 50109117.66 | F27: 2426209 | G27: -2612850 | H27: 49922476.66 | J27: -25528138.92 | K27: -2083099 | L27: 2612851 | M27: -24998386.92 | N27: 24924089.74
A28: 47 | B28: 1855 | C28: Services (Overhead & Underground) | E28: 39989964.36 | F28: 2441461 | G28: -955724 | H28: 41475701.36 | J28: -16370888.6 | K28: -1629526 | L28: 955724 | M28: -17044690.6 | N28: 24431010.76
A29: 47 | B29: 1860 | C29: Meters | E29: 11847412.12 | F29: 148271 | G29: -492301 | H29: 11503382.12 | J29: -6532646.76 | K29: -540722 | L29: =492301+201608 -> 693909 | M29: -6379459.76 | N29: 5123922.36
A30: 47 | B30: 1860 | C30: Meters (Smart Meters) | E30: 0 | H30: 0 | J30: 0 | M30: 0 | N30: 0
A31: N/A | B31: 1905 | C31: Land | E31: 1395300 | H31: 1395300 | J31: 0 | M31: 0 | N31: 1395300
A32: 47 | B32: 1908 | C32: Buildings & Fixtures | E32: 9429633 | F32: 815320 | H32: 10244953 | J32: -3231306.97 | K32: -183673 | M32: -3414979.97 | N32: 6829973.03
A33: 13 | B33: 1910 | C33: Leasehold Improvements | E33: 0 | H33: 0 | J33: 0 | M33: 0 | N33: 0
A34: 8 | B34: 1915 | C34: Office Furniture & Equipment (10 years) | E34: 1085561.6 | F34: 26749 | H34: 1112310.6 | J34: -705414.82 | K34: -66684 | M34: -772098.82 | N34: 340211.78
A35: 8 | B35: 1915 | C35: Office Furniture & Equipment (5 years) | E35: 0 | H35: 0 | M35: 0 | N35: 0
A36: 10 | B36: 1920 | C36: Computer Equipment - Hardware | E36: 2406475.31 | F36: 86381 | G36: -72393 | H36: 2420463.31 | J36: =-137023-1806065 -> -1943088 | K36: -199306 | L36: 72393 | M36: -2070001 | N36: 350462.31
A37: 45 | B37: 1920 | C37: Computer Equip.-Hardware(Post Mar. 22/04) | E37: 0 | H37: 0 | J37: 0 | M37: 0 | N37: 0
A38: 45.1 | B38: 1920 | C38: Computer Equip.-Hardware(Post Mar. 19/07) | E38: 0 | H38: 0 | J38: 0 | M38: 0 | N38: 0
A39: 12 | B39: 1925 | C39: Computer Software | E39: 2836156.58 | F39: 430618 | H39: =E39+F39+G39 -> 3266774.58 | J39: -2099198.3 | K39: -238943 | M39: =J39+K39+L39 -> -2338141.3 | N39: =H39+M39 -> 928633.28
A40: 10 | B40: 1930 | C40: Transportation Equipment | E40: 7809695 | F40: 471632 | G40: -126446 | H40: 8154881 | J40: -4762143.33 | K40: -738098 | L40: 126446 | M40: -5373795.33 | N40: 2781085.67
A41: 8 | B41: 1935 | C41: Stores Equipment | E41: 64071.83 | H41: 64071.83 | J41: -39843.7 | K41: -2743 | M41: -42586.7 | N41: 21485.13
A42: 8 | B42: 1940 | C42: Tools, Shop & Garage Equipment | E42: 967202.19 | F42: =57056-251459 -> -194403 | H42: 772799.19 | J42: -590254.1 | K42: =-70927+213336 -> 142409 | M42: -447845.1 | N42: 324954.09
A43: 8 | B43: 1945 | C43: Measurement & Testing Equipment | E43: 663904.33 | F43: =53097+251457 -> 304554 | G43: -101727 | H43: 866731.33 | J43: -555542.86 | K43: =-27180-213336 -> -240516 | L43: 92340 | M43: -703718.86 | N43: 163012.47
A44: 8 | B44: 1950 | C44: Power Operated Equipment | E44: 783695.08 | H44: 783695.08 | J44: -422573.23 | K44: -54310 | M44: -476883.23 | N44: 306811.85
A45: 8 | B45: 1955 | C45: Communications Equipment | E45: 173729 | H45: 173729 | J45: -104897.9 | K45: -9951 | M45: -114848.9 | N45: 58880.1
A46: 8 | B46: 1955 | C46: Communication Equipment (Smart Meters) | E46: 0 | H46: 0 | M46: 0 | N46: 0
A47: 8 | B47: 1960 | C47: Miscellaneous Equipment | E47: 98856 | H47: 98856 | J47: =-16107-27194 -> -43301 | K47: -14585 | M47: -57886 | N47: 40970
A48: 47 | B48: 1975 | C48: Load Management Controls Utility Premises | E48: 0 | H48: 0 | J48: 0 | M48: 0 | N48: 0
A49: 47 | B49: 1980 | C49: System Supervisor Equipment | E49: 1566480 | H49: 1566480 | J49: -1387013 | K49: -64390 | M49: -1451403 | N49: 115077
A50: 47 | B50: 1985 | C50: Miscellaneous Fixed Assets | E50: 0 | H50: 0 | J50: 0 | M50: 0 | N50: 0
A51: 47 | B51: 1995 | C51: Contributions & Grants | E51: -41724111 | F51: -2813049 | H51: -44537160 | J51: 9538228 | K51: 1780484 | M51: 11318712 | N51: -33218448
B52: etc. | E52: ='[4]App.2-B_FA Continuity 2010 GAAP'!H52 -> 0 | H52: 0 | J52: 0 | M52: 0 | N52: 0
E53: ='[4]App.2-B_FA Continuity 2010 GAAP'!H53 -> 0
C54: Total | E54: =SUM(E16:E53) -> 273768669.2 | F54: =SUM(F16:F53) -> 19344932 | G54: =SUM(G16:G53) -> -8008122 | H54: =SUM(H16:H53) -> 285105479.2 | J54: =SUM(J16:J53) -> -130416305 | K54: =SUM(K16:K53) -> -10852419 | L54: =SUM(L16:L53) -> 8200344 | M54: =SUM(M16:M53) -> -133068380 | N54: =SUM(N16:N53) -> 152037099.2
J56: Less: Fully Allocated Depreciation
A57: 10 | C57: Transportation | J57: Transportation | L57: -738097
A58: 8 | C58: Stores Equipment | J58: Stores Equipment
J59: Net Depreciation | L59: =K54-L57-L58 -> -10114322
A61: Notes:
A63: 1 | B63: Tables in the format outlined above covering all fixed asset accounts should be submitted for the Test Year, Bridge Year and all relevant historical years. At a minimum , the applicant must provide data for the earlier of: 1) all historical years back to its last rebasing; or 2) at least three years of historical actuals, in addition to Bridge Year and Test Year forecasts.
A66: 2 | B66: The "CCA Class" for fixed assets should agree with the CCA Class used for tax purposes in Tax Returns. Fixed Assets sub-components may be used where the underlying asset components are classified under multiple CCA Classes for tax purposes. If an applicant uses any different classes from those shown in the table, an explanation should be provided. (also see note 3 below).
A69: 3 | B69: The table may need to be customized for a utility's asset categories or for any new asset accounts announced or authorized by the Board.
A71: 4 | B71: The depreciation column (D) is not required as the relevant information will be provided in the following 2-C series of appendices.

Sheet App.2-B_FA Continuity 2012 GAAP
M1: File Number: | N1: ='LDC Info'!$E$18 -> EB-2013-0147
M2: Exhibit:
M3: Tab:
M4: Schedule:
M5: Page:
M7: Date:
A9: Appendix 2-B
A10: Fixed Asset Continuity Schedule
F12: Year | G12: 2012 | H12: GAAP
E14: Cost | K14: Accumulated Depreciation
A15: CCA Class | B15: OEB | C15: Description | D15: Depreciation Rate | E15: Opening Balance | F15: Additions | G15: Disposals | H15: Closing Balance | J15: Opening Balance | K15: Additions | L15: Disposals | M15: Closing Balance | N15: Net Book Value
A16: N/A | B16: 1805 | C16: Land | E16: 2339958 | H16: =E16+F16+G16 -> 2339958 | M16: =J16+K16+L16 -> 0 | N16: =H16+M16 -> 2339958
A17: CEC | B17: 1806 | C17: Land Rights | E17: 265447 | H17: =E17+F17+G17 -> 265447 | J17: -252568 | K17: -2653 | M17: =J17+K17+L17 -> -255221 | N17: =H17+M17 -> 10226
A18: 47 | B18: 1808 | C18: Buildings | E18: 9083165 | F18: 4769 | H18: =E18+F18+G18 -> 9087934 | J18: -1983675 | K18: -186431 | M18: -2170106 | N18: 6917828
A19: 47 | B19: 1808 | C19: Roof | E19: 185500 | G19: -10745 | H19: 174755 | J19: -40511 | K19: -27874 | L19: 10745 | M19: =J19+K19+L19 -> -57640 | N19: 117115
A20: 13 | B20: 1810 | C20: Leasehold Improvements
A21: 47 | B21: 1815 | C21: Transformer Station Equipment >50 kV 50 yrs | E21: 21983682 | F21: 78477 | G21: -6407 | H21: 22055752 | J21: -6325596 | K21: -390350 | L21: 6407 | M21: =J21+K21+L21 -> -6709539 | N21: 15346213
A22: 47 | B22: 1815 | C22: Transformer Station Equipment >50 kV 40 yrs | E22: 34362745 | H22: 34362745 | J22: -9887565 | K22: -837825 | M22: -10725390 | N22: 23637355
A23: 47 | B23: 1815 | C23: Transformer Station Equipment >50 kV 25 yrs | E23: 1306383 | G23: -9621 | H23: 1296762 | J23: -419355 | K23: -94545 | L23: 9621 | M23: -504279 | N23: 792483
A24: 47 | B24: 1815 | C24: Transformer Station Equipment >50 kV 20 yrs | E24: 583841 | F24: 25270 | G24: -12461 | H24: 596650 | J24: -191826 | K24: -67030 | L24: 12461 | M24: -246395 | N24: 350255
A25: 47 | B25: 1815 | C25: Transformer Station Equipment >50 kV 15 yrs | E25: 1641480 | F25: 68590 | G25: -133691 | H25: 1576379 | J25: -553906 | K25: -282314 | L25: 133691 | M25: -702529 | N25: 873850
A26: 47 | B26: 1820 | C26: Distribution Station Equipment <50 kV 50 yrs | E26: 1051479 | H26: 1051479 | I26: -1965929 | J26: -762562 | K26: -8813 | M26: -771375 | N26: 280104
A27: 47 | B27: 1820 | C27: Distribution Station Equipment <50 kV 40 yrs | E27: 1647187 | H27: 1647187 | I27: -1965929 | J27: -1102143 | K27: -25509 | M27: -1127652 | N27: 519535
A28: 47 | B28: 1820 | C28: Distribution Station Equipment <50 kV 25 yrs | E28: 55587 | G28: -1089 | H28: 54498 | I28: -1965929 | J28: -36434 | K28: -3895 | L28: 1089 | M28: -39240 | N28: 15258
A29: 47 | B29: 1820 | C29: Distribution Station Equipment <50 kV 20 yrs | E29: 25427 | G29: -3210 | H29: 22217 | I29: -1965929 | J29: -16666 | K29: -4284 | L29: 3210 | M29: -17740 | N29: 4477
A30: 47 | B30: 1820 | C30: Distribution Station Equipment <50 kV 15 yrs | E30: 73423 | G30: -11546 | H30: 61877 | I30: -1965929 | J30: -48124 | K30: -13339 | L30: 11546 | M30: -49917 | N30: 11960
A31: 47 | B31: 1825 | C31: Storage Battery Equipment
A32: 47 | B32: 1830 | C32: Poles, Towers & Fixtures | E32: 29644768 | F32: 2587380 | H32: 32232148 | J32: -12616367 | K32: -600173 | M32: -13216540 | N32: 19015608
A33: 47 | B33: 1835 | C33: Overhead Conductors | E33: 28020886 | F33: 1849156 | H33: 29870042 | J33: -13701824 | K33: -310700 | M33: -14012524 | N33: 15857518
A34: 47 | B34: 1835 | C34: Overhead Devices | E34: 3113432 | F34: 156884 | H34: 3270316 | J34: -1522426 | K34: -54926 | M34: -1577352 | N34: 1692964
A35: 47 | B35: 1835 | C35: Voltage Regulators | E35: 271849 | H35: 271849 | J35: -108740 | K35: -8155 | M35: -116895 | N35: 154954
A36: 47 | B36: 1835 | C36: Capacitor Banks | E36: 798092 | H36: 798092 | J36: -179996 | K36: -31924 | M36: -211920 | N36: 586172
A37: 47 | B37: 1840 | C37: Underground Conduit | E37: 22040741 | F37: 1775167 | H37: 23815908 | J37: -9513183 | K37: -271881 | M37: -9785064 | N37: 14030844
A38: 47 | B38: 1845 | C38: Underground PILC | E38: 450000 | F38: 71811 | H38: 521811 | J38: -36000 | K38: -8335 | M38: -44335 | N38: 477476
A39: 47 | B39: 1845 | C39: Underground Cables | E39: 33187461 | F39: 2004581 | H39: 35192042 | J39: -17460808 | K39: -598752 | M39: -18059560 | N39: 17132482
A40: 47 | B40: 1845 | C40: Underground Devices | E40: 3687496 | F40: 123332 | H40: 3810828 | J40: -1940090 | K40: -64043 | M40: -2004133 | N40: 1806695
A41: 47 | B41: 1850 | C41: Line Transformers - Overhead | E41: 38195234 | F41: 975364 | H41: 39170598 | J41: -22481400 | K41: -582000 | L41: 72814 | M41: -22990586 | N41: 16180012
A42: 47 | B42: 1850 | C42: Network Transformers | E42: 88877 | F42: 152267 | H42: 241144 | J42: -83374 | K42: -4252 | M42: -87626 | N42: 153518
A43: 47 | B43: 1850 | C43: Vault | F43: 2629 | H43: 2629 | K43: -44 | M43: -44 | N43: 2585
A44: 47 | B44: 1850 | C44: Roof | E44: 699521 | H44: 699521 | J44: -201573 | K44: -21235 | M44: -222808 | N44: 476713
A45: 47 | B45: 1850 | C45: Network Protectors | E45: 93844 | F45: 107832 | H45: 201676 | J45: -2252 | K45: -4948 | M45: -7200 | N45: 194476
A46: 47 | B46: 1850 | C46: Padmount Transformers | E46: 5025048 | F46: 721460 | H46: 5746508 | J46: -1033176 | K46: -131560 | M46: -1164736 | N46: 4581772
A47: 47 | B47: 1850 | C47: Submersible Transformers | E47: 4023092 | F47: 790096 | H47: 4813188 | J47: -827169 | K47: -153889 | M47: -981058 | N47: 3832130
A48: 47 | B48: 1850 | C48: Foundation | E48: 1796860 | F48: 417525 | H48: 2214385 | J48: -369444 | K48: -30930 | M48: -400374 | N48: 1814011
A49: 47 | B49: 1855 | C49: Services - Overhead | E49: 3373853 | F49: 419374 | H49: 3793227 | J49: -1486124 | K49: -43153 | M49: -1529277 | N49: 2263950
A50: 47 | B50: 1855 | C50: Services - Underground | E50: 38101852 | F50: 2054280 | H50: 40156132 | J50: -15558565 | K50: -769295 | M50: -16327860 | N50: 23828272
A51: 47 | B51: 1860 | C51: Meters | E51: 11503383 | F51: =345921+12041828 -> 12387749 | G51: -9578658 | H51: 14312474 | J51: -6379460 | K51: -3031690 | L51: 6393556 | M51: -3017594 | N51: 11294880
A52: 47 | B52: 1860 | C52: Meters (Smart Meters) | H52: 0
A53: N/A | B53: 1905 | C53: Land | E53: 1395300 | H53: 1395300 | M53: 0 | N53: 1395300
A54: 47 | B54: 1908 | C54: Buildings & Fixtures - Building | E54: 7858066 | F54: 30105 | H54: 7888171 | J54: -2595385 | K54: -177589 | M54: -2772974 | N54: 5115197
A55: 47 | B55: 1908 | C55: Buildings & Fixtures - Roof | E55: 2386887 | H55: 2386887 | J55: -819595 | K55: -246333 | M55: -1065928 | N55: 1320959
A56: 13 | B56: 1910 | C56: Leasehold Improvements | M56: 0 | N56: 0
A57: 8 | B57: 1915 | C57: Office Furniture & Equipment (10 years) | E57: 1112310 | F57: 70932 | G57: -36631 | H57: 1146611 | J57: -772098 | K57: -65353 | M57: -837451 | N57: 309160
A58: 8 | B58: 1915 | C58: Office Furniture & Equipment (5 years)
A59: 10 | B59: 1920 | C59: Computer Equipment - Hardware | E59: 2420466 | F59: =227721+221261 -> 448982 | H59: =E59+F59+G59 -> 2869448 | J59: -2070000 | K59: -219301 | M59: =J59+K59+L59 -> -2289301 | N59: =H59+M59 -> 580147
A60: 45 | B60: 1920 | C60: Computer Equip.-Hardware - Smart Meter | H60: 0
A61: 45.1 | B61: 1920 | C61: Computer Equip.-Hardware(Post Mar. 19/07)
A62: 12 | B62: 1925 | C62: Computer Software | E62: 3266775 | F62: =326748+518017 -> 844765 | H62: =E62+F62+G62 -> 4111540 | J62: -2338141 | K62: -770015 | M62: =J62+K62+L62 -> -3108156 | N62: =H62+M62 -> 1003384
A63: 10 | B63: 1930 | C63: Transportation Equipment | E63: 8154881 | F63: 428102 | G63: -45514 | H63: 8537469 | J63: -5373795 | K63: -458021 | L63: 45515 | M63: -5786301 | N63: 2751168
A64: 8 | B64: 1935 | C64: Stores Equipment | E64: 64072 | H64: 64072 | J64: -42588 | K64: -3512 | M64: -46100 | N64: 17972
A65: 8 | B65: 1940 | C65: Tools, Shop & Garage Equipment | E65: 772798 | F65: =3728+70533 -> 74261 | G65: -4335 | H65: 842724 | J65: -447845 | K65: -60503 | L65: 1382 | M65: -506966 | N65: 335758
A66: 8 | B66: 1940 | C66: Tools - Smart Meters | H66: 0
A67: 8 | B67: 1945 | C67: Measurement & Testing Equipment | E67: 866733 | F67: 96435 | H67: 963168 | J67: -703718 | K67: -32783 | M67: -736501 | N67: 226667
A68: 8 | B68: 1950 | C68: Power Operated Equipment | E68: 783695 | F68: 54068 | H68: 837763 | J68: -476883 | K68: -57705 | M68: -534588 | N68: 303175
A69: 8 | B69: 1955 | C69: Communications Equipment | E69: 173729 | F69: 696107 | H69: 869836 | J69: -114850 | K69: -271752 | M69: -386602 | N69: 483234
A70: 8 | B70: 1955 | C70: Communication Equipment (Smart Meters) | H70: 0
A71: 8 | B71: 1960 | C71: Miscellaneous Equipment | E71: 98856 | H71: 98856 | J71: -57886 | K71: -14931 | M71: -72817 | N71: 26039
A72: 47 | B72: 1975 | C72: Load Management Controls Utility Premises
A73: 47 | B73: 1980 | C73: System Supervisor Equipment | E73: 1566478 | H73: 1566478 | J73: -1451404 | K73: -95928 | M73: -1547332 | N73: 19146
A74: 47 | B74: 1985 | C74: Miscellaneous Fixed Assets
A75: 47 | B75: 1995 | C75: Contributions & Grants
A76: 47 | B76: 1995 | C76: CC - Poles Towers Fixtures | E76: -2146482 | F76: -600093 | H76: =E76+F76+G76 -> -2746575 | J76: 519629 | K76: 62487 | M76: 582116 | N76: -2164459
A77: 47 | B77: 1995 | C77: CC - O/H Conductors | E77: -1636306 | F77: -607123 | H77: -2243429 | J77: 390177 | K77: 34302 | M77: 424479 | N77: -1818950
A78: 47 | B78: 1995 | C78: CC - O/H Devices | E78: -181812 | F78: -67458 | H78: -249270 | J78: 43353 | K78: 4373 | M78: 47726 | N78: -201544
A79: 47 | B79: 1995 | C79: CC - O/H Services | E79: -1702362 | F79: 90988 | H79: -1611374 | J79: 459348 | K79: 51862 | M79: 511210 | N79: -1100164
A80: 47 | B80: 1995 | C80: CC - U/G Trenching and Ductwork | E80: -7470628 | F80: -1079357 | H80: -8549985 | J80: 1904224 | K80: 138014 | M80: 2042238 | N80: -6507747
A81: 47 | B81: 1995 | C81: CC - U/G Cable-Primary | E81: -3111138 | F81: -1393554 | H81: -4504692 | J81: 819002 | K81: 69845 | M81: 888847 | N81: =H81+M81 -> -3615845
A82: 47 | B82: 1995 | C82: CC - U/G Devices | E82: -345682 | F82: -104668 | H82: -450350 | J82: 91000 | K82: 8671 | M82: 99671 | N82: -350679
A83: 47 | B83: 1995 | C83: CC - U/G Services | E83: -3627812 | F83: -48024 | H83: -3675836 | J83: 888312 | K83: 94568 | M83: 982880 | N83: -2692956
A84: 47 | B84: 1995 | C84: CC - Pole Top Transformer | E84: -2594946 | F84: -317706 | H84: -2912652 | J84: 648228 | K84: 70103 | M84: 718331 | N84: -2194321
A85: 47 | B85: 1995 | C85: CC - UG Transformer | E85: -2465646 | F85: -281562 | H85: -2747208 | J85: 600211 | K85: 64707 | M85: =J85+K85+L85 -> 664918 | N85: -2082290
A86: 47 | B86: 1995 | C86: CC - U/G Submersible Transformer | E86: -18050842 | F86: 172272 | H86: -17878570 | J86: 4644518 | K86: 385762 | M86: 5030280 | N86: -12848290
A87: 47 | B87: 1995 | C87: CC - Foundation Transformer | E87: -1059244 | F87: -429058 | H87: -1488302 | J87: 264093 | K87: 20802 | M87: 284895 | N87: -1203407
A88: 47 | B88: 1995 | C88: CC - Meters Distribution | E88: -216698 | F88: -95090 | H88: -311788 | J88: 50515 | K88: 22610 | M88: 73125 | N88: -238663
A89: 47 | B89: 1995 | C89: CC - OEB Clearing Account | E89: 72438 | F89: 91462 | H89: 163900 | J89: -3900 | K89: -7626 | M89: -11526 | N89: 152374
H90: 0 | M90: =J90+K90-L90 -> 0 | N90: 0
M91: 0 | N91: 0
C92: Total | E92: =SUM(E16:E91) -> 285105479 | F92: =SUM(F16:F91) -> 24848779 | G92: =SUM(G16:G91) -> -9853908 | H92: =SUM(H16:H91) -> 300100350 | J92: =SUM(J16:J89) -> -133068380 | K92: =SUM(K16:K91) -> -10119993 | L92: =SUM(L16:L91) -> 6702037 | M92: =SUM(M16:M89) -> -136486336 | N92: =SUM(N16:N91) -> 163614014
J94: Less: Fully Allocated Depreciation
A95: 10 | C95: Transportation | J95: Transportation | L95: -458021
A96: 8 | C96: Stores Equipment | J96: Stores Equipment | L96: 0
L97: 0
J99: Net Depreciation | L99: =K92-L95-L96-L98-L97 -> -9661972
A101: Notes:
A103: 1 | B103: Tables in the format outlined above covering all fixed asset accounts should be submitted for the Test Year, Bridge Year and all relevant historical years. At a minimum , the applicant must provide data for the earlier of: 1) all historical years back to its last rebasing; or 2) at least three years of historical actuals, in addition to Bridge Year and Test Year forecasts.
A106: 2 | B106: The "CCA Class" for fixed assets should agree with the CCA Class used for tax purposes in Tax Returns. Fixed Assets sub-components may be used where the underlying asset components are classified under multiple CCA Classes for tax purposes. If an applicant uses any different classes from those shown in the table, an explanation should be provided. (also see note 3 below).
A109: 3 | B109: The table may need to be customized for a utility's asset categories or for any new asset accounts announced or authorized by the Board.
A111: 4 | B111: The depreciation column (D) is not required as the relevant information will be provided in the following 2-C series of appendices.

Sheet App.2-B_FA Continuity 2013
M1: File Number: | N1: ='LDC Info'!$E$18 -> EB-2013-0147
M2: Exhibit:
M3: Tab:
M4: Schedule:
M5: Page:
M7: Date:
A9: Appendix 2-B
A10: Fixed Asset Continuity Schedule
F12: Year | G12: 2013 | H12: GAAP
E14: Cost | K14: Accumulated Depreciation
A15: CCA Class | B15: OEB | C15: Description | D15: Depreciation Rate | E15: Opening Balance | F15: Additions | G15: Disposals | H15: Closing Balance | J15: Opening Balance | K15: Additions | L15: Disposals | M15: Closing Balance | N15: Net Book Value
A16: N/A | B16: 1805 | C16: Land | E16: =+'[4]App.2-B_FA Continuity 2012 GAAP'!H18 -> 2339958 | H16: =E16+F16+G16 -> 2339958 | J16: =+'[4]App.2-B_FA Continuity 2012 GAAP'!M18 -> 0 | M16: =J16+K16+L16 -> 0 | N16: =H16+M16 -> 2339958
A17: CEC | B17: 1806 | C17: Land Rights | E17: =+'[4]App.2-B_FA Continuity 2012 GAAP'!H17 -> 265447 | H17: =E17+F17+G17 -> 265447 | J17: =+'[4]App.2-B_FA Continuity 2012 GAAP'!M17 -> -255221 | K17: -2653 | M17: =J17+K17+L17 -> -257874 | N17: =H17+M17 -> 7573
A18: 47 | B18: 1808 | C18: Buildings | E18: =+'[4]App.2-B_FA Continuity 2012 GAAP'!H19 -> 9087934 | F18: 500000 | H18: =E18+F18+G18 -> 9587934 | J18: =+'[4]App.2-B_FA Continuity 2012 GAAP'!M19 -> -2170106 | K18: -186400 | M18: =J18+K18+L18 -> -2356506 | N18: =H18+M18 -> 7231428
A19: 47 | B19: 1808 | C19: Roof | E19: =+'[4]App.2-B_FA Continuity 2012 GAAP'!H20 -> 174755 | H19: 174755 | J19: =+'[4]App.2-B_FA Continuity 2012 GAAP'!M20 -> -57640 | K19: -17100 | M19: -74740 | N19: 100015
A20: 13 | B20: 1810 | C20: Leasehold Improvements
A21: 47 | B21: 1815 | C21: Transformer Station Equipment >50 kV 50 yrs | E21: =+'[4]App.2-B_FA Continuity 2012 GAAP'!H22 -> 22055752 | F21: 699999 | H21: 22755751 | J21: =+'[4]App.2-B_FA Continuity 2012 GAAP'!M22 -> -6709539 | K21: -404300 | M21: -7113839 | N21: 15641912
A22: 47 | B22: 1815 | C22: Transformer Station Equipment >50 kV 40 yrs | E22: =+'[4]App.2-B_FA Continuity 2012 GAAP'!H23 -> 34362745 | F22: 1000000 | H22: 35362745 | J22: =+'[4]App.2-B_FA Continuity 2012 GAAP'!M23 -> -10725390 | K22: -862800 | M22: -11588190 | N22: 23774555
A23: 47 | B23: 1815 | C23: Transformer Station Equipment >50 kV 25 yrs | E23: =+'[4]App.2-B_FA Continuity 2012 GAAP'!H24 -> 1296762 | F23: 263299 | H23: 1560061 | J23: =+'[4]App.2-B_FA Continuity 2012 GAAP'!M24 -> -504279 | K23: -95500 | M23: -599779 | N23: 960282
A24: 47 | B24: 1815 | C24: Transformer Station Equipment >50 kV 20 yrs | E24: =+'[4]App.2-B_FA Continuity 2012 GAAP'!H25 -> 596650 | H24: 596650 | J24: =+'[4]App.2-B_FA Continuity 2012 GAAP'!M25 -> -246395 | K24: -48500 | M24: -294895 | N24: 301755
A25: 47 | B25: 1815 | C25: Transformer Station Equipment >50 kV 15 yrs | E25: =+'[4]App.2-B_FA Continuity 2012 GAAP'!H26 -> 1576379 | F25: 133399 | H25: 1709778 | J25: =+'[4]App.2-B_FA Continuity 2012 GAAP'!M26 -> -702529 | K25: -157900 | M25: -860429 | N25: 849349
A26: 47 | B26: 1820 | C26: Distribution Station Equipment <50 kV 50 yrs | E26: =+'[4]App.2-B_FA Continuity 2012 GAAP'!H27 -> 1051479 | H26: 1051479 | J26: =+'[4]App.2-B_FA Continuity 2012 GAAP'!M27 -> -771375 | K26: -8800 | M26: -780175 | N26: 271304
A27: 47 | B27: 1820 | C27: Distribution Station Equipment <50 kV 40 yrs | E27: =+'[4]App.2-B_FA Continuity 2012 GAAP'!H28 -> 1647187 | H27: 1647187 | J27: =+'[4]App.2-B_FA Continuity 2012 GAAP'!M28 -> -1127652 | K27: -25500 | M27: -1153152 | N27: 494035
A28: 47 | B28: 1820 | C28: Distribution Station Equipment <50 kV 25 yrs | E28: =+'[4]App.2-B_FA Continuity 2012 GAAP'!H29 -> 54498 | H28: 54498 | J28: =+'[4]App.2-B_FA Continuity 2012 GAAP'!M29 -> -39240 | K28: -2800 | M28: -42040 | N28: 12458
A29: 47 | B29: 1820 | C29: Distribution Station Equipment <50 kV 20 yrs | E29: =+'[4]App.2-B_FA Continuity 2012 GAAP'!H30 -> 22217 | H29: 22217 | J29: =+'[4]App.2-B_FA Continuity 2012 GAAP'!M30 -> -17740 | K29: -1100 | M29: -18840 | N29: 3377
A30: 47 | B30: 1820 | C30: Distribution Station Equipment <50 kV 15 yrs | E30: =+'[4]App.2-B_FA Continuity 2012 GAAP'!H31 -> 61877 | F30: 63000 | H30: 124877 | J30: =+'[4]App.2-B_FA Continuity 2012 GAAP'!M31 -> -49917 | K30: -6000 | M30: -55917 | N30: 68960
A31: 47 | B31: 1825 | C31: Storage Battery Equipment
A32: 47 | B32: 1830 | C32: Poles, Towers & Fixtures | E32: =+'[4]App.2-B_FA Continuity 2012 GAAP'!H33 -> 32232148 | F32: 2718300 | H32: 34950448 | J32: =+'[4]App.2-B_FA Continuity 2012 GAAP'!M33 -> -13216540 | K32: -668185 | M32: -13884725 | N32: 21065723
A33: 47 | B33: 1835 | C33: Overhead Conductors | E33: =+'[4]App.2-B_FA Continuity 2012 GAAP'!H34 -> 29870042 | F33: 1636400 | H33: 31506442 | J33: =+'[4]App.2-B_FA Continuity 2012 GAAP'!M34 -> -14012524 | K33: -339273 | M33: -14351797 | N33: 17154645
A34: 47 | B34: 1835 | C34: Overhead Devices | E34: =+'[4]App.2-B_FA Continuity 2012 GAAP'!H35 -> 3270316 | F34: 181900 | H34: 3452216 | J34: =+'[4]App.2-B_FA Continuity 2012 GAAP'!M35 -> -1577352 | K34: -58197 | M34: -1635549 | N34: 1816667
A35: 47 | B35: 1835 | C35: Voltage Regulators | E35: =+'[4]App.2-B_FA Continuity 2012 GAAP'!H36 -> 271849 | H35: 271849 | J35: =+'[4]App.2-B_FA Continuity 2012 GAAP'!M36 -> -116895 | K35: -8200 | M35: -125095 | N35: 146754
A36: 47 | B36: 1835 | C36: Capacitor Banks | E36: =+'[4]App.2-B_FA Continuity 2012 GAAP'!H37 -> 798092 | H36: 798092 | J36: =+'[4]App.2-B_FA Continuity 2012 GAAP'!M37 -> -211920 | K36: -31900 | M36: -243820 | N36: 554272
A37: 47 | B37: 1840 | C37: Underground Conduit | E37: =+'[4]App.2-B_FA Continuity 2012 GAAP'!H38 -> 23815908 | F37: 3191900 | H37: 27007808 | J37: =+'[4]App.2-B_FA Continuity 2012 GAAP'!M38 -> -9785064 | K37: -325075 | M37: -10110139 | N37: 16897669
A38: 47 | B38: 1845 | C38: Underground PILC | E38: =+'[4]App.2-B_FA Continuity 2012 GAAP'!H39 -> 521811 | H38: 521811 | J38: =+'[4]App.2-B_FA Continuity 2012 GAAP'!M39 -> -44335 | K38: -8300 | M38: -52635 | N38: 469176
A39: 47 | B39: 1845 | C39: Underground Cables | E39: =+'[4]App.2-B_FA Continuity 2012 GAAP'!H40 -> 35192042 | F39: 2076700 | H39: 37268742 | J39: =+'[4]App.2-B_FA Continuity 2012 GAAP'!M40 -> -18059560 | K39: -650698 | M39: -18710258 | N39: 18558484
A40: 47 | B40: 1845 | C40: Underground Devices | E40: =+'[4]App.2-B_FA Continuity 2012 GAAP'!H41 -> 3810828 | F40: 230700 | H40: 4041528 | J40: =+'[4]App.2-B_FA Continuity 2012 GAAP'!M41 -> -2004133 | K40: -69800 | M40: -2073933 | N40: 1967595
A41: 47 | B41: 1850 | C41: Line Transformers - Overhead | E41: =+'[4]App.2-B_FA Continuity 2012 GAAP'!H42 -> 39170598 | F41: 788300 | H41: 39958898 | J41: =+'[4]App.2-B_FA Continuity 2012 GAAP'!M42 -> -22990586 | K41: -606483 | M41: -23597069 | N41: 16361829
A42: 47 | B42: 1850 | C42: Network Transformers | E42: =+'[4]App.2-B_FA Continuity 2012 GAAP'!H43 -> 241144 | F42: 255900 | H42: 497044 | J42: =+'[4]App.2-B_FA Continuity 2012 GAAP'!M43 -> -87626 | K42: -10700 | M42: -98326 | N42: 398718
A43: 47 | B43: 1850 | C43: Vault | E43: =+'[4]App.2-B_FA Continuity 2012 GAAP'!H44 -> 2629 | F43: 85400 | H43: 88029 | J43: =+'[4]App.2-B_FA Continuity 2012 GAAP'!M44 -> -44 | K43: -1500 | M43: -1544 | N43: 86485
A44: 47 | B44: 1850 | C44: Roof | E44: =+'[4]App.2-B_FA Continuity 2012 GAAP'!H45 -> 699521 | H44: 699521 | J44: =+'[4]App.2-B_FA Continuity 2012 GAAP'!M45 -> -222808 | K44: -21200 | M44: -244008 | N44: 455513
A45: 47 | B45: 1850 | C45: Network Protectors | E45: =+'[4]App.2-B_FA Continuity 2012 GAAP'!H46 -> 201676 | H45: 201676 | J45: =+'[4]App.2-B_FA Continuity 2012 GAAP'!M46 -> -7200 | K45: -4900 | M45: -12100 | N45: 189576
A46: 47 | B46: 1850 | C46: Padmount Transformers | E46: =+'[4]App.2-B_FA Continuity 2012 GAAP'!H47 -> 5746508 | F46: 120600 | H46: 5867108 | J46: =+'[4]App.2-B_FA Continuity 2012 GAAP'!M47 -> -1164736 | K46: -139260 | M46: -1303996 | N46: 4563112
A47: 47 | B47: 1850 | C47: Submersible Transformers | E47: =+'[4]App.2-B_FA Continuity 2012 GAAP'!H48 -> 4813188 | F47: 1307100 | H47: 6120288 | J47: =+'[4]App.2-B_FA Continuity 2012 GAAP'!M48 -> -981058 | K47: -177556 | M47: -1158614 | N47: 4961674
A48: 47 | B48: 1850 | C48: Foundation | E48: =+'[4]App.2-B_FA Continuity 2012 GAAP'!H49 -> 2214385 | F48: 386300 | H48: 2600685 | J48: =+'[4]App.2-B_FA Continuity 2012 GAAP'!M49 -> -400374 | K48: -47925 | M48: -448299 | N48: 2152386
A49: 47 | B49: 1855 | C49: Services - Overhead | E49: =+'[4]App.2-B_FA Continuity 2012 GAAP'!H50 -> 3793227 | F49: 340600 | H49: 4133827 | J49: =+'[4]App.2-B_FA Continuity 2012 GAAP'!M50 -> -1529277 | K49: -60275 | M49: -1589552 | N49: 2544275
A50: 47 | B50: 1855 | C50: Services - Underground | E50: =+'[4]App.2-B_FA Continuity 2012 GAAP'!H51 -> 40156132 | F50: 1798100 | H50: 41954232 | J50: =+'[4]App.2-B_FA Continuity 2012 GAAP'!M51 -> -16327860 | K50: -802861 | M50: -17130721 | N50: 24823511
A51: 47 | B51: 1860 | C51: Meters | E51: =+'[4]App.2-B_FA Continuity 2012 GAAP'!H52 -> 14312474 | F51: 690000 | H51: 15002474 | J51: =+'[4]App.2-B_FA Continuity 2012 GAAP'!M52 -> -3017594 | K51: -918242 | M51: -3935836 | N51: 11066638
A52: 47 | B52: 1860 | C52: Meters (Smart Meters) | E52: =+'[4]App.2-B_FA Continuity 2012 GAAP'!H53 -> 0 | H52: 0
A53: N/A | B53: 1905 | C53: Land | E53: =+'[4]App.2-B_FA Continuity 2012 GAAP'!H54 -> 1395300 | H53: 1395300 | J53: =+'[4]App.2-B_FA Continuity 2012 GAAP'!M54 -> 0 | M53: 0 | N53: 1395300
A54: 47 | B54: 1908 | C54: Buildings & Fixtures - Building | E54: =+'[4]App.2-B_FA Continuity 2012 GAAP'!H55 -> 7888171 | F54: 5600000 | H54: 13488171 | J54: =+'[4]App.2-B_FA Continuity 2012 GAAP'!M55 -> -2772974 | K54: -289600 | M54: -3062574 | N54: 10425597
A55: 47 | B55: 1908 | C55: Buildings & Fixtures - Roof | E55: =+'[4]App.2-B_FA Continuity 2012 GAAP'!H56 -> 2386887 | F55: 60000 | H55: 2446887 | J55: =+'[4]App.2-B_FA Continuity 2012 GAAP'!M56 -> -1065928 | K55: -249300 | M55: -1315228 | N55: 1131659
A56: 13 | B56: 1910 | C56: Leasehold Improvements
A57: 8 | B57: 1915 | C57: Office Furniture & Equipment (10 years) | E57: =+'[4]App.2-B_FA Continuity 2012 GAAP'!H58 -> 1146611 | F57: 126600 | H57: 1273211 | J57: =+'[4]App.2-B_FA Continuity 2012 GAAP'!M58 -> -837451 | K57: -61400 | M57: -898851 | N57: 374360
A58: 8 | B58: 1915 | C58: Office Furniture & Equipment (5 years) | H58: 0
A59: 10 | B59: 1920 | C59: Computer Equipment - Hardware | E59: =+'[4]App.2-B_FA Continuity 2012 GAAP'!H60 -> 2869448 | F59: 398000 | H59: 3267448 | J59: =+'[4]App.2-B_FA Continuity 2012 GAAP'!M60 -> -2289301 | K59: =-169000 -> -169000 | M59: -2458301 | N59: 809147
A60: 45 | B60: 1920 | C60: Computer Equip.-Hardware - Smart Meters | E60: =+'[4]App.2-B_FA Continuity 2012 GAAP'!H61 -> 0 | H60: 0
A61: 45.1 | B61: 1920 | C61: Computer Equip.-Hardware(Post Mar. 19/07)
A62: 12 | B62: 1925 | C62: Computer Software | E62: =+'[4]App.2-B_FA Continuity 2012 GAAP'!H16 -> 4111540 | F62: 341000 | H62: =E62+F62+G62 -> 4452540 | J62: =+'[4]App.2-B_FA Continuity 2012 GAAP'!M16 -> -3108156 | K62: -477800 | M62: =J62+K62+L62 -> -3585956 | N62: =H62+M62 -> 866584
A63: 10 | B63: 1930 | C63: Transportation Equipment | E63: =+'[4]App.2-B_FA Continuity 2012 GAAP'!H63 -> 8537469 | F63: 1124200 | G63: -400000 | H63: 9261669 | J63: =+'[4]App.2-B_FA Continuity 2012 GAAP'!M63 -> -5786301 | K63: -535700 | L63: 400000 | M63: -5922001 | N63: 3339668
A64: 8 | B64: 1935 | C64: Stores Equipment | E64: =+'[4]App.2-B_FA Continuity 2012 GAAP'!H64 -> 64072 | H64: 64072 | J64: =+'[4]App.2-B_FA Continuity 2012 GAAP'!M64 -> -46100 | K64: -4000 | M64: -50100 | N64: 13972
A65: 8 | B65: 1940 | C65: Tools, Shop & Garage Equipment | E65: =+'[4]App.2-B_FA Continuity 2012 GAAP'!H65 -> 842724 | F65: 88400 | H65: 931124 | J65: =+'[4]App.2-B_FA Continuity 2012 GAAP'!M65 -> -506966 | K65: -63200 | M65: -570166 | N65: 360958
A66: 8 | B66: 1940 | C66: Tools - Smart Meters | H66: 0 | M66: 0 | N66: 0
A67: 8 | B67: 1945 | C67: Measurement & Testing Equipment | E67: 963168 | H67: 963168 | J67: -736501 | K67: -34100 | M67: -770601 | N67: 192567
A68: 8 | B68: 1950 | C68: Power Operated Equipment | E68: 837763 | H68: 837763 | J68: -534588 | K68: -54600 | M68: -589188 | N68: 248575
A69: 8 | B69: 1955 | C69: Communications Equipment | E69: =+'[4]App.2-B_FA Continuity 2012 GAAP'!H69 -> 869836 | H69: 869836 | J69: =+'[4]App.2-B_FA Continuity 2012 GAAP'!M69 -> -386602 | K69: -89900 | M69: -476502 | N69: 393334
A70: 8 | B70: 1955 | C70: Communication Equipment (Smart Meters) | E70: =+'[4]App.2-B_FA Continuity 2012 GAAP'!H70 -> 0 | H70: 0 | J70: =+'[4]App.2-B_FA Continuity 2012 GAAP'!M70 -> 0 | K70: 0 | M70: 0 | N70: 0
A71: 8 | B71: 1960 | C71: Miscellaneous Equipment | E71: =+'[4]App.2-B_FA Continuity 2012 GAAP'!H71 -> 98856 | H71: 98856 | J71: =+'[4]App.2-B_FA Continuity 2012 GAAP'!M71 -> -72817 | K71: -14700 | M71: -87517 | N71: 11339
A72: 47 | B72: 1975 | C72: Load Management Controls Utility Premises
A73: 47 | B73: 1980 | C73: System Supervisor Equipment | E73: =+'[4]App.2-B_FA Continuity 2012 GAAP'!H73 -> 1566478 | H73: 1566478 | J73: -1547332 | K73: -4100 | M73: -1551432 | N73: 15046
A74: 47 | B74: 1985 | C74: Miscellaneous Fixed Assets
A75: 47 | B75: 1995 | C75: Contributions & Grants
A76: 47 | B76: 1995 | C76: CC - Poles Towers Fixtures | E76: =+'[4]App.2-B_FA Continuity 2012 GAAP'!H76 -> -2746575 | F76: -308400 | H76: -3054975 | J76: =+'[4]App.2-B_FA Continuity 2012 GAAP'!M76 -> 582116 | K76: 70185 | M76: 652301 | N76: -2402674
A77: 47 | B77: 1995 | C77: CC - O/H Conductors | E77: =+'[4]App.2-B_FA Continuity 2012 GAAP'!H77 -> -2243429 | F77: -212130 | H77: -2455559 | J77: =+'[4]App.2-B_FA Continuity 2012 GAAP'!M77 -> 424479 | K77: 37782 | M77: =J77+K77+L77 -> 462261 | N77: -1993298
A78: 47 | B78: 1995 | C78: CC - O/H Devices | E78: =+'[4]App.2-B_FA Continuity 2012 GAAP'!H78 -> -249270 | F78: -23570 | H78: -272840 | J78: =+'[4]App.2-B_FA Continuity 2012 GAAP'!M78 -> 47726 | K78: 4987 | M78: 52713 | N78: -220127
A79: 47 | B79: 1995 | C79: CC - O/H Services | E79: =+'[4]App.2-B_FA Continuity 2012 GAAP'!H79 -> -1611374 | F79: -31750 | H79: -1643124 | J79: =+'[4]App.2-B_FA Continuity 2012 GAAP'!M79 -> 511210 | K79: 32675 | M79: 543885 | N79: -1099239
A80: 47 | B80: 1995 | C80: CC - U/G Trenching and Ductwork | E80: =+'[4]App.2-B_FA Continuity 2012 GAAP'!H80 -> -8549985 | F80: -797000 | H80: -9346985 | J80: =+'[4]App.2-B_FA Continuity 2012 GAAP'!M80 -> 2042238 | K80: 134475 | M80: 2176713 | N80: -7170272
A81: 47 | B81: 1995 | C81: CC - U/G Cable-Primary | E81: =+'[4]App.2-B_FA Continuity 2012 GAAP'!H81 -> -4504692 | F81: -623160 | H81: -5127852 | J81: =+'[4]App.2-B_FA Continuity 2012 GAAP'!M81 -> 888847 | K81: 117628 | M81: 1006475 | N81: -4121377
A82: 47 | B82: 1995 | C82: CC - U/G Devices | E82: =+'[4]App.2-B_FA Continuity 2012 GAAP'!H82 -> -450350 | F82: -69240 | H82: -519590 | J82: =+'[4]App.2-B_FA Continuity 2012 GAAP'!M82 -> 99671 | K82: 11770 | M82: 111441 | N82: -408149
A83: 47 | B83: 1995 | C83: CC - U/G Services | E83: =+'[4]App.2-B_FA Continuity 2012 GAAP'!H83 -> -3675836 | F83: 0 | H83: -3675836 | J83: =+'[4]App.2-B_FA Continuity 2012 GAAP'!M83 -> 982880 | K83: 86383 | M83: 1069263 | N83: -2606573
A84: 47 | B84: 1995 | C84: CC - Pole Top Transformer | E84: =+'[4]App.2-B_FA Continuity 2012 GAAP'!H84 -> -2912652 | F84: -141200 | H84: -3053852 | J84: =+'[4]App.2-B_FA Continuity 2012 GAAP'!M84 -> 718331 | K84: 73660 | M84: 791991 | N84: -2261861
A85: 47 | B85: 1995 | C85: CC - UG Transformer | E85: =+'[4]App.2-B_FA Continuity 2012 GAAP'!H85 -> -2747208 | F85: -329400 | H85: -3076608 | J85: =+'[4]App.2-B_FA Continuity 2012 GAAP'!M85 -> 664918 | K85: 77956 | M85: 742874 | N85: -2333734
A86: 47 | B86: 1995 | C86: CC - U/G Submersible Transformer | E86: =+'[4]App.2-B_FA Continuity 2012 GAAP'!H86 -> -17878570 | F86: -1303150 | H86: -19181720 | J86: =+'[4]App.2-B_FA Continuity 2012 GAAP'!M86 -> 5030280 | K86: 415561 | M86: 5445841 | N86: -13735879
A87: 47 | B87: 1995 | C87: CC - Foundation Transformer | E87: =+'[4]App.2-B_FA Continuity 2012 GAAP'!H87 -> -1488302 | F87: -96500 | H87: -1584802 | J87: =+'[4]App.2-B_FA Continuity 2012 GAAP'!M87 -> 284895 | K87: 34125 | M87: 319020 | N87: -1265782
A88: 47 | B88: 1995 | C88: CC - Meters Distribution | E88: =+'[4]App.2-B_FA Continuity 2012 GAAP'!H88 -> -311788 | F88: -40000 | H88: -351788 | J88: =+'[4]App.2-B_FA Continuity 2012 GAAP'!M88 -> 73125 | K88: 25280 | M88: 98405 | N88: -253383
A89: 47 | B89: 1995 | C89: CC - OEB Clearing Account | E89: =+'[4]App.2-B_FA Continuity 2012 GAAP'!H89 -> 163900 | F89: 40000 | H89: 203900 | J89: =+'[4]App.2-B_FA Continuity 2012 GAAP'!M89 -> -11526 | K89: -10236 | M89: -21762 | N89: 182138
C92: Total | E92: =SUM(E16:E91) -> 300100350 | F92: =SUM(F16:F91) -> 22270597 | G92: =SUM(G16:G91) -> -400000 | H92: =SUM(H16:H91) -> 321970947 | J92: =SUM(J16:J91) -> -136486336 | K92: =SUM(K16:K91) -> -7705052 | L92: =SUM(L16:L91) -> 400000 | M92: =SUM(M16:M91) -> -143791388 | N92: =SUM(N16:N91) -> 178179559
J94: Less: Fully Allocated Depreciation
A95: 10 | C95: Transportation | J95: Transportation | L95: -535700
A96: 8 | C96: Stores Equipment | J96: Stores Equipment
J97: Net Depreciation | L97: =+K92-L95 -> -7169352
A99: Notes:
A101: 1 | B101: Tables in the format outlined above covering all fixed asset accounts should be submitted for the Test Year, Bridge Year and all relevant historical years. At a minimum , the applicant must provide data for the earlier of: 1) all historical years back to its last rebasing; or 2) at least three years of historical actuals, in addition to Bridge Year and Test Year forecasts.
A104: 2 | B104: The "CCA Class" for fixed assets should agree with the CCA Class used for tax purposes in Tax Returns. Fixed Assets sub-components may be used where the underlying asset components are classified under multiple CCA Classes for tax purposes. If an applicant uses any different classes from those shown in the table, an explanation should be provided. (also see note 3 below).
A107: 3 | B107: The table may need to be customized for a utility's asset categories or for any new asset accounts announced or authorized by the Board.
A109: 4 | B109: The depreciation column (D) is not required as the relevant information will be provided in the following 2-C series of appendices.

Sheet App.2-B_FA Continuity 2014
M1: File Number: | N1: ='LDC Info'!$E$18 -> EB-2013-0147
M2: Exhibit:
M3: Tab:
M4: Schedule:
M5: Page:
M7: Date:
A9: Appendix 2-B
A10: Fixed Asset Continuity Schedule
F12: Year | G12: 2014 | H12: GAAP
E14: Cost | K14: Accumulated Depreciation
A15: CCA Class | B15: OEB | C15: Description | D15: Depreciation Rate | E15: Opening Balance | F15: Additions | G15: Disposals | H15: Closing Balance | J15: Opening Balance | K15: Additions | L15: Disposals | M15: Closing Balance | N15: Net Book Value
A16: N/A | B16: 1805 | C16: Land | E16: =+'App.2-B_FA Continuity 2013'!H16 -> 2339958 | H16: =E16+F16+G16 -> 2339958 | J16: =+'App.2-B_FA Continuity 2013'!M16 -> 0 | K16: 0 | M16: =J16+K16+L16 -> 0 | N16: =H16+M16 -> 2339958
A17: CEC | B17: 1806 | C17: Land Rights | E17: =+'App.2-B_FA Continuity 2013'!H17 -> 265447 | H17: =E17+F17+G17 -> 265447 | J17: =+'App.2-B_FA Continuity 2013'!M17 -> -257874 | K17: -2653 | M17: =J17+K17+L17 -> -260527 | N17: =H17+M17 -> 4920
A18: 47 | B18: 1808 | C18: Buildings | E18: =+'App.2-B_FA Continuity 2013'!H18 -> 9587934 | F18: 158000 | H18: =E18+F18+G18 -> 9745934 | J18: =+'App.2-B_FA Continuity 2013'!M18 -> -2356506 | K18: -186400 | M18: =J18+K18+L18 -> -2542906 | N18: =H18+M18 -> 7203028
A19: 47 | B19: 1808 | C19: Roof | E19: =+'App.2-B_FA Continuity 2013'!H19 -> 174755 | F19: 3200 | H19: 177955 | J19: =+'App.2-B_FA Continuity 2013'!M19 -> -74740 | K19: -12700 | M19: -87440 | N19: 90515
A20: 13 | B20: 1810 | C20: Leasehold Improvements | E20: =+'App.2-B_FA Continuity 2013'!H20 -> 0 | J20: =+'App.2-B_FA Continuity 2013'!M20 -> 0
A21: 47 | B21: 1815 | C21: Transformer Station Equipment >50 kV 50 yrs | E21: =+'App.2-B_FA Continuity 2013'!H21 -> 22755751 | F21: 650000 | H21: 23405751 | J21: =+'App.2-B_FA Continuity 2013'!M21 -> -7113839 | K21: -411100 | M21: -7524939 | N21: 15880812
A22: 47 | B22: 1815 | C22: Transformer Station Equipment >50 kV 40 yrs | E22: =+'App.2-B_FA Continuity 2013'!H22 -> 35362745 | F22: 1390000 | H22: 36752745 | J22: =+'App.2-B_FA Continuity 2013'!M22 -> -11588190 | K22: -881000 | M22: -12469190 | N22: 24283555
A23: 47 | B23: 1815 | C23: Transformer Station Equipment >50 kV 25 yrs | E23: =+'App.2-B_FA Continuity 2013'!H23 -> 1560061 | H23: 1560061 | J23: =+'App.2-B_FA Continuity 2013'!M23 -> -599779 | K23: -87300 | M23: -687079 | N23: 872982
A24: 47 | B24: 1815 | C24: Transformer Station Equipment >50 kV 20 yrs | E24: =+'App.2-B_FA Continuity 2013'!H24 -> 596650 | H24: 596650 | J24: =+'App.2-B_FA Continuity 2013'!M24 -> -294895 | K24: -41500 | M24: -336395 | N24: 260255
A25: 47 | B25: 1815 | C25: Transformer Station Equipment >50 kV 15 yrs | E25: =+'App.2-B_FA Continuity 2013'!H25 -> 1709778 | H25: 1709778 | J25: =+'App.2-B_FA Continuity 2013'!M25 -> -860429 | K25: -146000 | M25: -1006429 | N25: 703349
A26: 47 | B26: 1820 | C26: Distribution Station Equipment <50 kV 50 yrs | E26: =+'App.2-B_FA Continuity 2013'!H26 -> 1051479 | H26: 1051479 | I26: -1965929 | J26: =+'App.2-B_FA Continuity 2013'!M26 -> -780175 | K26: -8800 | M26: -788975 | N26: 262504
A27: 47 | B27: 1820 | C27: Distribution Station Equipment <50 kV 40 yrs | E27: =+'App.2-B_FA Continuity 2013'!H27 -> 1647187 | H27: 1647187 | I27: -1965929 | J27: =+'App.2-B_FA Continuity 2013'!M27 -> -1153152 | K27: -25500 | M27: -1178652 | N27: 468535
A28: 47 | B28: 1820 | C28: Distribution Station Equipment <50 kV 25 yrs | E28: =+'App.2-B_FA Continuity 2013'!H28 -> 54498 | H28: 54498 | I28: -1965929 | J28: =+'App.2-B_FA Continuity 2013'!M28 -> -42040 | K28: -2200 | M28: -44240 | N28: 10258
A29: 47 | B29: 1820 | C29: Distribution Station Equipment <50 kV 20 yrs | E29: =+'App.2-B_FA Continuity 2013'!H29 -> 22217 | H29: 22217 | I29: -1965929 | J29: =+'App.2-B_FA Continuity 2013'!M29 -> -18840 | K29: -1100 | M29: -19940 | N29: 2277
A30: 47 | B30: 1820 | C30: Distribution Station Equipment <50 kV 15 yrs | E30: =+'App.2-B_FA Continuity 2013'!H30 -> 124877 | H30: 124877 | I30: -1965929 | J30: =+'App.2-B_FA Continuity 2013'!M30 -> -55917 | K30: -6000 | M30: -61917 | N30: 62960
A31: 47 | B31: 1825 | C31: Storage Battery Equipment | E31: =+'App.2-B_FA Continuity 2013'!H31 -> 0 | J31: =+'App.2-B_FA Continuity 2013'!M31 -> 0
A32: 47 | B32: 1830 | C32: Poles, Towers & Fixtures | E32: =+'App.2-B_FA Continuity 2013'!H32 -> 34950448 | F32: 2768500 | H32: 37718948 | J32: =+'App.2-B_FA Continuity 2013'!M32 -> -13884725 | K32: -703585 | M32: -14588310 | N32: 23130638
A33: 47 | B33: 1835 | C33: Overhead Conductors | E33: =+'App.2-B_FA Continuity 2013'!H33 -> 31506442 | F33: 1997100 | H33: 33503542 | J33: =+'App.2-B_FA Continuity 2013'!M33 -> -14351797 | K33: -354573 | M33: -14706370 | N33: 18797172
A34: 47 | B34: 1835 | C34: Overhead Devices | E34: =+'App.2-B_FA Continuity 2013'!H34 -> 3452216 | F34: 221900 | H34: 3674116 | J34: =+'App.2-B_FA Continuity 2013'!M34 -> -1635549 | K34: -63297 | M34: -1698846 | N34: 1975270
A35: 47 | B35: 1835 | C35: Voltage Regulators | E35: =+'App.2-B_FA Continuity 2013'!H35 -> 271849 | H35: 271849 | J35: =+'App.2-B_FA Continuity 2013'!M35 -> -125095 | K35: -8200 | M35: -133295 | N35: 138554
A36: 47 | B36: 1835 | C36: Capacitor Banks | E36: =+'App.2-B_FA Continuity 2013'!H36 -> 798092 | H36: 798092 | J36: =+'App.2-B_FA Continuity 2013'!M36 -> -243820 | K36: -31900 | M36: -275720 | N36: 522372
A37: 47 | B37: 1840 | C37: Underground Conduit | E37: =+'App.2-B_FA Continuity 2013'!H37 -> 27007808 | F37: 2820500 | H37: 29828308 | J37: =+'App.2-B_FA Continuity 2013'!M37 -> -10110139 | K37: -348575 | M37: -10458714 | N37: 19369594
A38: 47 | B38: 1845 | C38: Underground PILC | E38: =+'App.2-B_FA Continuity 2013'!H38 -> 521811 | H38: 521811 | J38: =+'App.2-B_FA Continuity 2013'!M38 -> -52635 | K38: -8300 | M38: -60935 | N38: 460876
A39: 47 | B39: 1845 | C39: Underground Cables | E39: =+'App.2-B_FA Continuity 2013'!H39 -> 37268742 | F39: 2359600 | H39: 39628342 | J39: =+'App.2-B_FA Continuity 2013'!M39 -> -18710258 | K39: -680198 | M39: -19390456 | N39: 20237886
A40: 47 | B40: 1845 | C40: Underground Devices | E40: =+'App.2-B_FA Continuity 2013'!H40 -> 4041528 | F40: 262200 | H40: 4303728 | J40: =+'App.2-B_FA Continuity 2013'!M40 -> -2073933 | K40: -73100 | M40: -2147033 | N40: 2156695
A41: 47 | B41: 1850 | C41: Line Transformers - Overhead | E41: =+'App.2-B_FA Continuity 2013'!H41 -> 39958898 | F41: 820800 | H41: 40779698 | J41: =+'App.2-B_FA Continuity 2013'!M41 -> -23597069 | K41: -611983 | M41: -24209052 | N41: 16570646
A42: 47 | B42: 1850 | C42: Network Transformers | E42: =+'App.2-B_FA Continuity 2013'!H42 -> 497044 | F42: 192100 | H42: 689144 | J42: =+'App.2-B_FA Continuity 2013'!M42 -> -98326 | K42: -13000 | M42: -111326 | N42: 577818
A43: 47 | B43: 1850 | C43: Vault | E43: =+'App.2-B_FA Continuity 2013'!H43 -> 88029 | H43: 88029 | J43: =+'App.2-B_FA Continuity 2013'!M43 -> -1544 | K43: -1500 | M43: -3044 | N43: 84985
A44: 47 | B44: 1850 | C44: Roof | E44: =+'App.2-B_FA Continuity 2013'!H44 -> 699521 | H44: 699521 | J44: =+'App.2-B_FA Continuity 2013'!M44 -> -244008 | K44: -20900 | M44: -264908 | N44: 434613
A45: 47 | B45: 1850 | C45: Network Protectors | E45: =+'App.2-B_FA Continuity 2013'!H45 -> 201676 | H45: 201676 | J45: =+'App.2-B_FA Continuity 2013'!M45 -> -12100 | K45: -4900 | M45: -17000 | N45: 184676
A46: 47 | B46: 1850 | C46: Padmount Transformers | E46: =+'App.2-B_FA Continuity 2013'!H46 -> 5867108 | F46: 463000 | H46: 6330108 | J46: =+'App.2-B_FA Continuity 2013'!M46 -> -1303996 | K46: -140360 | M46: -1444356 | N46: 4885752
A47: 47 | B47: 1850 | C47: Submersible Transformers | E47: =+'App.2-B_FA Continuity 2013'!H47 -> 6120288 | F47: 1097700 | H47: 7217988 | J47: =+'App.2-B_FA Continuity 2013'!M47 -> -1158614 | K47: -215856 | M47: -1374470 | N47: 5843518
A48: 47 | B48: 1850 | C48: Foundation | E48: =+'App.2-B_FA Continuity 2013'!H48 -> 2600685 | F48: 324900 | H48: 2925585 | J48: =+'App.2-B_FA Continuity 2013'!M48 -> -448299 | K48: -40125 | M48: -488424 | N48: 2437161
A49: 47 | B49: 1855 | C49: Services - Overhead | E49: =+'App.2-B_FA Continuity 2013'!H49 -> 4133827 | F49: 538500 | H49: 4672327 | J49: =+'App.2-B_FA Continuity 2013'!M49 -> -1589552 | K49: -85775 | M49: -1675327 | N49: 2997000
A50: 47 | B50: 1855 | C50: Services - Underground | E50: =+'App.2-B_FA Continuity 2013'!H50 -> 41954232 | F50: 2525500 | H50: 44479732 | J50: =+'App.2-B_FA Continuity 2013'!M50 -> -17130721 | K50: -813361 | M50: -17944082 | N50: 26535650
A51: 47 | B51: 1860 | C51: Meters | E51: =+'App.2-B_FA Continuity 2013'!H51 -> 15002474 | F51: =612000 -> 612000 | G51: 211400 | H51: 15825874 | J51: =+'App.2-B_FA Continuity 2013'!M51 -> -3935836 | K51: =-928842 -> -928842 | L51: -43800 | M51: -4908478 | N51: 10917396
A52: 47 | B52: 1860 | C52: Meters (Smart Meters) | E52: =+'App.2-B_FA Continuity 2013'!H52 -> 0 | H52: 0 | J52: =+'App.2-B_FA Continuity 2013'!M52 -> 0 | M52: 0 | N52: 0
A53: N/A | B53: 1905 | C53: Land | E53: =+'App.2-B_FA Continuity 2013'!H53 -> 1395300 | H53: 1395300 | J53: =+'App.2-B_FA Continuity 2013'!M53 -> 0 | K53: 0 | M53: 0 | N53: 1395300
A54: 47 | B54: 1908 | C54: Buildings & Fixtures - Building | E54: =+'App.2-B_FA Continuity 2013'!H54 -> 13488171 | F54: 1350000 | H54: 14838171 | J54: =+'App.2-B_FA Continuity 2013'!M54 -> -3062574 | K54: -309400 | M54: -3371974 | N54: 11466197
A55: 47 | B55: 1908 | C55: Buildings & Fixtures - Roof | E55: =+'App.2-B_FA Continuity 2013'!H55 -> 2446887 | H55: 2446887 | J55: =+'App.2-B_FA Continuity 2013'!M55 -> -1315228 | K55: -243200 | M55: -1558428 | N55: 888459
A56: 13 | B56: 1910 | C56: Leasehold Improvements | E56: =+'App.2-B_FA Continuity 2013'!H56 -> 0 | J56: =+'App.2-B_FA Continuity 2013'!M56 -> 0
A57: 8 | B57: 1915 | C57: Office Furniture & Equipment (10 years) | E57: =+'App.2-B_FA Continuity 2013'!H57 -> 1273211 | F57: 70000 | H57: 1343211 | J57: =+'App.2-B_FA Continuity 2013'!M57 -> -898851 | K57: -75800 | M57: -974651 | N57: 368560
A58: 8 | B58: 1915 | C58: Office Furniture & Equipment (5 years) | E58: =+'App.2-B_FA Continuity 2013'!H58 -> 0 | J58: =+'App.2-B_FA Continuity 2013'!M58 -> 0
A59: 10 | B59: 1920 | C59: Computer Equipment - Hardware | E59: =+'App.2-B_FA Continuity 2013'!H59 -> 3267448 | F59: 360000 | H59: 3627448 | J59: =+'App.2-B_FA Continuity 2013'!M59 -> -2458301 | K59: -203600 | M59: -2661901 | N59: 965547
A60: 45 | B60: 1920 | C60: Computer Equip.-Hardware - Smart Meters | E60: =+'App.2-B_FA Continuity 2013'!H60 -> 0 | H60: 0 | J60: =+'App.2-B_FA Continuity 2013'!M60 -> 0 | M60: 0 | N60: 0
A61: 45.1 | B61: 1920 | C61: Computer Equip.-Hardware(Post Mar. 19/07) | E61: =+'App.2-B_FA Continuity 2013'!H61 -> 0 | J61: =+'App.2-B_FA Continuity 2013'!M61 -> 0
A62: 12 | B62: 1925 | C62: Computer Software | E62: =+'App.2-B_FA Continuity 2013'!H62 -> 4452540 | F62: =360000 -> 360000 | G62: 71200 | H62: =E62+F62+G62 -> 4883740 | J62: =+'App.2-B_FA Continuity 2013'!M62 -> -3585956 | K62: =-666800 -> -666800 | L62: -63500 | M62: =J62+K62+L62 -> -4316256 | N62: =H62+M62 -> 567484
A63: 10 | B63: 1930 | C63: Transportation Equipment | E63: =+'App.2-B_FA Continuity 2013'!H63 -> 9261669 | F63: 920000 | G63: -400000 | H63: 9781669 | J63: =+'App.2-B_FA Continuity 2013'!M63 -> -5922001 | K63: -643000 | L63: 400000 | M63: -6165001 | N63: 3616668
A64: 8 | B64: 1935 | C64: Stores Equipment | E64: =+'App.2-B_FA Continuity 2013'!H64 -> 64072 | H64: 64072 | J64: =+'App.2-B_FA Continuity 2013'!M64 -> -50100 | K64: -4000 | M64: -54100 | N64: 9972
A65: 8 | B65: 1940 | C65: Tools, Shop & Garage Equipment | E65: =+'App.2-B_FA Continuity 2013'!H65 -> 931124 | F65: 90000 | H65: 1021124 | J65: =+'App.2-B_FA Continuity 2013'!M65 -> -570166 | K65: -72200 | M65: -642366 | N65: 378758
A66: 8 | B66: 1940 | C66: Tools - Smart Meters | E66: =+'App.2-B_FA Continuity 2013'!H66 -> 0 | H66: 0 | J66: =+'App.2-B_FA Continuity 2013'!M66 -> 0 | M66: 0 | N66: 0
A67: 8 | B67: 1945 | C67: Measurement & Testing Equipment | E67: =+'App.2-B_FA Continuity 2013'!H67 -> 963168 | H67: 963168 | J67: =+'App.2-B_FA Continuity 2013'!M67 -> -770601 | K67: -34100 | M67: -804701 | N67: 158467
A68: 8 | B68: 1950 | C68: Power Operated Equipment | E68: =+'App.2-B_FA Continuity 2013'!H68 -> 837763 | H68: 837763 | J68: =+'App.2-B_FA Continuity 2013'!M68 -> -589188 | K68: -54600 | M68: -643788 | N68: 193975
A69: 8 | B69: 1955 | C69: Communications Equipment | E69: =+'App.2-B_FA Continuity 2013'!H69 -> 869836 | H69: 869836 | J69: =+'App.2-B_FA Continuity 2013'!M69 -> -476502 | K69: -89800 | M69: -566302 | N69: 303534
A70: 8 | B70: 1955 | C70: Communication Equipment (Smart Meters) | E70: =+'App.2-B_FA Continuity 2013'!H70 -> 0 | H70: 0 | J70: =+'App.2-B_FA Continuity 2013'!M70 -> 0 | K70: 0 | M70: 0 | N70: 0
A71: 8 | B71: 1960 | C71: Miscellaneous Equipment | E71: =+'App.2-B_FA Continuity 2013'!H71 -> 98856 | H71: 98856 | J71: =+'App.2-B_FA Continuity 2013'!M71 -> -87517 | K71: -11300 | M71: -98817 | N71: 39
A72: 47 | B72: 1975 | C72: Load Management Controls Utility Premises | E72: =+'App.2-B_FA Continuity 2013'!H72 -> 0 | J72: =+'App.2-B_FA Continuity 2013'!M72 -> 0
A73: 47 | B73: 1980 | C73: System Supervisor Equipment | E73: =+'App.2-B_FA Continuity 2013'!H73 -> 1566478 | H73: 1566478 | J73: =+'App.2-B_FA Continuity 2013'!M73 -> -1551432 | K73: -4100 | M73: -1555532 | N73: 10946
A74: 47 | B74: 1985 | C74: Miscellaneous Fixed Assets | E74: =+'App.2-B_FA Continuity 2013'!H74 -> 0 | J74: =+'App.2-B_FA Continuity 2013'!M74 -> 0
A75: 47 | B75: 1995 | C75: Contributions & Grants | E75: =+'App.2-B_FA Continuity 2013'!H75 -> 0 | J75: =+'App.2-B_FA Continuity 2013'!M75 -> 0
A76: 47 | B76: 1995 | C76: CC - Poles Towers Fixtures | E76: =+'App.2-B_FA Continuity 2013'!H76 -> -3054975 | F76: -500500 | H76: -3555475 | J76: =+'App.2-B_FA Continuity 2013'!M76 -> 652301 | K76: 76485 | M76: 728786 | N76: -2826689
A77: 47 | B77: 1995 | C77: CC - O/H Conductors | E77: =+'App.2-B_FA Continuity 2013'!H77 -> -2455559 | F77: -411840 | H77: -2867399 | J77: =+'App.2-B_FA Continuity 2013'!M77 -> 462261 | K77: 41283 | M77: 503544 | N77: -2363855
A78: 47 | B78: 1995 | C78: CC - O/H Devices | E78: =+'App.2-B_FA Continuity 2013'!H78 -> -272840 | F78: -45760 | H78: -318600 | J78: =+'App.2-B_FA Continuity 2013'!M78 -> 52713 | K78: 5487 | M78: 58200 | N78: -260400
A79: 47 | B79: 1995 | C79: CC - O/H Services | E79: =+'App.2-B_FA Continuity 2013'!H79 -> -1643124 | F79: -78650 | H79: -1721774 | J79: =+'App.2-B_FA Continuity 2013'!M79 -> 543885 | K79: 33375 | M79: 577260 | N79: -1144514
A80: 47 | B80: 1995 | C80: CC - U/G Trenching and Ductwork | E80: =+'App.2-B_FA Continuity 2013'!H80 -> -9346985 | F80: -815625 | H80: -10162610 | J80: =+'App.2-B_FA Continuity 2013'!M80 -> 2176713 | K80: 141275 | M80: 2317988 | N80: -7844622
A81: 47 | B81: 1995 | C81: CC - U/G Cable-Primary | E81: =+'App.2-B_FA Continuity 2013'!H81 -> -5127852 | F81: -700583 | H81: -5828435 | J81: =+'App.2-B_FA Continuity 2013'!M81 -> 1006475 | K81: 126428 | M81: 1132903 | N81: -4695532
A82: 47 | B82: 1995 | C82: CC - U/G Devices | E82: =+'App.2-B_FA Continuity 2013'!H82 -> -519590 | F82: -77843 | H82: -597433 | J82: =+'App.2-B_FA Continuity 2013'!M82 -> 111441 | K82: 12770 | M82: 124211 | N82: -473222
A83: 47 | B83: 1995 | C83: CC - U/G Services | E83: =+'App.2-B_FA Continuity 2013'!H83 -> -3675836 | F83: 0 | H83: -3675836 | J83: =+'App.2-B_FA Continuity 2013'!M83 -> 1069263 | K83: 86383 | M83: 1155646 | N83: -2520190
A84: 47 | B84: 1995 | C84: CC - Pole Top Transformer | E84: =+'App.2-B_FA Continuity 2013'!H84 -> -3053852 | F84: -134868 | H84: -3188720 | J84: =+'App.2-B_FA Continuity 2013'!M84 -> 791991 | K84: 75360 | M84: 867351 | N84: -2321369
A85: 47 | B85: 1995 | C85: CC - UG Transformer | E85: =+'App.2-B_FA Continuity 2013'!H85 -> -3076608 | F85: -314700 | H85: -3391308 | J85: =+'App.2-B_FA Continuity 2013'!M85 -> 742874 | K85: 83156 | M85: 826030 | N85: -2565278
A86: 47 | B86: 1995 | C86: CC - U/G Submersible Transformer | E86: =+'App.2-B_FA Continuity 2013'!H86 -> -19181720 | F86: -1537000 | H86: -20718720 | J86: =+'App.2-B_FA Continuity 2013'!M86 -> 5445841 | K86: 434761 | M86: 5880602 | N86: -14838118
A87: 47 | B87: 1995 | C87: CC - Foundation Transformer | E87: =+'App.2-B_FA Continuity 2013'!H87 -> -1584802 | F87: -92200 | H87: -1677002 | J87: =+'App.2-B_FA Continuity 2013'!M87 -> 319020 | K87: 34825 | M87: 353845 | N87: -1323157
A88: 47 | B88: 1995 | C88: CC - Meters Distribution | E88: =+'App.2-B_FA Continuity 2013'!H88 -> -351788 | F88: -40000 | H88: -391788 | J88: =+'App.2-B_FA Continuity 2013'!M88 -> 98405 | K88: 26580 | M88: 124985 | N88: -266803
A89: 47 | B89: 1995 | C89: CC - OEB Clearing Account | E89: =+'App.2-B_FA Continuity 2013'!H89 -> 203900 | F89: =40000 -> 40000 | G89: -163900 | H89: 80000 | J89: =+'App.2-B_FA Continuity 2013'!M89 -> -21762 | K89: -11538 | L89: 36000 | M89: 2700 | N89: 82700
B90: etc.
C92: Total | E92: =SUM(E16:E91) -> 321970947 | F92: =SUM(F16:F91) -> 17645931 | G92: =SUM(G16:G91) -> -281300 | H92: =SUM(H16:H91) -> 339335578 | J92: =SUM(J16:J91) -> -143791388 | K92: =SUM(K16:K91) -> -8205853 | L92: =SUM(L16:L91) -> 328700 | M92: =SUM(M16:M91) -> -151668541 | N92: =SUM(N16:N91) -> 187667037
J94: Less: Fully Allocated Depreciation
A95: 10 | C95: Transportation | J95: Transportation | L95: -643000
J96: PP&E Amortization | L96: -1485353
A97: 8 | C97: Stores Equipment | J97: Stores Equipment
J98: Net Depreciation | L98: =+K92-L95-L96 -> -6077500
A100: Notes:
A102: 1 | B102: Tables in the format outlined above covering all fixed asset accounts should be submitted for the Test Year, Bridge Year and all relevant historical years. At a minimum , the applicant must provide data for the earlier of: 1) all historical years back to its last rebasing; or 2) at least three years of historical actuals, in addition to Bridge Year and Test Year forecasts.
A105: 2 | B105: The "CCA Class" for fixed assets should agree with the CCA Class used for tax purposes in Tax Returns. Fixed Assets sub-components may be used where the underlying asset components are classified under multiple CCA Classes for tax purposes. If an applicant uses any different classes from those shown in the table, an explanation should be provided. (also see note 3 below).
A108: 3 | B108: The table may need to be customized for a utility's asset categories or for any new asset accounts announced or authorized by the Board.
A110: 4 | B110: The depreciation column (D) is not required as the relevant information will be provided in the following 2-C series of appendices.

Sheet App.2-CA_CGAAP_DepExp_2012
K1: File Number: | L1: ='LDC Info'!$E$18 -> EB-2013-0147
K2: Exhibit:
K3: Tab:
K4: Schedule:
K5: Page:
K7: Date:
A9: Appendix 2-CA
A10: Depreciation and Amortization Expense
A11: Assumes the applicant adopted IFRS for financial reporting purposes January 1, 2013
C12: Year | D12: 2012 | E12: CGAAP
A14: Account | B14: Description | C14: Opening Regulatory Gross PP&E as at Jan 1, 2012 | D14: Less Fully Depreciated | E14: Net for Depreciation | F14: Additions | G14: Total for Depreciation | H14: Years | I14: Depreciation Rate | J14: Depreciation Expense | K14: 2012 Depreciation Expense per Appendix 2-B Fixed Assets, Column K (l) | L14: Variance 2
C15: (a) | D15: (b) | E15: (c) | F15: (d) | G15: (e) = (c) + ½ x (d) 1 | H15: (f) | I15: (g) = 1 / (f) | J15: (h) = (e) / (f) | L15: (m) = (h) - (l)
A16: 1611 | B16: Computer Software (Formally known as Account 1925) | E16: =C16-D16 -> 0 | G16: =E16+0.5*F16 -> 0 | I16: =IF(H16=0,0,1/H16) -> 0 | J16: =IF(H16=0,0,G16/H16) -> 0 | L16: =IF(ISERROR(+J16-K16), 0, +J16-K16) -> 0
A17: 1611 | B17: Computer Software (Formally known as Account 1925) - Smart Meters | E17: =C17-D17 -> 0 | G17: =E17+0.5*F17 -> 0 | I17: =IF(H17=0,0,1/H17) -> 0 | J17: =IF(H17=0,0,G17/H17) -> 0 | L17: =IF(ISERROR(+J17-K17), 0, +J17-K17) -> 0
A18: 1612 | B18: Land Rights (Formally known as Account 1906) | E18: =C18-D18 -> 0 | G18: =E18+0.5*F18 -> 0 | I18: 0 | J18: =IF(H18=0,0,G18/H18) -> 0 | L18: =IF(ISERROR(+J18-K18), 0, +J18-K18) -> 0
A19: 1805 | B19: Land | E19: 0 | G19: 0 | I19: 0 | J19: 0 | L19: 0
A20: 1808 | B20: Buildings | E20: 0 | G20: 0 | I20: 0 | J20: 0 | L20: 0
A21: 1808 | B21: Buildings | E21: =C21-D21 -> 0 | G21: =E21+0.5*F21 -> 0 | I21: =IF(H21=0,0,1/H21) -> 0 | J21: =IF(H21=0,0,G21/H21) -> 0 | L21: =IF(ISERROR(+J21-K21), 0, +J21-K21) -> 0
A22: 1810 | B22: Leasehold Improvements | E22: 0 | G22: 0 | I22: 0 | J22: 0 | L22: 0
A23: 1815 | B23: Transformer Station Equipment >50 kV | E23: 0 | G23: 0 | I23: 0 | J23: 0 | L23: 0
A24: 1820 | B24: Distribution Station Equipment <50 kV | E24: 0 | G24: 0 | I24: 0 | J24: 0 | L24: 0
A25: 1825 | B25: Storage Battery Equipment | E25: 0 | G25: 0 | I25: 0 | J25: 0 | L25: 0
A26: 1830 | B26: Poles, Towers & Fixtures | E26: 0 | G26: 0 | I26: 0 | J26: 0 | L26: 0
A27: 1835 | B27: Overhead Conductors & Devices | E27: 0 | G27: 0 | I27: 0 | J27: 0 | L27: 0
A28: 1840 | B28: Underground Conduit | E28: 0 | G28: 0 | I28: 0 | J28: 0 | L28: 0
A29: 1840 | B29: Underground Conduit | E29: =C29-D29 -> 0 | G29: =E29+0.5*F29 -> 0 | I29: =IF(H29=0,0,1/H29) -> 0 | J29: =IF(H29=0,0,G29/H29) -> 0 | L29: =IF(ISERROR(+J29-K29), 0, +J29-K29) -> 0
A30: 1845 | B30: Underground Conductors & Devices | E30: 0 | G30: 0 | I30: 0 | J30: =IF(H30=0,0,G30/H30) -> 0 | L30: 0
A31: 1845 | B31: Underground Conductors & Devices | E31: =C31-D31 -> 0 | G31: =E31+0.5*F31 -> 0 | I31: =IF(H31=0,0,1/H31) -> 0 | J31: =IF(H31=0,0,G31/H31) -> 0 | L31: =IF(ISERROR(+J31-K31), 0, +J31-K31) -> 0
A32: 1850 | B32: Line Transformers | E32: 0 | G32: 0 | I32: 0 | J32: 0 | L32: 0
A33: 1850 | B33: Line Transformers | E33: =C33-D33 -> 0 | G33: =E33+0.5*F33 -> 0 | I33: =IF(H33=0,0,1/H33) -> 0 | J33: =IF(H33=0,0,G33/H33) -> 0 | L33: =IF(ISERROR(+J33-K33), 0, +J33-K33) -> 0
A34: 1855 | B34: Services (Overhead & Underground) | E34: 0 | G34: 0 | I34: 0 | J34: 0 | L34: 0
A35: 1855 | B35: Services (Overhead & Underground) | E35: =C35-D35 -> 0 | G35: =E35+0.5*F35 -> 0 | I35: =IF(H35=0,0,1/H35) -> 0 | J35: =IF(H35=0,0,G35/H35) -> 0 | L35: =IF(ISERROR(+J35-K35), 0, +J35-K35) -> 0
A36: 1860 | B36: Meters | E36: 0 | G36: 0 | I36: 0 | J36: 0 | L36: 0
A37: 1860 | B37: Meters | E37: =C37-D37 -> 0 | G37: =E37+0.5*F37 -> 0 | I37: =IF(H37=0,0,1/H37) -> 0 | J37: =IF(H37=0,0,G37/H37) -> 0 | L37: =IF(ISERROR(+J37-K37), 0, +J37-K37) -> 0
A38: 1860 | B38: Meters (Smart Meters) | E38: 0 | G38: 0 | I38: 0 | J38: 0 | L38: 0
A39: 1905 | B39: Land | E39: 0 | G39: 0 | I39: 0 | J39: 0 | L39: 0
A40: 1908 | B40: Buildings & Fixtures | E40: 0 | G40: 0 | I40: 0 | J40: 0 | L40: 0
A41: 1908 | B41: Buildings & Fixtures | E41: =C41-D41 -> 0 | G41: =E41+0.5*F41 -> 0 | I41: =IF(H41=0,0,1/H41) -> 0 | J41: =IF(H41=0,0,G41/H41) -> 0 | L41: =IF(ISERROR(+J41-K41), 0, +J41-K41) -> 0
A42: 1910 | B42: Leasehold Improvements | E42: 0 | G42: 0 | I42: 0 | J42: 0 | L42: 0
A43: 1915 | B43: Office Furniture & Equipment (10 years) | E43: 0 | G43: 0 | I43: 0 | J43: 0 | L43: 0
A44: 1915 | B44: Office Furniture & Equipment (5 years) | E44: 0 | G44: 0 | I44: 0 | J44: 0 | L44: 0
A45: 1920 | B45: Computer Equipment - Hardware | E45: 0 | G45: 0 | I45: 0 | J45: 0 | L45: 0
A46: 1920 | B46: Computer Equip.-Hardware - Smart Meters | E46: 0 | G46: 0 | I46: 0 | J46: 0 | L46: 0
A47: 1920 | B47: Computer Equip.-Hardware(Post Mar. 19/07) | E47: 0 | G47: 0 | I47: 0 | J47: 0 | L47: 0
A48: 1930 | B48: Transportation Equipment < 3 Tons | E48: =C48-D48 -> 0 | G48: =E48+0.5*F48 -> 0 | I48: 0 | J48: 0 | L48: 0
A49: 1930 | B49: Transportation Equipment > 3 Tons | E49: =C49-D49 -> 0 | G49: =E49+0.5*F49 -> 0 | I49: =IF(H49=0,0,1/H49) -> 0 | J49: =IF(H49=0,0,G49/H49) -> 0 | L49: =IF(ISERROR(+J49-K49), 0, +J49-K49) -> 0
A50: 1930 | B50: Transportation Equipment - Trailers | E50: =C50-D50 -> 0 | G50: =E50+0.5*F50 -> 0 | I50: =IF(H50=0,0,1/H50) -> 0 | J50: =IF(H50=0,0,G50/H50) -> 0 | L50: =IF(ISERROR(+J50-K50), 0, +J50-K50) -> 0
A51: 1935 | B51: Stores Equipment | E51: 0 | G51: 0 | I51: 0 | J51: 0 | L51: 0
A52: 1940 | B52: Tools, Shop & Garage Equipment | E52: 0 | G52: 0 | I52: 0 | J52: 0 | L52: 0
A53: 1940 | B53: Tools - Smart Meters | E53: =C53-D53 -> 0 | G53: =E53+0.5*F53 -> 0 | I53: =IF(H53=0,0,1/H53) -> 0 | J53: =IF(H53=0,0,G53/H53) -> 0 | L53: =IF(ISERROR(+J53-K53), 0, +J53-K53) -> 0
A54: 1945 | B54: Measurement & Testing Equipment | E54: 0 | G54: 0 | I54: 0 | J54: 0 | L54: 0
A55: 1950 | B55: Power Operated Equipment | E55: 0 | G55: 0 | I55: 0 | J55: 0 | L55: 0
A56: 1955 | B56: Communications Equipment | E56: 0 | G56: 0 | I56: 0 | J56: 0 | L56: 0
A57: 1955 | B57: Communication Equipment (Smart Meters) | E57: 0 | G57: 0 | I57: 0 | J57: 0 | L57: 0
A58: 1960 | B58: Miscellaneous Equipment | E58: 0 | G58: 0 | I58: 0 | J58: 0 | L58: 0
A59: 1975 | B59: Load Management Controls Utility Premises | E59: 0 | G59: 0 | I59: 0 | J59: 0 | L59: 0
A60: 1980 | B60: System Supervisor Equipment | E60: 0 | G60: 0 | I60: 0 | J60: 0 | L60: 0
A61: 1980 | B61: System Supervisor Equipment | E61: =C61-D61 -> 0 | G61: =E61+0.5*F61 -> 0 | I61: =IF(H61=0,0,1/H61) -> 0 | J61: =IF(H61=0,0,G61/H61) -> 0 | L61: =IF(ISERROR(+J61-K61), 0, +J61-K61) -> 0
A62: 1985 | B62: Miscellaneous Fixed Assets | E62: 0 | G62: 0 | I62: 0 | J62: 0 | L62: 0
A63: 1995 | B63: Contributions & Grants | E63: 0 | G63: 0 | I63: 0 | J63: 0 | L63: =IF(ISERROR(+J63-K63), 0, +J63-K63) -> 0
A64: etc. | E64: 0 | G64: 0 | I64: 0 | J64: 0 | L64: 0
E65: 0 | G65: 0 | J65: 0 | L65: 0
B66: Total | C66: =SUM(C16:C65) -> 0 | D66: =SUM(D16:D65) -> 0 | E66: =SUM(E16:E65) -> 0 | F66: =SUM(F16:F65) -> 0 | G66: =SUM(G16:G65) -> 0 | J66: =SUM(J16:J65) -> 0 | K66: =SUM(K16:K65) -> 0 | L66: =SUM(L16:L65) -> 0
A68: Notes:
A70: 1 | B70: Board policy of the "half-year" rule - the applicant must ensure that additions in the year attract a half-year depreciation expense in the first year. Deviations from this standard practice must be supported in the application.
A71: 2 | B71: The applicant must provide an explanation of material variances in evidence
A73: General | B73: Applicants must provide a breakdown of depreciation and amortization expense in the above format for all relevant accounts. Asset Retirement Obligations (AROs), depreciation and accretion expense should be disclosed separately consistent with the Notes of historical Audited Financial Statements.
A78: Explanation

Sheet App.2-CA_CGAAP_DepExp_2012COL (hidden)
K1: File Number: | L1: ='LDC Info'!$E$18 -> EB-2013-0147
K2: Exhibit: | L2: 4
K3: Tab:
K4: Schedule:
K5: Page:
K7: Date:
A9: Appendix 2-CA
A10: Depreciation and Amortization Expense
A11: Assumes the applicant adopted IFRS for financial reporting purposes January 1, 2013
C12: Year | D12: 2012 | E12: CGAAP
A14: Account | B14: Description | C14: Opening Regulatory Gross PP&E as at Jan 1, 2012 | D14: Less Fully Depreciated | E14: Net for Depreciation | F14: Additions | G14: Total for Depreciation | H14: Years | I14: Depreciation Rate | J14: Depreciation Expense | K14: 2012 Depreciation Expense per Appendix 2-B Fixed Assets, Column K (l) | L14: Variance 2
C15: (a) | D15: (b) | E15: (c) | F15: (d) | G15: (e) = (c) + ½ x (d) 1 | H15: (f) | I15: (g) = 1 / (f) | J15: (h) = (e) / (f) | L15: (m) = (h) - (l) | M15: 1/2 Year Deprec
A16: 1611 | B16: Computer Software (Formally known as Account 1925) | C16: 3266775 | D16: =2470199+6616.65 -> 2476815.65 | E16: =C16-D16 -> 789959.35 | F16: =+'App.2-B_FA Continuity 2012 GAAP'!F62 -> 844765 | G16: =E16+0.5*F16 -> 1212341.85 | H16: 5 | I16: =IF(H16=0,0,1/H16) -> 0.2 | J16: =IF(H16=0,0,G16/H16) -> 242468.37 | K16: =-'App.2-B_FA Continuity 2012 GAAP'!K62 -> 770015 | L16: =IF(ISERROR(+J16-K16), 0, +J16-K16) -> -527546.63 | M16: =F16/H16*0.5 -> 84476.5 | N16: =L16+M16 -> -443070.13
A17: 1611 | B17: Computer Software (Formally known as Account 1925) - Smart Meters | E17: =C17-D17 -> 0 | F17: =+'App.2-B_FA Continuity 2012 GAAP'!F17 -> 0 | G17: =E17+0.5*F17 -> 0 | H17: 3 | I17: 0.3333333333 | J17: =IF(H17=0,0,G17/H17) -> 0 | K17: =-'App.2-B_FA Continuity 2012 GAAP'!K17 -> 2653 | L17: =IF(ISERROR(+J17-K17), 0, +J17-K17) -> -2653 | M17: =F17/H17*0.5 -> 0 | N17: =L17+M17 -> -2653 | O17: Additions during the year were from Regulatory accounts. Most are transferred in.
A18: 1612 | B18: Land Rights (Formally known as Account 1906) | C18: 265449 | D18: 199174 | E18: =C18-D18 -> 66275 | F18: 0 | G18: =E18+0.5*F18 -> 66275 | H18: 25 | I18: 0.04 | J18: 2651 | K18: =-'App.2-B_FA Continuity 2012 GAAP'!K16 -> 0 | L18: =IF(ISERROR(+J18-K18), 0, +J18-K18) -> 2651 | M18: 0 | N18: 2651 | O18: Changed years. Is this correct? (assets fully depreciated?)
A19: 1805 | B19: Land | C19: 2339958 | E19: 2339958 | F19: 0 | G19: 2339958 | H19: 0 | I19: 0 | J19: 0 | K19: 0 | L19: 0 | N19: 0
A20: 1808 | B20: Buildings | C20: =9268665-C21 -> 7461078.7 | E20: 7461078.7 | F20: -20178 | G20: 7450989.7 | H20: 50 | I20: 0.02 | J20: 149019.794 | K20: =-'App.2-B_FA Continuity 2012 GAAP'!K19-K21 -> -2523 | L20: 151542.794 | M20: -201.78 | N20: 151341.014
A21: 1808 | B21: Buildings | C21: =110211+31314.3+94138+15528+135517+459713+57293+94760+269175+539937 -> 1807586.3 | E21: 1807586.3 | G21: 1807586.3 | H21: 60 | I21: 0.01666666667 | J21: 30126.43833 | K21: =1900+522+1827+2258+7661+983+1664+4584+8998 -> 30397 | L21: -270.5616667 | M21: 0 | N21: -270.5616667
A22: 1810 | B22: Leasehold Improvements | E22: 0 | F22: 0 | G22: 0 | H22: 0 | I22: 0 | J22: 0 | L22: 0 | N22: 0
A23: 1815 | B23: Transformer Station Equipment >50 kV | C23: 59878130 | D23: =1424846.22-54981.59 -> 1369864.63 | E23: 58508265.37 | F23: 93639 | G23: 58555084.87 | H23: 40 | I23: 0.025 | J23: 1463877.122 | K23: =-'App.2-B_FA Continuity 2012 GAAP'!K21 -> 390350 | L23: 1073527.122 | M23: 1170.4875 | N23: 1074697.609 | O23: 2012 deprec error
A24: 1820 | B24: Distribution Station Equipment <50 kV | C24: 2853105 | D24: 527835.24 | E24: 2325269.76 | F24: 0 | G24: 2325269.76 | H24: 30 | I24: 0.03333333333 | J24: 77508.992 | K24: =-'App.2-B_FA Continuity 2012 GAAP'!K22 -> 837825 | L24: -760316.008 | M24: 0 | N24: -760316.008
A25: 1825 | B25: Storage Battery Equipment | E25: 0 | F25: 0 | G25: 0 | H25: 0 | I25: 0 | J25: 0 | L25: 0 | N25: 0
A26: 1830 | B26: Poles, Towers & Fixtures | C26: 29644768 | E26: 29644768 | F26: 2894738 | G26: 31092137 | H26: 25 | I26: 0.04 | J26: 1243685.48 | K26: =-'App.2-B_FA Continuity 2012 GAAP'!K24 -> 67030 | L26: 1176655.48 | M26: 57894.76 | N26: 1234550.24
A27: 1835 | B27: Overhead Conductors & Devices | C27: 32204259 | E27: 32204259 | F27: 2259990 | G27: 33334254 | H27: 25 | I27: 0.04 | J27: 1333370.16 | K27: =-'App.2-B_FA Continuity 2012 GAAP'!K25 -> 282314 | L27: 1051056.16 | M27: 45199.8 | N27: 1096255.96
A28: 1840 | B28: Underground Conduit | C28: =22040741-1232070.21 -> 20808670.79 | E28: 20808670.79 | F28: 1910830 | G28: 21764085.79 | H28: 25 | I28: 0.04 | J28: 870563.4316 | K28: =-'App.2-B_FA Continuity 2012 GAAP'!K26-35220 -> -26407 | L28: 896970.4316 | M28: 38216.6 | N28: 935187.0316
A29: 1840 | B29: Underground Conduit | C29: 1232070.21 | E29: 1232070.21 | G29: 1232070.21 | H29: 35 | I29: 0.02857142857 | J29: 35202.006 | K29: 35220.11 | L29: -18.104 | M29: 0 | N29: -18.104
A30: 1845 | B30: Underground Conductors & Devices | C30: =37324957-3058251.48 -> 34266705.52 | E30: 34266705.52 | F30: 2430148 | G30: 35481779.52 | H30: 25 | I30: 0.04 | J30: =IF(H30=0,0,G30/H30) -> 1419271.181 | K30: =1555093-87423.55 -> 1467669.45 | L30: -48398.2692 | M30: 48602.96 | N30: 204.6908
A31: 1845 | B31: Underground Conductors & Devices | C31: 3058251.48 | E31: 3058251.48 | G31: 3058251.48 | H31: 35 | I31: 0.02857142857 | J31: =IF(H31=0,0,G31/H31) -> 87378.61371 | K31: 87423.55 | L31: -44.93628571 | M31: 0 | N31: -44.93628571
A32: 1850 | B32: Line Transformers | C32: =49922477-2180161.15 -> 47742315.85 | E32: 47742315.85 | F32: 3398190 | G32: 49441410.85 | H32: 25 | I32: 0.04 | J32: 1977656.434 | K32: =2045477-72672 -> 1972805 | L32: 4851.434 | M32: 67963.8 | N32: 72815.234 | O32: transfers
A33: 1850 | B33: Line Transformers | C33: 2180161.15 | E33: 2180161.15 | G33: 2180161.15 | H33: 30 | I33: 0.03333333333 | J33: 72672.03833 | K33: 72672.04 | L33: -0.001666666663 | M33: 0 | N33: -0.001666666663
A34: 1855 | B34: Services (Overhead & Underground) | C34: =41475703-1885469.85 -> 39590233.15 | E34: 39590233.15 | F34: 2762234 | G34: 40971350.15 | H34: 25 | I34: 0.04 | J34: 1638854.006 | K34: =1748284-53898.24 -> 1694385.76 | L34: -55531.754 | M34: 55244.68 | N34: -287.074
A35: 1855 | B35: Services (Overhead & Underground) | C35: 1885468.85 | E35: 1885468.85 | G35: 1885468.85 | H35: 35 | I35: 0.02857142857 | J35: 53870.53857 | K35: 53898.24 | L35: -27.70142857 | M35: 0 | N35: -27.70142857
A36: 1860 | B36: Meters | C36: =11503383-706 -> 11502677 | D36: 9578658 | E36: 1924019 | F36: =+'App.2-B_FA Continuity 2012 GAAP'!F30 -> 0 | G36: 1924019 | H36: 25 | I36: 0.04 | J36: 76960.76 | K36: =-+'App.2-B_FA Continuity 2012 GAAP'!K30-K37 -> 13319 | L36: 63641.76 | M36: 0 | N36: 63641.76
A37: 1860 | B37: Meters | C37: 706 | E37: 706 | G37: 706 | H37: 35 | I37: 0.02857142857 | J37: 20.17142857 | K37: 20 | L37: 0.1714285714 | M37: 0 | N37: 0.1714285714
A38: 1860 | B38: Meters (Smart Meters) | E38: 0 | F38: =+'App.2-B_FA Continuity 2012 GAAP'!F31 -> 0 | G38: 0 | H38: 15 | I38: 0.06666666667 | J38: 0 | K38: =-+'App.2-B_FA Continuity 2012 GAAP'!K31 -> 0 | L38: 0 | M38: 0 | N38: 0 | O38: smart meters
A39: 1905 | B39: Land | C39: 1395300 | E39: 1395300 | F39: 0 | G39: 1395300 | H39: 0 | I39: 0 | J39: 0 | L39: 0 | N39: 0
A40: 1908 | B40: Buildings & Fixtures | C40: =10244953-290243-6077383 -> 3877327 | E40: 3877327 | F40: 31703 | G40: 3893178.5 | H40: 50 | I40: 0.02 | J40: 77863.57 | K40: =184308-4837-101290 -> 78181 | L40: -317.43 | M40: 317.03 | N40: -0.4
A41: 1908 | B41: Buildings & Fixtures | C41: =290243+6077383 -> 6367626 | E41: 6367626 | G41: 6367626 | H41: 60 | I41: 0.01666666667 | J41: 106127.1 | K41: =4837+101290 -> 106127 | L41: 0.1 | M41: 0 | N41: 0.1
A42: 1910 | B42: Leasehold Improvements | E42: 0 | F42: 0 | G42: 0 | H42: 50 | I42: 0.02 | J42: 0 | L42: 0 | M42: 0 | N42: 0
A43: 1915 | B43: Office Furniture & Equipment (10 years) | C43: 1112310 | D43: 527725 | E43: 584585 | F43: 34301 | G43: 601735.5 | H43: 10 | I43: 0.1 | J43: 60173.55 | K43: 65354 | L43: -5180.45 | M43: 1715.05 | N43: -3465.4
A44: 1915 | B44: Office Furniture & Equipment (5 years) | E44: 0 | F44: 0 | G44: 0 | H44: 5 | I44: 0.2 | J44: 0 | K44: 0 | L44: 0 | M44: 0 | N44: 0
A45: 1920 | B45: Computer Equipment - Hardware | C45: 2420464 | D45: 1813602.59 | E45: 606861.41 | F45: 227721 | G45: 720721.91 | H45: 5 | I45: 0.2 | J45: 144144.382 | K45: 151267 | L45: -7122.618 | M45: 22772.1 | N45: 15649.482
A46: 1920 | B46: Computer Equip.-Hardware - Smart Meters | E46: 0 | F46: 221261 | G46: 110630.5 | H46: 5 | I46: 0.2 | J46: 22126.1 | K46: 77441 | L46: -55314.9 | M46: 22126.1 | N46: -33188.8 | O46: smart meters
A47: 1920 | B47: Computer Equip.-Hardware(Post Mar. 19/07) | E47: 0 | G47: 0 | H47: 5 | I47: 0.2 | J47: 0 | K47: 0 | L47: 0 | M47: 0 | N47: 0
A48: 1930 | B48: Transportation Equipment < 3 Tons | C48: 1059248.37 | D48: 402788.6 | E48: =C48-D48 -> 656459.77 | F48: 52112.56 | G48: =E48+0.5*F48 -> 682516.05 | H48: 5 | I48: 0.2 | J48: 136503.21 | K48: =747189-693664-10070 -> 43455 | L48: 93048.21 | M48: 5211.256 | N48: 98259.466
A49: 1930 | B49: Transportation Equipment > 3 Tons | C49: 6846246.52 | D49: 1672923.82 | E49: =C49-D49 -> 5173322.7 | F49: 375989 | G49: =E49+0.5*F49 -> 5361317.2 | H49: 8 | I49: 0.125 | J49: 670164.65 | K49: 693664 | L49: -23499.35 | M49: 23499.3125 | N49: -0.03750000009
A50: 1930 | B50: Transportation Equipment - Trailers | C50: 249385.85 | D50: 168828.67 | E50: =C50-D50 -> 80557.18 | F50: 0 | G50: =E50+0.5*F50 -> 80557.18 | H50: 8 | I50: 0.125 | J50: 10069.6475 | K50: 10070 | L50: -0.3525 | M50: 0 | N50: -0.3525
A51: 1935 | B51: Stores Equipment | C51: 64072 | D51: 36629.72 | E51: 27442.28 | F51: 0 | G51: 27442.28 | H51: 10 | I51: 0.1 | J51: 2744.228 | K51: 3512 | L51: -767.772 | M51: 0 | N51: -767.772
A52: 1940 | B52: Tools, Shop & Garage Equipment | C52: 772798 | D52: 230418.71 | E52: 542379.29 | F52: 70533 | G52: 577645.79 | H52: 10 | I52: 0.1 | J52: 57764.579 | K52: =60503-373 -> 60130 | L52: -2365.421 | M52: 3526.65 | N52: 1161.229
A53: 1940 | B53: Tools - Smart Meters | E53: 0 | F53: 3728 | G53: 1864 | H53: 10 | I53: 0.1 | J53: 186.4 | K53: 372.8 | L53: -186.4 | M53: 186.4 | N53: 0 | O53: smart meters
A54: 1945 | B54: Measurement & Testing Equipment | C54: 866733 | D54: 614023.28 | E54: 252709.72 | F54: 96435 | G54: 300927.22 | H54: 10 | I54: 0.1 | J54: 30092.722 | K54: 32783 | L54: -2690.278 | M54: 4821.75 | N54: 2131.472
A55: 1950 | B55: Power Operated Equipment | C55: 783695 | D55: 304873.23 | E55: 478821.77 | F55: 54068 | G55: 505855.77 | H55: 10 | I55: 0.1 | J55: 50585.577 | K55: 57705 | L55: -7119.423 | M55: 2703.4 | N55: -4416.023
A56: 1955 | B56: Communications Equipment | C56: 173729 | D56: 74214.9 | E56: 99514.1 | F56: 0 | G56: 99514.1 | H56: 10 | I56: 0.1 | J56: 9951.41 | K56: 16819 | L56: -6867.59 | M56: 0 | N56: -6867.59
A57: 1955 | B57: Communication Equipment (Smart Meters) | E57: 0 | F57: 696107 | G57: 348053.5 | H57: 10 | I57: 0.1 | J57: 34805.35 | K57: 254934 | L57: -220128.65 | M57: 34805.35 | N57: -185323.3 | O57: smart meters
A58: 1960 | B58: Miscellaneous Equipment | C58: 98856 | D58: 24382.97 | E58: 74473.03 | F58: 0 | G58: 74473.03 | H58: 5 | I58: 0.2 | J58: 14894.606 | K58: 14930 | L58: -35.394 | M58: 0 | N58: -35.394
A59: 1975 | B59: Load Management Controls Utility Premises | E59: 0 | F59: 0 | G59: 0 | H59: 10 | I59: 0.1 | J59: 0 | K59: 0 | L59: 0 | M59: 0 | N59: 0
A60: 1980 | B60: System Supervisor Equipment | C60: 1507244 | D60: 5771 | E60: 1501473 | F60: 0 | G60: 1501473 | H60: 25 | I60: 0.04 | J60: 60058.92 | K60: 60058.91 | L60: 0.009999999995 | M60: =F60/H60*0.5 -> 0 | N60: 0.009999999995
A61: 1980 | B61: System Supervisor Equipment | C61: 59236 | E61: 59236 | F61: 0 | G61: 59236 | H61: 15 | I61: 0.06666666667 | J61: 3949.066667 | K61: 3946.81 | L61: 2.256666667 | M61: =F61/H61*0.5 -> 0 | N61: 2.256666667
A62: 1985 | B62: Miscellaneous Fixed Assets | E62: 0 | F62: 0 | G62: 0 | H62: 5 | I62: 0.2 | J62: 0 | L62: 0 | M62: 0 | N62: 0
A63: 1995 | B63: Contributions & Grants | C63: -44537160 | E63: -44537160 | F63: -4668971 | G63: -46871645.5 | H63: 25 | I63: 0.04 | J63: -1874865.82 | K63: -1968390 | L63: =IF(ISERROR(+J63-K63), 0, +J63-K63) -> 93524.18 | M63: -93379.42 | N63: 144.76 | O63: Rounding?
A64: etc. | E64: 0 | G64: 0 | I64: 0 | J64: 0 | L64: 0
E65: 0 | G65: 0 | J65: 0 | L65: 0
B66: Total | C66: =SUM(C16:C65) -> 285105479.7 | D66: =SUM(D16:D65) -> 20028530.01 | E66: =SUM(E16:E65) -> 265076949.7 | F66: =SUM(F16:F65) -> 13769343.56 | G66: =SUM(G16:G65) -> 271961621.5 | J66: =SUM(J16:J65) -> 10392495.78 | K66: =SUM(K16:K65) -> 7511427.67 | L66: =SUM(L16:L65) -> 2881068.115 | M66: =SUM(M16:M65) -> 426872.786
A68: Notes: | M68: =M66/K66 -> 0.05682978054
A70: 1 | B70: Board policy of the "half-year" rule - the applicant must ensure that additions in the year attract a half-year depreciation expense in the first year. Deviations from this standard practice must be supported in the application.
A71: 2 | B71: The applicant must provide an explanation of material variances in evidence
A73: General | B73: Applicants must provide a breakdown of depreciation and amortization expense in the above format for all relevant accounts. Asset Retirement Obligations (AROs), depreciation and accretion expense should be disclosed separately consistent with the Notes of historical Audited Financial Statements.
A78: Explanation | G78: Applying the half year rule in the Test year | L78: =+L63+L20+L23+L26+L27+L28+L30+L34+L40-M32-M36-L32 -> 4266213.48
G79: Result of the smart meter decision(i.e. taking depreciation as ordered) | L79: =+L57+L53+L46+L38+L17 -> -278282.95
G80: Identifiable Assets - Depreciation taken when asset comes into service | L80: =+L56+L55+L54+L52+L51+L49+L48+L45+L43+L16 -> -490111.322
G81: Amortization on Stranded meters | L81: -502795.26
G82: Transformer adjustment | L82: 72814
G83: Rounding errors | L83: 639.29
L84: =SUM(L78:L83) -> 3068477.238
L85: =+L66-L84 -> -187409.1235

Sheet App.2-CB_MIFRS_DepExp_2012
N1: File Number: | O1: ='LDC Info'!$E$18 -> EB-2013-0147
N2: Exhibit:
N3: Tab:
N4: Schedule:
N5: Page:
N7: Date:
A9: Appendix 2-CB
A10: Depreciation and Amortization Expense
A11: Assumes the applicant adopted IFRS for financial reporting purposes January 1, 2013
C12: Year | D12: 2012 | E12: MIFRS
A14: Account | B14: Description | C14: Opening NBV as at Jan 1, 2012 5 | D14: Additions | E14: Average Remaining Life of Opening NBV 4 | F14: Years (new additions only) 3 | G14: Depreciation Rate on New Additions | H14: Depreciation Expense on Opening NBV | I14: Depreciation Expense on Additions 1 | J14: 2012 Depreciation Expense | K14: 2012 Depreciation Expense per Appendix 2-B Fixed Assets, Column K (l) | L14: Variance 2 | M14: Depreciation Expense on 2012 Full Year Additions | N14: Less Depreciation Expense on Assets Fully Depreciated during the year (o) | O14: 2012 Full Year Depreciation 6
C15: (a) | D15: (d) | E15: (i) | F15: (f) | G15: (g) = 1 / (f) | H15: (j) = (a) / (i) | I15: (h)=((d)*0.5)/(f) | J15: (k) = (j) + (h) | L15: (m) = (k) - (l) | M15: (n) = (d)/(f) | O15: (p) = (j) + (n) - (o)
A16: 1611 | B16: Computer Software (Formally known as Account 1925) | G16: =IF(F16=0,0,1/F16) -> 0 | H16: =IF(E16=0,0,+C16/E16) -> 0 | I16: =IF(F16=0,0,+(D16*0.5)/F16) -> 0 | J16: =IF(ISERROR(+H16+I16), 0, +H16+I16) -> 0 | L16: =IF(ISERROR(+J16-K16), 0, +J16-K16) -> 0 | M16: =IF(F16=0,0,+(D16)/F16) -> 0 | O16: =IF(ISERROR(+M16+H16-N16), 0, +M16+H16-N16) -> 0
A17: 1611 | B17: Computer Software (Formally known as Account 1925) - Smart Meters | G17: =IF(F17=0,0,1/F17) -> 0 | H17: =IF(E17=0,0,+C17/E17) -> 0 | I17: =IF(F17=0,0,+(D17*0.5)/F17) -> 0 | J17: =IF(ISERROR(+H17+I17), 0, +H17+I17) -> 0 | L17: =IF(ISERROR(+J17-K17), 0, +J17-K17) -> 0 | M17: =IF(F17=0,0,+(D17)/F17) -> 0 | O17: =IF(ISERROR(+M17+H17-N17), 0, +M17+H17-N17) -> 0
A18: 1612 | B18: Land Rights (Formally known as Account 1906) | G18: 0 | H18: =IF(E18=0,0,+C18/E18) -> 0 | I18: 0 | J18: =IF(ISERROR(+H18+I18), 0, +H18+I18) -> 0 | L18: =IF(ISERROR(+J18-K18), 0, +J18-K18) -> 0 | M18: =IF(F18=0,0,+(D18)/F18) -> 0 | O18: =IF(ISERROR(+M18+H18-N18), 0, +M18+H18-N18) -> 0
A19: 1805 | B19: Land | G19: 0 | H19: 0 | I19: 0 | J19: 0 | L19: 0 | M19: 0 | O19: 0
A20: 1808 | B20: Buildings - Structure | G20: =IF(F20=0,0,1/F20) -> 0 | H20: =IF(E20=0,0,+C20/E20) -> 0 | I20: =IF(F20=0,0,+(D20*0.5)/F20) -> 0 | J20: =IF(ISERROR(+H20+I20), 0, +H20+I20) -> 0 | L20: =IF(ISERROR(+J20-K20), 0, +J20-K20) -> 0 | M20: =IF(F20=0,0,+(D20)/F20) -> 0 | O20: =IF(ISERROR(+M20+H20-N20), 0, +M20+H20-N20) -> 0
A21: 1808 | B21: Buildings - Roof | G21: 0 | H21: 0 | I21: 0 | J21: 0 | L21: 0 | M21: 0 | O21: =IF(ISERROR(+M21+H21-N21), 0, +M21+H21-N21) -> 0
A22: 1810 | B22: Leasehold Improvements | G22: 0 | H22: 0 | I22: 0 | J22: 0 | L22: 0 | M22: 0 | O22: 0
A23: 1815 | B23: Transformer Station Equipment >50 kV 50 yrs | G23: 0 | H23: 0 | I23: 0 | J23: 0 | L23: 0 | M23: 0 | O23: 0
A24: 1815 | B24: Transformer Station Equipment >50 kV 40 yrs | G24: =IF(F24=0,0,1/F24) -> 0 | H24: =IF(E24=0,0,+C24/E24) -> 0 | I24: =IF(F24=0,0,+(D24*0.5)/F24) -> 0 | J24: =IF(ISERROR(+H24+I24), 0, +H24+I24) -> 0 | L24: =IF(ISERROR(+J24-K24), 0, +J24-K24) -> 0 | M24: =IF(F24=0,0,+(D24)/F24) -> 0 | O24: =IF(ISERROR(+M24+H24-N24), 0, +M24+H24-N24) -> 0
A25: 1815 | B25: Transformer Station Equipment >50 kV 25 yrs | G25: 0 | H25: 0 | I25: 0 | J25: 0 | L25: 0 | M25: 0 | O25: 0
A26: 1815 | B26: Transformer Station Equipment >50 kV 20 yrs | G26: 0 | H26: 0 | I26: 0 | J26: 0 | L26: 0 | M26: 0 | O26: 0
A27: 1815 | B27: Transformer Station Equipment >50 kV 15 yrs | G27: =IF(F27=0,0,1/F27) -> 0 | H27: =IF(E27=0,0,+C27/E27) -> 0 | I27: =IF(F27=0,0,+(D27*0.5)/F27) -> 0 | J27: =IF(ISERROR(+H27+I27), 0, +H27+I27) -> 0 | L27: =IF(ISERROR(+J27-K27), 0, +J27-K27) -> 0 | M27: =IF(F27=0,0,+(D27)/F27) -> 0 | O27: =IF(ISERROR(+M27+H27-N27), 0, +M27+H27-N27) -> 0
A28: 1820 | B28: Distribution Station Equipment <50 kV 50 yrs | G28: 0 | H28: 0 | I28: 0 | J28: 0 | L28: 0 | M28: 0 | O28: 0
A29: 1820 | B29: Distribution Station Equipment <50 kV 40 yrs | G29: =IF(F29=0,0,1/F29) -> 0 | H29: =IF(E29=0,0,+C29/E29) -> 0 | I29: =IF(F29=0,0,+(D29*0.5)/F29) -> 0 | J29: =IF(ISERROR(+H29+I29), 0, +H29+I29) -> 0 | L29: =IF(ISERROR(+J29-K29), 0, +J29-K29) -> 0 | M29: =IF(F29=0,0,+(D29)/F29) -> 0 | O29: =IF(ISERROR(+M29+H29-N29), 0, +M29+H29-N29) -> 0
A30: 1820 | B30: Distribution Station Equipment <50 kV 25 yrs | G30: 0 | H30: 0 | I30: 0 | J30: 0 | L30: 0 | M30: 0 | O30: 0
A31: 1820 | B31: Distribution Station Equipment <50 kV 20 yrs | G31: 0 | H31: 0 | I31: 0 | J31: 0 | L31: 0 | M31: 0 | O31: 0
A32: 1820 | B32: Distribution Station Equipment <50 kV 15 hrs | G32: 0 | H32: 0 | I32: 0 | J32: 0 | L32: 0 | M32: 0 | O32: 0
A33: 1825 | B33: Storage Battery Equipment | G33: 0 | H33: 0 | I33: 0 | J33: 0 | L33: 0 | M33: 0 | O33: 0
A34: 1830 | B34: Poles, Towers & Fixtures | G34: 0 | H34: 0 | I34: 0 | J34: 0 | L34: 0 | M34: 0 | O34: 0
A35: 1835 | B35: Overhead Conductors | G35: 0 | H35: 0 | I35: 0 | J35: 0 | L35: 0 | M35: 0 | O35: 0
A36: 1835 | B36: Overhead Devices | G36: =IF(F36=0,0,1/F36) -> 0 | H36: =IF(E36=0,0,+C36/E36) -> 0 | I36: =IF(F36=0,0,+(D36*0.5)/F36) -> 0 | J36: =IF(ISERROR(+H36+I36), 0, +H36+I36) -> 0 | L36: =IF(ISERROR(+J36-K36), 0, +J36-K36) -> 0 | M36: =IF(F36=0,0,+(D36)/F36) -> 0 | O36: =IF(ISERROR(+M36+H36-N36), 0, +M36+H36-N36) -> 0
A37: 1835 | B37: Voltage Regulators | G37: 0 | H37: 0 | I37: 0 | J37: 0 | L37: 0 | M37: 0 | O37: 0
A38: 1835 | B38: Capacitor Banks | G38: 0 | H38: 0 | I38: 0 | J38: 0 | L38: 0 | M38: 0 | O38: 0
A39: 1840 | B39: Underground Conduit | G39: 0 | H39: 0 | I39: 0 | J39: 0 | L39: 0 | M39: 0 | O39: 0
A40: 1845 | B40: Underground Conductors & Devices - PILC | G40: 0 | H40: 0 | I40: 0 | J40: 0 | L40: 0 | M40: 0 | O40: 0
A41: 1845 | B41: Underground Cables | G41: =IF(F41=0,0,1/F41) -> 0 | H41: =IF(E41=0,0,+C41/E41) -> 0 | I41: =IF(F41=0,0,+(D41*0.5)/F41) -> 0 | J41: =IF(ISERROR(+H41+I41), 0, +H41+I41) -> 0 | L41: =IF(ISERROR(+J41-K41), 0, +J41-K41) -> 0 | M41: =IF(F41=0,0,+(D41)/F41) -> 0 | O41: =IF(ISERROR(+M41+H41-N41), 0, +M41+H41-N41) -> 0
A42: 1845 | B42: Underground Devices | G42: 0 | H42: 0 | I42: 0 | J42: 0 | L42: 0 | M42: 0 | O42: 0
A43: 1850 | B43: Line Transformers - Overhead | G43: 0 | H43: 0 | I43: 0 | J43: 0 | L43: 0 | M43: 0 | O43: 0
A44: 1850 | B44: Line Transformers - Network | G44: =IF(F44=0,0,1/F44) -> 0 | H44: =IF(E44=0,0,+C44/E44) -> 0 | I44: =IF(F44=0,0,+(D44*0.5)/F44) -> 0 | J44: =IF(ISERROR(+H44+I44), 0, +H44+I44) -> 0 | L44: =IF(ISERROR(+J44-K44), 0, +J44-K44) -> 0 | M44: =IF(F44=0,0,+(D44)/F44) -> 0 | O44: =IF(ISERROR(+M44+H44-N44), 0, +M44+H44-N44) -> 0
A45: 1850 | B45: Line Transformers - Vault | G45: 0 | H45: 0 | I45: 0 | J45: 0 | L45: 0 | M45: 0 | O45: 0
A46: 1850 | B46: Line Transformers - Roof | G46: 0 | H46: 0 | I46: 0 | J46: 0 | L46: 0 | M46: 0 | O46: 0
A47: 1850 | B47: Line Transformers -Network Protectors | G47: 0 | H47: 0 | I47: 0 | J47: 0 | L47: 0 | M47: 0 | O47: 0
A48: 1850 | B48: Line Transformers - Padmount | G48: 0 | H48: 0 | I48: 0 | J48: 0 | L48: 0 | M48: 0 | O48: 0
A49: 1850 | B49: Line Transformers - Submersible | G49: 0 | H49: 0 | I49: 0 | J49: 0 | L49: 0 | M49: 0 | O49: 0
A50: 1850 | B50: Line Transformers - Foundation | G50: 0 | H50: 0 | I50: 0 | J50: 0 | L50: 0 | M50: 0 | O50: 0
A51: 1855 | B51: Services - Overhead | G51: 0 | H51: 0 | I51: 0 | J51: 0 | L51: 0 | M51: 0 | O51: 0
A52: 1855 | B52: Services - Underground | G52: =IF(F52=0,0,1/F52) -> 0 | H52: =IF(E52=0,0,+C52/E52) -> 0 | I52: =IF(F52=0,0,+(D52*0.5)/F52) -> 0 | J52: =IF(ISERROR(+H52+I52), 0, +H52+I52) -> 0 | L52: =IF(ISERROR(+J52-K52), 0, +J52-K52) -> 0 | M52: =IF(F52=0,0,+(D52)/F52) -> 0 | O52: =IF(ISERROR(+M52+H52-N52), 0, +M52+H52-N52) -> 0
A53: 1860 | B53: Meters | G53: 0 | H53: =IF(E53=0,0,+C53/E53) -> 0 | I53: 0 | J53: 0 | L53: 0 | M53: 0 | O53: 0
A54: 1860 | B54: Meters (Smart Meters) | G54: 0 | H54: 0 | I54: =IF(F54=0,0,+(D54*0.5)/F54) -> 0 | J54: 0 | L54: =IF(ISERROR(+J54-K54), 0, +J54-K54) -> 0 | M54: 0 | O54: 0
A55: 1905 | B55: Land | G55: 0 | H55: 0 | I55: 0 | J55: 0 | L55: 0 | M55: 0 | O55: 0
A56: 1908 | B56: Buildings & Fixtures - Building | G56: 0 | H56: 0 | I56: 0 | J56: 0 | L56: 0 | M56: 0 | O56: 0
A57: 1908 | B57: Buildings & Fixtures - Roof | G57: =IF(F57=0,0,1/F57) -> 0 | H57: =IF(E57=0,0,+C57/E57) -> 0 | I57: =IF(F57=0,0,+(D57*0.5)/F57) -> 0 | J57: =IF(ISERROR(+H57+I57), 0, +H57+I57) -> 0 | L57: =IF(ISERROR(+J57-K57), 0, +J57-K57) -> 0 | M57: =IF(F57=0,0,+(D57)/F57) -> 0 | O57: =IF(ISERROR(+M57+H57-N57), 0, +M57+H57-N57) -> 0
A58: 1910 | B58: Leasehold Improvements | G58: 0 | H58: 0 | I58: 0 | J58: 0 | L58: 0 | M58: 0 | O58: 0
A59: 1915 | B59: Office Furniture & Equipment (10 years) | G59: 0 | H59: 0 | I59: 0 | J59: 0 | L59: 0 | M59: 0 | O59: 0
A60: 1915 | B60: Office Furniture & Equipment (5 years) | G60: 0 | H60: 0 | I60: 0 | J60: 0 | L60: 0 | M60: 0 | O60: 0
A61: 1920 | B61: Computer Equipment - Hardware | G61: 0 | H61: 0 | I61: 0 | J61: 0 | L61: 0 | M61: 0 | O61: 0
A62: 1920 | B62: Computer Equip.-Hardware - Smart Meters | G62: 0 | H62: 0 | I62: 0 | J62: 0 | L62: 0 | M62: 0 | O62: 0
A63: 1920 | B63: Computer Equip.-Hardware(Post Mar. 19/07) | G63: 0 | H63: 0 | I63: 0 | J63: 0 | L63: 0 | M63: 0 | O63: 0
A64: 1930 | B64: Transportation Equipment | G64: 0 | H64: 0 | I64: 0 | J64: 0 | L64: 0 | M64: 0 | O64: 0
A65: 1935 | B65: Stores Equipment | G65: 0 | H65: 0 | I65: 0 | J65: 0 | L65: 0 | M65: 0 | O65: 0
A66: 1940 | B66: Tools, Shop & Garage Equipment | G66: 0 | H66: 0 | I66: 0 | J66: 0 | L66: 0 | M66: 0 | O66: 0
A67: 1940 | B67: Tools - Smart Meters | G67: =IF(F67=0,0,1/F67) -> 0 | H67: =IF(E67=0,0,+C67/E67) -> 0 | I67: =IF(F67=0,0,+(D67*0.5)/F67) -> 0 | J67: =IF(ISERROR(+H67+I67), 0, +H67+I67) -> 0 | L67: =IF(ISERROR(+J67-K67), 0, +J67-K67) -> 0 | M67: =IF(F67=0,0,+(D67)/F67) -> 0 | O67: =IF(ISERROR(+M67+H67-N67), 0, +M67+H67-N67) -> 0
A68: 1945 | B68: Measurement & Testing Equipment | G68: 0 | H68: 0 | I68: 0 | J68: 0 | L68: 0 | M68: 0 | O68: 0
A69: 1950 | B69: Power Operated Equipment | G69: 0 | H69: 0 | I69: 0 | J69: 0 | L69: 0 | M69: 0 | O69: 0
A70: 1955 | B70: Communications Equipment | G70: 0 | H70: 0 | I70: 0 | J70: 0 | L70: 0 | M70: 0 | O70: 0
A71: 1955 | B71: Communication Equipment (Smart Meters) | G71: 0 | H71: 0 | I71: 0 | J71: 0 | L71: 0 | M71: 0 | O71: 0
A72: 1960 | B72: Miscellaneous Equipment | G72: 0 | H72: 0 | I72: 0 | J72: 0 | L72: 0 | M72: 0 | O72: 0
A73: 1975 | B73: Load Management Controls Utility Premises | G73: 0 | H73: 0 | I73: 0 | J73: 0 | L73: 0 | M73: 0 | O73: 0
A74: 1980 | B74: System Supervisor Equipment | G74: 0 | H74: 0 | I74: 0 | J74: 0 | L74: 0 | M74: 0 | O74: 0
A75: 1985 | B75: Miscellaneous Fixed Assets | G75: 0 | H75: 0 | I75: 0 | J75: 0 | L75: 0 | M75: 0 | O75: 0
A76: 1995 | B76: Contributions & Grants | G76: 0 | H76: 0 | I76: 0 | J76: 0 | L76: 0 | M76: 0 | O76: 0
A77: 1995 | B77: Contributed Capital - Poles, Towers & Fixtures | G77: =IF(F77=0,0,1/F77) -> 0 | H77: =IF(E77=0,0,+C77/E77) -> 0 | I77: =IF(F77=0,0,+(D77*0.5)/F77) -> 0 | J77: =IF(ISERROR(+H77+I77), 0, +H77+I77) -> 0 | L77: =IF(ISERROR(+J77-K77), 0, +J77-K77) -> 0 | M77: =IF(F77=0,0,+(D77)/F77) -> 0 | O77: =IF(ISERROR(+M77+H77-N77), 0, +M77+H77-N77) -> 0
A78: 1995 | B78: Contributed Capital - Overhead Conductors | G78: =IF(F78=0,0,1/F78) -> 0 | H78: =IF(E78=0,0,+C78/E78) -> 0 | I78: =IF(F78=0,0,+(D78*0.5)/F78) -> 0 | J78: =IF(ISERROR(+H78+I78), 0, +H78+I78) -> 0 | L78: =IF(ISERROR(+J78-K78), 0, +J78-K78) -> 0 | M78: =IF(F78=0,0,+(D78)/F78) -> 0 | O78: =IF(ISERROR(+M78+H78-N78), 0, +M78+H78-N78) -> 0
A79: 1995 | B79: Contributed Capital - Overhead Devices | G79: 0 | H79: 0 | I79: 0 | J79: 0 | L79: 0 | M79: 0 | O79: 0
A80: 1995 | B80: Contributed Capital - Overhead Services | G80: 0 | H80: 0 | I80: 0 | J80: 0 | L80: 0 | M80: =IF(F80=0,0,+(D80)/F80) -> 0 | O80: =IF(ISERROR(+M80+H80-N80), 0, +M80+H80-N80) -> 0
A81: 1995 | B81: Contributed Capital - Underground Trenching & Ductwork | G81: 0 | H81: 0 | I81: 0 | J81: 0 | L81: 0 | M81: 0 | O81: 0
A82: 1995 | B82: Contributed Capital - Underground Cables | G82: 0 | H82: 0 | I82: 0 | J82: 0 | L82: 0 | M82: 0 | O82: 0
A83: 1995 | B83: Contributed Capital - Underground Devices | G83: 0 | H83: 0 | I83: 0 | J83: 0 | L83: 0 | M83: 0 | O83: 0
A84: 1995 | B84: Contributed Capital - Overhead Transformer | G84: 0 | H84: 0 | I84: 0 | J84: 0 | L84: 0 | M84: 0 | O84: 0
A85: 1995 | B85: Contributed Capital - Underground Padmount Transformer | G85: 0 | H85: 0 | I85: 0 | J85: 0 | L85: 0 | M85: 0 | O85: 0
A86: 1995 | B86: Contributed Capital -Underground Submersible Transformer | G86: 0 | H86: 0 | I86: 0 | J86: 0 | L86: 0 | M86: 0 | O86: 0
A87: 1995 | B87: Contributed Capital - Underground Services | G87: 0 | H87: 0 | I87: 0 | J87: 0 | L87: 0 | M87: 0 | O87: 0
A88: 1995 | B88: Contributed Capital - Transformer Foundations | G88: 0 | H88: 0 | I88: 0 | J88: 0 | L88: =IF(ISERROR(+J88-K88), 0, +J88-K88) -> 0 | M88: 0 | O88: 0
A89: 1995 | B89: Contributed Capital - Meters | G89: 0 | H89: 0 | I89: =IF(F89=0,0,+(D89*0.5)/F89) -> 0 | J89: 0 | L89: =IF(ISERROR(+J89-K89), 0, +J89-K89) -> 0 | M89: =IF(F89=0,0,+(D89)/F89) -> 0 | O89: 0
A90: 1995 | B90: Contributed Capital - OEB Clearing | G90: 0 | H90: 0 | I90: 0 | J90: 0 | L90: 0 | M90: =IF(F90=0,0,+(D90)/F90) -> 0 | O90: 0
A91: etc. | G91: 0 | H91: 0 | I91: 0 | J91: 0 | L91: 0 | M91: 0 | O91: 0
G92: 0 | H92: 0 | I92: 0 | J92: 0 | L92: 0 | M92: 0 | O92: 0
B93: Total | C93: =SUM(C16:C92) -> 0 | D93: =SUM(D16:D92) -> 0 | H93: =SUM(H16:H92) -> 0 | I93: 0 | J93: 0 | K93: =SUM(K16:K92) -> 0 | L93: 0 | M93: 0 | N93: =SUM(N16:N92) -> 0 | O93: 0
A95: Notes:
A97: 1 | B97: Board policy of the "half-year" rule - the applicant must ensure that additions in the year attract a half-year depreciation expense in the first year. Deviations from this standard practice must be supported in the application.
A98: 2 | B98: The applicant must provide an explanation of material variances in evidence
A99: 3 | B99: The applicant should ensure that the years for new additions of assets are the asset useful lives determined by management in accordance with IFRS.
A100: 4 | B100: A recalculation should be performed to determine the average remaining life of opening balance of assets (i.e. excluding 2011 additions) under IFRS. For example, Asset A had a useful life of 20 years under CGAAP. On January 1, 2011, the date of transition, Asset A was 3 years depreciated. As a result, Asset A would have a remaining service life of 17 years (20 years less 3 years) under CGAAP as of January 1, 2011. Due to the transition to IFRS, management re-assessed the asset useful lives under IFRS principles and concluded that the revised useful life of Asset A is now 30 years. Therefore, the average remaining useful life of opening balance of Asset A is determined to be 27 years (30 years less 3 years) under IFRS as of January 1, 2011.
A101: 5 | B101: NBV must exclude assets still on the books but which have been fully amortized or depreciated.
A102: 6 | B102: This column refers to the calculated full year depreciation but excludes the depreciation expense on assets fully depreciated during the year. This column is used for the purpose of calculating depreciation expense in the following year on the next worksheet.
A104: General: | B104: Applicants must provide a breakdown of depreciation and amortization expense in the above format for all relevant accounts. Asset Retirement Obligations (AROs), depreciation and accretion expense should be disclosed separately consistent with the Notes of historical Audited Financial Statements.
G111: Applying the half year rule in the Test year | L111: =SUM(L77:L90,L68:L69,L66,L64,L61,L59,L56,L54,L47:L52,L39:L45,L34:L36,L26:L27,L23,L21,L16) -> 0
G112: Result of the smart meter decision(i.e. taking depreciation as ordered) | L112: =+L71+L67+L62+L17 -> 0
L113: =+L111+L112 -> 0
L114: =+L93-L113 -> 0

Sheet App.2-CC_MIFRS_DepExp_2013
J1: File Number: | K1: ='LDC Info'!$E$18 -> EB-2013-0147
J2: Exhibit:
J3: Tab:
J4: Schedule:
J5: Page:
J7: Date:
A9: Appendix 2-CC
A10: Depreciation and Amortization Expense
A11: Assumes the applicant adopted IFRS for financial reporting purposes January 1, 2013
C12: 2013 | D12: MIFRS
A14: Account | B14: Description | C14: Additions | D14: Years (new additions only) | E14: Depreciation Rate on New Additions | F14: 2013 Depreciation Expense 1 | G14: 2013 Depreciation Expense per Apppendix 2-B Fixed Assets, Column K (l) | H14: Variance 2 | I14: Depreciation Expense on 2013 Full Year Additions | J14: Less Depreciation Expense on Assets Fully Depreciated during the year (o) | K14: 2013 Full Year Depreciation 3
C15: (d) | D15: (f) | E15: (g) = 1 / (f) | F15: (h)=2012 Full Year Deprecation + ((d)*0.5)/(f) | H15: (m) = (h) - (l) | I15: (n)=((d))/(f) | K15: (o) = 2012 Full Year Depreciation + (n) - (o)
A16: 1611 | B16: Computer Software (Formally known as Account 1925) | E16: =IF(D16=0,0,1/D16) -> 0 | F16: =IF(D16=0,+'App.2-CB_MIFRS_DepExp_2012'!O16,+'App.2-CB_MIFRS_DepExp_2012'!O16+((C16*0.5)/D16)) -> 0 | H16: =IF(ISERROR(+F16-G16), 0, +F16-G16) -> 0 | I16: =IF(D16=0,0,+(C16)/D16) -> 0 | K16: =IF(ISERROR(+I16+'App.2-CB_MIFRS_DepExp_2012'!O16-J16), 0, +I16+'App.2-CB_MIFRS_DepExp_2012'!O16-J16) -> 0
A17: 1611 | B17: Computer Software (Formally known as Account 1925) - Smart Meters | E17: =IF(D17=0,0,1/D17) -> 0 | F17: =IF(D17=0,+'App.2-CB_MIFRS_DepExp_2012'!O17,+'App.2-CB_MIFRS_DepExp_2012'!O17+((C17*0.5)/D17)) -> 0 | H17: =IF(ISERROR(+F17-G17), 0, +F17-G17) -> 0 | I17: =IF(D17=0,0,+(C17)/D17) -> 0 | K17: =IF(ISERROR(+I17+'App.2-CB_MIFRS_DepExp_2012'!O17-J17), 0, +I17+'App.2-CB_MIFRS_DepExp_2012'!O17-J17) -> 0
A18: 1612 | B18: Land Rights (Formally known as Account 1906) | E18: 0 | F18: =IF(D18=0,+'App.2-CB_MIFRS_DepExp_2012'!O18,+'App.2-CB_MIFRS_DepExp_2012'!O18+((C18*0.5)/D18)) -> 0 | H18: =IF(ISERROR(+F18-G18), 0, +F18-G18) -> 0 | I18: =IF(D18=0,0,+(C18)/D18) -> 0 | K18: =IF(ISERROR(+I18+'App.2-CB_MIFRS_DepExp_2012'!O18-J18), 0, +I18+'App.2-CB_MIFRS_DepExp_2012'!O18-J18) -> 0
A19: 1805 | B19: Land | E19: 0 | F19: =IF(D19=0,+'App.2-CB_MIFRS_DepExp_2012'!O19,+'App.2-CB_MIFRS_DepExp_2012'!O19+((C19*0.5)/D19)) -> 0 | H19: 0 | I19: 0 | K19: =IF(ISERROR(+I19+'App.2-CB_MIFRS_DepExp_2012'!O19-J19), 0, +I19+'App.2-CB_MIFRS_DepExp_2012'!O19-J19) -> 0
A20: 1808 | B20: Buildings - Structure | E20: 0 | F20: =IF(D20=0,+'App.2-CB_MIFRS_DepExp_2012'!O20,+'App.2-CB_MIFRS_DepExp_2012'!O20+((C20*0.5)/D20)) -> 0 | H20: 0 | I20: =IF(D20=0,0,+(C20)/D20) -> 0 | K20: =IF(ISERROR(+I20+'App.2-CB_MIFRS_DepExp_2012'!O20-J20), 0, +I20+'App.2-CB_MIFRS_DepExp_2012'!O20-J20) -> 0
A21: 1808 | B21: Buildings - Roof | E21: =IF(D21=0,0,1/D21) -> 0 | F21: =IF(D21=0,+'App.2-CB_MIFRS_DepExp_2012'!O21,+'App.2-CB_MIFRS_DepExp_2012'!O21+((C21*0.5)/D21)) -> 0 | H21: =IF(ISERROR(+F21-G21), 0, +F21-G21) -> 0 | I21: =IF(D21=0,0,+(C21)/D21) -> 0 | K21: =IF(ISERROR(+I21+'App.2-CB_MIFRS_DepExp_2012'!O21-J21), 0, +I21+'App.2-CB_MIFRS_DepExp_2012'!O21-J21) -> 0
A22: 1810 | B22: Leasehold Improvements | E22: 0 | F22: =IF(D22=0,+'App.2-CB_MIFRS_DepExp_2012'!O22,+'App.2-CB_MIFRS_DepExp_2012'!O22+((C22*0.5)/D22)) -> 0 | H22: 0 | I22: 0 | K22: =IF(ISERROR(+I22+'App.2-CB_MIFRS_DepExp_2012'!O22-J22), 0, +I22+'App.2-CB_MIFRS_DepExp_2012'!O22-J22) -> 0
A23: 1815 | B23: Transformer Station Equipment >50 kV 50 yrs | E23: 0 | F23: =IF(D23=0,+'App.2-CB_MIFRS_DepExp_2012'!O23,+'App.2-CB_MIFRS_DepExp_2012'!O23+((C23*0.5)/D23)) -> 0 | H23: 0 | I23: 0 | K23: =IF(ISERROR(+I23+'App.2-CB_MIFRS_DepExp_2012'!O23-J23), 0, +I23+'App.2-CB_MIFRS_DepExp_2012'!O23-J23) -> 0
A24: 1815 | B24: Transformer Station Equipment >50 kV 40 yrs | E24: =IF(D24=0,0,1/D24) -> 0 | F24: =IF(D24=0,+'App.2-CB_MIFRS_DepExp_2012'!O24,+'App.2-CB_MIFRS_DepExp_2012'!O24+((C24*0.5)/D24)) -> 0 | H24: =IF(ISERROR(+F24-G24), 0, +F24-G24) -> 0 | I24: =IF(D24=0,0,+(C24)/D24) -> 0 | K24: =IF(ISERROR(+I24+'App.2-CB_MIFRS_DepExp_2012'!O24-J24), 0, +I24+'App.2-CB_MIFRS_DepExp_2012'!O24-J24) -> 0
A25: 1815 | B25: Transformer Station Equipment >50 kV 25 yrs | E25: 0 | F25: =IF(D25=0,+'App.2-CB_MIFRS_DepExp_2012'!O25,+'App.2-CB_MIFRS_DepExp_2012'!O25+((C25*0.5)/D25)) -> 0 | H25: 0 | I25: 0 | K25: =IF(ISERROR(+I25+'App.2-CB_MIFRS_DepExp_2012'!O25-J25), 0, +I25+'App.2-CB_MIFRS_DepExp_2012'!O25-J25) -> 0
A26: 1815 | B26: Transformer Station Equipment >50 kV 20 yrs | E26: 0 | F26: =IF(D26=0,+'App.2-CB_MIFRS_DepExp_2012'!O26,+'App.2-CB_MIFRS_DepExp_2012'!O26+((C26*0.5)/D26)) -> 0 | H26: 0 | I26: 0 | K26: =IF(ISERROR(+I26+'App.2-CB_MIFRS_DepExp_2012'!O26-J26), 0, +I26+'App.2-CB_MIFRS_DepExp_2012'!O26-J26) -> 0
A27: 1815 | B27: Transformer Station Equipment >50 kV 15 yrs | E27: 0 | F27: =IF(D27=0,+'App.2-CB_MIFRS_DepExp_2012'!O27,+'App.2-CB_MIFRS_DepExp_2012'!O27+((C27*0.5)/D27)) -> 0 | H27: 0 | I27: 0 | K27: =IF(ISERROR(+I27+'App.2-CB_MIFRS_DepExp_2012'!O27-J27), 0, +I27+'App.2-CB_MIFRS_DepExp_2012'!O27-J27) -> 0
A28: 1820 | B28: Distribution Station Equipment <50 kV 50 yrs | E28: 0 | F28: =IF(D28=0,+'App.2-CB_MIFRS_DepExp_2012'!O28,+'App.2-CB_MIFRS_DepExp_2012'!O28+((C28*0.5)/D28)) -> 0 | H28: 0 | I28: 0 | K28: =IF(ISERROR(+I28+'App.2-CB_MIFRS_DepExp_2012'!O28-J28), 0, +I28+'App.2-CB_MIFRS_DepExp_2012'!O28-J28) -> 0
A29: 1820 | B29: Distribution Station Equipment <50 kV 40 yrs | E29: =IF(D29=0,0,1/D29) -> 0 | F29: =IF(D29=0,+'App.2-CB_MIFRS_DepExp_2012'!O29,+'App.2-CB_MIFRS_DepExp_2012'!O29+((C29*0.5)/D29)) -> 0 | H29: =IF(ISERROR(+F29-G29), 0, +F29-G29) -> 0 | I29: =IF(D29=0,0,+(C29)/D29) -> 0 | K29: =IF(ISERROR(+I29+'App.2-CB_MIFRS_DepExp_2012'!O29-J29), 0, +I29+'App.2-CB_MIFRS_DepExp_2012'!O29-J29) -> 0
A30: 1820 | B30: Distribution Station Equipment <50 kV 25 yrs | E30: 0 | F30: =IF(D30=0,+'App.2-CB_MIFRS_DepExp_2012'!O30,+'App.2-CB_MIFRS_DepExp_2012'!O30+((C30*0.5)/D30)) -> 0 | H30: 0 | I30: 0 | K30: =IF(ISERROR(+I30+'App.2-CB_MIFRS_DepExp_2012'!O30-J30), 0, +I30+'App.2-CB_MIFRS_DepExp_2012'!O30-J30) -> 0
A31: 1820 | B31: Distribution Station Equipment <50 kV 20 yrs | E31: 0 | F31: =IF(D31=0,+'App.2-CB_MIFRS_DepExp_2012'!O31,+'App.2-CB_MIFRS_DepExp_2012'!O31+((C31*0.5)/D31)) -> 0 | H31: 0 | I31: 0 | K31: =IF(ISERROR(+I31+'App.2-CB_MIFRS_DepExp_2012'!O31-J31), 0, +I31+'App.2-CB_MIFRS_DepExp_2012'!O31-J31) -> 0
A32: 1820 | B32: Distribution Station Equipment <50 kV 15 yrs | E32: 0 | F32: =IF(D32=0,+'App.2-CB_MIFRS_DepExp_2012'!O32,+'App.2-CB_MIFRS_DepExp_2012'!O32+((C32*0.5)/D32)) -> 0 | H32: 0 | I32: 0 | K32: =IF(ISERROR(+I32+'App.2-CB_MIFRS_DepExp_2012'!O32-J32), 0, +I32+'App.2-CB_MIFRS_DepExp_2012'!O32-J32) -> 0
A33: 1825 | B33: Storage Battery Equipment | E33: 0 | F33: =IF(D33=0,+'App.2-CB_MIFRS_DepExp_2012'!O33,+'App.2-CB_MIFRS_DepExp_2012'!O33+((C33*0.5)/D33)) -> 0 | H33: 0 | I33: 0 | K33: =IF(ISERROR(+I33+'App.2-CB_MIFRS_DepExp_2012'!O33-J33), 0, +I33+'App.2-CB_MIFRS_DepExp_2012'!O33-J33) -> 0
A34: 1830 | B34: Poles, Towers & Fixtures | E34: 0 | F34: =IF(D34=0,+'App.2-CB_MIFRS_DepExp_2012'!O34,+'App.2-CB_MIFRS_DepExp_2012'!O34+((C34*0.5)/D34)) -> 0 | H34: 0 | I34: 0 | K34: =IF(ISERROR(+I34+'App.2-CB_MIFRS_DepExp_2012'!O34-J34), 0, +I34+'App.2-CB_MIFRS_DepExp_2012'!O34-J34) -> 0
A35: 1835 | B35: Overhead Conductors | E35: 0 | F35: =IF(D35=0,+'App.2-CB_MIFRS_DepExp_2012'!O35,+'App.2-CB_MIFRS_DepExp_2012'!O35+((C35*0.5)/D35)) -> 0 | H35: 0 | I35: 0 | K35: =IF(ISERROR(+I35+'App.2-CB_MIFRS_DepExp_2012'!O35-J35), 0, +I35+'App.2-CB_MIFRS_DepExp_2012'!O35-J35) -> 0
A36: 1835 | B36: Overhead Devices | E36: =IF(D36=0,0,1/D36) -> 0 | F36: =IF(D36=0,+'App.2-CB_MIFRS_DepExp_2012'!O36,+'App.2-CB_MIFRS_DepExp_2012'!O36+((C36*0.5)/D36)) -> 0 | H36: =IF(ISERROR(+F36-G36), 0, +F36-G36) -> 0 | I36: =IF(D36=0,0,+(C36)/D36) -> 0 | K36: =IF(ISERROR(+I36+'App.2-CB_MIFRS_DepExp_2012'!O36-J36), 0, +I36+'App.2-CB_MIFRS_DepExp_2012'!O36-J36) -> 0
A37: 1835 | B37: Voltage Regulators | E37: 0 | F37: =IF(D37=0,+'App.2-CB_MIFRS_DepExp_2012'!O37,+'App.2-CB_MIFRS_DepExp_2012'!O37+((C37*0.5)/D37)) -> 0 | H37: 0 | I37: 0 | K37: =IF(ISERROR(+I37+'App.2-CB_MIFRS_DepExp_2012'!O37-J37), 0, +I37+'App.2-CB_MIFRS_DepExp_2012'!O37-J37) -> 0
A38: 1835 | B38: Capacitor Banks | E38: 0 | F38: =IF(D38=0,+'App.2-CB_MIFRS_DepExp_2012'!O38,+'App.2-CB_MIFRS_DepExp_2012'!O38+((C38*0.5)/D38)) -> 0 | H38: 0 | I38: 0 | K38: =IF(ISERROR(+I38+'App.2-CB_MIFRS_DepExp_2012'!O38-J38), 0, +I38+'App.2-CB_MIFRS_DepExp_2012'!O38-J38) -> 0
A39: 1840 | B39: Underground Conduit | E39: 0 | F39: =IF(D39=0,+'App.2-CB_MIFRS_DepExp_2012'!O39,+'App.2-CB_MIFRS_DepExp_2012'!O39+((C39*0.5)/D39)) -> 0 | H39: 0 | I39: 0 | K39: =IF(ISERROR(+I39+'App.2-CB_MIFRS_DepExp_2012'!O39-J39), 0, +I39+'App.2-CB_MIFRS_DepExp_2012'!O39-J39) -> 0
A40: 1845 | B40: Underground Conductors & Devices - PILC | E40: 0 | F40: =IF(D40=0,+'App.2-CB_MIFRS_DepExp_2012'!O40,+'App.2-CB_MIFRS_DepExp_2012'!O40+((C40*0.5)/D40)) -> 0 | H40: 0 | I40: 0 | K40: =IF(ISERROR(+I40+'App.2-CB_MIFRS_DepExp_2012'!O40-J40), 0, +I40+'App.2-CB_MIFRS_DepExp_2012'!O40-J40) -> 0
A41: 1845 | B41: Underground Cables | E41: =IF(D41=0,0,1/D41) -> 0 | F41: =IF(D41=0,+'App.2-CB_MIFRS_DepExp_2012'!O41,+'App.2-CB_MIFRS_DepExp_2012'!O41+((C41*0.5)/D41)) -> 0 | H41: =IF(ISERROR(+F41-G41), 0, +F41-G41) -> 0 | I41: =IF(D41=0,0,+(C41)/D41) -> 0 | K41: =IF(ISERROR(+I41+'App.2-CB_MIFRS_DepExp_2012'!O41-J41), 0, +I41+'App.2-CB_MIFRS_DepExp_2012'!O41-J41) -> 0
A42: 1845 | B42: Underground Devices | E42: 0 | F42: =IF(D42=0,+'App.2-CB_MIFRS_DepExp_2012'!O42,+'App.2-CB_MIFRS_DepExp_2012'!O42+((C42*0.5)/D42)) -> 0 | H42: 0 | I42: 0 | K42: =IF(ISERROR(+I42+'App.2-CB_MIFRS_DepExp_2012'!O42-J42), 0, +I42+'App.2-CB_MIFRS_DepExp_2012'!O42-J42) -> 0
A43: 1850 | B43: Overhead Line Transformers | E43: 0 | F43: =IF(D43=0,+'App.2-CB_MIFRS_DepExp_2012'!O43,+'App.2-CB_MIFRS_DepExp_2012'!O43+((C43*0.5)/D43)) -> 0 | H43: 0 | I43: 0 | K43: =IF(ISERROR(+I43+'App.2-CB_MIFRS_DepExp_2012'!O43-J43), 0, +I43+'App.2-CB_MIFRS_DepExp_2012'!O43-J43) -> 0
A44: 1850 | B44: Network Transformers | E44: =IF(D44=0,0,1/D44) -> 0 | F44: =IF(D44=0,+'App.2-CB_MIFRS_DepExp_2012'!O44,+'App.2-CB_MIFRS_DepExp_2012'!O44+((C44*0.5)/D44)) -> 0 | H44: =IF(ISERROR(+F44-G44), 0, +F44-G44) -> 0 | I44: =IF(D44=0,0,+(C44)/D44) -> 0 | K44: =IF(ISERROR(+I44+'App.2-CB_MIFRS_DepExp_2012'!O44-J44), 0, +I44+'App.2-CB_MIFRS_DepExp_2012'!O44-J44) -> 0
A45: 1850 | B45: Vault | E45: 0 | F45: =IF(D45=0,+'App.2-CB_MIFRS_DepExp_2012'!O45,+'App.2-CB_MIFRS_DepExp_2012'!O45+((C45*0.5)/D45)) -> 0 | H45: 0 | I45: 0 | K45: =IF(ISERROR(+I45+'App.2-CB_MIFRS_DepExp_2012'!O45-J45), 0, +I45+'App.2-CB_MIFRS_DepExp_2012'!O45-J45) -> 0
A46: 1850 | B46: Roof | E46: 0 | F46: =IF(D46=0,+'App.2-CB_MIFRS_DepExp_2012'!O46,+'App.2-CB_MIFRS_DepExp_2012'!O46+((C46*0.5)/D46)) -> 0 | H46: 0 | I46: 0 | K46: =IF(ISERROR(+I46+'App.2-CB_MIFRS_DepExp_2012'!O46-J46), 0, +I46+'App.2-CB_MIFRS_DepExp_2012'!O46-J46) -> 0
A47: 1850 | B47: Network Protectors | E47: =IF(D47=0,0,1/D47) -> 0 | F47: =IF(D47=0,+'App.2-CB_MIFRS_DepExp_2012'!O47,+'App.2-CB_MIFRS_DepExp_2012'!O47+((C47*0.5)/D47)) -> 0 | H47: =IF(ISERROR(+F47-G47), 0, +F47-G47) -> 0 | I47: =IF(D47=0,0,+(C47)/D47) -> 0 | K47: =IF(ISERROR(+I47+'App.2-CB_MIFRS_DepExp_2012'!O47-J47), 0, +I47+'App.2-CB_MIFRS_DepExp_2012'!O47-J47) -> 0
A48: 1850 | B48: Padmount | E48: 0 | F48: =IF(D48=0,+'App.2-CB_MIFRS_DepExp_2012'!O48,+'App.2-CB_MIFRS_DepExp_2012'!O48+((C48*0.5)/D48)) -> 0 | H48: 0 | I48: 0 | K48: =IF(ISERROR(+I48+'App.2-CB_MIFRS_DepExp_2012'!O48-J48), 0, +I48+'App.2-CB_MIFRS_DepExp_2012'!O48-J48) -> 0
A49: 1850 | B49: Submersible | E49: 0 | F49: =IF(D49=0,+'App.2-CB_MIFRS_DepExp_2012'!O49,+'App.2-CB_MIFRS_DepExp_2012'!O49+((C49*0.5)/D49)) -> 0 | H49: 0 | I49: 0 | K49: =IF(ISERROR(+I49+'App.2-CB_MIFRS_DepExp_2012'!O49-J49), 0, +I49+'App.2-CB_MIFRS_DepExp_2012'!O49-J49) -> 0
A50: 1850 | B50: Foundation | E50: 0 | F50: =IF(D50=0,+'App.2-CB_MIFRS_DepExp_2012'!O50,+'App.2-CB_MIFRS_DepExp_2012'!O50+((C50*0.5)/D50)) -> 0 | H50: 0 | I50: 0 | K50: =IF(ISERROR(+I50+'App.2-CB_MIFRS_DepExp_2012'!O50-J50), 0, +I50+'App.2-CB_MIFRS_DepExp_2012'!O50-J50) -> 0
A51: 1855 | B51: Services - Overhead | E51: 0 | F51: =IF(D51=0,+'App.2-CB_MIFRS_DepExp_2012'!O51,+'App.2-CB_MIFRS_DepExp_2012'!O51+((C51*0.5)/D51)) -> 0 | H51: 0 | I51: 0 | K51: =IF(ISERROR(+I51+'App.2-CB_MIFRS_DepExp_2012'!O51-J51), 0, +I51+'App.2-CB_MIFRS_DepExp_2012'!O51-J51) -> 0
A52: 1855 | B52: Services - Underground | E52: =IF(D52=0,0,1/D52) -> 0 | F52: =IF(D52=0,+'App.2-CB_MIFRS_DepExp_2012'!O52,+'App.2-CB_MIFRS_DepExp_2012'!O52+((C52*0.5)/D52)) -> 0 | H52: =IF(ISERROR(+F52-G52), 0, +F52-G52) -> 0 | I52: =IF(D52=0,0,+(C52)/D52) -> 0 | K52: =IF(ISERROR(+I52+'App.2-CB_MIFRS_DepExp_2012'!O52-J52), 0, +I52+'App.2-CB_MIFRS_DepExp_2012'!O52-J52) -> 0
A53: 1860 | B53: Meters | E53: 0 | F53: =IF(D53=0,+'App.2-CB_MIFRS_DepExp_2012'!O53,+'App.2-CB_MIFRS_DepExp_2012'!O53+((C53*0.5)/D53)) -> 0 | H53: 0 | I53: 0 | K53: =IF(ISERROR(+I53+'App.2-CB_MIFRS_DepExp_2012'!O53-J53), 0, +I53+'App.2-CB_MIFRS_DepExp_2012'!O53-J53) -> 0
A54: 1860 | B54: Meters (Smart Meters) | E54: 0 | F54: =IF(D54=0,+'App.2-CB_MIFRS_DepExp_2012'!O54,+'App.2-CB_MIFRS_DepExp_2012'!O54+((C54*0.5)/D54)) -> 0 | H54: 0 | I54: 0 | K54: =IF(ISERROR(+I54+'App.2-CB_MIFRS_DepExp_2012'!O54-J54), 0, +I54+'App.2-CB_MIFRS_DepExp_2012'!O54-J54) -> 0
A55: 1905 | B55: Land
A56: 1908 | B56: Buildings & Fixtures - Structure | E56: 0 | F56: =IF(D56=0,+'App.2-CB_MIFRS_DepExp_2012'!O56,+'App.2-CB_MIFRS_DepExp_2012'!O56+((C56*0.5)/D56)) -> 0 | H56: 0 | I56: 0 | K56: =IF(ISERROR(+I56+'App.2-CB_MIFRS_DepExp_2012'!O56-J56), 0, +I56+'App.2-CB_MIFRS_DepExp_2012'!O56-J56) -> 0
A57: 1908 | B57: Buildings & Fixtures - Roof | E57: =IF(D57=0,0,1/D57) -> 0 | F57: =IF(D57=0,+'App.2-CB_MIFRS_DepExp_2012'!O57,+'App.2-CB_MIFRS_DepExp_2012'!O57+((C57*0.5)/D57)) -> 0 | H57: =IF(ISERROR(+F57-G57), 0, +F57-G57) -> 0 | I57: =IF(D57=0,0,+(C57)/D57) -> 0 | K57: =IF(ISERROR(+I57+'App.2-CB_MIFRS_DepExp_2012'!O57-J57), 0, +I57+'App.2-CB_MIFRS_DepExp_2012'!O57-J57) -> 0
A58: 1910 | B58: Leasehold Improvements | E58: 0 | F58: =IF(D58=0,+'App.2-CB_MIFRS_DepExp_2012'!O58,+'App.2-CB_MIFRS_DepExp_2012'!O58+((C58*0.5)/D58)) -> 0 | H58: 0 | I58: 0 | K58: =IF(ISERROR(+I58+'App.2-CB_MIFRS_DepExp_2012'!O58-J58), 0, +I58+'App.2-CB_MIFRS_DepExp_2012'!O58-J58) -> 0
A59: 1915 | B59: Office Furniture & Equipment (10 years) | E59: 0 | F59: =IF(D59=0,+'App.2-CB_MIFRS_DepExp_2012'!O59,+'App.2-CB_MIFRS_DepExp_2012'!O59+((C59*0.5)/D59)) -> 0 | H59: 0 | I59: 0 | K59: =IF(ISERROR(+I59+'App.2-CB_MIFRS_DepExp_2012'!O59-J59), 0, +I59+'App.2-CB_MIFRS_DepExp_2012'!O59-J59) -> 0
A60: 1915 | B60: Office Furniture & Equipment (5 years) | E60: 0 | F60: =IF(D60=0,+'App.2-CB_MIFRS_DepExp_2012'!O60,+'App.2-CB_MIFRS_DepExp_2012'!O60+((C60*0.5)/D60)) -> 0 | H60: 0 | I60: 0 | K60: =IF(ISERROR(+I60+'App.2-CB_MIFRS_DepExp_2012'!O60-J60), 0, +I60+'App.2-CB_MIFRS_DepExp_2012'!O60-J60) -> 0
A61: 1920 | B61: Computer Equipment - Hardware | E61: 0 | F61: =IF(D61=0,+'App.2-CB_MIFRS_DepExp_2012'!O61,+'App.2-CB_MIFRS_DepExp_2012'!O61+((C61*0.5)/D61)) -> 0 | H61: 0 | I61: 0 | K61: =IF(ISERROR(+I61+'App.2-CB_MIFRS_DepExp_2012'!O61-J61), 0, +I61+'App.2-CB_MIFRS_DepExp_2012'!O61-J61) -> 0
A62: 1920 | B62: Computer Equip.-Hardware - Smart Meters | E62: 0 | F62: =IF(D62=0,+'App.2-CB_MIFRS_DepExp_2012'!O62,+'App.2-CB_MIFRS_DepExp_2012'!O62+((C62*0.5)/D62)) -> 0 | H62: 0 | I62: 0 | K62: =IF(ISERROR(+I62+'App.2-CB_MIFRS_DepExp_2012'!O62-J62), 0, +I62+'App.2-CB_MIFRS_DepExp_2012'!O62-J62) -> 0
A63: 1920 | B63: Computer Equip.-Hardware(Post Mar. 19/07) | E63: 0 | F63: =IF(D63=0,+'App.2-CB_MIFRS_DepExp_2012'!O63,+'App.2-CB_MIFRS_DepExp_2012'!O63+((C63*0.5)/D63)) -> 0 | H63: 0 | I63: 0 | K63: =IF(ISERROR(+I63+'App.2-CB_MIFRS_DepExp_2012'!O63-J63), 0, +I63+'App.2-CB_MIFRS_DepExp_2012'!O63-J63) -> 0
A64: 1930 | B64: Transportation Equipment | E64: 0 | F64: =IF(D64=0,+'App.2-CB_MIFRS_DepExp_2012'!O64,+'App.2-CB_MIFRS_DepExp_2012'!O64+((C64*0.5)/D64)) -> 0 | H64: 0 | I64: 0 | K64: =IF(ISERROR(+I64+'App.2-CB_MIFRS_DepExp_2012'!O64-J64), 0, +I64+'App.2-CB_MIFRS_DepExp_2012'!O64-J64) -> 0
A65: 1935 | B65: Stores Equipment | E65: 0 | F65: =IF(D65=0,+'App.2-CB_MIFRS_DepExp_2012'!O65,+'App.2-CB_MIFRS_DepExp_2012'!O65+((C65*0.5)/D65)) -> 0 | H65: 0 | I65: 0 | K65: =IF(ISERROR(+I65+'App.2-CB_MIFRS_DepExp_2012'!O65-J65), 0, +I65+'App.2-CB_MIFRS_DepExp_2012'!O65-J65) -> 0
A66: 1940 | B66: Tools, Shop & Garage Equipment | E66: 0 | F66: =IF(D66=0,+'App.2-CB_MIFRS_DepExp_2012'!O66,+'App.2-CB_MIFRS_DepExp_2012'!O66+((C66*0.5)/D66)) -> 0 | H66: 0 | I66: 0 | K66: =IF(ISERROR(+I66+'App.2-CB_MIFRS_DepExp_2012'!O66-J66), 0, +I66+'App.2-CB_MIFRS_DepExp_2012'!O66-J66) -> 0
A67: 1940 | B67: Tools - Smart Meters | E67: =IF(D67=0,0,1/D67) -> 0 | F67: =IF(D67=0,+'App.2-CB_MIFRS_DepExp_2012'!O67,+'App.2-CB_MIFRS_DepExp_2012'!O67+((C67*0.5)/D67)) -> 0 | H67: =IF(ISERROR(+F67-G67), 0, +F67-G67) -> 0 | I67: =IF(D67=0,0,+(C67)/D67) -> 0 | K67: =IF(ISERROR(+I67+'App.2-CB_MIFRS_DepExp_2012'!O67-J67), 0, +I67+'App.2-CB_MIFRS_DepExp_2012'!O67-J67) -> 0
A68: 1945 | B68: Measurement & Testing Equipment | E68: 0 | F68: =IF(D68=0,+'App.2-CB_MIFRS_DepExp_2012'!O68,+'App.2-CB_MIFRS_DepExp_2012'!O68+((C68*0.5)/D68)) -> 0 | H68: 0 | I68: 0 | K68: =IF(ISERROR(+I68+'App.2-CB_MIFRS_DepExp_2012'!O68-J68), 0, +I68+'App.2-CB_MIFRS_DepExp_2012'!O68-J68) -> 0
A69: 1950 | B69: Power Operated Equipment | E69: 0 | F69: =IF(D69=0,+'App.2-CB_MIFRS_DepExp_2012'!O69,+'App.2-CB_MIFRS_DepExp_2012'!O69+((C69*0.5)/D69)) -> 0 | H69: 0 | I69: 0 | K69: =IF(ISERROR(+I69+'App.2-CB_MIFRS_DepExp_2012'!O69-J69), 0, +I69+'App.2-CB_MIFRS_DepExp_2012'!O69-J69) -> 0
A70: 1955 | B70: Communications Equipment | E70: 0 | F70: =IF(D70=0,+'App.2-CB_MIFRS_DepExp_2012'!O70,+'App.2-CB_MIFRS_DepExp_2012'!O70+((C70*0.5)/D70)) -> 0 | H70: 0 | I70: 0 | K70: =IF(ISERROR(+I70+'App.2-CB_MIFRS_DepExp_2012'!O70-J70), 0, +I70+'App.2-CB_MIFRS_DepExp_2012'!O70-J70) -> 0
A71: 1955 | B71: Communication Equipment (Smart Meters) | E71: 0 | F71: =IF(D71=0,+'App.2-CB_MIFRS_DepExp_2012'!O71,+'App.2-CB_MIFRS_DepExp_2012'!O71+((C71*0.5)/D71)) -> 0 | H71: 0 | I71: 0 | K71: =IF(ISERROR(+I71+'App.2-CB_MIFRS_DepExp_2012'!O71-J71), 0, +I71+'App.2-CB_MIFRS_DepExp_2012'!O71-J71) -> 0
A72: 1960 | B72: Miscellaneous Equipment | E72: 0 | F72: =IF(D72=0,+'App.2-CB_MIFRS_DepExp_2012'!O72,+'App.2-CB_MIFRS_DepExp_2012'!O72+((C72*0.5)/D72)) -> 0 | H72: 0 | I72: 0 | K72: =IF(ISERROR(+I72+'App.2-CB_MIFRS_DepExp_2012'!O72-J72), 0, +I72+'App.2-CB_MIFRS_DepExp_2012'!O72-J72) -> 0
A73: 1975 | B73: Load Management Controls Utility Premises | E73: 0 | F73: =IF(D73=0,+'App.2-CB_MIFRS_DepExp_2012'!O73,+'App.2-CB_MIFRS_DepExp_2012'!O73+((C73*0.5)/D73)) -> 0 | H73: 0 | I73: 0 | K73: =IF(ISERROR(+I73+'App.2-CB_MIFRS_DepExp_2012'!O73-J73), 0, +I73+'App.2-CB_MIFRS_DepExp_2012'!O73-J73) -> 0
A74: 1980 | B74: System Supervisor Equipment | E74: 0 | F74: =IF(D74=0,+'App.2-CB_MIFRS_DepExp_2012'!O74,+'App.2-CB_MIFRS_DepExp_2012'!O74+((C74*0.5)/D74)) -> 0 | H74: 0 | I74: 0 | K74: =IF(ISERROR(+I74+'App.2-CB_MIFRS_DepExp_2012'!O74-J74), 0, +I74+'App.2-CB_MIFRS_DepExp_2012'!O74-J74) -> 0
A75: 1985 | B75: Miscellaneous Fixed Assets | E75: 0 | F75: =IF(D75=0,+'App.2-CB_MIFRS_DepExp_2012'!O75,+'App.2-CB_MIFRS_DepExp_2012'!O75+((C75*0.5)/D75)) -> 0 | H75: 0 | I75: 0 | K75: =IF(ISERROR(+I75+'App.2-CB_MIFRS_DepExp_2012'!O75-J75), 0, +I75+'App.2-CB_MIFRS_DepExp_2012'!O75-J75) -> 0
A76: 1995 | B76: Contributions & Grants | E76: 0 | F76: =IF(D76=0,+'App.2-CB_MIFRS_DepExp_2012'!O76,+'App.2-CB_MIFRS_DepExp_2012'!O76+((C76*0.5)/D76)) -> 0 | H76: 0 | I76: 0 | K76: =IF(ISERROR(+I76+'App.2-CB_MIFRS_DepExp_2012'!O76-J76), 0, +I76+'App.2-CB_MIFRS_DepExp_2012'!O76-J76) -> 0
A77: 1995 | B77: Contributed Capital - Poles, Towers & Fixtures | E77: =IF(D77=0,0,1/D77) -> 0 | F77: =IF(D77=0,+'App.2-CB_MIFRS_DepExp_2012'!O77,+'App.2-CB_MIFRS_DepExp_2012'!O77+((C77*0.5)/D77)) -> 0 | H77: =IF(ISERROR(+F77-G77), 0, +F77-G77) -> 0 | I77: =IF(D77=0,0,+(C77)/D77) -> 0 | K77: =IF(ISERROR(+I77+'App.2-CB_MIFRS_DepExp_2012'!O77-J77), 0, +I77+'App.2-CB_MIFRS_DepExp_2012'!O77-J77) -> 0
A78: 1995 | B78: Contributed Capital - Overhead Conductors | E78: 0 | F78: =IF(D78=0,+'App.2-CB_MIFRS_DepExp_2012'!O78,+'App.2-CB_MIFRS_DepExp_2012'!O78+((C78*0.5)/D78)) -> 0 | H78: 0 | I78: 0 | K78: =IF(ISERROR(+I78+'App.2-CB_MIFRS_DepExp_2012'!O78-J78), 0, +I78+'App.2-CB_MIFRS_DepExp_2012'!O78-J78) -> 0
A79: 1995 | B79: Contributed Capital - Overhead Devices | E79: 0 | F79: =IF(D79=0,+'App.2-CB_MIFRS_DepExp_2012'!O79,+'App.2-CB_MIFRS_DepExp_2012'!O79+((C79*0.5)/D79)) -> 0 | H79: 0 | I79: 0 | K79: =IF(ISERROR(+I79+'App.2-CB_MIFRS_DepExp_2012'!O79-J79), 0, +I79+'App.2-CB_MIFRS_DepExp_2012'!O79-J79) -> 0
A80: 1995 | B80: Contributed Capital - Overhead Services | E80: =IF(D80=0,0,1/D80) -> 0 | F80: =IF(D80=0,+'App.2-CB_MIFRS_DepExp_2012'!O80,+'App.2-CB_MIFRS_DepExp_2012'!O80+((C80*0.5)/D80)) -> 0 | H80: =IF(ISERROR(+F80-G80), 0, +F80-G80) -> 0 | I80: =IF(D80=0,0,+(C80)/D80) -> 0 | K80: =IF(ISERROR(+I80+'App.2-CB_MIFRS_DepExp_2012'!O80-J80), 0, +I80+'App.2-CB_MIFRS_DepExp_2012'!O80-J80) -> 0
A81: 1995 | B81: Contributed Capital - Underground Trenching & Ductwork | E81: 0 | F81: =IF(D81=0,+'App.2-CB_MIFRS_DepExp_2012'!O81,+'App.2-CB_MIFRS_DepExp_2012'!O81+((C81*0.5)/D81)) -> 0 | H81: 0 | I81: 0 | K81: =IF(ISERROR(+I81+'App.2-CB_MIFRS_DepExp_2012'!O81-J81), 0, +I81+'App.2-CB_MIFRS_DepExp_2012'!O81-J81) -> 0
A82: 1995 | B82: Contributed Capital - Underground Cables | E82: 0 | F82: =IF(D82=0,+'App.2-CB_MIFRS_DepExp_2012'!O82,+'App.2-CB_MIFRS_DepExp_2012'!O82+((C82*0.5)/D82)) -> 0 | H82: 0 | I82: 0 | K82: =IF(ISERROR(+I82+'App.2-CB_MIFRS_DepExp_2012'!O82-J82), 0, +I82+'App.2-CB_MIFRS_DepExp_2012'!O82-J82) -> 0
A83: 1995 | B83: Contributed Capital - Underground Devices | E83: 0 | F83: =IF(D83=0,+'App.2-CB_MIFRS_DepExp_2012'!O83,+'App.2-CB_MIFRS_DepExp_2012'!O83+((C83*0.5)/D83)) -> 0 | H83: 0 | I83: 0 | K83: =IF(ISERROR(+I83+'App.2-CB_MIFRS_DepExp_2012'!O83-J83), 0, +I83+'App.2-CB_MIFRS_DepExp_2012'!O83-J83) -> 0
A84: 1995 | B84: Contributed Capital - Overhead Transformer | E84: 0 | F84: =IF(D84=0,+'App.2-CB_MIFRS_DepExp_2012'!O84,+'App.2-CB_MIFRS_DepExp_2012'!O84+((C84*0.5)/D84)) -> 0 | H84: 0 | I84: 0 | K84: =IF(ISERROR(+I84+'App.2-CB_MIFRS_DepExp_2012'!O84-J84), 0, +I84+'App.2-CB_MIFRS_DepExp_2012'!O84-J84) -> 0
A85: 1995 | B85: Contributed Capital - Underground Padmount Transformer | E85: 0 | F85: =IF(D85=0,+'App.2-CB_MIFRS_DepExp_2012'!O85,+'App.2-CB_MIFRS_DepExp_2012'!O85+((C85*0.5)/D85)) -> 0 | H85: 0 | I85: 0 | K85: =IF(ISERROR(+I85+'App.2-CB_MIFRS_DepExp_2012'!O85-J85), 0, +I85+'App.2-CB_MIFRS_DepExp_2012'!O85-J85) -> 0
A86: 1995 | B86: Contributed Capital -Underground Submersible Transformer | E86: 0 | F86: =IF(D86=0,+'App.2-CB_MIFRS_DepExp_2012'!O86,+'App.2-CB_MIFRS_DepExp_2012'!O86+((C86*0.5)/D86)) -> 0 | H86: 0 | I86: 0 | K86: =IF(ISERROR(+I86+'App.2-CB_MIFRS_DepExp_2012'!O86-J86), 0, +I86+'App.2-CB_MIFRS_DepExp_2012'!O86-J86) -> 0
A87: 1995 | B87: Contributed Capital - Underground Services | E87: 0 | F87: =IF(D87=0,+'App.2-CB_MIFRS_DepExp_2012'!O87,+'App.2-CB_MIFRS_DepExp_2012'!O87+((C87*0.5)/D87)) -> 0 | H87: 0 | I87: 0 | K87: =IF(ISERROR(+I87+'App.2-CB_MIFRS_DepExp_2012'!O87-J87), 0, +I87+'App.2-CB_MIFRS_DepExp_2012'!O87-J87) -> 0
A88: 1995 | B88: Contributed Capital - Transformer Foundations | E88: 0 | F88: =IF(D88=0,+'App.2-CB_MIFRS_DepExp_2012'!O88,+'App.2-CB_MIFRS_DepExp_2012'!O88+((C88*0.5)/D88)) -> 0 | H88: 0 | I88: 0 | K88: =IF(ISERROR(+I88+'App.2-CB_MIFRS_DepExp_2012'!O88-J88), 0, +I88+'App.2-CB_MIFRS_DepExp_2012'!O88-J88) -> 0
A89: 1995 | B89: Contributed Capital - Meters | E89: 0 | F89: =IF(D89=0,+'App.2-CB_MIFRS_DepExp_2012'!O89,+'App.2-CB_MIFRS_DepExp_2012'!O89+((C89*0.5)/D89)) -> 0 | H89: 0 | I89: 0 | K89: =IF(ISERROR(+I89+'App.2-CB_MIFRS_DepExp_2012'!O89-J89), 0, +I89+'App.2-CB_MIFRS_DepExp_2012'!O89-J89) -> 0
A90: 1995 | B90: Contributed Capital - OEB Clearing | E90: 0 | F90: =IF(D90=0,+'App.2-CB_MIFRS_DepExp_2012'!O90,+'App.2-CB_MIFRS_DepExp_2012'!O90+((C90*0.5)/D90)) -> 0 | H90: 0 | I90: 0 | K90: =IF(ISERROR(+I90+'App.2-CB_MIFRS_DepExp_2012'!O90-J90), 0, +I90+'App.2-CB_MIFRS_DepExp_2012'!O90-J90) -> 0
A91: 1995 | E91: 0 | F91: 0 | H91: 0 | I91: 0 | K91: 0
A92: 1995 | E92: 0 | H92: 0 | I92: 0
A93: etc. | E93: 0 | F93: =IF(D93=0,+'App.2-CB_MIFRS_DepExp_2012'!O91,+'App.2-CB_MIFRS_DepExp_2012'!O91+((C93*0.5)/D93)) -> 0 | H93: 0 | I93: 0 | K93: =IF(ISERROR(+I93+'App.2-CB_MIFRS_DepExp_2012'!O91-J93), 0, +I93+'App.2-CB_MIFRS_DepExp_2012'!O91-J93) -> 0
E94: 0 | F94: =IF(D94=0,+'App.2-CB_MIFRS_DepExp_2012'!O92,+'App.2-CB_MIFRS_DepExp_2012'!O92+((C94*0.5)/D94)) -> 0 | H94: 0 | I94: 0 | K94: =IF(ISERROR(+I94+'App.2-CB_MIFRS_DepExp_2012'!O92-J94), 0, +I94+'App.2-CB_MIFRS_DepExp_2012'!O92-J94) -> 0
B95: Total | C95: =SUM(C16:C94) -> 0 | F95: =SUM(F16:F94) -> 0 | G95: 0 | H95: 0 | I95: 0 | J95: 0 | K95: 0
A97: Notes:
A98: 1 | B98: Board policy of the "half-year" rule - the applicant must ensure that additions in the year attract a half-year depreciation expense in the first year. Deviations from this standard practice must be supported in the application.
A99: 2 | B99: The applicant must provide an explanation of material variances in evidence
A100: 3 | B100: This column refers to the calculated full year depreciation but excludes the depreciation expense on assets fully depreciated during the year. This column is used for the purpose of calculating depreciation expense in the following year on the next worksheet.
A102: General: | B102: Applicants must provide a breakdown of depreciation and amortization expense in the above format for all relevant accounts. Asset Retirement Obligations (AROs), depreciation and accretion expense should be disclosed separately consistent with the Notes of historical Audited Financial Statements.
F108: Applying the half year rule in the Test year | K108: =SUM(H77:H90,H74,H56:H57,H23:H52)-K109 -> 0
F109: Rounding | K109: =SUM(M77:M90,M74,M56:M57,M21:M52) -> 0
F110: Not taking depreciation on a asset in year 1 | K110: =+H20 -> 0
F111: End of life - therefore no depreciation | K111: =+H17 -> 0
F112: Depreciation recognized when asset enters service | K112: =SUM(H59,H66:H70) -> 0
F113: Assets have a range of service lives | K113: =+H64 -> 0
F114: Smart Meters Decision | K114: =+H62+H54 -> 0
K115: =SUM(K108:K113)-H95 -> 0

Sheet App.2-CD_MIFRS_DepExp_2014
G1: File Number: | H1: ='LDC Info'!$E$18 -> EB-2013-0147
G2: Exhibit:
G3: Tab:
G4: Schedule:
G5: Page:
G7: Date:
A9: Appendix 2-CD
A10: Depreciation and Amortization Expense
A11: Assumes the applicant adopted IFRS for financial reporting purposes January 1, 2014
C12: 2014 | D12: MIFRS
A14: Account | B14: Description | C14: Additions | D14: Years (new additions only) | E14: Depreciation Rate on New Additions | F14: 2014 Depreciation Expense 1 | G14: 2014 Depreciation Expense per Appendix 2-B Fixed Assets, Column K (l) | H14: Variance 2
C15: (d) | D15: (f) | E15: (g) = 1 / (f) | F15: (h)=2012 Full Year Depreciation + ((d)*0.5)/(f) | H15: (m) = (h) - (l)
A16: 1611 | B16: Computer Software (Formally known as Account 1925) | E16: =IF(D16=0,0,1/D16) -> 0 | F16: =IF(D16=0,'App.2-CC_MIFRS_DepExp_2013'!K16,+'App.2-CC_MIFRS_DepExp_2013'!K16+((C16*0.5)/D16)) -> 0 | H16: =IF(ISERROR(+F16-G16), 0, +F16-G16) -> 0
A17: 1611 | B17: Computer Software (Formally known as Account 1925) - Smart Meters | E17: =IF(D17=0,0,1/D17) -> 0 | F17: =IF(D17=0,'App.2-CC_MIFRS_DepExp_2013'!K17,+'App.2-CC_MIFRS_DepExp_2013'!K17+((C17*0.5)/D17)) -> 0 | H17: =IF(ISERROR(+F17-G17), 0, +F17-G17) -> 0
A18: 1612 | B18: Land Rights (Formally known as Account 1906) | E18: =IF(D18=0,0,1/D18) -> 0 | F18: =IF(D18=0,'App.2-CC_MIFRS_DepExp_2013'!K18,+'App.2-CC_MIFRS_DepExp_2013'!K18+((C18*0.5)/D18)) -> 0 | H18: =IF(ISERROR(+F18-G18), 0, +F18-G18) -> 0
A19: 1805 | B19: Land | E19: 0 | F19: =IF(D19=0,'App.2-CC_MIFRS_DepExp_2013'!K19,+'App.2-CC_MIFRS_DepExp_2013'!K19+((C19*0.5)/D19)) -> 0 | H19: 0
A20: 1808 | B20: Buildings - Structure | E20: 0 | F20: =IF(D20=0,'App.2-CC_MIFRS_DepExp_2013'!K20,+'App.2-CC_MIFRS_DepExp_2013'!K20+((C20*0.5)/D20)) -> 0 | H20: 0
A21: 1808 | B21: Buildings - Roof | E21: 0 | F21: =IF(D21=0,'App.2-CC_MIFRS_DepExp_2013'!K21,+'App.2-CC_MIFRS_DepExp_2013'!K21+((C21*0.5)/D21)) -> 0 | H21: 0
A22: 1810 | B22: Leasehold Improvements | E22: 0 | F22: =IF(D22=0,'App.2-CC_MIFRS_DepExp_2013'!K22,+'App.2-CC_MIFRS_DepExp_2013'!K22+((C22*0.5)/D22)) -> 0 | H22: 0
A23: 1815 | B23: Transformer Station Equipment >50 kV 50 yrs | E23: 0 | F23: =IF(D23=0,'App.2-CC_MIFRS_DepExp_2013'!K23,+'App.2-CC_MIFRS_DepExp_2013'!K23+((C23*0.5)/D23)) -> 0 | H23: 0
A24: 1815 | B24: Transformer Station Equipment >50 kV 40 yrs | E24: 0 | F24: =IF(D24=0,'App.2-CC_MIFRS_DepExp_2013'!K24,+'App.2-CC_MIFRS_DepExp_2013'!K24+((C24*0.5)/D24)) -> 0 | H24: 0
A25: 1815 | B25: Transformer Station Equipment >50 kV 25 yrs | E25: =IF(D25=0,0,1/D25) -> 0 | F25: =IF(D25=0,'App.2-CC_MIFRS_DepExp_2013'!K25,+'App.2-CC_MIFRS_DepExp_2013'!K25+((C25*0.5)/D25)) -> 0 | H25: 0
A26: 1815 | B26: Transformer Station Equipment >50 kV 20 yrs | E26: 0 | F26: =IF(D26=0,'App.2-CC_MIFRS_DepExp_2013'!K26,+'App.2-CC_MIFRS_DepExp_2013'!K26+((C26*0.5)/D26)) -> 0 | H26: 0
A27: 1815 | B27: Transformer Station Equipment >50 kV 15 yrs | E27: 0 | F27: =IF(D27=0,'App.2-CC_MIFRS_DepExp_2013'!K27,+'App.2-CC_MIFRS_DepExp_2013'!K27+((C27*0.5)/D27)) -> 0 | H27: 0
A28: 1820 | B28: Distribution Station Equipment <50 kV 50 yrs | E28: 0 | F28: =IF(D28=0,'App.2-CC_MIFRS_DepExp_2013'!K28,+'App.2-CC_MIFRS_DepExp_2013'!K28+((C28*0.5)/D28)) -> 0 | H28: 0
A29: 1820 | B29: Distribution Station Equipment <50 kV 40 yrs | E29: 0 | F29: =IF(D29=0,'App.2-CC_MIFRS_DepExp_2013'!K29,+'App.2-CC_MIFRS_DepExp_2013'!K29+((C29*0.5)/D29)) -> 0 | H29: 0
A30: 1820 | B30: Distribution Station Equipment <50 kV 25 yrs | E30: 0 | F30: =IF(D30=0,'App.2-CC_MIFRS_DepExp_2013'!K30,+'App.2-CC_MIFRS_DepExp_2013'!K30+((C30*0.5)/D30)) -> 0 | H30: 0
A31: 1820 | B31: Distribution Station Equipment <50 kV 20 yrs | E31: 0 | F31: =IF(D31=0,'App.2-CC_MIFRS_DepExp_2013'!K31,+'App.2-CC_MIFRS_DepExp_2013'!K31+((C31*0.5)/D31)) -> 0 | H31: 0
A32: 1820 | B32: Distribution Station Equipment <50 kV 15 yrs | E32: 0 | F32: =IF(D32=0,'App.2-CC_MIFRS_DepExp_2013'!K32,+'App.2-CC_MIFRS_DepExp_2013'!K32+((C32*0.5)/D32)) -> 0 | H32: 0
A33: 1825 | B33: Storage Battery Equipment
A34: 1830 | B34: Poles, Towers & Fixtures | E34: 0 | F34: =IF(D34=0,'App.2-CC_MIFRS_DepExp_2013'!K34,+'App.2-CC_MIFRS_DepExp_2013'!K34+((C34*0.5)/D34)) -> 0 | H34: 0
A35: 1835 | B35: Overhead Conductors | E35: 0 | F35: =IF(D35=0,'App.2-CC_MIFRS_DepExp_2013'!K35,+'App.2-CC_MIFRS_DepExp_2013'!K35+((C35*0.5)/D35)) -> 0 | H35: 0
A36: 1835 | B36: Overhead Devices | E36: 0 | F36: =IF(D36=0,'App.2-CC_MIFRS_DepExp_2013'!K36,+'App.2-CC_MIFRS_DepExp_2013'!K36+((C36*0.5)/D36)) -> 0 | H36: 0
A37: 1835 | B37: Voltage Regulators | E37: 0 | F37: =IF(D37=0,'App.2-CC_MIFRS_DepExp_2013'!K37,+'App.2-CC_MIFRS_DepExp_2013'!K37+((C37*0.5)/D37)) -> 0 | H37: 0
A38: 1835 | B38: Capacitor Banks | E38: 0 | F38: =IF(D38=0,'App.2-CC_MIFRS_DepExp_2013'!K38,+'App.2-CC_MIFRS_DepExp_2013'!K38+((C38*0.5)/D38)) -> 0 | H38: 0
A39: 1840 | B39: Underground Conduit | E39: 0 | F39: =IF(D39=0,'App.2-CC_MIFRS_DepExp_2013'!K39,+'App.2-CC_MIFRS_DepExp_2013'!K39+((C39*0.5)/D39)) -> 0 | H39: 0
A40: 1845 | B40: Underground Conductors & Devices - PILC | E40: 0 | F40: =IF(D40=0,'App.2-CC_MIFRS_DepExp_2013'!K40,+'App.2-CC_MIFRS_DepExp_2013'!K40+((C40*0.5)/D40)) -> 0 | H40: 0
A41: 1845 | B41: Underground Cables | E41: 0 | F41: =IF(D41=0,'App.2-CC_MIFRS_DepExp_2013'!K41,+'App.2-CC_MIFRS_DepExp_2013'!K41+((C41*0.5)/D41)) -> 0 | H41: 0
A42: 1845 | B42: Underground Devices | E42: 0 | F42: =IF(D42=0,'App.2-CC_MIFRS_DepExp_2013'!K42,+'App.2-CC_MIFRS_DepExp_2013'!K42+((C42*0.5)/D42)) -> 0 | H42: 0
A43: 1850 | B43: Overhead Line Transformers | E43: 0 | F43: =IF(D43=0,'App.2-CC_MIFRS_DepExp_2013'!K43,+'App.2-CC_MIFRS_DepExp_2013'!K43+((C43*0.5)/D43)) -> 0 | H43: 0
A44: 1850 | B44: Network Transformers | E44: 0 | F44: =IF(D44=0,'App.2-CC_MIFRS_DepExp_2013'!K44,+'App.2-CC_MIFRS_DepExp_2013'!K44+((C44*0.5)/D44)) -> 0 | H44: 0
A45: 1850 | B45: Vault | E45: 0 | F45: =IF(D45=0,'App.2-CC_MIFRS_DepExp_2013'!K45,+'App.2-CC_MIFRS_DepExp_2013'!K45+((C45*0.5)/D45)) -> 0 | H45: 0
A46: 1850 | B46: Roof | E46: 0 | F46: =IF(D46=0,'App.2-CC_MIFRS_DepExp_2013'!K46,+'App.2-CC_MIFRS_DepExp_2013'!K46+((C46*0.5)/D46)) -> 0 | H46: 0
A47: 1850 | B47: Network Protectors | E47: 0 | F47: =IF(D47=0,'App.2-CC_MIFRS_DepExp_2013'!K47,+'App.2-CC_MIFRS_DepExp_2013'!K47+((C47*0.5)/D47)) -> 0 | H47: 0
A48: 1850 | B48: Padmount | E48: =IF(D48=0,0,1/D48) -> 0 | F48: =IF(D48=0,'App.2-CC_MIFRS_DepExp_2013'!K48,+'App.2-CC_MIFRS_DepExp_2013'!K48+((C48*0.5)/D48)) -> 0 | H48: 0
A49: 1850 | B49: Submersible | E49: 0 | F49: =IF(D49=0,'App.2-CC_MIFRS_DepExp_2013'!K49,+'App.2-CC_MIFRS_DepExp_2013'!K49+((C49*0.5)/D49)) -> 0 | H49: 0
A50: 1850 | B50: Foundation | E50: 0 | F50: =IF(D50=0,'App.2-CC_MIFRS_DepExp_2013'!K50,+'App.2-CC_MIFRS_DepExp_2013'!K50+((C50*0.5)/D50)) -> 0 | H50: 0
A51: 1855 | B51: Services - Overhead | E51: 0 | F51: =IF(D51=0,'App.2-CC_MIFRS_DepExp_2013'!K51,+'App.2-CC_MIFRS_DepExp_2013'!K51+((C51*0.5)/D51)) -> 0 | H51: 0
A52: 1855 | B52: Services - Underground | E52: 0 | F52: =IF(D52=0,'App.2-CC_MIFRS_DepExp_2013'!K52,+'App.2-CC_MIFRS_DepExp_2013'!K52+((C52*0.5)/D52)) -> 0 | H52: 0
A53: 1860 | B53: Meters | E53: 0 | F53: =IF(D53=0,'App.2-CC_MIFRS_DepExp_2013'!K53,+'App.2-CC_MIFRS_DepExp_2013'!K53+((C53*0.5)/D53)) -> 0 | H53: 0
A54: 1860 | B54: Meters (Smart Meters) | E54: =IF(D54=0,0,1/D54) -> 0 | F54: =IF(D54=0,'App.2-CC_MIFRS_DepExp_2013'!K54,+'App.2-CC_MIFRS_DepExp_2013'!K54+((C54*0.5)/D54)) -> 0 | H54: 0
A55: 1905 | B55: Land
A56: 1908 | B56: Buildings & Fixtures - Structure | E56: 0 | F56: =IF(D56=0,'App.2-CC_MIFRS_DepExp_2013'!K56,+'App.2-CC_MIFRS_DepExp_2013'!K56+((C56*0.5)/D56)) -> 0 | H56: 0
A57: 1908 | B57: Buildings & Fixtures - Roof | E57: =IF(D57=0,0,1/D57) -> 0 | F57: =IF(D57=0,'App.2-CC_MIFRS_DepExp_2013'!K58,+'App.2-CC_MIFRS_DepExp_2013'!K58+((C57*0.5)/D57)) -> 0 | H57: =IF(ISERROR(+F57-G57), 0, +F57-G57) -> 0
A58: 1910 | B58: Leasehold Improvements
A59: 1915 | B59: Office Furniture & Equipment (10 years) | E59: 0 | F59: =IF(D59=0,'App.2-CC_MIFRS_DepExp_2013'!K59,+'App.2-CC_MIFRS_DepExp_2013'!K59+((C59*0.5)/D59)) -> 0 | H59: 0
A60: 1915 | B60: Office Furniture & Equipment (5 years) | E60: 0 | F60: =IF(D60=0,'App.2-CC_MIFRS_DepExp_2013'!K60,+'App.2-CC_MIFRS_DepExp_2013'!K60+((C60*0.5)/D60)) -> 0 | H60: 0
A61: 1920 | B61: Computer Equipment - Hardware | E61: 0 | F61: =IF(D61=0,'App.2-CC_MIFRS_DepExp_2013'!K61,+'App.2-CC_MIFRS_DepExp_2013'!K61+((C61*0.5)/D61)) -> 0 | H61: 0
A62: 1920 | B62: Computer Equip.-Hardware - Smart Meters | E62: 0 | F62: =IF(D62=0,'App.2-CC_MIFRS_DepExp_2013'!K62,+'App.2-CC_MIFRS_DepExp_2013'!K62+((C62*0.5)/D62)) -> 0 | H62: 0
A63: 1920 | B63: Computer Equip.-Hardware(Post Mar. 19/07)
A64: 1930 | B64: Transportation Equipment | E64: 0 | F64: =IF(D64=0,'App.2-CC_MIFRS_DepExp_2013'!K64,+'App.2-CC_MIFRS_DepExp_2013'!K64+((C64*0.5)/D64)) -> 0 | H64: 0
A65: 1935 | B65: Stores Equipment | E65: 0 | F65: =IF(D65=0,'App.2-CC_MIFRS_DepExp_2013'!K65,+'App.2-CC_MIFRS_DepExp_2013'!K65+((C65*0.5)/D65)) -> 0 | H65: 0
A66: 1940 | B66: Tools, Shop & Garage Equipment | E66: 0 | F66: =IF(D66=0,'App.2-CC_MIFRS_DepExp_2013'!K66,+'App.2-CC_MIFRS_DepExp_2013'!K66+((C66*0.5)/D66)) -> 0 | H66: 0
A67: 1940 | B67: Tools - Smart Meters | E67: =IF(D67=0,0,1/D67) -> 0 | F67: =IF(D67=0,'App.2-CC_MIFRS_DepExp_2013'!K67,+'App.2-CC_MIFRS_DepExp_2013'!K67+((C67*0.5)/D67)) -> 0 | H67: =IF(ISERROR(+F67-G67), 0, +F67-G67) -> 0
A68: 1945 | B68: Measurement & Testing Equipment | E68: 0 | F68: =IF(D68=0,'App.2-CC_MIFRS_DepExp_2013'!K68,+'App.2-CC_MIFRS_DepExp_2013'!K68+((C68*0.5)/D68)) -> 0 | H68: 0
A69: 1950 | B69: Power Operated Equipment | E69: 0 | F69: =IF(D69=0,'App.2-CC_MIFRS_DepExp_2013'!K69,+'App.2-CC_MIFRS_DepExp_2013'!K69+((C69*0.5)/D69)) -> 0 | H69: 0
A70: 1955 | B70: Communications Equipment | E70: 0 | F70: =IF(D70=0,'App.2-CC_MIFRS_DepExp_2013'!K70,+'App.2-CC_MIFRS_DepExp_2013'!K70+((C70*0.5)/D70)) -> 0 | H70: 0
A71: 1955 | B71: Communication Equipment (Smart Meters) | E71: 0 | F71: =IF(D71=0,'App.2-CC_MIFRS_DepExp_2013'!K71,+'App.2-CC_MIFRS_DepExp_2013'!K71+((C71*0.5)/D71)) -> 0 | H71: 0
A72: 1960 | B72: Miscellaneous Equipment | E72: 0 | F72: =IF(D72=0,'App.2-CC_MIFRS_DepExp_2013'!K72,+'App.2-CC_MIFRS_DepExp_2013'!K72+((C72*0.5)/D72)) -> 0 | H72: 0
A73: 1975 | B73: Load Management Controls Utility Premises
A74: 1980 | B74: System Supervisor Equipment | E74: 0 | F74: =IF(D74=0,'App.2-CC_MIFRS_DepExp_2013'!K74,+'App.2-CC_MIFRS_DepExp_2013'!K74+((C74*0.5)/D74)) -> 0 | H74: 0
A75: 1985 | B75: Miscellaneous Fixed Assets
A76: 1995 | B76: Contributions & Grants
A77: 1995 | B77: Contributed Capital - Poles, Towers & Fixtures | E77: 0 | F77: =IF(D77=0,'App.2-CC_MIFRS_DepExp_2013'!K77,+'App.2-CC_MIFRS_DepExp_2013'!K77+((C77*0.5)/D77)) -> 0 | H77: 0
A78: 1995 | B78: Contributed Capital - Overhead Conductors | E78: 0 | F78: =IF(D78=0,'App.2-CC_MIFRS_DepExp_2013'!K78,+'App.2-CC_MIFRS_DepExp_2013'!K78+((C78*0.5)/D78)) -> 0 | H78: 0
A79: 1995 | B79: Contributed Capital - Overhead Devices | E79: 0 | F79: =IF(D79=0,'App.2-CC_MIFRS_DepExp_2013'!K79,+'App.2-CC_MIFRS_DepExp_2013'!K79+((C79*0.5)/D79)) -> 0 | H79: 0
A80: 1995 | B80: Contributed Capital - Overhead Services | E80: 0 | F80: =IF(D80=0,'App.2-CC_MIFRS_DepExp_2013'!K80,+'App.2-CC_MIFRS_DepExp_2013'!K80+((C80*0.5)/D80)) -> 0 | H80: 0
A81: 1995 | B81: Contributed Capital - Underground Trenching & Ductwork | E81: 0 | F81: =IF(D81=0,'App.2-CC_MIFRS_DepExp_2013'!K81,+'App.2-CC_MIFRS_DepExp_2013'!K81+((C81*0.5)/D81)) -> 0 | H81: 0
A82: 1995 | B82: Contributed Capital - Underground Cables | E82: 0 | F82: =IF(D82=0,'App.2-CC_MIFRS_DepExp_2013'!K82,+'App.2-CC_MIFRS_DepExp_2013'!K82+((C82*0.5)/D82)) -> 0 | H82: 0
A83: 1995 | B83: Contributed Capital - Underground Devices | E83: =IF(D83=0,0,1/D83) -> 0 | F83: =IF(D83=0,'App.2-CC_MIFRS_DepExp_2013'!K83,+'App.2-CC_MIFRS_DepExp_2013'!K83+((C83*0.5)/D83)) -> 0 | H83: =IF(ISERROR(+F83-G83), 0, +F83-G83) -> 0
A84: 1995 | B84: Contributed Capital - Overhead Transformer | E84: 0 | F84: =IF(D84=0,'App.2-CC_MIFRS_DepExp_2013'!K84,+'App.2-CC_MIFRS_DepExp_2013'!K84+((C84*0.5)/D84)) -> 0 | H84: 0
A85: 1995 | B85: Contributed Capital - Underground Padmount Transformer | E85: 0 | F85: =IF(D85=0,'App.2-CC_MIFRS_DepExp_2013'!K85,+'App.2-CC_MIFRS_DepExp_2013'!K85+((C85*0.5)/D85)) -> 0 | H85: 0
A86: 1995 | B86: Contributed Capital -Underground Submersible Transformer | E86: 0 | F86: =IF(D86=0,'App.2-CC_MIFRS_DepExp_2013'!K86,+'App.2-CC_MIFRS_DepExp_2013'!K86+((C86*0.5)/D86)) -> 0 | H86: 0
A87: 1995 | B87: Contributed Capital - Underground Services | E87: 0 | F87: =IF(D87=0,'App.2-CC_MIFRS_DepExp_2013'!K87,+'App.2-CC_MIFRS_DepExp_2013'!K87+((C87*0.5)/D87)) -> 0 | H87: 0
A88: 1995 | B88: Contributed Capital - Transformer Foundations | E88: 0 | F88: =IF(D88=0,'App.2-CC_MIFRS_DepExp_2013'!K88,+'App.2-CC_MIFRS_DepExp_2013'!K88+((C88*0.5)/D88)) -> 0 | H88: 0
A89: 1995 | B89: Contributed Capital - Meters | E89: 0 | F89: =IF(D89=0,'App.2-CC_MIFRS_DepExp_2013'!K89,+'App.2-CC_MIFRS_DepExp_2013'!K89+((C89*0.5)/D89)) -> 0 | H89: 0
A90: 1995 | B90: Contributed Capital - OEB Clearing | E90: 0 | F90: =IF(D90=0,'App.2-CC_MIFRS_DepExp_2013'!K90,+'App.2-CC_MIFRS_DepExp_2013'!K90+((C90*0.5)/D90)) -> 0 | H90: 0
A91: etc. | E91: =IF(D91=0,0,1/D91) -> 0 | F91: =IF(D91=0,'App.2-CC_MIFRS_DepExp_2013'!K91,+'App.2-CC_MIFRS_DepExp_2013'!K91+((C91*0.5)/D91)) -> 0 | G91: =-'App.2-B_FA Continuity 2014'!K90 -> 0 | H91: =IF(ISERROR(+F91-G91), 0, +F91-G91) -> 0
E92: 0 | F92: =IF(D92=0,'App.2-CC_MIFRS_DepExp_2013'!K94,+'App.2-CC_MIFRS_DepExp_2013'!K94+((C92*0.5)/D92)) -> 0 | G92: =-'App.2-B_FA Continuity 2014'!K91 -> 0 | H92: 0
B93: Total | C93: =SUM(C16:C92) -> 0 | F93: =SUM(F16:F92) -> 0 | G93: =SUM(G16:G92) -> 0 | H93: =SUM(H16:H92) -> 0
B94: Depreciation expense adjustment resulting from amortization of Account 1576
B95: Total Depreciation expense to be included in the test year revenue requirement | F95: =+F93+F94 -> 0
A96: Notes:
A97: 1 | B97: Board policy of the "half-year" rule - the applicant must ensure that additions in the year attract a half-year depreciation expense in the first year. Deviations from this standard practice must be supported in the application.
A98: 2 | B98: The applicant must provide an explanation of material variances in evidence
A100: General: | B100: Applicants must provide a breakdown of depreciation and amortization expense in the above format for all relevant accounts. Asset Retirement Obligations (AROs), depreciation and accretion expense should be disclosed separately consistent with the Notes of historical Audited Financial Statements.

Sheet App.2-CE_CGAAP_DepExp_2012
K1: File Number: | L1: ='LDC Info'!$E$18 -> EB-2013-0147
K2: Exhibit:
K3: Tab:
K4: Schedule:
K5: Page:
K7: Date:
A9: Appendix 2-CE
A10: Depreciation and Amortization Expense
A11: Assumes the applicant adopted IFRS for financial reporting purposes January 1, 2013
C12: Year | D12: 2012 | E12: CGAAP
A14: Account | B14: Description | C14: Opening Regulatory Gross PP&E as at Jan 1, 2012 | D14: Less Fully Depreciated | E14: Net for Depreciation | F14: Additions | G14: Total for Depreciation | H14: Years | I14: Depreciation Rate | J14: 2012 Depreciation Expense | K14: 2012 Depreciation Expense per Appendix 2-B Fixed Assets, Column K (l) | L14: Variance 2
C15: (a) | D15: (b) | E15: (c) | F15: (d) | G15: (e) = (c) + ½ x (d) 1 | H15: (f) | I15: (g) = 1 / (f) | J15: (h) = (e) / (f) | L15: (m) = (h) - (l)
A16: 1611 | B16: Computer Software (Formally known as Account 1925) | E16: =C16-D16 -> 0 | G16: =E16+0.5*F16 -> 0 | I16: =IF(H16=0,"",1/H16) ->  | J16: =IF(H16=0,0,G16/H16) -> 0 | L16: =IF(ISERROR(+J16-K16), "", +J16-K16) -> 0
A17: 1612 | B17: Land Rights (Formally known as Account 1906) | E17: =C17-D17 -> 0 | G17: =E17+0.5*F17 -> 0 | J17: 0 | L17: =IF(ISERROR(+J17-K17), "", +J17-K17) -> 0
A18: 1805 | B18: Land | E18: 0 | G18: 0 | J18: 0 | L18: 0
A19: 1808 | B19: Buildings | E19: 0 | G19: 0 | J19: 0 | L19: 0
A20: 1810 | B20: Leasehold Improvements | E20: 0 | G20: 0 | J20: 0 | L20: 0
A21: 1815 | B21: Transformer Station Equipment >50 kV | E21: 0 | G21: 0 | J21: 0 | L21: 0
A22: 1820 | B22: Distribution Station Equipment <50 kV | E22: 0 | G22: 0 | J22: 0 | L22: 0
A23: 1825 | B23: Storage Battery Equipment | E23: 0 | G23: 0 | J23: 0 | L23: 0
A24: 1830 | B24: Poles, Towers & Fixtures | E24: 0 | G24: 0 | J24: 0 | L24: 0
A25: 1835 | B25: Overhead Conductors & Devices | E25: 0 | G25: 0 | J25: 0 | L25: 0
A26: 1840 | B26: Underground Conduit | E26: 0 | G26: 0 | J26: 0 | L26: 0
A27: 1845 | B27: Underground Conductors & Devices | E27: 0 | G27: 0 | J27: 0 | L27: 0
A28: 1850 | B28: Line Transformers | E28: 0 | G28: 0 | J28: 0 | L28: 0
A29: 1855 | B29: Services (Overhead & Underground) | E29: 0 | G29: 0 | J29: 0 | L29: 0
A30: 1860 | B30: Meters | E30: 0 | G30: 0 | J30: 0 | L30: 0
A31: 1860 | B31: Meters (Smart Meters) | E31: 0 | G31: 0 | J31: 0 | L31: 0
A32: 1905 | B32: Land | E32: 0 | G32: 0 | J32: 0 | L32: 0
A33: 1908 | B33: Buildings & Fixtures | E33: 0 | G33: 0 | J33: 0 | L33: 0
A34: 1910 | B34: Leasehold Improvements | E34: 0 | G34: 0 | J34: 0 | L34: 0
A35: 1915 | B35: Office Furniture & Equipment (10 years) | E35: 0 | G35: 0 | J35: 0 | L35: 0
A36: 1915 | B36: Office Furniture & Equipment (5 years) | E36: 0 | G36: 0 | J36: 0 | L36: 0
A37: 1920 | B37: Computer Equipment - Hardware | E37: 0 | G37: 0 | J37: 0 | L37: 0
A38: 1920 | B38: Computer Equip.-Hardware(Post Mar. 22/04) | E38: 0 | G38: 0 | J38: 0 | L38: 0
A39: 1920 | B39: Computer Equip.-Hardware(Post Mar. 19/07) | E39: 0 | G39: 0 | J39: 0 | L39: 0
A40: 1930 | B40: Transportation Equipment | E40: 0 | G40: 0 | J40: 0 | L40: 0
A41: 1935 | B41: Stores Equipment | E41: 0 | G41: 0 | J41: 0 | L41: 0
A42: 1940 | B42: Tools, Shop & Garage Equipment | E42: 0 | G42: 0 | J42: 0 | L42: 0
A43: 1945 | B43: Measurement & Testing Equipment | E43: 0 | G43: 0 | J43: 0 | L43: 0
A44: 1950 | B44: Power Operated Equipment | E44: 0 | G44: 0 | J44: 0 | L44: 0
A45: 1955 | B45: Communications Equipment | E45: 0 | G45: 0 | J45: 0 | L45: 0
A46: 1955 | B46: Communication Equipment (Smart Meters) | E46: 0 | G46: 0 | J46: 0 | L46: 0
A47: 1960 | B47: Miscellaneous Equipment | E47: 0 | G47: 0 | J47: 0 | L47: 0
A48: 1975 | B48: Load Management Controls Utility Premises | E48: 0 | G48: 0 | J48: 0 | L48: 0
A49: 1980 | B49: System Supervisor Equipment | E49: 0 | G49: 0 | J49: 0 | L49: 0
A50: 1985 | B50: Miscellaneous Fixed Assets | E50: 0 | G50: 0 | J50: 0 | L50: 0
A51: 1995 | B51: Contributions & Grants | E51: 0 | G51: 0 | J51: 0 | L51: 0
A52: etc. | E52: 0 | G52: 0 | J52: 0 | L52: 0
E53: 0 | G53: 0 | J53: 0 | L53: 0
B54: Total | C54: =SUM(C16:C53) -> 0 | D54: =SUM(D16:D53) -> 0 | E54: =SUM(E16:E53) -> 0 | F54: =SUM(F16:F53) -> 0 | G54: =SUM(G16:G53) -> 0 | J54: =SUM(J16:J53) -> 0 | K54: =SUM(K16:K53) -> 0 | L54: =SUM(L16:L53) -> 0
A56: Notes:
A57: 1 | B57: Board policy of the "half-year" rule - the applicant must ensure that additions in the year attract a half-year depreciation expense in the first year. Deviations from this standard practice must be supported in the application.
A58: 2 | B58: The applicant must provide an explanation of material variances in evidence
A59: General: | B59: Applicants must provide a breakdown of depreciation and amortization expense in the above format for all relevant accounts. Asset Retirement Obligations (AROs), depreciation and accretion expense should be disclosed separately consistent with the Notes of historical Audited Financial Statements.

Sheet App.2-CF_CGAAP_DepExp_2013
K1: File Number: | L1: ='LDC Info'!$E$18 -> EB-2013-0147
K2: Exhibit:
K3: Tab:
K4: Schedule:
K5: Page:
K7: Date:
A9: Appendix 2-CF
A10: Depreciation and Amortization Expense
A11: Assumes the applicant adopted IFRS for financial reporting purposes January 1, 2013
C12: Year | D12: 2013 | E12: CGAAP
A14: Account | B14: Description | C14: Opening Regulatory Gross PP&E as at Jan 1, 2013 | D14: Less Fully Depreciated | E14: Net for Depreciation | F14: Additions | G14: Total for Depreciation | H14: Years | I14: Depreciation Rate | J14: 2013 Depreciation Expense | K14: 2013 Depreciation Expense per Appendix 2-B Fixed Assets, Column K (l) | L14: Variance 2
C15: (a) | D15: (b) | E15: (c) | F15: (d) | G15: (e) = (c) + ½ x (d) 1 | H15: (f) | I15: (g) = 1 / (f) | J15: (h) = (e) / (f) | L15: (m) = (h) - (l)
A16: 1611 | B16: Computer Software (Formally known as Account 1925) | E16: =C16-D16 -> 0 | G16: =E16+0.5*F16 -> 0 | I16: =IF(H16=0,0,1/H16) -> 0 | J16: =IF(H16=0,0,G16/H16) -> 0 | L16: =IF(ISERROR(+J16-K16), 0, +J16-K16) -> 0
A17: 1612 | B17: Land Rights (Formally known as Account 1906) | E17: =C17-D17 -> 0 | G17: =E17+0.5*F17 -> 0 | I17: 0 | J17: 0 | L17: 0
A18: 1805 | B18: Land | E18: 0 | G18: 0 | I18: 0 | J18: 0 | L18: 0
A19: 1808 | B19: Buildings | E19: 0 | G19: 0 | I19: 0 | J19: 0 | L19: 0
A20: 1810 | B20: Leasehold Improvements | E20: 0 | G20: 0 | I20: 0 | J20: 0 | L20: 0
A21: 1815 | B21: Transformer Station Equipment >50 kV | E21: 0 | G21: 0 | I21: 0 | J21: 0 | L21: 0
A22: 1820 | B22: Distribution Station Equipment <50 kV | E22: 0 | G22: 0 | I22: 0 | J22: 0 | L22: 0
A23: 1825 | B23: Storage Battery Equipment | E23: 0 | G23: 0 | I23: 0 | J23: 0 | L23: 0
A24: 1830 | B24: Poles, Towers & Fixtures | E24: 0 | G24: 0 | I24: 0 | J24: 0 | L24: 0
A25: 1835 | B25: Overhead Conductors & Devices | E25: 0 | G25: 0 | I25: 0 | J25: 0 | L25: 0
A26: 1840 | B26: Underground Conduit | E26: 0 | G26: 0 | I26: 0 | J26: 0 | L26: 0
A27: 1845 | B27: Underground Conductors & Devices | E27: 0 | G27: 0 | I27: 0 | J27: 0 | L27: 0
A28: 1850 | B28: Line Transformers | E28: 0 | G28: 0 | I28: 0 | J28: 0 | L28: 0
A29: 1855 | B29: Services (Overhead & Underground) | E29: 0 | G29: 0 | I29: 0 | J29: 0 | L29: 0
A30: 1860 | B30: Meters | E30: 0 | G30: 0 | I30: 0 | J30: 0 | L30: 0
A31: 1860 | B31: Meters (Smart Meters) | E31: 0 | G31: 0 | I31: 0 | J31: 0 | L31: 0
A32: 1905 | B32: Land | E32: 0 | G32: 0 | I32: 0 | J32: 0 | L32: 0
A33: 1908 | B33: Buildings & Fixtures | E33: 0 | G33: 0 | I33: 0 | J33: 0 | L33: 0
A34: 1910 | B34: Leasehold Improvements | E34: 0 | G34: 0 | I34: 0 | J34: 0 | L34: 0
A35: 1915 | B35: Office Furniture & Equipment (10 years) | E35: 0 | G35: 0 | I35: 0 | J35: 0 | L35: 0
A36: 1915 | B36: Office Furniture & Equipment (5 years) | E36: 0 | G36: 0 | I36: 0 | J36: 0 | L36: 0
A37: 1920 | B37: Computer Equipment - Hardware | E37: 0 | G37: 0 | I37: 0 | J37: 0 | L37: 0
A38: 1920 | B38: Computer Equip.-Hardware(Post Mar. 22/04) | E38: 0 | G38: 0 | I38: 0 | J38: 0 | L38: 0
A39: 1920 | B39: Computer Equip.-Hardware(Post Mar. 19/07) | E39: 0 | G39: 0 | I39: 0 | J39: 0 | L39: 0
A40: 1930 | B40: Transportation Equipment | E40: 0 | G40: 0 | I40: 0 | J40: 0 | L40: 0
A41: 1935 | B41: Stores Equipment | E41: 0 | G41: 0 | I41: 0 | J41: 0 | L41: 0
A42: 1940 | B42: Tools, Shop & Garage Equipment | E42: 0 | G42: 0 | I42: 0 | J42: 0 | L42: 0
A43: 1945 | B43: Measurement & Testing Equipment | E43: 0 | G43: 0 | I43: 0 | J43: 0 | L43: 0
A44: 1950 | B44: Power Operated Equipment | E44: 0 | G44: 0 | I44: 0 | J44: 0 | L44: 0
A45: 1955 | B45: Communications Equipment | E45: 0 | G45: 0 | I45: 0 | J45: 0 | L45: 0
A46: 1955 | B46: Communication Equipment (Smart Meters) | E46: 0 | G46: 0 | I46: 0 | J46: 0 | L46: 0
A47: 1960 | B47: Miscellaneous Equipment | E47: 0 | G47: 0 | I47: 0 | J47: 0 | L47: 0
A48: 1975 | B48: Load Management Controls Utility Premises | E48: 0 | G48: 0 | I48: 0 | J48: 0 | L48: 0
A49: 1980 | B49: System Supervisor Equipment | E49: 0 | G49: 0 | I49: 0 | J49: 0 | L49: 0
A50: 1985 | B50: Miscellaneous Fixed Assets | E50: 0 | G50: 0 | I50: 0 | J50: 0 | L50: 0
A51: 1995 | B51: Contributions & Grants | E51: 0 | G51: 0 | I51: 0 | J51: 0 | L51: 0
A52: etc. | E52: 0 | G52: 0 | I52: 0 | J52: 0 | L52: 0
E53: 0 | G53: 0 | I53: 0 | J53: 0 | L53: 0
B54: Total | C54: =SUM(C16:C53) -> 0 | D54: =SUM(D16:D53) -> 0 | E54: =SUM(E16:E53) -> 0 | F54: =SUM(F16:F53) -> 0 | G54: =SUM(G16:G53) -> 0 | J54: =SUM(J16:J53) -> 0 | K54: =SUM(K16:K53) -> 0 | L54: =SUM(L16:L53) -> 0
A56: Notes:
A57: 1 | B57: Board policy of the "half-year" rule - the applicant must ensure that additions in the year attract a half-year depreciation expense in the first year. Deviations from this standard practice must be supported in the application.
A58: 2 | B58: The applicant must provide an explanation of material variances in evidence
A60: General: | B60: Applicants must provide a breakdown of depreciation and amortization expense in the above format for all relevant accounts. Asset Retirement Obligations (AROs), depreciation and accretion expense should be disclosed separately consistent with the Notes of historical Audited Financial Statements.

Sheet App.2-CG_MIFRS_DepExp_2013
N1: File Number: | O1: ='LDC Info'!$E$18 -> EB-2013-0147
N2: Exhibit:
N3: Tab:
N4: Schedule:
N5: Page:
N7: Date:
A9: Appendix 2-CG
A10: Depreciation and Amortization Expense
A11: Assumes the applicant adopted IFRS for financial reporting purposes January 1, 2013
C12: Year | D12: 2013 | E12: MIFRS
A14: Account | B14: Description | C14: Opening NBV as at Jan 1, 2013 5 | D14: Additions | E14: Average Remaining Life of Opening NBV 4 | F14: Years (new additions only) 3 | G14: Depreciation Rate on New Additions | H14: Depreciation Expense on Opening NBV | I14: Depreciation Expense on Additions 1 | J14: 2013 Depreciation Expense | K14: 2013 Depreciation Expense per Appendix 2-B Fixed Assets, Column K (l) | L14: Variance 2 | M14: Depreciation Expense on 2013 Full Year Additions | N14: Less Depreciation Expense on Assets Fully Depreciated during the year (o) | O14: 2013 Full Year Depreciation 6
C15: (a) | D15: (d) | E15: (i) | F15: (f) | G15: (g) = 1 / (f) | H15: (j) = (a) / (i) | I15: (h)=((d)*0.5)/(f) | J15: (k) = (j) + (h) | L15: (m) = (k) - (l) | M15: (n)=((d))/(f) | O15: (p) = (j) + (n) - (o)
A16: 1611 | B16: Computer Software (Formally known as Account 1925) | G16: =IF(F16=0,0,1/F16) -> 0 | H16: =IF(E16=0,0,+C16/E16) -> 0 | I16: =IF(F16=0,0,+(D16*0.5)/F16) -> 0 | J16: =IF(ISERROR(+H16+I16), 0, +H16+I16) -> 0 | L16: =IF(ISERROR(+J16-K16), 0, +J16-K16) -> 0 | M16: =IF(F16=0,0,+(D16)/F16) -> 0 | O16: =IF(ISERROR(+M16+H16-N16), 0, +M16+H16-N16) -> 0
A17: 1612 | B17: Land Rights (Formally known as Account 1906) | G17: 0 | H17: 0 | I17: 0 | J17: 0 | L17: 0 | M17: 0 | O17: =IF(ISERROR(+M17+H17-N17), 0, +M17+H17-N17) -> 0
A18: 1805 | B18: Land | G18: 0 | H18: 0 | I18: 0 | J18: 0 | L18: 0 | M18: 0 | O18: 0
A19: 1808 | B19: Buildings | G19: 0 | H19: 0 | I19: 0 | J19: 0 | L19: 0 | M19: 0 | O19: 0
A20: 1810 | B20: Leasehold Improvements | G20: 0 | H20: 0 | I20: 0 | J20: 0 | L20: 0 | M20: 0 | O20: 0
A21: 1815 | B21: Transformer Station Equipment >50 kV | G21: 0 | H21: 0 | I21: 0 | J21: 0 | L21: 0 | M21: 0 | O21: 0
A22: 1820 | B22: Distribution Station Equipment <50 kV | G22: 0 | H22: 0 | I22: 0 | J22: 0 | L22: 0 | M22: 0 | O22: 0
A23: 1825 | B23: Storage Battery Equipment | G23: 0 | H23: 0 | I23: 0 | J23: 0 | L23: 0 | M23: 0 | O23: 0
A24: 1830 | B24: Poles, Towers & Fixtures | G24: 0 | H24: 0 | I24: 0 | J24: 0 | L24: 0 | M24: 0 | O24: 0
A25: 1835 | B25: Overhead Conductors & Devices | G25: 0 | H25: 0 | I25: 0 | J25: 0 | L25: 0 | M25: 0 | O25: 0
A26: 1840 | B26: Underground Conduit | G26: 0 | H26: 0 | I26: 0 | J26: 0 | L26: 0 | M26: 0 | O26: 0
A27: 1845 | B27: Underground Conductors & Devices | G27: 0 | H27: 0 | I27: 0 | J27: 0 | L27: 0 | M27: 0 | O27: 0
A28: 1850 | B28: Line Transformers | G28: 0 | H28: 0 | I28: 0 | J28: 0 | L28: 0 | M28: 0 | O28: 0
A29: 1855 | B29: Services (Overhead & Underground) | G29: 0 | H29: 0 | I29: 0 | J29: 0 | L29: 0 | M29: 0 | O29: 0
A30: 1860 | B30: Meters | G30: 0 | H30: 0 | I30: 0 | J30: 0 | L30: 0 | M30: 0 | O30: 0
A31: 1860 | B31: Meters (Smart Meters) | G31: 0 | H31: 0 | I31: 0 | J31: 0 | L31: 0 | M31: 0 | O31: 0
A32: 1905 | B32: Land | G32: 0 | H32: 0 | I32: 0 | J32: 0 | L32: 0 | M32: 0 | O32: 0
A33: 1908 | B33: Buildings & Fixtures | G33: 0 | H33: 0 | I33: 0 | J33: 0 | L33: 0 | M33: 0 | O33: 0
A34: 1910 | B34: Leasehold Improvements | G34: 0 | H34: 0 | I34: 0 | J34: 0 | L34: 0 | M34: 0 | O34: 0
A35: 1915 | B35: Office Furniture & Equipment (10 years) | G35: 0 | H35: 0 | I35: 0 | J35: 0 | L35: 0 | M35: 0 | O35: 0
A36: 1915 | B36: Office Furniture & Equipment (5 years) | G36: 0 | H36: 0 | I36: 0 | J36: 0 | L36: 0 | M36: 0 | O36: 0
A37: 1920 | B37: Computer Equipment - Hardware | G37: 0 | H37: 0 | I37: 0 | J37: 0 | L37: 0 | M37: 0 | O37: 0
A38: 1920 | B38: Computer Equip.-Hardware(Post Mar. 22/04) | G38: 0 | H38: 0 | I38: 0 | J38: 0 | L38: 0 | M38: 0 | O38: 0
A39: 1920 | B39: Computer Equip.-Hardware(Post Mar. 19/07) | G39: 0 | H39: 0 | I39: 0 | J39: 0 | L39: 0 | M39: 0 | O39: 0
A40: 1930 | B40: Transportation Equipment | G40: 0 | H40: 0 | I40: 0 | J40: 0 | L40: 0 | M40: 0 | O40: 0
A41: 1935 | B41: Stores Equipment | G41: 0 | H41: 0 | I41: 0 | J41: 0 | L41: 0 | M41: 0 | O41: 0
A42: 1940 | B42: Tools, Shop & Garage Equipment | G42: 0 | H42: 0 | I42: 0 | J42: 0 | L42: 0 | M42: 0 | O42: 0
A43: 1945 | B43: Measurement & Testing Equipment | G43: 0 | H43: 0 | I43: 0 | J43: 0 | L43: 0 | M43: 0 | O43: 0
A44: 1950 | B44: Power Operated Equipment | G44: 0 | H44: 0 | I44: 0 | J44: 0 | L44: 0 | M44: 0 | O44: 0
A45: 1955 | B45: Communications Equipment | G45: 0 | H45: 0 | I45: 0 | J45: 0 | L45: 0 | M45: 0 | O45: 0
A46: 1955 | B46: Communication Equipment (Smart Meters) | G46: 0 | H46: 0 | I46: 0 | J46: 0 | L46: 0 | M46: 0 | O46: 0
A47: 1960 | B47: Miscellaneous Equipment | G47: 0 | H47: 0 | I47: 0 | J47: 0 | L47: 0 | M47: 0 | O47: 0
A48: 1975 | B48: Load Management Controls Utility Premises | G48: 0 | H48: 0 | I48: 0 | J48: 0 | L48: 0 | M48: 0 | O48: 0
A49: 1980 | B49: System Supervisor Equipment | G49: 0 | H49: 0 | I49: 0 | J49: 0 | L49: 0 | M49: 0 | O49: 0
A50: 1985 | B50: Miscellaneous Fixed Assets | G50: 0 | H50: 0 | I50: 0 | J50: 0 | L50: 0 | M50: 0 | O50: 0
A51: 1995 | B51: Contributions & Grants | G51: 0 | H51: 0 | I51: 0 | J51: 0 | L51: 0 | M51: 0 | O51: 0
A52: etc. | G52: 0 | H52: 0 | I52: 0 | J52: 0 | L52: 0 | M52: 0 | O52: 0
G53: 0 | H53: 0 | I53: 0 | J53: 0 | L53: 0 | M53: 0 | O53: 0
B54: Total | C54: =SUM(C16:C53) -> 0 | D54: =SUM(D16:D53) -> 0 | H54: =SUM(H16:H53) -> 0 | I54: 0 | J54: 0 | K54: 0 | L54: 0 | M54: 0 | N54: =SUM(N16:N53) -> 0 | O54: 0
A56: Notes:
A58: 1 | B58: Board policy of the "half-year" rule - the applicant must ensure that additions in the year attract a half-year depreciation expense in the first year. Deviations from this standard practice must be supported in the application.
A59: 2 | B59: The applicant must provide an explanation of material variances in evidence
A60: 3 | B60: The applicant should ensure that the years for new additions of assets are the asset useful lives determined by management in accordance with IFRS.
A61: 4 | B61: A recalculation should be performed to determine the average remaining life of opening balance of assets (i.e. excluding 2012 additions) under IFRS. For example, Asset A had a useful life of 20 years under CGAAP. On January 1, 2012, the date of transition, Asset A was 3 years depreciated. As a result, Asset A would have a remaining service life of 17 years (20 years less 3 years) under CGAAP as of January 1, 2012. Due to the transition to IFRS, management re-assessed the asset useful lives under IFRS principles and concluded that the revised useful life of Asset A is now 30 years. Therefore, the average remaining useful life of opening balance of Asset A is determined to be 27 years (30 years less 3 years) under IFRS as of January 1, 2012.
A62: 5 | B62: NBV must exclude assets still on the books but which have been fully amortized or depreciated.
A63: 6 | B63: This column refers to the calculated full year depreciation but excludes the depreciation expense on assets fully depreciated during the year. This column is used for the purpose of calculating depreciation expense in the following year on the next worksheet.
A65: General: | B65: Applicants must provide a breakdown of depreciation and amortization expense in the above format for all relevant accounts. Asset Retirement Obligations (AROs), depreciation and accretion expense should be disclosed separately consistent with the Notes of historical Audited Financial Statements.

Sheet App.2-CH_MIFRS_DepExp_2014
I1: File Number: | J1: ='LDC Info'!$E$18 -> EB-2013-0147
I2: Exhibit:
I3: Tab:
I4: Schedule:
I5: Page:
I7: Date:
A9: Appendix 2-CH
A10: Depreciation and Amortization Expense
A11: Assumes the applicant adopted IFRS for financial reporting purposes January 1, 2013
C12: Year | D12: 2014 | E12: MIFRS
A14: Account | B14: Description | C14: Additions | D14: Years (new additions only) | E14: Depreciation Rate on New Additions | F14: 2014 Depreciation Expense 1 | G14: 2014 Depreciation Expense per Appendix 2-B Fixed Assets, Column K (l) | H14: Variance 2
C15: (d) | D15: (f) | E15: (g) = 1 / (f) | F15: (h)=2012 Full Year Depreciation + ((d)*0.5)/(f) | H15: (m) = (h) - (l)
A16: 1611 | B16: Computer Software (Formally known as Account 1925) | E16: =IF(D16=0,0,1/D16) -> 0 | F16: =IF(D16=0,'App.2-CG_MIFRS_DepExp_2013'!O16,+'App.2-CG_MIFRS_DepExp_2013'!O16+((C16*0.5)/D16)) -> 0 | H16: =IF(ISERROR(+F16-G16), 0, +F16-G16) -> 0
A17: 1612 | B17: Land Rights (Formally known as Account 1906) | E17: 0 | F17: =IF(D17=0,'App.2-CG_MIFRS_DepExp_2013'!O17,+'App.2-CG_MIFRS_DepExp_2013'!O17+((C17*0.5)/D17)) -> 0 | H17: 0
A18: 1805 | B18: Land | E18: 0 | F18: =IF(D18=0,'App.2-CG_MIFRS_DepExp_2013'!O18,+'App.2-CG_MIFRS_DepExp_2013'!O18+((C18*0.5)/D18)) -> 0 | H18: 0
A19: 1808 | B19: Buildings | E19: 0 | F19: =IF(D19=0,'App.2-CG_MIFRS_DepExp_2013'!O19,+'App.2-CG_MIFRS_DepExp_2013'!O19+((C19*0.5)/D19)) -> 0 | H19: 0
A20: 1810 | B20: Leasehold Improvements | E20: 0 | F20: =IF(D20=0,'App.2-CG_MIFRS_DepExp_2013'!O20,+'App.2-CG_MIFRS_DepExp_2013'!O20+((C20*0.5)/D20)) -> 0 | H20: 0
A21: 1815 | B21: Transformer Station Equipment >50 kV | E21: 0 | F21: =IF(D21=0,'App.2-CG_MIFRS_DepExp_2013'!O21,+'App.2-CG_MIFRS_DepExp_2013'!O21+((C21*0.5)/D21)) -> 0 | H21: 0
A22: 1820 | B22: Distribution Station Equipment <50 kV | E22: 0 | F22: =IF(D22=0,'App.2-CG_MIFRS_DepExp_2013'!O22,+'App.2-CG_MIFRS_DepExp_2013'!O22+((C22*0.5)/D22)) -> 0 | H22: 0
A23: 1825 | B23: Storage Battery Equipment | E23: 0 | F23: =IF(D23=0,'App.2-CG_MIFRS_DepExp_2013'!O23,+'App.2-CG_MIFRS_DepExp_2013'!O23+((C23*0.5)/D23)) -> 0 | H23: 0
A24: 1830 | B24: Poles, Towers & Fixtures | E24: 0 | F24: =IF(D24=0,'App.2-CG_MIFRS_DepExp_2013'!O24,+'App.2-CG_MIFRS_DepExp_2013'!O24+((C24*0.5)/D24)) -> 0 | H24: 0
A25: 1835 | B25: Overhead Conductors & Devices | E25: 0 | F25: =IF(D25=0,'App.2-CG_MIFRS_DepExp_2013'!O25,+'App.2-CG_MIFRS_DepExp_2013'!O25+((C25*0.5)/D25)) -> 0 | H25: 0
A26: 1840 | B26: Underground Conduit | E26: 0 | F26: =IF(D26=0,'App.2-CG_MIFRS_DepExp_2013'!O26,+'App.2-CG_MIFRS_DepExp_2013'!O26+((C26*0.5)/D26)) -> 0 | H26: 0
A27: 1845 | B27: Underground Conductors & Devices | E27: 0 | F27: =IF(D27=0,'App.2-CG_MIFRS_DepExp_2013'!O27,+'App.2-CG_MIFRS_DepExp_2013'!O27+((C27*0.5)/D27)) -> 0 | H27: 0
A28: 1850 | B28: Line Transformers | E28: 0 | F28: =IF(D28=0,'App.2-CG_MIFRS_DepExp_2013'!O28,+'App.2-CG_MIFRS_DepExp_2013'!O28+((C28*0.5)/D28)) -> 0 | H28: 0
A29: 1855 | B29: Services (Overhead & Underground) | E29: 0 | F29: =IF(D29=0,'App.2-CG_MIFRS_DepExp_2013'!O29,+'App.2-CG_MIFRS_DepExp_2013'!O29+((C29*0.5)/D29)) -> 0 | H29: 0
A30: 1860 | B30: Meters | E30: 0 | F30: =IF(D30=0,'App.2-CG_MIFRS_DepExp_2013'!O30,+'App.2-CG_MIFRS_DepExp_2013'!O30+((C30*0.5)/D30)) -> 0 | H30: 0
A31: 1860 | B31: Meters (Smart Meters) | E31: 0 | F31: =IF(D31=0,'App.2-CG_MIFRS_DepExp_2013'!O31,+'App.2-CG_MIFRS_DepExp_2013'!O31+((C31*0.5)/D31)) -> 0 | H31: 0
A32: 1905 | B32: Land | E32: 0 | F32: =IF(D32=0,'App.2-CG_MIFRS_DepExp_2013'!O32,+'App.2-CG_MIFRS_DepExp_2013'!O32+((C32*0.5)/D32)) -> 0 | H32: 0
A33: 1908 | B33: Buildings & Fixtures | E33: 0 | F33: =IF(D33=0,'App.2-CG_MIFRS_DepExp_2013'!O33,+'App.2-CG_MIFRS_DepExp_2013'!O33+((C33*0.5)/D33)) -> 0 | H33: 0
A34: 1910 | B34: Leasehold Improvements | E34: 0 | F34: =IF(D34=0,'App.2-CG_MIFRS_DepExp_2013'!O34,+'App.2-CG_MIFRS_DepExp_2013'!O34+((C34*0.5)/D34)) -> 0 | H34: 0
A35: 1915 | B35: Office Furniture & Equipment (10 years) | E35: 0 | F35: =IF(D35=0,'App.2-CG_MIFRS_DepExp_2013'!O35,+'App.2-CG_MIFRS_DepExp_2013'!O35+((C35*0.5)/D35)) -> 0 | H35: 0
A36: 1915 | B36: Office Furniture & Equipment (5 years) | E36: 0 | F36: =IF(D36=0,'App.2-CG_MIFRS_DepExp_2013'!O36,+'App.2-CG_MIFRS_DepExp_2013'!O36+((C36*0.5)/D36)) -> 0 | H36: 0
A37: 1920 | B37: Computer Equipment - Hardware | E37: 0 | F37: =IF(D37=0,'App.2-CG_MIFRS_DepExp_2013'!O37,+'App.2-CG_MIFRS_DepExp_2013'!O37+((C37*0.5)/D37)) -> 0 | H37: 0
A38: 1920 | B38: Computer Equip.-Hardware(Post Mar. 22/04) | E38: 0 | F38: =IF(D38=0,'App.2-CG_MIFRS_DepExp_2013'!O38,+'App.2-CG_MIFRS_DepExp_2013'!O38+((C38*0.5)/D38)) -> 0 | H38: 0
A39: 1920 | B39: Computer Equip.-Hardware(Post Mar. 19/07) | E39: 0 | F39: =IF(D39=0,'App.2-CG_MIFRS_DepExp_2013'!O39,+'App.2-CG_MIFRS_DepExp_2013'!O39+((C39*0.5)/D39)) -> 0 | H39: 0
A40: 1930 | B40: Transportation Equipment | E40: 0 | F40: =IF(D40=0,'App.2-CG_MIFRS_DepExp_2013'!O40,+'App.2-CG_MIFRS_DepExp_2013'!O40+((C40*0.5)/D40)) -> 0 | H40: 0
A41: 1935 | B41: Stores Equipment | E41: 0 | F41: =IF(D41=0,'App.2-CG_MIFRS_DepExp_2013'!O41,+'App.2-CG_MIFRS_DepExp_2013'!O41+((C41*0.5)/D41)) -> 0 | H41: 0
A42: 1940 | B42: Tools, Shop & Garage Equipment | E42: 0 | F42: =IF(D42=0,'App.2-CG_MIFRS_DepExp_2013'!O42,+'App.2-CG_MIFRS_DepExp_2013'!O42+((C42*0.5)/D42)) -> 0 | H42: 0
A43: 1945 | B43: Measurement & Testing Equipment | E43: 0 | F43: =IF(D43=0,'App.2-CG_MIFRS_DepExp_2013'!O43,+'App.2-CG_MIFRS_DepExp_2013'!O43+((C43*0.5)/D43)) -> 0 | H43: 0
A44: 1950 | B44: Power Operated Equipment | E44: 0 | F44: =IF(D44=0,'App.2-CG_MIFRS_DepExp_2013'!O44,+'App.2-CG_MIFRS_DepExp_2013'!O44+((C44*0.5)/D44)) -> 0 | H44: 0
A45: 1955 | B45: Communications Equipment | E45: 0 | F45: =IF(D45=0,'App.2-CG_MIFRS_DepExp_2013'!O45,+'App.2-CG_MIFRS_DepExp_2013'!O45+((C45*0.5)/D45)) -> 0 | H45: 0
A46: 1955 | B46: Communication Equipment (Smart Meters) | E46: 0 | F46: =IF(D46=0,'App.2-CG_MIFRS_DepExp_2013'!O46,+'App.2-CG_MIFRS_DepExp_2013'!O46+((C46*0.5)/D46)) -> 0 | H46: 0
A47: 1960 | B47: Miscellaneous Equipment | E47: 0 | F47: =IF(D47=0,'App.2-CG_MIFRS_DepExp_2013'!O47,+'App.2-CG_MIFRS_DepExp_2013'!O47+((C47*0.5)/D47)) -> 0 | H47: 0
A48: 1975 | B48: Load Management Controls Utility Premises | E48: 0 | F48: =IF(D48=0,'App.2-CG_MIFRS_DepExp_2013'!O48,+'App.2-CG_MIFRS_DepExp_2013'!O48+((C48*0.5)/D48)) -> 0 | H48: 0
A49: 1980 | B49: System Supervisor Equipment | E49: 0 | F49: =IF(D49=0,'App.2-CG_MIFRS_DepExp_2013'!O49,+'App.2-CG_MIFRS_DepExp_2013'!O49+((C49*0.5)/D49)) -> 0 | H49: 0
A50: 1985 | B50: Miscellaneous Fixed Assets | E50: 0 | F50: =IF(D50=0,'App.2-CG_MIFRS_DepExp_2013'!O50,+'App.2-CG_MIFRS_DepExp_2013'!O50+((C50*0.5)/D50)) -> 0 | H50: 0
A51: 1995 | B51: Contributions & Grants | E51: 0 | F51: =IF(D51=0,'App.2-CG_MIFRS_DepExp_2013'!O51,+'App.2-CG_MIFRS_DepExp_2013'!O51+((C51*0.5)/D51)) -> 0 | H51: 0
A52: etc. | E52: 0 | F52: =IF(D52=0,'App.2-CG_MIFRS_DepExp_2013'!O52,+'App.2-CG_MIFRS_DepExp_2013'!O52+((C52*0.5)/D52)) -> 0 | H52: 0
E53: 0 | F53: =IF(D53=0,'App.2-CG_MIFRS_DepExp_2013'!O53,+'App.2-CG_MIFRS_DepExp_2013'!O53+((C53*0.5)/D53)) -> 0 | H53: 0
B54: Total | C54: =SUM(C16:C53) -> 0 | F54: =SUM(F16:F53) -> 0 | G54: =SUM(G16:G53) -> 0 | H54: =SUM(H16:H53) -> 0
B55: Depreciation expense adjustment resulting from amortization of Account 1575 | F55: 0
B56: Total Depreciation expense to be included in the test year revenue requirement | F56: =+F55+F54 -> 0
A58: Notes:
A59: 1 | B59: Board policy of the "half-year" rule - the applicant must ensure that additions in the year attract a half-year depreciation expense in the first year. Deviations from this standard practice must be supported in the application.
A60: 2 | B60: The applicant must provide an explanation of material variances in evidence
A63: General: | B63: Applicants must provide a breakdown of depreciation and amortization expense in the above format for all relevant accounts. Asset Retirement Obligations (AROs), depreciation and accretion expense should be disclosed separately consistent with the Notes of historical Audited Financial Statements.

Sheet App.2-CI_AltAccStd_DepExp
K1: File Number: | L1: ='LDC Info'!$E$18 -> EB-2013-0147
K2: Exhibit:
K3: Tab:
K4: Schedule:
K5: Page:
K7: Date:
A9: Appendix 2-CI
A10: Depreciation and Amortization Expense
A11: Assumes the applicant adopted an alternate accounting standard other than IFRS for financial reporting purposes. For applicants adopting an Alternate Accounting Standard for financial reporting purposes January 1, 2013, applicants must complete 4 versions of the table below (2012 CGAAP, 2012 Alternate Accounting Standard, 2013 Alternate Accounting Standard and 2014 Alternate Accounting Standard). For applicants adopting an Alternate Accounting Standard for financial reporting purposes January 1, 2014, applicants must complete 4 versions of the table below (2012 CGAAP, 2013 CGAAP, 2013 Alternate Accounting Standard and 2014 Alternate Accounting Standard).
B12: Year | E12: Accounting Standard
A14: Account | B14: Description | C14: Opening Regulatory Gross PP&E | D14: Less Fully Depreciated | E14: Net for Depreciation | F14: Additions | G14: Total for Depreciation | H14: Years | I14: Depreciation Rate | J14: Depreciation Expense | K14: Depreciation Expense per Appendix 2-B Fixed Assets, Column K (l) | L14: Variance 2
C15: (a) | D15: (b) | E15: (c) | F15: (d) | G15: (e) = (c) + ½ x (d) 1 | H15: (f) | I15: (g) = 1 / (f) | J15: (h) = (e) / (f) | L15: (m) = (h) - (l)
A16: 1611 | B16: Computer Software (Formally known as Account 1925) | E16: =C16-D16 -> 0 | G16: =E16+0.5*F16 -> 0 | I16: =IF(H16=0,0,1/H16) -> 0 | J16: =IF(H16=0,0,G16/H16) -> 0 | L16: =IF(ISERROR(+J16-K16), 0, +J16-K16) -> 0
A17: 1612 | B17: Land Rights (Formally known as Account 1906) | E17: =C17-D17 -> 0 | G17: =E17+0.5*F17 -> 0 | I17: 0 | J17: 0 | L17: 0
A18: 1805 | B18: Land | E18: 0 | G18: 0 | I18: 0 | J18: 0 | L18: 0
A19: 1808 | B19: Buildings | E19: 0 | G19: 0 | I19: 0 | J19: 0 | L19: 0
A20: 1810 | B20: Leasehold Improvements | E20: 0 | G20: 0 | I20: 0 | J20: 0 | L20: 0
A21: 1815 | B21: Transformer Station Equipment >50 kV | E21: 0 | G21: 0 | I21: 0 | J21: 0 | L21: 0
A22: 1820 | B22: Distribution Station Equipment <50 kV | E22: 0 | G22: 0 | I22: 0 | J22: 0 | L22: 0
A23: 1825 | B23: Storage Battery Equipment | E23: 0 | G23: 0 | I23: 0 | J23: 0 | L23: 0
A24: 1830 | B24: Poles, Towers & Fixtures | E24: 0 | G24: 0 | I24: 0 | J24: 0 | L24: 0
A25: 1835 | B25: Overhead Conductors & Devices | E25: 0 | G25: 0 | I25: 0 | J25: 0 | L25: 0
A26: 1840 | B26: Underground Conduit | E26: 0 | G26: 0 | I26: 0 | J26: 0 | L26: 0
A27: 1845 | B27: Underground Conductors & Devices | E27: 0 | G27: 0 | I27: 0 | J27: 0 | L27: 0
A28: 1850 | B28: Line Transformers | E28: 0 | G28: 0 | I28: 0 | J28: 0 | L28: 0
A29: 1855 | B29: Services (Overhead & Underground) | E29: 0 | G29: 0 | I29: 0 | J29: 0 | L29: 0
A30: 1860 | B30: Meters | E30: 0 | G30: 0 | I30: 0 | J30: 0 | L30: 0
A31: 1860 | B31: Meters (Smart Meters) | E31: 0 | G31: 0 | I31: 0 | J31: 0 | L31: 0
A32: 1905 | B32: Land | E32: 0 | G32: 0 | I32: 0 | J32: 0 | L32: 0
A33: 1908 | B33: Buildings & Fixtures | E33: 0 | G33: 0 | I33: 0 | J33: 0 | L33: 0
A34: 1910 | B34: Leasehold Improvements | E34: 0 | G34: 0 | I34: 0 | J34: 0 | L34: 0
A35: 1915 | B35: Office Furniture & Equipment (10 years) | E35: 0 | G35: 0 | I35: 0 | J35: 0 | L35: 0
A36: 1915 | B36: Office Furniture & Equipment (5 years) | E36: 0 | G36: 0 | I36: 0 | J36: 0 | L36: 0
A37: 1920 | B37: Computer Equipment - Hardware | E37: 0 | G37: 0 | I37: 0 | J37: 0 | L37: 0
A38: 1920 | B38: Computer Equip.-Hardware(Post Mar. 22/04) | E38: 0 | G38: 0 | I38: 0 | J38: 0 | L38: 0
A39: 1920 | B39: Computer Equip.-Hardware(Post Mar. 19/07) | E39: 0 | G39: 0 | I39: 0 | J39: 0 | L39: 0
A40: 1930 | B40: Transportation Equipment | E40: 0 | G40: 0 | I40: 0 | J40: 0 | L40: 0
A41: 1935 | B41: Stores Equipment | E41: 0 | G41: 0 | I41: 0 | J41: 0 | L41: 0
A42: 1940 | B42: Tools, Shop & Garage Equipment | E42: 0 | G42: 0 | I42: 0 | J42: 0 | L42: 0
A43: 1945 | B43: Measurement & Testing Equipment | E43: 0 | G43: 0 | I43: 0 | J43: 0 | L43: 0
A44: 1950 | B44: Power Operated Equipment | E44: 0 | G44: 0 | I44: 0 | J44: 0 | L44: 0
A45: 1955 | B45: Communications Equipment | E45: 0 | G45: 0 | I45: 0 | J45: 0 | L45: 0
A46: 1955 | B46: Communication Equipment (Smart Meters) | E46: 0 | G46: 0 | I46: 0 | J46: 0 | L46: 0
A47: 1960 | B47: Miscellaneous Equipment | E47: 0 | G47: 0 | I47: 0 | J47: 0 | L47: 0
A48: 1975 | B48: Load Management Controls Utility Premises | E48: 0 | G48: 0 | I48: 0 | J48: 0 | L48: 0
A49: 1980 | B49: System Supervisor Equipment | E49: 0 | G49: 0 | I49: 0 | J49: 0 | L49: 0
A50: 1985 | B50: Miscellaneous Fixed Assets | E50: 0 | G50: 0 | I50: 0 | J50: 0 | L50: 0
A51: 1995 | B51: Contributions & Grants | E51: 0 | G51: 0 | I51: 0 | J51: 0 | L51: 0
A52: etc. | E52: 0 | G52: 0 | I52: 0 | J52: 0 | L52: 0
E53: 0 | G53: 0 | I53: 0 | J53: 0 | L53: 0
B54: Total | C54: =SUM(C16:C53) -> 0 | D54: =SUM(D16:D53) -> 0 | E54: =SUM(E16:E53) -> 0 | F54: 0 | G54: 0 | J54: =SUM(J16:J53) -> 0 | K54: =SUM(K16:K53) -> 0 | L54: =SUM(L16:L53) -> 0
A56: Notes:
A58: 1 | B58: Board policy of the "half-year" rule - the applicant must ensure that additions in the year attract a half-year depreciation expense in the first year. Deviations from this standard practice must be supported in the application.
A59: 2 | B59: The applicant must provide an explanation of material variances in evidence
A62: General: | B62: Applicants must provide a breakdown of depreciation and amortization expense in the above format for all relevant accounts. Asset Retirement Obligations (AROs), depreciation and accretion expense should be disclosed separately consistent with the Notes of historical Audited Financial Statements.

Sheet App.2-D_Overhead
L1: File Number: | M1: ='LDC Info'!$E$18 -> EB-2013-0147
L2: Exhibit:
L3: Tab:
L4: Schedule:
L5: Page:
L7: Date:
A9: Appendix 2-D
A10: Overhead Expense
A12: The following table should be completed based on the information requested below. An explanation should be provided for any blank entries. The entries should include overhead costs that are currently capitalized on self-constructed assets under MIFRS or an alternate accounting standard.
E13: (A) 1 | F13: (B) | G13: (C) | H13: (D) | I13: (E) 1 | J13: (F) | K13: (G)
A14: Nature of the Overhead Costs | E14: Dollar | F14: Dollar | G14: Dollar | H14: Dollar Impact - | I14: Dollar Impact - | J14: Directly | K14: Reasons why the overhead costs are allowed to be
E15: Impact on PP&E | F15: Impact on PP&E | G15: Impact on PP&E | H15: PP&E Variance | I15: PP&E Variance | J15: Attributable? | K15: capitalized under MIFRS or an alternate accounting
E16: Historic Year | F16: Bridge Year | G16: Test Year | H16: Test versus Bridge | I16: Test versus Historic | J16: (Y/N) | K16: standard given limitations on capitalized overhead
H17: =+G17-F17 -> 0 | I17: =+G17-E17 -> 0
H18: 0 | I18: 0
H19: 0 | I19: 0
H20: 0 | I20: 0
H21: 0 | I21: 0
H22: 0 | I22: 0
H23: 0 | I23: 0
H24: 0 | I24: 0
H25: 0 | I25: 0
H26: 0 | I26: 0
H27: 0 | I27: 0
H28: 0 | I28: 0
H29: 0 | I29: 0
A30: Insert description of additional item(s) and new rows if needed. | H30: 0 | I30: 0
A31: Total | E31: =SUM(E17:E30) -> 0 | F31: =SUM(F17:F30) -> 0 | G31: =SUM(G17:G30) -> 0 | H31: =SUM(H17:H30) -> 0 | I31: =SUM(I17:I30) -> 0
A34: The following table should be completed based on the information requested below. An explanation should be provided for any blank entries. The entries should include overhead costs that were capitalized on self-constructed assets under CGAAP but are no longer capitalized under MIFRS or an alternate accounting standard and are included in OM&A.
E35: (A) 1 | F35: (B) | G35: (C) | H35: (D) | I35: (E) 1 | J35: (F) | K35: (G)
A36: Nature of the Overhead Costs | E36: Dollar | F36: Dollar | G36: Dollar | H36: Dollar Impact - | I36: Dollar Impact - | J36: Directly | K36: Reasons why the overhead costs are not allowed to be
E37: Impact on OM&A | F37: Impact on OM&A | G37: Impact on OM&A | H37: OM&A Variance | I37: OM&A Variance | J37: Attributable? | K37: capitalized under MIFRS or an alternate accounting
E38: Historic Year | F38: Bridge Year | G38: Test Year | H38: Test versus Bridge | I38: Test versus Historic | J38: (Y/N) | K38: standard given limitations on capitalized overhead
H39: =+G39-F39 -> 0 | I39: =+G39-E39 -> 0
H40: =+G40-F40 -> 0 | I40: =+G40-E40 -> 0
H41: =+G41-F41 -> 0 | I41: =+G41-E41 -> 0
H42: =+G42-F42 -> 0 | I42: =+G42-E42 -> 0
H43: =+G43-F43 -> 0 | I43: =+G43-E43 -> 0
H45: =+G45-F45 -> 0 | I45: =+G45-E45 -> 0
H46: 0 | I46: 0
H47: 0 | I47: 0
H48: 0 | I48: 0
H49: 0 | I49: 0
H50: 0 | I50: 0
H51: 0 | I51: 0
H52: 0 | I52: 0
A53: Total | E53: =SUM(E39:E52) -> 0 | F53: =SUM(F39:F52) -> 0 | G53: =SUM(G39:G52) -> 0 | H53: =SUM(H39:H52) -> 0 | I53: =SUM(I39:I52) -> 0
A55: Notes:
A56: 1 | B56: If the applicant chooses to adopt IFRS or an alternate accounting standard for financial reporting purposes in 2013, the applicant does not need to complete Columns A, E. If the applicant adopts IFRS or an alternate accounting standard for financial reporting purposes in 2012, the applicant must complete all columns.

Sheet App.2-EA_PP&E Deferral Account
H1: File Number: | I1: ='LDC Info'!$E$18 -> EB-2013-0147
H2: Exhibit:
H3: Tab:
H4: Schedule:
H5: Page:
H7: Date:
A9: Appendix 2-EA
A10: IFRS-CGAAP Transitional PP&E Amounts
A11: 2012 Adopters of IFRS for Financial Reporting Purposes
A13: For applicants that adopt IFRS on January 1, 2012 for financial reporting purposes
A15: Note: this sheet should be filled out if the applicant adopts IFRS for its financial reporting purpose as of January 1, 2012.
B17: 2010 Rebasing Year | C17: 2011 | D17: 2012 | E17: 2013 | F17: 2014 Rebasing Year | G17: 2015 | H17: 2016 | I17: 2017
A18: Reporting Basis | B18: CGAAP | C18: IRM | D18: IRM | E18: IRM | F18: MIFRS | G18: IRM | H18: IRM | I18: IRM
A19: Forecast vs. Actual Used in Rebasing Year | B19: Forecast | C19: Actual | D19: Actual | E19: Forecast | F19: Forecast
D20: $ | E20: $
A21: PP&E Values under CGAAP
A22: Opening net PP&E - Note 1 | D22: 152895073 | E22: =+D25 -> 170299474
A23: Additions | D23: 31043283 | E23: 19021591
A24: Depreciation (amounts should be negative) | D24: -13638882 | E24: -12368981
A25: Closing net PP&E (1) | D25: =D22+D23+D24 -> 170299474 | E25: =E22+E23+E24 -> 176952084
A27: PP&E Values under MIFRS (Starts from 2011, the transition year)
A28: Opening net PP&E - Note 1 | D28: 152895073 | E28: =+D31 -> 172564687
A29: Additions | D29: 29167099 | E29: 17971915
A30: Depreciation (amounts should be negative) | D30: -9497485 | E30: -7643125
A31: Closing net PP&E (2) | D31: =SUM(D28:D30) -> 172564687 | E31: =SUM(E28:E30) -> 182893477
A33: Difference in Closing net PP&E, CGAAP vs. MIFRS (Shown as adjustment to rate base on rebasing) | D33: =D25-D31 -> -2265213 | E33: =E25-E31 -> -5941393
A35: Account 1575 - IFRS-CGAAP Transitional PP&E Amounts
A36: Opening balance | D36: 0 | E36: =D40 -> -2265213 | F36: =E40 -> -5941393 | G36: =F40 -> -4456044.75 | H36: =G40 -> -2970696.5 | I36: =H40 -> -1485348.25
A37: Amounts added in the year | D37: =D33 -> -2265213 | E37: =E33-D33 -> -3676180
A38: Sub-total | D38: =D36+D37 -> -2265213 | E38: -5941393 | F38: -5941393 | G38: -4456044.75 | H38: -2970696.5 | I38: -1485348.25
A39: Amount of amortization, included in depreciation expense - Note 2 | F39: =IF(ISERROR(-E33/I44), 0, -E33/I44) -> 1485348.25 | G39: =+F39 -> 1485348.25 | H39: =+F39 -> 1485348.25 | I39: =+F39 -> 1485348.25
A40: Closing balance in deferral account | D40: =D38+D39 -> -2265213 | E40: -5941393 | F40: =IF(ISERROR(F38+F39), 0, F38+F39) -> -4456044.75 | G40: -2970696.5 | H40: -1485348.25 | I40: 0
A42: Effect on Revenue Requirement
A43: Amortization of deferred balance as above - Note 2 | F43: =IF(ISERROR(E33/I44), 0, E33/I44) -> -1485348.25 | H43: WACC
A44: Return on Rate Base Associated with deferred PP&E balance at WACC - Note 3 | F44: =E33*I43 -> 0 | H44: Disposition Period - Note 4 | I44: 4 | J44: Years
A45: Amount included in Revenue Requirement on rebasing | F45: =F43+F44 -> -1485348.25
A47: Notes:
A48: 1 For an applicant that adopts IFRS on January 1, 2012, the PP&E values as of January 1, 2011 under both CGAAP and MIFRS should be the same.
A49: 2 Amortization of the deferred balance in Account 1575 will start from the rebasing year.
A50: Assume the utility requests for a certain disposition period, the amortization that should be included in the depreciation expense is calculated as:
A51: the opening balance of Account 1575 / the approved disposition period
A52: 3 Return on rate base associated with deferred balance is calculated as:
A53: the deferred account opening balance as of 2013 rebasing year x WACC
A54: * Please note that the calculation should be adjusted once WACC is updated and finalized in the rate application.
A55: 4 Consistent with the 4 year normal rate cycle, the model is using a 4 year amortization period as a default selection to "clear" the PP&E deferral account through a one-time adjustment to ratebase to capture and remove the impact of the accounting policy changes as caused by the transition from CGAAP to MIFRS.

Sheet App.2-EB_PP&E Deferral Account
H1: File Number: | I1: ='LDC Info'!$E$18 -> EB-2013-0147
H2: Exhibit:
H3: Tab:
H4: Schedule:
H5: Page:
H7: Date:
A9: Appendix 2-EB
A10: IFRS-CGAAP Transitional PP&E Amounts
A11: 2013 Adopters of IFRS for Financial Reporting Purposes
A13: For applicants that adopt IFRS on January 1, 2013 for financial reporting purposes
A15: Note: this sheet should be filled out if the applicant adopts IFRS for its financial reporting purpose as of January 1, 2013.
B17: 2009 Rebasing Year | C17: 2010 | D17: 2011 | E17: 2012 | F17: 2013 Rebasing Year | G17: 2014 | H17: 2015 | I17: 2016
A18: Reporting Basis | B18: CGAAP | C18: IRM | D18: IRM | E18: IRM | F18: MIFRS | G18: IRM | H18: IRM | I18: IRM
A19: Forecast vs. Actual Used in Rebasing Year | B19: Forecast | C19: Actual | D19: Actual | E19: Forecast | F19: Forecast
D20: $ | E20: $ | F20: $ | G20: $ | H20: $ | I20: $
A21: PP&E Values under CGAAP
A22: Opening net PP&E - Note 1
A23: Additions
A24: Depreciation (amounts should be negative)
A25: Closing net PP&E (1) | E25: =SUM(E22:E24) -> 0
A27: PP&E Values under MIFRS (Starts from 2012, the transition year)
A28: Opening net PP&E - Note 1
A29: Additions
A30: Depreciation (amounts should be negative)
A31: Closing net PP&E (2) | E31: =SUM(E28:E30) -> 0
A33: Difference in Closing net PP&E, CGAAP vs. MIFRS (Shown as adjustment to rate base on rebasing) | E33: =E25-E31 -> 0
A35: Account 1575 - IFRS-CGAAP Transitional PP&E Amounts
A36: Opening balance | E36: =D40 -> 0 | F36: =E40 -> 0 | G36: =F40 -> 0 | H36: =G40 -> 0 | I36: =H40 -> 0
A37: Amounts added in the year | E37: =E33-D33 -> 0
A38: Sub-total | E38: =E36+E37 -> 0 | F38: =F36+F37 -> 0 | G38: =G36+G37 -> 0 | H38: =H36+H37 -> 0 | I38: =I36+I37 -> 0
A39: Amount of amortization, included in depreciation expense - Note 2 | F39: =IF(ISERROR(-E33/I44), 0, -E33/I44) -> 0 | G39: =+F39 -> 0 | H39: =+F39 -> 0 | I39: =+F39 -> 0
A40: Closing balance in deferral account | E40: =E38+E39 -> 0 | F40: =IF(ISERROR(F38+F39), 0, F38+F39) -> 0 | G40: =G38+G39 -> 0 | H40: =H38+H39 -> 0 | I40: =I38+I39 -> 0
A42: Effect on Revenue Requirement
A43: Amortization of deferred balance as above - Note 2 | F43: =IF(ISERROR(E33/I44), 0, E33/I44) -> 0 | H43: WACC
A44: Return on Rate Base Associated with deferred PP&E balance at WACC - Note 3 | F44: =E33*I43 -> 0 | H44: Disposition Period - Note 4 | I44: 4 | J44: Years
A45: Amount included in Revenue Requirement on rebasing | F45: =F43+F44 -> 0
A47: Notes:
A48: 1 For an applicant that adopts IFRS on January 1, 2013, the PP&E values as of January 1, 2012 under both CGAAP and MIFRS should be the same.
A49: 2 Amortization of the deferred balance in Account 1575 will start from the rebasing year.
A50: Assume the utility requests for a certain disposition period, the amortization that should be included in the depreciation expense is calculated as:
A51: the opening balance of Account 1575 / the approved disposition period
A52: 3 Return on rate base associated with deferred balance is calculated as:
A53: the deferred account opening balance as of 2013 rebasing year x WACC
A54: * Please note that the calculation should be adjusted once WACC is updated and finalized in the rate application.
A55: 4 Consistent with the 4 year normal rate cycle, the model is using a 4 year amortization period as a default selection to "clear" the PP&E deferral account through a one-time adjustment to ratebase to capture and remove the impact of the accounting policy changes as caused by the transition from CGAAP to MIFRS.

Sheet App.2-F_Other_Oper_Rev
A1: Appendix 2-F | I1: 2 | J1: If the applicant is adopting IFRS or an alternate accounting standard as of January 1, 2012 for financial reporting purposes, 2011 must be presented on both a CGAAP and MIFRS (or alternate accounting standard) basis.
A2: Other Operating Revenue | I2: 3 | J2: If the applicant is adopting IFRS or an alternate accounting standard as of January 1, 2013 for financial reporting purposes, 2012 must be presented on both a CGAAP and MIFRS (or alternate accounting standard) basis.
A4: USoA # | B4: USoA Description | C4: 2009 Actual | D4: 2010 Actual | E4: 2011 Actual | F4: 2012 Actual | G4: ="Bridge Year" & CHAR(179) -> Bridge Year³ | H4: Test Year
F5: 2012 | G5: ='LDC Info'!E26 -> 2013 | H5: ='LDC Info'!E28+1 -> 2014
B6: Reporting Basis | C6: CGAAP | D6: CGAAP | E6: CGAAP | F6: CGAAP | G6: CGAAP | H6: CGAAP
A7: 4082 | B7: Retailer Services Revenue | C7: 57356.86 | D7: 58638.3 | E7: 67824.95 | F7: 61296.2 | G7: 66800 | H7: 68000
A8: 4084 | B8: STR Revenue | C8: 2335 | D8: 3606 | E8: 1969 | F8: 1959 | G8: 2200 | H8: 2300
A9: 4086 | B9: SSS Administration Charges | F9: 247538.5 | G9: 249300 | H9: 251800
A10: 4210 | B10: Rent from Electric Property | C10: 627075.49 | D10: 541300.33 | E10: 559195.1 | F10: 531738.45 | G10: 494600 | H10: 503000
A11: 4220 | B11: Other Electric Revenues | C11: 25760 | D11: 24000 | E11: 24685.74 | F11: 27600 | G11: 27600 | H11: 38400
A12: 4225 | B12: Late Payment Charges | C12: 213312.18 | D12: 234173.36 | E12: 248287.58 | F12: 255787.05 | G12: 260900 | H12: 266100
A13: 4235 | B13: Specific Service Charges | C13: 221695 | D13: 248935 | E13: 240644.15 | F13: 269250.91 | G13: 276500 | H13: 497900
A14: 4305 | B14: Regulatory Debits | C14: 0 | D14: 0 | E14: 0 | F14: -2265213 | G14: -3676200 | H14: 0
A15: 4325 | B15: Revenues from Merchandise, Jobbing, Etc. | C15: 0 | D15: 336.02 | E15: 0 | F15: 0 | G15: 0 | H15: 0
A16: 4355 | B16: Gain on Disposition of Other Property | C16: 48050.51 | D16: 113244.21 | E16: 2997.63 | F16: 86908.47 | G16: 30000 | H16: =G16 -> 30000
A17: 4360 | B17: Loss on Disposition of Utility and Other Property | C17: 0 | D17: 0 | E17: 0 | F17: -173158.23 | G17: 0 | H17: 0
A18: 4375 | B18: Revenues from Non-Utility Operations | C18: 2974241.99 | D18: 2462139.67 | E18: 1852892.03 | F18: 1964213.64 | G18: 2279600 | H18: 2331800
A19: 4380 | B19: Expenses of Non-Utility Operations | C19: -2334615.64 | D19: -2124913.47 | E19: -1650097.98 | F19: -1816459.65 | G19: -2213100 | H19: -2264000
A20: 4390 | B20: Miscellaneous Non-Operating Income | C20: 103792.37 | D20: 152854.51 | E20: 182470.9 | F20: 186092.47 | G20: 165000 | H20: 165000
A21: 4398 | B21: Foreign Exchange Gains & Losses | C21: 0 | D21: 0 | E21: 0 | F21: 240.48 | G21: 0 | H21: 0
A22: 4405 | B22: Interest & Dividend Income | C22: 582726.88 | D22: 329266.55 | E22: 425686.94 | F22: 439132.83 | G22: 201400 | H22: 163900
A25: Specific Service Charges | C25: =C13 -> 221695 | D25: 248935 | E25: 240644.15 | F25: 269250.91 | G25: 276500 | H25: 497900
A26: Late Payment Charges | C26: =C12 -> 213312.18 | D26: 234173.36 | E26: 248287.58 | F26: 255787.05 | G26: 260900 | H26: 266100
A27: Other Operating Revenues | C27: =SUM(C10:C11)+C7+C8+C9 -> 712527.35 | D27: =SUM(D10:D11)+D7+D8+D9 -> 627544.63 | E27: 653674.79 | F27: 870132.15 | G27: 840500 | H27: =SUM(H10:H11)+H7+H8+H9 -> 863500
A28: Other Income or Deductions | C28: =SUM(C14:C22) -> 1374196.11 | D28: =SUM(D14:D22) -> 932927.49 | E28: 813949.52 | F28: -1578242.99 | G28: -3213300 | H28: 426700
A29: Total | C29: =SUM(C25:C28) -> 2521730.64 | D29: 2043580.48 | E29: 1956556.04 | F29: =SUM(F25:F28) -> -183072.88 | G29: -1835400 | H29: 2054200
A31: Description | C31: Account(s)
A32: Specific Service Charges: | C32: 4235
A33: Late Payment Charges: | C33: 4225
A34: Other Distribution Revenues: | C34: 4080, 4082, 4084, 4090, 4205, 4210, 4215, 4220, 4240, 4245
A35: Other Income and Expenses: | C35: 4305, 4310, 4315, 4320, 4325, 4330, 4335, 4340, 4345, 4350, 4355, 4360, 4365, 4370, 4375, 4380, 4385, 4390, 4395, 4398, 4405, 4415
A38: Note: Add all applicable accounts listed above to the table and include all relevant information.
A39: The above table assumes adoption of MIFRS as of January 1, 2013. If the adoption year differs, please adjust the table accordingly.
A43: Account Breakdown Details
A45: For each "Other Operating Revenue" and "Other Income or Deductions" Account, a detailed breakdown of the account components is required. See the example below for Account 4405, Interest and Dividend Income.
A48: Account 4082 - Retailer Services Revenues
C49: 2009 Actual | D49: 2010 Actual | E49: 2011 Actual | F49: 2012 Actual | G49: Bridge Year³ | H49: Test Year
A50: Reporting Basis | C50: CGAAP | D50: CGAAP | E50: CGAAP | F50: CGAAP | G50: CGAAP | H50: CGAAP
A51: Retailer Services Revenues | C51: =C7 -> 57356.86 | D51: 58638.3 | E51: 67824.95 | F51: 61296.2 | G51: 66800 | H51: 68000
A55: Total | C55: =SUM(C51:C54) -> 57356.86 | D55: 58638.3 | E55: 67824.95 | F55: 61296.2 | G55: 66800 | H55: 68000
A58: Account 4084 - STR Revenue
C59: 2009 Actual | D59: 2010 Actual | E59: 2011 Actual | F59: 2012 Actual | G59: Bridge Year³ | H59: Test Year
A60: Reporting Basis | C60: CGAAP | D60: CGAAP | E60: CGAAP | F60: CGAAP | G60: CGAAP | H60: CGAAP
A61: STR Revenue | C61: =C8 -> 2335 | D61: 3606 | E61: 1969 | F61: 1959 | G61: 2200 | H61: 2300
A65: Total | C65: =SUM(C61:C64) -> 2335 | D65: 3606 | E65: 1969 | F65: 1959 | G65: 2200 | H65: 2300
A68: Account 4086 - SSS Administration Charges
C69: 2009 Actual | D69: 2010 Actual | E69: 2011 Actual | F69: 2012 Actual | G69: Bridge Year³ | H69: Test Year
A70: Reporting Basis | C70: CGAAP | D70: CGAAP | E70: CGAAP | F70: CGAAP | G70: CGAAP | H70: CGAAP
A71: SSS Administration Charges | C71: =C9 -> 0 | D71: =D9 -> 0 | E71: =E9 -> 0 | F71: 247538.5 | G71: 249300 | H71: 251800
A75: Total | C75: =SUM(C71:C74) -> 0 | D75: 0 | E75: 0 | F75: 247538.5 | G75: 249300 | H75: 251800
A78: Account 4210 - Rent from Electric Property
C79: 2009 Actual | D79: 2010 Actual | E79: 2011 Actual | F79: 2012 Actual | G79: Bridge Year³ | H79: Test Year
A80: Reporting Basis | C80: CGAAP | D80: CGAAP | E80: CGAAP | F80: CGAAP | G80: CGAAP | H80: CGAAP
A81: Pole Rentals | C81: 470516.67 | D81: 454514.54 | E81: 464840.31 | F81: 474349.66 | G81: 483800 | H81: 493500
A82: Rent Revenue | C82: 77308.82 | D82: 86785.79 | E82: 89254.79 | F82: 57388.79 | G82: 10800 | H82: 9500
A83: Mobile Substation Revenue | C83: 79250 | D83: 0 | E83: 5100 | F83: 0
A84: Other Rent Revenue | C84: =800+960 -> 1760 | E84: 0
A86: Total | C86: =SUM(C81:C85) -> 628835.49 | D86: 541300.33 | E86: 559195.1 | F86: =SUM(F81:F85) -> 531738.45 | G86: 494600 | H86: 503000
A90: Account 4220 - Other Electric Revenues
C91: 2009 Actual | D91: 2010 Actual | E91: 2011 Actual | F91: 2012 Actual | G91: Bridge Year³ | H91: Test Year
A92: Reporting Basis | C92: CGAAP | D92: CGAAP | E92: CGAAP | F92: CGAAP | G92: CGAAP | H92: CGAAP
A93: Engineering Services | C93: 0 | D93: 0 | F93: 0 | G93: 0 | H93: 0
A94: Control Room Services | C94: 24000 | D94: 24000 | E94: 24686 | F94: 27600 | G94: 27600 | H94: 27600
A95: Accounting Services | H95: 10800
A96: Total | C96: =SUM(C93:C95) -> 24000 | D96: 24000 | E96: 24686 | F96: =SUM(F93:F95) -> 27600 | G96: 27600 | H96: 38400
A99: Account 4225 - Late Payment Charges
C100: 2009 Actual | D100: 2010 Actual | E100: 2011 Actual | F100: 2012 Actual | G100: Bridge Year³ | H100: Test Year
A101: Reporting Basis | C101: CGAAP | D101: CGAAP | E101: CGAAP | F101: CGAAP | G101: CGAAP | H101: CGAAP
A102: Late Payment Charges | C102: =C12 -> 213312.18 | D102: =D12 -> 234173.36 | E102: 248287.58 | F102: =F12 -> 255787.05 | G102: 260900 | H102: 266100
A104: Total | C104: =SUM(C102:C103) -> 213312.18 | D104: 234173.36 | E104: 248287.58 | F104: =SUM(F102:F103) -> 255787.05 | G104: 260900 | H104: 266100
A107: Account 4235 - Specific Service Charges
C108: 2009 Actual | D108: 2010 Actual | E108: 2011 Actual | F108: 2012 Actual | G108: Bridge Year³ | H108: Test Year
A109: Reporting Basis | C109: CGAAP | D109: CGAAP | E109: CGAAP | F109: CGAAP | G109: CGAAP | H109: CGAAP
A110: Unsealing Meters Revenue | C110: 8540 | D110: 15265 | E110: 9045 | F110: 10365 | G110: 10400 | H110: 27600
A111: Reconnection Charges Revenue | C111: 37525 | D111: 48695 | E111: 28950 | F111: 46587.5 | G111: 46600 | H111: 63300
A112: Change of Occupancy Charges | C112: 151870 | D112: 162470 | E112: 152440 | F112: 154990 | G112: 155000 | H112: 321800
A113: Returned Cheque Charges Revenue | C113: 23760 | D113: 22505 | E113: 23437.5 | F113: 20190 | G113: 20200 | H113: 20200
A114: Collection of Account Revenue - No Disconnection | C114: 0 | D114: 0 | E114: 21390 | F114: 25215 | G114: 25200 | H114: 25200
A115: Meter Dispute Revenue (if meter found correct) | C115: 0 | D115: 0 | E115: 30 | F115: 180 | G115: 0
A116: Unauthorized Meter Removal Revenue | C116: 0 | D116: 0 | E116: 540 | F116: 50 | G116: 0
A117: Credit/Reference Check (plus credit agency costs) | C117: 0 | D117: 0 | E117: 0 | F117: 0 | G117: 0 | H117: 12800
A118: MicroFIT Generators Service Charges | C118: 0 | D118: 336.02 | E118: =240644-235833 -> 4811 | F118: 11673.41 | G118: 19100 | H118: 27000
A120: Total | C120: =SUM(C110:C119) -> 221695 | D120: 249271.02 | E120: 240643.5 | F120: =SUM(F110:F119) -> 269250.91 | G120: 276500 | H120: 497900
A123: Account 4305 - Regulatory Debits
C124: 2009 Actual | D124: 2010 Actual | E124: 2011 Actual | F124: 2012 Actual | G124: Bridge Year³ | H124: Test Year
A125: Reporting Basis | C125: CGAAP | D125: CGAAP | E125: CGAAP | F125: CGAAP | G125: CGAAP | H125: CGAAP
A126: Accounting Charges Under CGAAP | C126: 0 | D126: 0 | E126: =E14 -> 0 | F126: =F14 -> -2265213 | G126: =G14 -> -3676200 | H126: 0
A128: Total | C128: =SUM(C126:C127) -> 0 | D128: 0 | E128: 0 | F128: =SUM(F126:F127) -> -2265213 | G128: -3676200 | H128: 0
A136: Account 4355 - Gain on Disposition of Other Property
C137: 2009 Actual | D137: 2010 Actual | E137: 2011 Actual | F137: 2012 Actual | G137: Bridge Year³ | H137: Test Year
A138: Reporting Basis | C138: CGAAP | D138: CGAAP | E138: CGAAP | F138: CGAAP | G138: CGAAP | H138: CGAAP
A139: Proceeds on Disposition of Other Property | C139: 55211.55 | D139: 119926.94 | E139: 12385 | F139: 89862.04 | G139: 80000 | H139: 80000
A140: NBV of Assets Disposed | C140: =-6258.6-902.44 -> -7161.04 | D140: -6682.73 | E140: -9387.37 | F140: -2953.57 | G140: -50000 | H140: -50000
A142: Total | C142: =SUM(C139:C141) -> 48050.51 | D142: 113244.21 | E142: 2997.63 | F142: =SUM(F139:F141) -> 86908.47 | G142: 30000 | H142: 30000
A145: Account 4360 - Loss on Utility & Other Plant
C146: 2009 Actual | D146: 2010 Actual | E146: 2011 Actual | F146: 2012 Actual | G146: Bridge Year³ | H146: Test Year
A147: Reporting Basis | C147: CGAAP | D147: CGAAP | E147: CGAAP | F147: CGAAP | G147: CGAAP | H147: CGAAP
A148: Cost on Disposition of Utility Property | C148: 0 | D148: 0 | E148: 0 | F148: =F17 -> -173158.23 | G148: 0 | H148: 0
A149: NBV of Assets Disposed | C149: 0 | D149: 0 | E149: 0 | F149: 0 | G149: 0 | H149: 0
A151: Total | C151: =SUM(C148:C150) -> 0 | D151: 0 | E151: 0 | F151: =SUM(F148:F150) -> -173158.23 | G151: 0 | H151: 0
A154: Account 4375 - Revenue from Non-Utility Operations
C155: 2009 Actual | D155: 2010 Actual | E155: 2011 Actual | F155: 2012 Actual | G155: Bridge Year³ | H155: Test Year
A156: Reporting Basis | C156: CGAAP | D156: CGAAP | E156: CGAAP | F156: CGAAP | G156: CGAAP | H156: CGAAP
A157: OPA Programs | C157: 1727254 | D157: 1511287.28 | E157: =1852892-E158 -> 605904.09 | F157: 914430.58 | G157: 1084200 | H157: 1112500
A158: Streetlighting Services Revenues | C158: 1246988 | D158: 950852.39 | E158: 1246987.91 | F158: 1049783.06 | G158: 1195400 | H158: 1219300
A160: Total | C160: =SUM(C157:C159) -> 2974242 | D160: 2462139.67 | E160: 1852892 | F160: =SUM(F157:F159) -> 1964213.64 | G160: 2279600 | H160: 2331800
A163: Account 4380 - Expenses from Non-Utility Operations
C164: 2009 Actual | D164: 2010 Actual | E164: 2011 Actual | F164: 2012 Actual | G164: Bridge Year³ | H164: Test Year
A165: Reporting Basis | C165: CGAAP | D165: CGAAP | E165: CGAAP | F165: CGAAP | G165: CGAAP | H165: CGAAP
A166: OPA Programs | C166: =-2334616-C167 -> -1087628 | D166: -1174061 | E166: =-1650098-E167 -> -403110.09 | F166: =-1816460-F167+1 -> -766675.94 | G166: -1084200 | H166: =-H157 -> -1112500
A167: Streetlighting Services Revenues | C167: =-C158 -> -1246988 | D167: =-2124913-D166 -> -950852 | E167: -1246987.91 | F167: -1049783.06 | G167: -1128900 | H167: -1151500
A169: Total | C169: =SUM(C166:C168) -> -2334616 | D169: -2124913 | E169: -1650098 | F169: =SUM(F166:F168) -> -1816459 | G169: -2213100 | H169: -2264000
A172: Account 4390 - Miscellaneous Non-Operating Income
C173: 2009 Actual | D173: 2010 Actual | E173: 2011 Actual | F173: 2012 Actual | G173: Bridge Year³ | H173: Test Year
A174: Reporting Basis | C174: CGAAP | D174: CGAAP | E174: CGAAP | F174: CGAAP | G174: CGAAP | H174: CGAAP
A175: Scrap Sales | C175: 65022.98 | D175: 101726.75 | E175: 147236.99 | F175: 149409.41 | G175: 125000 | H175: 125000
A176: Other Miscellaneous Non-Operating Revenue | C176: 12111.85 | D176: 14350.89 | E176: 10698.66 | F176: 4232.09 | G176: 10000 | H176: 10000
A177: A/P Discounts Taken/Lost | C177: 19157.54 | D177: 29276.87 | E177: 24535.25 | F177: 32450.97 | G177: 30000 | H177: 30000
A178: Foreign Exchange Gain/Loss | C178: 0 | D178: 0 | F178: 0 | G178: 0
A179: Lease Option Consideration | C179: 7500 | D179: 7500 | F179: 0 | G179: 0
A181: Total | C181: =SUM(C175:C180) -> 103792.37 | D181: 152854.51 | E181: 182470.9 | F181: =SUM(F175:F180) -> 186092.47 | G181: 165000 | H181: 165000
A182: Account 4398 - Foreign Exchange Gains & Losses
C183: 2009 Actual | D183: 2010 Actual | E183: 2011 Actual | F183: 2012 Actual | G183: Bridge Year³ | H183: Test Year
A184: Reporting Basis | C184: CGAAP | D184: CGAAP | E184: CGAAP | F184: CGAAP | G184: CGAAP | H184: CGAAP
A185: Foreign Exchange Gains & Losses on USD Bank Account | C185: 0 | D185: 0 | E185: =E21 -> 0 | F185: 240 | G185: 0 | H185: 0
A187: Total | C187: =SUM(C185:C186) -> 0 | D187: 0 | E187: 0 | F187: =SUM(F185:F186) -> 240 | G187: 0 | H187: 0
A190: Notes:
A191: Account 4405 - Interest and Dividend Income
C192: 2009 Actual | D192: 2010 Actual | E192: 2011 Actual | F192: 2012 Actual | G192: Bridge Year | H192: Test Year
A193: Reporting Basis | C193: =IF(ISBLANK(C6), "", C6) -> CGAAP | D193: =IF(ISBLANK(D6), "", D6) -> CGAAP | E193: =IF(ISBLANK(E6), "", E6) -> CGAAP | F193: CGAAP | G193: =IF(ISBLANK(G6), "", G6) -> CGAAP | H193: =IF(ISBLANK(H6), "", H6) -> CGAAP
A194: Short-term Investment Interest | C194: 458816.8 | D194: 171852.63 | E194: 89351.04 | F194: 117927.28
A195: Bank Deposit Interest | C195: 53687.81 | D195: 83182.91 | E195: 261934.1 | F195: 185484.84 | G195: 201400 | H195: 163900
A196: Prudential Interest Earned | C196: -344.51 | D196: -436.48 | E196: -354.53
A197: Interest Revenue on Variance Accounts | C197: 62579.5 | D197: 73005.4 | E197: 74701.12 | F197: 135720.71
A198: Interest Revenue - PILS returns | C198: 7362.57 | D198: 1203.04 | E198: 55.21 | F198: 0
A199: Miscellaneous Interest Revenue | C199: 624.71 | D199: =250.82+208.23 -> 459.05
A201: Total | C201: =SUM(C194:C200) -> 582726.88 | D201: 329266.55 | E201: 425686.94 | F201: =SUM(F194:F200) -> 439132.83 | G201: 201400 | H201: 163900
A204: Notes:
A205: 1 | B205: List and specify any other interest revenue
A206: 2 | B206: If the applicant is adopting IFRS or an alternate accounting standard as of January 1, 2012 for financial reporting purposes, 2011 must be presented on both a CGAAP and MIFRS (or alternate accounting standard) basis.
A207: 3 | B207: If the applicant is adopting IFRS or an alternate accounting standard as of January 1, 2013 for financial reporting purposes, 2012 must be presented on both a CGAAP and MIFRS (or alternate accounting standard) basis.

Sheet App.2-G_Detailed_OM&A_Expenses
F1: File Number: | G1: ='LDC Info'!$E$18 -> EB-2013-0147
F2: Exhibit: | G2: 4
F3: Tab:
F4: Schedule:
F5: Page:
F7: Date:
A9: Appendix 2-G
A10: Detailed, Account by Account, OM&A Expense Table
A11: (excluding Depreciation and Amortization)
A14: Account | B14: Description | C14: ="Last Rebasing Year (" & 'LDC Info'!E30 & " Actuals)" -> Last Rebasing Year (2010 Actuals) | D14: ='LDC Info'!E26-2 & " Actual" -> 2011 Actual | E14: ='LDC Info'!E26-1 & " Actual"& CHAR(178) -> 2012 Actual² | F14: ="Bridge Year " & 'LDC Info'!E26& CHAR(179) -> Bridge Year 2013³ | G14: ="Test Year " & 'LDC Info'!E28+1 -> Test Year 2014
A15: Reporting Basis | C15: CGAAP | D15: CGAAP | E15: CGAAP | F15: CGAAP | G15: CGAAP
A16: Operations
A17: 5005 | B17: Operation Supervision and Engineering | C17: 526577.07 | D17: 758695.99 | E17: 1697768.95 | F17: 2256200 | G17: 2501400
A18: 5010 | B18: Load Dispatching | C18: 614270.25 | D18: 591453.1 | E18: 649356.65 | F18: 676500 | G18: 697500
A19: 5012 | B19: Station Buildings and Fixtures Expense | F19: 0
A20: 5014 | B20: Transformer Station Equipment - Operation Labour | C20: 281354.13 | D20: 273645.93 | E20: 279711.32 | F20: 285100 | G20: 294700
A21: 5015 | B21: Transformer Station Equipment - Operation Supplies and Expenses | C21: 553544.33 | D21: 529505.09 | E21: 575563.91 | F21: 628600 | G21: 647500
A22: 5016 | B22: Distribution Station Equipment - Operation Labour | C22: 5824.82 | D22: 4842.48 | E22: 6127 | F22: 5500 | G22: 5700
A23: 5017 | B23: Distribution Station Equipment - Operation Supplies and Expenses | C23: 15225.64 | D23: 13535.86 | E23: 17041.88 | F23: 16700 | G23: 17200
A24: 5020 | B24: Overhead Distribution Lines and Feeders - Operation Labour | C24: 17401.15 | D24: 16070.65 | E24: 29029.71 | F24: 24000 | G24: 24600
A25: 5025 | B25: Overhead Distribution Lines and Feeders - Operation Supplies and Expenses | C25: 27452.99 | D25: 23869.08 | E25: 100940.6 | F25: 91400 | G25: 42300
A26: 5030 | B26: Overhead Sub-transmission Feeders - Operation
A27: 5035 | B27: Overhead Distribution Transformers - Operation
A28: 5040 | B28: Underground Distribution Lines and Feeders - Operation Labour | C28: 310008.21 | D28: 340326.88 | E28: 357355.46 | F28: 400300 | G28: 410400
A29: 5045 | B29: Underground Distribution Lines and Feeders - Operation Supplies and Expenses | C29: 130168.65 | D29: 145477.26 | E29: 192133.92 | F29: 237000 | G29: 241700
A30: 5050 | B30: Underground Sub-transmission Feeders - Operation
A31: 5055 | B31: Underground Distribution Transformers - Operation
A32: 5060 | B32: Street Lighting and Signal System Expense
A33: 5065 | B33: Meter Expense | C33: 285879.59 | D33: 499602.24 | E33: 868071 | F33: 687600 | G33: 699700
A34: 5070 | B34: Customer Premises - Operation Labour | C34: 10878.11 | D34: 10677.24 | E34: 5600.64 | F34: 7400 | G34: 7600
A35: 5075 | B35: Customer Premises - Operation Materials and Expenses | C35: 16850.93 | D35: 13664.14 | E35: 7956.05 | F35: 11800 | G35: 12400
A36: 5085 | B36: Miscellaneous Distribution Expenses
A37: 5090 | B37: Underground Distribution Lines and Feeders - Rental Paid | C37: 9405.31 | D37: 17920.85 | E37: 15207.59 | F37: 16400 | G37: 17300
A38: 5095 | B38: Overhead Distribution Lines and Feeders - Rental Paid | C38: 19878.56 | D38: 19348.55 | E38: 19443 | F38: 21000 | G38: 22000
A39: 5096 | B39: Other Rent
A40: Total - Operations | C40: =SUM(C17:C39) -> 2824719.74 | D40: =SUM(D17:D39) -> 3258635.34 | E40: =SUM(E17:E39) -> 4821307.68 | F40: 5365500 | G40: =SUM(G17:G39) -> 5642000
A41: Account | B41: Description | C41: =C14 -> Last Rebasing Year (2010 Actuals) | D41: 2011 Actual | E41: 2012 Actual² | F41: Bridge Year 2013³ | G41: Test Year 2014
A42: Maintenance
A43: 5105 | B43: Maintenance Supervision and Engineering
A44: 5110 | B44: Maintenance of Buildings and Fixtures - Distribution Stations | C44: 126048.69 | D44: 149303.4 | E44: 193574.08 | F44: 201600 | G44: 183000
A45: 5112 | B45: Maintenance of Transformer Station Equipment | C45: 264109.43 | D45: 579330.14 | E45: 685770.63 | F45: 661800 | G45: 748100
A46: 5114 | B46: Maintenance of Distribution Station Equipment | C46: 23182.49 | D46: 58337.25 | E46: 38472.97 | F46: 124100 | G46: 79100
A47: 5120 | B47: Maintenance of Poles, Towers and Fixtures | C47: 373990.66 | D47: 443347.15 | E47: 444489.36 | F47: 294600 | G47: 359600
A48: 5125 | B48: Maintenance of Overhead Conductors and Devices | C48: 697691.8 | D48: 866573.27 | E48: 893394.65 | F48: 1063000 | G48: 1089500
A49: 5130 | B49: Maintenance of Overhead Services | C49: 1331737.46 | D49: 1384653.32 | E49: 1464731.88 | F49: 1561500 | G49: 1681700
A50: 5135 | B50: Overhead Distribution Lines and Feeders - Right of Way
A51: 5145 | B51: Maintenance of Underground Conduit | C51: 336883.73 | D51: 184247.86 | E51: 250539.6 | F51: 277800 | G51: 302100
A52: 5150 | B52: Maintenance of Underground Conductors and Devices | C52: 250976.47 | D52: 489647.74 | E52: 587887.79 | F52: 455200 | G52: 473800
A53: 5155 | B53: Maintenance of Underground Services | C53: 231388.34 | D53: 201732.97 | E53: 245749.06 | F53: 208600 | G53: 217700
A54: 5160 | B54: Maintenance of Line Transformers | C54: 363339.72 | D54: 471370.05 | E54: 339664.85 | F54: 411700 | G54: 484200
A55: 5165 | B55: Maintenance of Street Lighting and Signal Systems
A56: 5170 | B56: Sentinel Lights - Labour
A57: 5172 | B57: Sentinel Lights - Materials and Expenses
A58: 5175 | B58: Maintenance of Meters | C58: 70261.94 | D58: 27675.4 | E58: 82478.38 | F58: 600 | G58: 600
A59: 5178 | B59: Customer Installations Expenses - Leased Property
A60: 5195 | B60: Maintenance of Other Installations on Customer Premises
A61: Total - Maintenance | C61: =SUM(C43:C60) -> 4069610.73 | D61: =SUM(D43:D60) -> 4856218.55 | E61: =SUM(E43:E60) -> 5226753.25 | F61: 5260500 | G61: =SUM(G43:G60) -> 5619400
A62: Account | B62: Description | C62: =C41 -> Last Rebasing Year (2010 Actuals) | D62: =D41 -> 2011 Actual | E62: =E41 -> 2012 Actual² | F62: Bridge Year 2013³ | G62: =G41 -> Test Year 2014
A63: Billing and Collecting
A64: 5305 | B64: Supervision | C64: 198624.4 | D64: 237871 | E64: 242320.46 | F64: 256000 | G64: 278700
A65: 5310 | B65: Meter Reading Expense | C65: 474327.83 | D65: 437507 | E65: 800933.34 | F65: 529600 | G65: 512400
A66: 5315 | B66: Customer Billing | C66: 1324912.79 | D66: 1338095 | E66: 1414088.41 | F66: 1620800 | G66: 1857200
A67: 5320 | B67: Collecting | C67: 722737.82 | D67: 772098.13 | E67: 909892.66 | F67: 1063800 | G67: 1138500
A68: 5325 | B68: Collecting - Cash Over and Short | C68: 109.26 | D68: 102.91
A69: 5330 | B69: Collection Charges | C69: 25764.38 | D69: 28530.88
A70: 5335 | B70: Bad Debt Expense | C70: -46362.93 | D70: 103015.38 | E70: 146917 | F70: 147000 | G70: 147000
A71: 5340 | B71: Miscellaneous Customer Accounts Expenses | D71: 2682
A72: Total - Billing and Collecting | C72: =SUM(C64:C71) -> 2700113.55 | D72: =SUM(D64:D71) -> 2919902.3 | E72: =SUM(E64:E71) -> 3514151.87 | F72: 3617200 | G72: =SUM(G64:G71) -> 3933800
A73: Account | B73: Description | C73: =C62 -> Last Rebasing Year (2010 Actuals) | D73: =D62 -> 2011 Actual | E73: =E62 -> 2012 Actual² | F73: Bridge Year 2013³ | G73: =G62 -> Test Year 2014
A74: Community Relations
A75: 5405 | B75: Supervision
A76: 5410 | B76: Community Relations - Sundry | C76: 83208.29 | D76: 128452.71 | E76: 94498.84 | F76: 103500 | G76: 103500
A77: 5415 | B77: Energy Conservation | C77: 61633.61 | D77: 2895.77
A78: 5420 | B78: Community Safety Program | C78: 67342.6 | D78: 66874.07 | E78: 70409.94 | F78: 85700 | G78: 87800
A79: 5425 | B79: Miscellaneous Customer Service and Informational Expenses
A80: 5505 | B80: Supervision
A81: 5510 | B81: Demonstrating and Selling Expense
A82: 5515 | B82: Advertising Expenses
A83: 5520 | B83: Miscellaneous Sales Expense
A84: Total - Community Relations | C84: =SUM(C75:C83) -> 212184.5 | D84: =SUM(D75:D83) -> 198222.55 | E84: =SUM(E75:E83) -> 164908.78 | F84: 189200 | G84: =SUM(G75:G83) -> 191300
A85: Account | B85: Description | C85: =C73 -> Last Rebasing Year (2010 Actuals) | D85: =D73 -> 2011 Actual | E85: =E73 -> 2012 Actual² | F85: Bridge Year 2013³ | G85: =G73 -> Test Year 2014
A86: Administrative and General Expenses
A87: 5605 | B87: Executive Salaries and Expenses | C87: 47824.96 | D87: 58585.97 | E87: 43940 | F87: 46900 | G87: 37800
A88: 5610 | B88: Management Salaries and Expenses | C88: 813653.79 | D88: 846795.92 | E88: 875406.74 | F88: 846200 | G88: 895500
A89: 5615 | B89: General Administrative Salaries and Expenses | C89: 239719.9 | D89: 263518.1 | E89: 218866.94 | F89: 243400 | G89: 254900
A90: 5620 | B90: Office Supplies and Expenses | C90: 142646.63 | D90: 143528.44 | E90: 163154.84 | F90: 177000 | G90: 180800
A91: 5625 | B91: Administrative Expense Transferred - Credit | C91: -189237.13 | D91: -189293.62 | E91: -189059.91 | F91: -179400 | G91: -184400
A92: 5630 | B92: Outside Services Employed | C92: 161522.54 | D92: 250057.62 | E92: 172152.45 | F92: 228200 | G92: 237700
A93: 5635 | B93: Property Insurance | C93: 207712.08 | D93: 252666 | E93: 252666 | F93: 279100 | G93: 287500
A94: 5640 | B94: Injuries and Damages | C94: 120902.06 | D94: 178277.49 | E94: 135778 | F94: 229700 | G94: 236600
A95: 5645 | B95: OMERS Pensions and Benefits | C95: 242947.04 | D95: 327706.99 | E95: 7938 | F95: 3100 | G95: 3900
A96: 5646 | B96: Employee Pensions and OPEB
A97: 5647 | B97: Employee Sick Leave
A98: 5650 | B98: Franchise Requirements
A99: 5655 | B99: Regulatory Expenses | C99: 492356.57 | D99: 481306.87 | E99: 556472.1 | F99: 640200 | G99: 697900
A100: 5660 | B100: General Advertising Expenses
A101: 5665 | B101: Miscellaneous General Expenses | C101: 36937.21 | D101: 43471.54 | E101: 79367.81 | F101: 97100 | G101: 101300
A102: 5670 | B102: Rent
A103: 5672 | B103: Lease Payment Charge
A104: 5675 | B104: Maintenance of General Plant | C104: 272391.39 | D104: 307551.48 | E104: 272549.9 | F104: 299100 | G104: 298600
A105: 5680 | B105: Electrical Safety Authority Fees | C105: 36914.36 | D105: 36813.43 | E105: 38643 | F105: 40600 | G105: 42600
A106: 5681 | B106: Special Purpose Charge Expense
A107: 5685 | B107: Independent Electricity System Operator Fees and Penalties
A108: 5695 | B108: OM&A Contra Account | C108: -161962.64 | D108: -556950.04 | E108: 41257
A109: 6205 | B109: Donations | C109: 73752 | D109: 26370 | E109: 36152 | F109: 42525 | G109: 44000
A110: 6205 | B110: Donations, Sub-account LEAP Funding | C110: 0 | D110: 47475 | E110: 47475 | F110: 47475 | G110: 46000
A111: Total - Administrative and General Expenses | C111: =SUM(C87:C110) -> 2538080.76 | D111: =SUM(D87:D110) -> 2517881.19 | E111: 2752759.87 | F111: 3041200 | G111: 3180700
A112: Total OM&A | C112: =C40+C61+C72+C84+C111 -> 12344709.28 | D112: =D40+D61+D72+D84+D111 -> 13750859.93 | E112: =E40+E61+E72+E84+E111 -> 16479881.45 | F112: 17473600 | G112: =G40+G61+G72+G84+G111 -> 18567200
A113: Adjustments for non-recoverable items
A114: 5681 | B114: Special Purpose Charge Expense
A115: 6205 | B115: Donations1 | C115: =+C109 -> 73752 | D115: =+D109 -> 26370 | E115: 36152 | F115: 42525 | G115: =+G109 -> 44000
A119: Total Recoverable OM&A | C119: =C112-SUM(C114:C118) -> 12270957.28 | D119: =D112-SUM(D114:D118) -> 13724489.93 | E119: =E112-SUM(E114:E118) -> 16443729.45 | F119: 17431075 | G119: 18523200
A121: 1 Account 6205 - Donations is generally non-recoverable. However, the sub-account LEAP funding of account 6205 is generally recoverable.
A123: Note:
A124: 1 | B124: If it has been more than three years since the applicant last filed a cost of service application, additional years of historical actuals should be incorporated into the table, as necessary, to go back to the last cost of service application. If the applicant last filed a cost of service application less than three years ago, a minimum of three years of actual information is required.
A125: 2 | B125: If the applicant is adopting IFRS or an alternate accounting standard as of January 1, 2012 for financial reporting purposes, 2011 must be presented on both a CGAAP and MIFRS (or alternate accounting standard) basis.
A126: 3 | B126: If the applicant is adopting IFRS or an alternate accounting standard as of January 1, 2013 for financial reporting purposes, 2012 must be presented on both a CGAAP and MIFRS (or alternate accounting standard) basis.

Sheet App.2-H_OM&A_Detailed_Analysis
H1: File Number: | I1: ='LDC Info'!$E$18 -> EB-2013-0147
H2: Exhibit:
H3: Tab:
H4: Schedule:
H5: Page:
H7: Date:
A9: Appendix 2-H
A10: OM&A Detailed Variance Analysis
A11: (excluding Depreciation and Amortization)
A14: Account | B14: Description | C14: ="Last Board-approved Rebasing Year ("&'LDC Info'!E30&" Year)" -> Last Board-approved Rebasing Year (2010 Year) | D14: Most Current Actuals Year 2012 | E14: ="Test Year " & 'LDC Info'!E28+1 -> Test Year 2014 | F14: Test Year Versus Last Rebasing | H14: Test Year Versus Most Current Actuals (CGAAP)
F15: Variance ($) | G15: Percentage Change (%) | H15: Variance ($) | I15: Percentage Change (%)
A16: Reporting Basis | C16: CGAAP | D16: CGAAP | E16: CGAAP
A17: Operations
A18: 5005 | B18: Operation Supervision and Engineering | C18: =+'App.2-G_Detailed_OM&A_Expenses'!C17 -> 526577.07 | D18: =+'App.2-G_Detailed_OM&A_Expenses'!E17 -> 1697768.95 | E18: =+'App.2-G_Detailed_OM&A_Expenses'!G17 -> 2501400 | F18: =E18-C18 -> 1974822.93 | G18: =IF(C18=0,"",(E18/C18)-1) -> 3.750301793 | H18: =E18-D18 -> 803631.05 | I18: =IF(D18=0,"",(E18/D18)-1) -> 0.4733453572
A19: 5010 | B19: Load Dispatching | C19: =+'App.2-G_Detailed_OM&A_Expenses'!C18 -> 614270.25 | D19: =+'App.2-G_Detailed_OM&A_Expenses'!E18 -> 649356.65 | E19: =+'App.2-G_Detailed_OM&A_Expenses'!G18 -> 697500 | F19: 83229.75 | G19: 0.1354937017 | H19: =E19-D19 -> 48143.35 | I19: =IF(D19=0,"",(E19/D19)-1) -> 0.07414007387
A20: 5012 | B20: Station Buildings and Fixtures Expense | C20: =+'App.2-G_Detailed_OM&A_Expenses'!C19 -> 0 | D20: =+'App.2-G_Detailed_OM&A_Expenses'!E19 -> 0 | E20: =+'App.2-G_Detailed_OM&A_Expenses'!G19 -> 0 | F20: 0 | H20: 0
A21: 5014 | B21: Transformer Station Equipment - Operation Labour | C21: =+'App.2-G_Detailed_OM&A_Expenses'!C20 -> 281354.13 | D21: =+'App.2-G_Detailed_OM&A_Expenses'!E20 -> 279711.32 | E21: =+'App.2-G_Detailed_OM&A_Expenses'!G20 -> 294700 | F21: 13345.87 | G21: 0.0474344201 | H21: 14988.68 | I21: 0.05358624742
A22: 5015 | B22: Transformer Station Equipment - Operation Supplies and Expenses | C22: =+'App.2-G_Detailed_OM&A_Expenses'!C21 -> 553544.33 | D22: =+'App.2-G_Detailed_OM&A_Expenses'!E21 -> 575563.91 | E22: =+'App.2-G_Detailed_OM&A_Expenses'!G21 -> 647500 | F22: 93955.67 | G22: 0.1697346805 | H22: 71936.09 | I22: 0.1249836704
A23: 5016 | B23: Distribution Station Equipment - Operation Labour | C23: =+'App.2-G_Detailed_OM&A_Expenses'!C22 -> 5824.82 | D23: =+'App.2-G_Detailed_OM&A_Expenses'!E22 -> 6127 | E23: =+'App.2-G_Detailed_OM&A_Expenses'!G22 -> 5700 | F23: -124.82 | G23: -0.02142898836 | H23: -427 | I23: -0.0696915293
A24: 5017 | B24: Distribution Station Equipment - Operation Supplies and Expenses | C24: =+'App.2-G_Detailed_OM&A_Expenses'!C23 -> 15225.64 | D24: =+'App.2-G_Detailed_OM&A_Expenses'!E23 -> 17041.88 | E24: =+'App.2-G_Detailed_OM&A_Expenses'!G23 -> 17200 | F24: 1974.36 | G24: 0.1296733668 | H24: 158.12 | I24: 0.009278319059
A25: 5020 | B25: Overhead Distribution Lines and Feeders - Operation Labour | C25: =+'App.2-G_Detailed_OM&A_Expenses'!C24 -> 17401.15 | D25: =+'App.2-G_Detailed_OM&A_Expenses'!E24 -> 29029.71 | E25: =+'App.2-G_Detailed_OM&A_Expenses'!G24 -> 24600 | F25: 7198.85 | G25: 0.4136996693 | H25: -4429.71 | I25: -0.1525922925
A26: 5025 | B26: Overhead Distribution Lines and Feeders - Operation Supplies and Expenses | C26: =+'App.2-G_Detailed_OM&A_Expenses'!C25 -> 27452.99 | D26: =+'App.2-G_Detailed_OM&A_Expenses'!E25 -> 100940.6 | E26: =+'App.2-G_Detailed_OM&A_Expenses'!G25 -> 42300 | F26: 14847.01 | G26: 0.5408157727 | H26: -58640.6 | I26: -0.5809416627
A27: 5030 | B27: Overhead Sub-transmission Feeders - Operation | C27: =+'App.2-G_Detailed_OM&A_Expenses'!C26 -> 0 | D27: =+'App.2-G_Detailed_OM&A_Expenses'!E26 -> 0 | E27: =+'App.2-G_Detailed_OM&A_Expenses'!G26 -> 0 | F27: 0 | H27: 0
A28: 5035 | B28: Overhead Distribution Transformers - Operation | C28: =+'App.2-G_Detailed_OM&A_Expenses'!C27 -> 0 | D28: =+'App.2-G_Detailed_OM&A_Expenses'!E27 -> 0 | E28: =+'App.2-G_Detailed_OM&A_Expenses'!G27 -> 0 | F28: 0 | H28: 0
A29: 5040 | B29: Underground Distribution Lines and Feeders - Operation Labour | C29: =+'App.2-G_Detailed_OM&A_Expenses'!C28 -> 310008.21 | D29: =+'App.2-G_Detailed_OM&A_Expenses'!E28 -> 357355.46 | E29: =+'App.2-G_Detailed_OM&A_Expenses'!G28 -> 410400 | F29: 100391.79 | G29: 0.3238359074 | H29: 53044.54 | I29: 0.1484363496
A30: 5045 | B30: Underground Distribution Lines and Feeders - Operation Supplies and Expenses | C30: =+'App.2-G_Detailed_OM&A_Expenses'!C29 -> 130168.65 | D30: =+'App.2-G_Detailed_OM&A_Expenses'!E29 -> 192133.92 | E30: =+'App.2-G_Detailed_OM&A_Expenses'!G29 -> 241700 | F30: 111531.35 | G30: 0.8568218999 | H30: 49566.08 | I30: 0.2579767279
A31: 5050 | B31: Underground Sub-transmission Feeders - Operation | C31: =+'App.2-G_Detailed_OM&A_Expenses'!C30 -> 0 | D31: =+'App.2-G_Detailed_OM&A_Expenses'!E30 -> 0 | E31: =+'App.2-G_Detailed_OM&A_Expenses'!G30 -> 0 | F31: 0 | H31: 0
A32: 5055 | B32: Underground Distribution Transformers - Operation | C32: =+'App.2-G_Detailed_OM&A_Expenses'!C31 -> 0 | D32: =+'App.2-G_Detailed_OM&A_Expenses'!E31 -> 0 | E32: =+'App.2-G_Detailed_OM&A_Expenses'!G31 -> 0 | F32: 0 | H32: 0
A33: 5060 | B33: Street Lighting and Signal System Expense | C33: =+'App.2-G_Detailed_OM&A_Expenses'!C32 -> 0 | D33: =+'App.2-G_Detailed_OM&A_Expenses'!E32 -> 0 | E33: =+'App.2-G_Detailed_OM&A_Expenses'!G32 -> 0 | F33: 0 | H33: 0
A34: 5065 | B34: Meter Expense | C34: =+'App.2-G_Detailed_OM&A_Expenses'!C33 -> 285879.59 | D34: =+'App.2-G_Detailed_OM&A_Expenses'!E33 -> 868071 | E34: =+'App.2-G_Detailed_OM&A_Expenses'!G33 -> 699700 | F34: 413820.41 | G34: 1.447533943 | H34: -168371 | I34: -0.1939599411
A35: 5070 | B35: Customer Premises - Operation Labour | C35: =+'App.2-G_Detailed_OM&A_Expenses'!C34 -> 10878.11 | D35: =+'App.2-G_Detailed_OM&A_Expenses'!E34 -> 5600.64 | E35: =+'App.2-G_Detailed_OM&A_Expenses'!G34 -> 7600 | F35: -3278.11 | G35: -0.3013492233 | H35: 1999.36 | I35: 0.3569877728
A36: 5075 | B36: Customer Premises - Operation Materials and Expenses | C36: =+'App.2-G_Detailed_OM&A_Expenses'!C35 -> 16850.93 | D36: =+'App.2-G_Detailed_OM&A_Expenses'!E35 -> 7956.05 | E36: =+'App.2-G_Detailed_OM&A_Expenses'!G35 -> 12400 | F36: -4450.93 | G36: -0.26413557 | H36: 4443.95 | I36: 0.5585623519
A37: 5085 | B37: Miscellaneous Distribution Expenses | C37: =+'App.2-G_Detailed_OM&A_Expenses'!C36 -> 0 | D37: =+'App.2-G_Detailed_OM&A_Expenses'!E36 -> 0 | E37: =+'App.2-G_Detailed_OM&A_Expenses'!G36 -> 0 | F37: 0 | H37: 0
A38: 5090 | B38: Underground Distribution Lines and Feeders - Rental Paid | C38: =+'App.2-G_Detailed_OM&A_Expenses'!C37 -> 9405.31 | D38: =+'App.2-G_Detailed_OM&A_Expenses'!E37 -> 15207.59 | E38: =+'App.2-G_Detailed_OM&A_Expenses'!G37 -> 17300 | F38: 7894.69 | G38: 0.8393864742 | H38: 2092.41 | I38: 0.1375898482
A39: 5095 | B39: Overhead Distribution Lines and Feeders - Rental Paid | C39: =+'App.2-G_Detailed_OM&A_Expenses'!C38 -> 19878.56 | D39: =+'App.2-G_Detailed_OM&A_Expenses'!E38 -> 19443 | E39: =+'App.2-G_Detailed_OM&A_Expenses'!G38 -> 22000 | F39: 2121.44 | G39: 0.1067200039 | H39: 2557 | I39: 0.1315126267
A40: 5096 | B40: Other Rent | C40: =+'App.2-G_Detailed_OM&A_Expenses'!C39 -> 0 | D40: =+'App.2-G_Detailed_OM&A_Expenses'!E39 -> 0 | E40: =+'App.2-G_Detailed_OM&A_Expenses'!G39 -> 0 | F40: 0 | H40: 0
A41: Total - Operations | C41: =SUM(C18:C40) -> 2824719.74 | D41: =SUM(D18:D40) -> 4821307.68 | E41: =SUM(E18:E40) -> 5642000 | F41: 2817280.26 | G41: 0.9973662945 | H41: =E41-D41 -> 820692.32 | I41: =IF(D41=0,"",(E41/D41)-1) -> 0.1702219345
A42: Account | B42: Description
A43: Maintenance
A44: 5105 | B44: Maintenance Supervision and Engineering | C44: =+'App.2-G_Detailed_OM&A_Expenses'!C43 -> 0 | D44: =+'App.2-G_Detailed_OM&A_Expenses'!E43 -> 0 | E44: =+'App.2-G_Detailed_OM&A_Expenses'!G43 -> 0 | F44: =E44-C44 -> 0 | G44: =IF(C44=0,"",(E44/C44)-1) ->  | H44: =E44-D44 -> 0 | I44: =IF(D44=0,"",(E44/D44)-1) -> 
A45: 5110 | B45: Maintenance of Buildings and Fixtures - Distribution Stations | C45: =+'App.2-G_Detailed_OM&A_Expenses'!C44 -> 126048.69 | D45: =+'App.2-G_Detailed_OM&A_Expenses'!E44 -> 193574.08 | E45: =+'App.2-G_Detailed_OM&A_Expenses'!G44 -> 183000 | F45: 56951.31 | G45: 0.4518199277 | H45: -10574.08 | I45: -0.05462549531
A46: 5112 | B46: Maintenance of Transformer Station Equipment | C46: =+'App.2-G_Detailed_OM&A_Expenses'!C45 -> 264109.43 | D46: =+'App.2-G_Detailed_OM&A_Expenses'!E45 -> 685770.63 | E46: =+'App.2-G_Detailed_OM&A_Expenses'!G45 -> 748100 | F46: 483990.57 | G46: 1.832538013 | H46: 62329.37 | I46: 0.09088952964
A47: 5114 | B47: Maintenance of Distribution Station Equipment | C47: =+'App.2-G_Detailed_OM&A_Expenses'!C46 -> 23182.49 | D47: =+'App.2-G_Detailed_OM&A_Expenses'!E46 -> 38472.97 | E47: =+'App.2-G_Detailed_OM&A_Expenses'!G46 -> 79100 | F47: 55917.51 | G47: 2.41205798 | H47: 40627.03 | I47: 1.055988919
A48: 5120 | B48: Maintenance of Poles, Towers and Fixtures | C48: =+'App.2-G_Detailed_OM&A_Expenses'!C47 -> 373990.66 | D48: =+'App.2-G_Detailed_OM&A_Expenses'!E47 -> 444489.36 | E48: =+'App.2-G_Detailed_OM&A_Expenses'!G47 -> 359600 | F48: -14390.66 | G48: -0.03847866147 | H48: -84889.36 | I48: -0.1909817594
A49: 5125 | B49: Maintenance of Overhead Conductors and Devices | C49: =+'App.2-G_Detailed_OM&A_Expenses'!C48 -> 697691.8 | D49: =+'App.2-G_Detailed_OM&A_Expenses'!E48 -> 893394.65 | E49: =+'App.2-G_Detailed_OM&A_Expenses'!G48 -> 1089500 | F49: 391808.2 | G49: 0.5615777626 | H49: 196105.35 | I49: 0.2195058477
A50: 5130 | B50: Maintenance of Overhead Services | C50: =+'App.2-G_Detailed_OM&A_Expenses'!C49 -> 1331737.46 | D50: =+'App.2-G_Detailed_OM&A_Expenses'!E49 -> 1464731.88 | E50: =+'App.2-G_Detailed_OM&A_Expenses'!G49 -> 1681700 | F50: 349962.54 | G50: 0.2627864354 | H50: 216968.12 | I50: 0.1481282158
A51: 5135 | B51: Overhead Distribution Lines and Feeders - Right of Way | C51: =+'App.2-G_Detailed_OM&A_Expenses'!C50 -> 0 | D51: =+'App.2-G_Detailed_OM&A_Expenses'!E50 -> 0 | E51: =+'App.2-G_Detailed_OM&A_Expenses'!G50 -> 0 | F51: 0 | H51: 0
A52: 5145 | B52: Maintenance of Underground Conduit | C52: =+'App.2-G_Detailed_OM&A_Expenses'!C51 -> 336883.73 | D52: =+'App.2-G_Detailed_OM&A_Expenses'!E51 -> 250539.6 | E52: =+'App.2-G_Detailed_OM&A_Expenses'!G51 -> 302100 | F52: -34783.73 | G52: -0.1032514393 | H52: 51560.4 | I52: 0.2057974069
A53: 5150 | B53: Maintenance of Underground Conductors and Devices | C53: =+'App.2-G_Detailed_OM&A_Expenses'!C52 -> 250976.47 | D53: =+'App.2-G_Detailed_OM&A_Expenses'!E52 -> 587887.79 | E53: =+'App.2-G_Detailed_OM&A_Expenses'!G52 -> 473800 | F53: 222823.53 | G53: 0.8878263767 | H53: -114087.79 | I53: -0.1940638876
A54: 5155 | B54: Maintenance of Underground Services | C54: =+'App.2-G_Detailed_OM&A_Expenses'!C53 -> 231388.34 | D54: =+'App.2-G_Detailed_OM&A_Expenses'!E53 -> 245749.06 | E54: =+'App.2-G_Detailed_OM&A_Expenses'!G53 -> 217700 | F54: -13688.34 | G54: -0.05915743205 | H54: -28049.06 | I54: -0.1141369981
A55: 5160 | B55: Maintenance of Line Transformers | C55: =+'App.2-G_Detailed_OM&A_Expenses'!C54 -> 363339.72 | D55: =+'App.2-G_Detailed_OM&A_Expenses'!E54 -> 339664.85 | E55: =+'App.2-G_Detailed_OM&A_Expenses'!G54 -> 484200 | F55: 120860.28 | G55: 0.3326371254 | H55: 144535.15 | I55: 0.4255228352
A56: 5165 | B56: Maintenance of Street Lighting and Signal Systems | C56: =+'App.2-G_Detailed_OM&A_Expenses'!C55 -> 0 | D56: =+'App.2-G_Detailed_OM&A_Expenses'!E55 -> 0 | E56: =+'App.2-G_Detailed_OM&A_Expenses'!G55 -> 0 | F56: 0 | H56: 0
A57: 5170 | B57: Sentinel Lights - Labour | C57: =+'App.2-G_Detailed_OM&A_Expenses'!C56 -> 0 | D57: =+'App.2-G_Detailed_OM&A_Expenses'!E56 -> 0 | E57: =+'App.2-G_Detailed_OM&A_Expenses'!G56 -> 0 | F57: 0 | H57: 0
A58: 5172 | B58: Sentinel Lights - Materials and Expenses | C58: =+'App.2-G_Detailed_OM&A_Expenses'!C57 -> 0 | D58: =+'App.2-G_Detailed_OM&A_Expenses'!E57 -> 0 | E58: =+'App.2-G_Detailed_OM&A_Expenses'!G57 -> 0 | F58: 0 | H58: 0
A59: 5175 | B59: Maintenance of Meters | C59: =+'App.2-G_Detailed_OM&A_Expenses'!C58 -> 70261.94 | D59: =+'App.2-G_Detailed_OM&A_Expenses'!E58 -> 82478.38 | E59: =+'App.2-G_Detailed_OM&A_Expenses'!G58 -> 600 | F59: -69661.94 | G59: -0.9914605261 | H59: -81878.38 | I59: -0.9927253663
A60: 5178 | B60: Customer Installations Expenses - Leased Property | C60: =+'App.2-G_Detailed_OM&A_Expenses'!C59 -> 0 | D60: =+'App.2-G_Detailed_OM&A_Expenses'!E59 -> 0 | E60: =+'App.2-G_Detailed_OM&A_Expenses'!G59 -> 0 | F60: 0 | H60: 0
A61: 5195 | B61: Maintenance of Other Installations on Customer Premises | C61: =+'App.2-G_Detailed_OM&A_Expenses'!C60 -> 0 | D61: =+'App.2-G_Detailed_OM&A_Expenses'!E60 -> 0 | E61: =+'App.2-G_Detailed_OM&A_Expenses'!G60 -> 0 | F61: 0 | H61: 0
A62: Total - Maintenance | C62: =SUM(C44:C61) -> 4069610.73 | D62: =SUM(D44:D61) -> 5226753.25 | E62: =SUM(E44:E61) -> 5619400 | F62: 1549789.27 | G62: 0.3808200275 | H62: 392646.75 | I62: 0.07512249598
A63: Account | B63: Description
A64: Billing and Collecting
A65: 5305 | B65: Supervision | C65: =+'App.2-G_Detailed_OM&A_Expenses'!C64 -> 198624.4 | D65: =+'App.2-G_Detailed_OM&A_Expenses'!E64 -> 242320.46 | E65: =+'App.2-G_Detailed_OM&A_Expenses'!G64 -> 278700 | F65: =E65-C65 -> 80075.6 | G65: =IF(C65=0,"",(E65/C65)-1) -> 0.4031508717 | H65: =E65-D65 -> 36379.54 | I65: =IF(D65=0,"",(E65/D65)-1) -> 0.1501298735
A66: 5310 | B66: Meter Reading Expense | C66: =+'App.2-G_Detailed_OM&A_Expenses'!C65 -> 474327.83 | D66: =+'App.2-G_Detailed_OM&A_Expenses'!E65 -> 800933.34 | E66: =+'App.2-G_Detailed_OM&A_Expenses'!G65 -> 512400 | F66: 38072.17 | G66: 0.08026552016 | H66: -288533.34 | I66: -0.3602463845
A67: 5315 | B67: Customer Billing | C67: =+'App.2-G_Detailed_OM&A_Expenses'!C66 -> 1324912.79 | D67: =+'App.2-G_Detailed_OM&A_Expenses'!E66 -> 1414088.41 | E67: =+'App.2-G_Detailed_OM&A_Expenses'!G66 -> 1857200 | F67: 532287.21 | G67: 0.4017526391 | H67: 443111.59 | I67: 0.3133549408
A68: 5320 | B68: Collecting | C68: =+'App.2-G_Detailed_OM&A_Expenses'!C67 -> 722737.82 | D68: =+'App.2-G_Detailed_OM&A_Expenses'!E67 -> 909892.66 | E68: =+'App.2-G_Detailed_OM&A_Expenses'!G67 -> 1138500 | F68: 415762.18 | G68: 0.57526003 | H68: 228607.34 | I68: 0.2512464932
A69: 5325 | B69: Collecting - Cash Over and Short | C69: =+'App.2-G_Detailed_OM&A_Expenses'!C68 -> 109.26 | D69: =+'App.2-G_Detailed_OM&A_Expenses'!E68 -> 0 | E69: =+'App.2-G_Detailed_OM&A_Expenses'!G68 -> 0 | F69: -109.26 | G69: -1 | H69: 0
A70: 5330 | B70: Collection Charges | C70: =+'App.2-G_Detailed_OM&A_Expenses'!C69 -> 25764.38 | D70: =+'App.2-G_Detailed_OM&A_Expenses'!E69 -> 0 | E70: =+'App.2-G_Detailed_OM&A_Expenses'!G69 -> 0 | F70: -25764.38 | G70: -1 | H70: 0
A71: 5335 | B71: Bad Debt Expense | C71: =+'App.2-G_Detailed_OM&A_Expenses'!C70 -> -46362.93 | D71: =+'App.2-G_Detailed_OM&A_Expenses'!E70 -> 146917 | E71: =+'App.2-G_Detailed_OM&A_Expenses'!G70 -> 147000 | F71: 193362.93 | G71: -4.170636541 | H71: 83 | I71: 0.0005649448328
A72: 5340 | B72: Miscellaneous Customer Accounts Expenses | C72: =+'App.2-G_Detailed_OM&A_Expenses'!C71 -> 0 | D72: =+'App.2-G_Detailed_OM&A_Expenses'!E71 -> 0 | E72: =+'App.2-G_Detailed_OM&A_Expenses'!G71 -> 0 | F72: 0 | H72: 0
A73: Total - Billing and Collecting | C73: =SUM(C65:C72) -> 2700113.55 | D73: =SUM(D65:D72) -> 3514151.87 | E73: =SUM(E65:E72) -> 3933800 | F73: 1233686.45 | G73: 0.4569016922 | H73: 419648.13 | I73: 0.1194166176
A74: Account | B74: Description
A75: Community Relations
A76: 5405 | B76: Supervision | C76: =+'App.2-G_Detailed_OM&A_Expenses'!C75 -> 0 | D76: =+'App.2-G_Detailed_OM&A_Expenses'!E75 -> 0 | E76: =+'App.2-G_Detailed_OM&A_Expenses'!G75 -> 0 | F76: =E76-C76 -> 0 | G76: =IF(C76=0,"",(E76/C76)-1) ->  | H76: =E76-D76 -> 0 | I76: =IF(D76=0,"",(E76/D76)-1) -> 
A77: 5410 | B77: Community Relations - Sundry | C77: =+'App.2-G_Detailed_OM&A_Expenses'!C76 -> 83208.29 | D77: =+'App.2-G_Detailed_OM&A_Expenses'!E76 -> 94498.84 | E77: =+'App.2-G_Detailed_OM&A_Expenses'!G76 -> 103500 | F77: 20291.71 | G77: 0.2438664465 | H77: 9001.16 | I77: 0.0952515396
A78: 5415 | B78: Energy Conservation | C78: =+'App.2-G_Detailed_OM&A_Expenses'!C77 -> 61633.61 | D78: =+'App.2-G_Detailed_OM&A_Expenses'!E77 -> 0 | E78: =+'App.2-G_Detailed_OM&A_Expenses'!G77 -> 0 | F78: -61633.61 | G78: -1 | H78: 0
A79: 5420 | B79: Community Safety Program | C79: =+'App.2-G_Detailed_OM&A_Expenses'!C78 -> 67342.6 | D79: =+'App.2-G_Detailed_OM&A_Expenses'!E78 -> 70409.94 | E79: =+'App.2-G_Detailed_OM&A_Expenses'!G78 -> 87800 | F79: 20457.4 | G79: 0.3037809648 | H79: 17390.06 | I79: 0.2469830254
A80: 5425 | B80: Miscellaneous Customer Service and Informational Expenses | C80: =+'App.2-G_Detailed_OM&A_Expenses'!C79 -> 0 | D80: =+'App.2-G_Detailed_OM&A_Expenses'!E79 -> 0 | E80: =+'App.2-G_Detailed_OM&A_Expenses'!G79 -> 0 | F80: 0 | H80: 0
A81: 5505 | B81: Supervision | C81: =+'App.2-G_Detailed_OM&A_Expenses'!C80 -> 0 | D81: =+'App.2-G_Detailed_OM&A_Expenses'!E80 -> 0 | E81: =+'App.2-G_Detailed_OM&A_Expenses'!G80 -> 0 | F81: 0 | H81: 0
A82: 5510 | B82: Demonstrating and Selling Expense | C82: =+'App.2-G_Detailed_OM&A_Expenses'!C81 -> 0 | D82: =+'App.2-G_Detailed_OM&A_Expenses'!E81 -> 0 | E82: =+'App.2-G_Detailed_OM&A_Expenses'!G81 -> 0 | F82: 0 | H82: 0
A83: 5515 | B83: Advertising Expenses | C83: =+'App.2-G_Detailed_OM&A_Expenses'!C82 -> 0 | D83: =+'App.2-G_Detailed_OM&A_Expenses'!E82 -> 0 | E83: =+'App.2-G_Detailed_OM&A_Expenses'!G82 -> 0 | F83: 0 | H83: 0
A84: 5520 | B84: Miscellaneous Sales Expense | C84: =+'App.2-G_Detailed_OM&A_Expenses'!C83 -> 0 | D84: =+'App.2-G_Detailed_OM&A_Expenses'!E83 -> 0 | E84: =+'App.2-G_Detailed_OM&A_Expenses'!G83 -> 0 | F84: 0 | H84: 0
A85: Total - Community Relations | C85: =SUM(C76:C84) -> 212184.5 | D85: =SUM(D76:D84) -> 164908.78 | E85: =SUM(E76:E84) -> 191300 | F85: -20884.5 | G85: -0.09842613386 | H85: 26391.22 | I85: 0.1600352631
A86: Account | B86: Description
A87: Administrative and General Expenses
A88: 5605 | B88: Executive Salaries and Expenses | C88: =+'App.2-G_Detailed_OM&A_Expenses'!C87 -> 47824.96 | D88: =+'App.2-G_Detailed_OM&A_Expenses'!E87 -> 43940 | E88: =+'App.2-G_Detailed_OM&A_Expenses'!G87 -> 37800 | F88: =E88-C88 -> -10024.96 | G88: =IF(C88=0,"",(E88/C88)-1) -> -0.2096177394 | H88: =E88-D88 -> -6140 | I88: =IF(D88=0,"",(E88/D88)-1) -> -0.1397360036
A89: 5610 | B89: Management Salaries and Expenses | C89: =+'App.2-G_Detailed_OM&A_Expenses'!C88 -> 813653.79 | D89: =+'App.2-G_Detailed_OM&A_Expenses'!E88 -> 875406.74 | E89: =+'App.2-G_Detailed_OM&A_Expenses'!G88 -> 895500 | F89: 81846.21 | G89: 0.1005909528 | H89: 20093.26 | I89: 0.02295305608
A90: 5615 | B90: General Administrative Salaries and Expenses | C90: =+'App.2-G_Detailed_OM&A_Expenses'!C89 -> 239719.9 | D90: =+'App.2-G_Detailed_OM&A_Expenses'!E89 -> 218866.94 | E90: =+'App.2-G_Detailed_OM&A_Expenses'!G89 -> 254900 | F90: 15180.1 | G90: 0.06332432143 | H90: 36033.06 | I90: 0.1646345492
A91: 5620 | B91: Office Supplies and Expenses | C91: =+'App.2-G_Detailed_OM&A_Expenses'!C90 -> 142646.63 | D91: =+'App.2-G_Detailed_OM&A_Expenses'!E90 -> 163154.84 | E91: =+'App.2-G_Detailed_OM&A_Expenses'!G90 -> 180800 | F91: 38153.37 | G91: 0.2674677278 | H91: 17645.16 | I91: 0.1081497797
A92: 5625 | B92: Administrative Expense Transferred - Credit | C92: =+'App.2-G_Detailed_OM&A_Expenses'!C91 -> -189237.13 | D92: =+'App.2-G_Detailed_OM&A_Expenses'!E91 -> -189059.91 | E92: =+'App.2-G_Detailed_OM&A_Expenses'!G91 -> -184400 | F92: 4837.13 | G92: -0.0255612099 | H92: 4659.91 | I92: -0.02464779551
A93: 5630 | B93: Outside Services Employed | C93: =+'App.2-G_Detailed_OM&A_Expenses'!C92 -> 161522.54 | D93: =+'App.2-G_Detailed_OM&A_Expenses'!E92 -> 172152.45 | E93: =+'App.2-G_Detailed_OM&A_Expenses'!G92 -> 237700 | F93: 76177.46 | G93: 0.4716212363 | H93: 65547.55 | I93: 0.3807529315
A94: 5635 | B94: Property Insurance | C94: =+'App.2-G_Detailed_OM&A_Expenses'!C93 -> 207712.08 | D94: =+'App.2-G_Detailed_OM&A_Expenses'!E93 -> 252666 | E94: =+'App.2-G_Detailed_OM&A_Expenses'!G93 -> 287500 | F94: 79787.92 | G94: 0.3841274903 | H94: 34834 | I94: 0.1378657991
A95: 5640 | B95: Injuries and Damages | C95: =+'App.2-G_Detailed_OM&A_Expenses'!C94 -> 120902.06 | D95: =+'App.2-G_Detailed_OM&A_Expenses'!E94 -> 135778 | E95: =+'App.2-G_Detailed_OM&A_Expenses'!G94 -> 236600 | F95: 115697.94 | G95: 0.956955903 | H95: 100822 | I95: 0.7425503395
A96: 5645 | B96: OMERS Pensions and Benefits | C96: =+'App.2-G_Detailed_OM&A_Expenses'!C95 -> 242947.04 | D96: =+'App.2-G_Detailed_OM&A_Expenses'!E95 -> 7938 | E96: =+'App.2-G_Detailed_OM&A_Expenses'!G95 -> 3900 | F96: -239047.04 | G96: -0.9839471187 | H96: -4038 | I96: -0.5086923658
A97: 5646 | B97: Employee Pensions and OPEB | C97: =+'App.2-G_Detailed_OM&A_Expenses'!C96 -> 0 | D97: =+'App.2-G_Detailed_OM&A_Expenses'!E96 -> 0 | E97: =+'App.2-G_Detailed_OM&A_Expenses'!G96 -> 0 | F97: 0 | H97: 0
A98: 5647 | B98: Employee Sick Leave | C98: =+'App.2-G_Detailed_OM&A_Expenses'!C97 -> 0 | D98: =+'App.2-G_Detailed_OM&A_Expenses'!E97 -> 0 | E98: =+'App.2-G_Detailed_OM&A_Expenses'!G97 -> 0 | F98: 0 | H98: 0
A99: 5650 | B99: Franchise Requirements | C99: =+'App.2-G_Detailed_OM&A_Expenses'!C98 -> 0 | D99: =+'App.2-G_Detailed_OM&A_Expenses'!E98 -> 0 | E99: =+'App.2-G_Detailed_OM&A_Expenses'!G98 -> 0 | F99: 0 | H99: 0
A100: 5655 | B100: Regulatory Expenses | C100: =+'App.2-G_Detailed_OM&A_Expenses'!C99 -> 492356.57 | D100: =+'App.2-G_Detailed_OM&A_Expenses'!E99 -> 556472.1 | E100: =+'App.2-G_Detailed_OM&A_Expenses'!G99 -> 697900 | F100: 205543.43 | G100: 0.4174686447 | H100: 141427.9 | I100: 0.2541509269
A101: 5660 | B101: General Advertising Expenses | C101: =+'App.2-G_Detailed_OM&A_Expenses'!C100 -> 0 | D101: =+'App.2-G_Detailed_OM&A_Expenses'!E100 -> 0 | E101: =+'App.2-G_Detailed_OM&A_Expenses'!G100 -> 0 | F101: 0 | H101: 0
A102: 5665 | B102: Miscellaneous General Expenses | C102: =+'App.2-G_Detailed_OM&A_Expenses'!C101 -> 36937.21 | D102: =+'App.2-G_Detailed_OM&A_Expenses'!E101 -> 79367.81 | E102: =+'App.2-G_Detailed_OM&A_Expenses'!G101 -> 101300 | F102: 64362.79 | G102: 1.742491921 | H102: 21932.19 | I102: 0.2763360864
A103: 5670 | B103: Rent | C103: =+'App.2-G_Detailed_OM&A_Expenses'!C102 -> 0 | D103: =+'App.2-G_Detailed_OM&A_Expenses'!E102 -> 0 | E103: =+'App.2-G_Detailed_OM&A_Expenses'!G102 -> 0 | F103: 0 | H103: 0
A104: 5672 | B104: Lease Payment Charge | C104: =+'App.2-G_Detailed_OM&A_Expenses'!C103 -> 0 | D104: =+'App.2-G_Detailed_OM&A_Expenses'!E103 -> 0 | E104: =+'App.2-G_Detailed_OM&A_Expenses'!G103 -> 0 | F104: 0 | H104: 0
A105: 5675 | B105: Maintenance of General Plant | C105: =+'App.2-G_Detailed_OM&A_Expenses'!C104 -> 272391.39 | D105: =+'App.2-G_Detailed_OM&A_Expenses'!E104 -> 272549.9 | E105: =+'App.2-G_Detailed_OM&A_Expenses'!G104 -> 298600 | F105: 26208.61 | G105: 0.09621673431 | H105: 26050.1 | I105: 0.09557919486
A106: 5680 | B106: Electrical Safety Authority Fees | C106: =+'App.2-G_Detailed_OM&A_Expenses'!C105 -> 36914.36 | D106: =+'App.2-G_Detailed_OM&A_Expenses'!E105 -> 38643 | E106: =+'App.2-G_Detailed_OM&A_Expenses'!G105 -> 42600 | F106: 5685.64 | G106: 0.1540224455 | H106: 3957 | I106: 0.1023988821
A107: 5681 | B107: Special Purpose Charge Expense | C107: =+'App.2-G_Detailed_OM&A_Expenses'!C106 -> 0 | D107: =+'App.2-G_Detailed_OM&A_Expenses'!E106 -> 0 | E107: =+'App.2-G_Detailed_OM&A_Expenses'!G106 -> 0 | F107: 0 | H107: 0
A108: 5685 | B108: Independent Electricity System Operator Fees and Penalties | C108: =+'App.2-G_Detailed_OM&A_Expenses'!C107 -> 0 | D108: =+'App.2-G_Detailed_OM&A_Expenses'!E107 -> 0 | E108: =+'App.2-G_Detailed_OM&A_Expenses'!G107 -> 0 | F108: 0 | H108: 0
A109: 5695 | B109: OM&A Contra Account | C109: =+'App.2-G_Detailed_OM&A_Expenses'!C108 -> -161962.64 | D109: =+'App.2-G_Detailed_OM&A_Expenses'!E108 -> 41257 | E109: =+'App.2-G_Detailed_OM&A_Expenses'!G108 -> 0 | F109: 161962.64 | G109: -1 | H109: -41257 | I109: -1
A110: 6205 | B110: Donations | C110: =+'App.2-G_Detailed_OM&A_Expenses'!C109 -> 73752 | D110: =+'App.2-G_Detailed_OM&A_Expenses'!E109 -> 36152 | E110: =+'App.2-G_Detailed_OM&A_Expenses'!G109 -> 44000 | F110: -29752 | G110: -0.4034060093 | H110: 7848 | I110: 0.2170834255
A111: 6205 | B111: Donations, Sub-account LEAP Funding | C111: =+'App.2-G_Detailed_OM&A_Expenses'!C110 -> 0 | D111: =+'App.2-G_Detailed_OM&A_Expenses'!E110 -> 47475 | E111: =+'App.2-G_Detailed_OM&A_Expenses'!G110 -> 46000 | F111: 46000 | H111: -1475 | I111: -0.03106898368
A112: Total - Administrative and General Expenses | C112: =SUM(C88:C111) -> 2538080.76 | D112: =SUM(D88:D111) -> 2752759.87 | E112: =SUM(E88:E111) -> 3180700 | F112: 642619.24 | G112: 0.2531910135 | H112: 427940.13 | I112: 0.1554585762
A113: Total OM&A | C113: =C112+C85+C73+C62+C41 -> 12344709.28 | D113: =D112+D85+D73+D62+D41 -> 16479881.45 | E113: =E112+E85+E73+E62+E41 -> 18567200 | F113: 6222490.72 | G113: 0.5040613415 | H113: 2087318.55 | I113: 0.1266585901
A114: Adjustments for non-recoverable items
A115: 5681 | B115: Special Purpose Charge Expense | F115: =E115-C115 -> 0 | G115: =IF(C115=0,"",(E115/C115)-1) ->  | H115: =E115-D115 -> 0 | I115: =IF(D115=0,"",(E115/D115)-1) -> 
A116: 6205 | B116: Donations1 | C116: =+'App.2-G_Detailed_OM&A_Expenses'!C115 -> 73752 | D116: =+'App.2-G_Detailed_OM&A_Expenses'!E115 -> 36152 | E116: =+'App.2-G_Detailed_OM&A_Expenses'!G115 -> 44000 | F116: =E116-C116 -> -29752 | G116: -0.4034060093 | H116: 7848 | I116: 0.2170834255
F117: =E117-C117 -> 0 | H117: 0
F118: =E118-C118 -> 0 | H118: 0
F119: =E119-C119 -> 0 | H119: 0
A120: Total Recoverable OM&A | C120: =C113-SUM(C115:C119) -> 12270957.28 | D120: =D113-SUM(D115:D119) -> 16443729.45 | E120: 18523200 | F120: 6252242.72 | G120: 0.5095154826 | H120: 2079470.55 | I120: 0.1264597886
A122: 1 Account 6205 - Donations is generally non-recoverable. However, the sub-account LEAP funding of account 6205 is generally recoverable.
A125: Note:
A127: 1 | B127: If the applicant is adopting IFRS or an alternate accounting standard as of January 1, 2013 for financial reporting purposes, Column D "Most Current Actual Year" must be provided on CGAAP.
A128: 2 | B128: If the applicant is adopting IFRS or an alternate accounting standard as of January 1, 2012 for financial reporting purposes, Column D "Most Current Actual Year" must be provided on that standard.

Sheet App.2-I_OM&A_Summary_Analys
K1: File Number: | L1: ='LDC Info'!$E$18 -> EB-2013-0147
K2: Exhibit:
K3: Tab:
K4: Schedule:
K5: Page:
K7: Date:
A9: Appendix 2-I
A10: Summary of Recoverable OM&A Expenses
B13: ="Last Rebasing Year (" & 'LDC Info'!E30 & " BA)" -> Last Rebasing Year (2010 BA) | C13: ="Last Rebasing Year (" & 'LDC Info'!E30 & " Actuals)" -> Last Rebasing Year (2010 Actuals) | D13: ='LDC Info'!E26 -2 & " Actuals" -> 2011 Actuals | E13: 2012 Actuals | F13: ='LDC Info'!E26 & " Bridge Year" -> 2013 Bridge Year | G13: ='LDC Info'!E28+ 1& " Test Year" -> 2014 Test Year
A14: Reporting Basis | B14: CGAAP | C14: CGAAP | D14: CGAAP | E14: CGAAP | F14: CGAAP | G14: CGAAP
A15: Operations | B15: 3051200 | C15: =+'App.2-G_Detailed_OM&A_Expenses'!C40 -> 2824719.74 | D15: =+'App.2-G_Detailed_OM&A_Expenses'!D40 -> 3258635.34 | E15: =+'App.2-G_Detailed_OM&A_Expenses'!E40 -> 4821307.68 | F15: =+'App.2-G_Detailed_OM&A_Expenses'!F40 -> 5365500 | G15: =+'App.2-G_Detailed_OM&A_Expenses'!G40 -> 5642000
A16: Maintenance | B16: 4761500 | C16: =+'App.2-G_Detailed_OM&A_Expenses'!C61 -> 4069610.73 | D16: =+'App.2-G_Detailed_OM&A_Expenses'!D61 -> 4856218.55 | E16: =+'App.2-G_Detailed_OM&A_Expenses'!E61 -> 5226753.25 | F16: =+'App.2-G_Detailed_OM&A_Expenses'!F61 -> 5260500 | G16: =+'App.2-G_Detailed_OM&A_Expenses'!G61 -> 5619400
A17: SubTotal | B17: =SUM(B15:B16) -> 7812700 | C17: =SUM(C15:C16) -> 6894330.47 | D17: 8114853.89 | E17: =SUM(E15:E16) -> 10048060.93 | F17: 10626000 | G17: 11261400
A18: %Change (year over year) | D18: =IF(ISERROR((D17-C17)/C17), "", (D17-C17)/C17) -> 0.177032915 | E18: =IF(ISERROR((E17-#REF!)/#REF!), "", (E17-#REF!)/#REF!) ->  | F18: =IF(ISERROR((F17-#REF!)/#REF!), "", (F17-#REF!)/#REF!) ->  | G18: =IF(ISERROR((G17-F17)/F17), "", (G17-F17)/F17) -> 0.05979672501 | J18: 13881503.38 | K18: <<--per RRWF 2010 BA amount
A19: %Change (Test Year vs Last Rebasing Year - Actual) | G19: =IF(ISERROR((G17-C17)/C17), "", (G17-C17)/C17) -> 0.6334290979
A20: Billing and Collecting | B20: 3003200 | C20: =+'App.2-G_Detailed_OM&A_Expenses'!C72 -> 2700113.55 | D20: =+'App.2-G_Detailed_OM&A_Expenses'!D72 -> 2919902.3 | E20: =+'App.2-G_Detailed_OM&A_Expenses'!E72 -> 3514151.87 | F20: =+'App.2-G_Detailed_OM&A_Expenses'!F72 -> 3617200 | G20: =+'App.2-G_Detailed_OM&A_Expenses'!G72 -> 3933800
A21: Community Relations | B21: 209400 | C21: =+'App.2-G_Detailed_OM&A_Expenses'!C84+'App.2-G_Detailed_OM&A_Expenses'!C110 -> 212184.5 | D21: =+'App.2-G_Detailed_OM&A_Expenses'!D84+'App.2-G_Detailed_OM&A_Expenses'!D110 -> 245697.55 | E21: =+'App.2-G_Detailed_OM&A_Expenses'!E84+'App.2-G_Detailed_OM&A_Expenses'!E110 -> 212383.78 | F21: =+'App.2-G_Detailed_OM&A_Expenses'!F84+'App.2-G_Detailed_OM&A_Expenses'!F110 -> 236675 | G21: =+'App.2-G_Detailed_OM&A_Expenses'!G84+'App.2-G_Detailed_OM&A_Expenses'!G110 -> 237300
A22: Administrative and General | B22: 2856203.381 | C22: =+'App.2-G_Detailed_OM&A_Expenses'!C111-'App.2-G_Detailed_OM&A_Expenses'!C110-'App.2-G_Detailed_OM&A_Expenses'!C109 -> 2464328.76 | D22: =+'App.2-G_Detailed_OM&A_Expenses'!D111-'App.2-G_Detailed_OM&A_Expenses'!D110-'App.2-G_Detailed_OM&A_Expenses'!D109 -> 2444036.19 | E22: =+'App.2-G_Detailed_OM&A_Expenses'!E111-'App.2-G_Detailed_OM&A_Expenses'!E110-'App.2-G_Detailed_OM&A_Expenses'!E109 -> 2669132.87 | F22: =+'App.2-G_Detailed_OM&A_Expenses'!F111-'App.2-G_Detailed_OM&A_Expenses'!F110-'App.2-G_Detailed_OM&A_Expenses'!F109 -> 2951200 | G22: =+'App.2-G_Detailed_OM&A_Expenses'!G111-'App.2-G_Detailed_OM&A_Expenses'!G110-'App.2-G_Detailed_OM&A_Expenses'!G109 -> 3090700
A23: SubTotal | B23: =SUM(B20:B22) -> 6068803.381 | C23: =SUM(C20:C22) -> 5376626.81 | D23: 5609636.04 | E23: =SUM(E20:E22) -> 6395668.52 | F23: 6805075 | G23: 7261800
A24: %Change (year over year) | D24: =IF(ISERROR((D23-C23)/C23), "", (D23-C23)/C23) -> 0.04333743781 | E24: =IF(ISERROR((E23-#REF!)/#REF!), "", (E23-#REF!)/#REF!) ->  | F24: =IF(ISERROR((F23-#REF!)/#REF!), "", (F23-#REF!)/#REF!) ->  | G24: =IF(ISERROR((G23-F23)/F23), "", (G23-F23)/F23) -> 0.06711535141
A25: %Change (Test Year vs Last Rebasing Year - Actual) | G25: =IF(ISERROR((G23-C23)/C23), "", (G23-C23)/C23) -> 0.3506237752
A26: Total | B26: =SUM(B23,B17) -> 13881503.38 | C26: =SUM(C23,C17) -> 12270957.28 | D26: 13724489.93 | E26: =SUM(E23,E17) -> 16443729.45 | F26: 17431075 | G26: 18523200
A27: %Change (year over year) | D27: =IF(ISERROR((D26-C26)/C26), "", (D26-C26)/C26) -> 0.1184530772 | E27: =IF(ISERROR((E26-#REF!)/#REF!), "", (E26-#REF!)/#REF!) ->  | F27: =IF(ISERROR((F26-#REF!)/#REF!), "", (F26-#REF!)/#REF!) ->  | G27: =IF(ISERROR((G26-F26)/F26), "", (G26-F26)/F26) -> 0.06265390976
B30: =B13 -> Last Rebasing Year (2010 BA) | C30: =C13 -> Last Rebasing Year (2010 Actuals) | D30: 2011 Actuals | E30: =E13 -> 2012 Actuals | F30: 2013 Bridge Year | G30: 2014 Test Year
A31: Operations | B31: =B15 -> 3051200 | C31: =C15 -> 2824719.74 | D31: 3258635.34 | E31: =E15 -> 4821307.68 | F31: 5365500 | G31: 5642000
A32: Maintenance | B32: =B16 -> 4761500 | C32: =C16 -> 4069610.73 | D32: 4856218.55 | E32: =E16 -> 5226753.25 | F32: 5260500 | G32: 5619400
A33: Billing and Collecting | B33: =B20 -> 3003200 | C33: =C20 -> 2700113.55 | D33: 2919902.3 | E33: =E20 -> 3514151.87 | F33: 3617200 | G33: 3933800
A34: Community Relations | B34: =B21 -> 209400 | C34: =C21 -> 212184.5 | D34: 245697.55 | E34: =E21 -> 212383.78 | F34: 236675 | G34: 237300
A35: Administrative and General | B35: =B22 -> 2856203.381 | C35: =C22 -> 2464328.76 | D35: 2444036.19 | E35: =E22 -> 2669132.87 | F35: 2951200 | G35: 3090700
A36: Total | B36: =SUM(B31:B35) -> 13881503.38 | C36: =SUM(C31:C35) -> 12270957.28 | D36: 13724489.93 | E36: =SUM(E31:E35) -> 16443729.45 | F36: 17431075 | G36: 18523200
A37: %Change (year over year) | D37: =IF(ISERROR((D36-C36)/C36), "", (D36-C36)/C36) -> 0.1184530772 | E37: =IF(ISERROR((E36-#REF!)/#REF!), "", (E36-#REF!)/#REF!) ->  | F37: =IF(ISERROR((F36-#REF!)/#REF!), "", (F36-#REF!)/#REF!) ->  | G37: =IF(ISERROR((G36-F36)/F36), "", (G36-F36)/F36) -> 0.06265390976
B40: =B13 -> Last Rebasing Year (2010 BA) | C40: =C13 -> Last Rebasing Year (2010 Actuals) | D40: ="Variance " & 'LDC Info'!E30 & " BA – " & 'LDC Info'!E30 & " Actuals" -> Variance 2010 BA – 2010 Actuals | E40: 2011 Actuals | F40: ="Variance " & 'LDC Info'!E26 -2 & " Actuals vs. " & 'LDC Info'!E30 & " Actuals" -> Variance 2011 Actuals vs. 2010 Actuals | G40: 2012 Actuals | H40: ="Variance " & 'LDC Info'!E26 -1 & " Actuals vs. " & 'LDC Info'!E26-2 & " Actuals" -> Variance 2012 Actuals vs. 2011 Actuals | I40: =F13 -> 2013 Bridge Year | J40: ="Variance " & 'LDC Info'!E26 & " Bridge vs. " & 'LDC Info'!E26 -1 & " Actuals" -> Variance 2013 Bridge vs. 2012 Actuals | K40: =G13 -> 2014 Test Year | L40: ="Variance " & 'LDC Info'!E28+1 & " Test vs. " & 'LDC Info'!E26 & " Bridge" -> Variance 2014 Test vs. 2013 Bridge
A41: Operations | B41: =B15 -> 3051200 | C41: 2824719.74 | D41: =B41-C41 -> 226480.26 | E41: =+D31 -> 3258635.34 | F41: =+E41-C41 -> 433915.6 | G41: =+E31 -> 4821307.68 | H41: =+G41-E41 -> 1562672.34 | I41: =F15 -> 5365500 | J41: =I41-G41 -> 544192.32 | K41: =G15 -> 5642000 | L41: =K41-I41 -> 276500
A42: Maintenance | B42: 4761500 | C42: 4069610.73 | D42: =B42-C42 -> 691889.27 | E42: =+D32 -> 4856218.55 | F42: =+E42-C42 -> 786607.82 | G42: =+E32 -> 5226753.25 | H42: =+G42-E42 -> 370534.7 | I42: =F16 -> 5260500 | J42: =I42-G42 -> 33746.75 | K42: =G16 -> 5619400 | L42: 358900
A43: Billing and Collecting | B43: =B20 -> 3003200 | C43: 2700113.55 | D43: 303086.45 | E43: 2919902.3 | F43: 219788.75 | G43: 3514151.87 | H43: 594249.57 | I43: =F20 -> 3617200 | J43: 103048.13 | K43: =G20 -> 3933800 | L43: 316600
A44: Community Relations | B44: 209400 | C44: 212184.5 | D44: -2784.5 | E44: 245697.55 | F44: 33513.05 | G44: 212383.78 | H44: -33313.77 | I44: =F21 -> 236675 | J44: 24291.22 | K44: =G21 -> 237300 | L44: 625
A45: Administrative and General | B45: 2856203.381 | C45: 2464328.76 | D45: 391874.621 | E45: 2444036.19 | F45: -20292.57 | G45: 2669132.87 | H45: 225096.68 | I45: 2951200 | J45: 282067.13 | K45: 3090700 | L45: 139500
A46: Total OM&A Expenses | B46: =SUM(B41:B45) -> 13881503.38 | C46: =SUM(C41:C45) -> 12270957.28 | D46: 1610546.101 | E46: =SUM(E41:E45) -> 13724489.93 | F46: 1453532.65 | G46: 16443729.45 | H46: 2719239.52 | I46: 17431075 | J46: 987345.55 | K46: 18523200 | L46: 1092125
A47: Variance from previous year | E47: =+E46-C46 -> 1453532.65 | G47: =+G46-E46 -> 2719239.52 | I47: =I46-G46 -> 987345.55 | K47: =K46-I46 -> 1092125
A48: Percent change (year over year) | E48: =IF(ISERROR(E47/C46), "", E47/C46) -> 0.1184530772 | G48: =IF(ISERROR(G47/E46), "", G47/E46) -> 0.1981304612 | I48: =IF(ISERROR(I47/G46), "", I47/G46) -> 0.06004389412 | K48: =IF(ISERROR(K47/I46), "", K47/I46) -> 0.06265390976
A49: Percent Change: Test year vs. Most Current Actual | G49: =IF(ISERROR((K46-G46)/G46), "", (K46-G46)/G46) -> 0.1264597886
A50: Simple average of % variance for all years | G50: =IF(ISERROR((K46-C46)/C46), "", (K46-C46)/C46) -> 0.5095154826 | L50: =IF(ISERROR(AVERAGE(E48,G48,I48,K48)), "", AVERAGE(E48,G48,I48,K48)) -> 0.1098203356
A51: Compound Annual Growth Rate for all years | G51: =IF(ISERROR((K47-C47)/C47), "", (K47-C47)/C47) ->  | L51: =IF((K46-C46)=0, "", (K46/C46)^(1/5)-1) -> 0.08584419609
A52: Compound Growth Rate (2012 Actuals vs. 2010 Actuals) | G52: =IF(G46-C46=0,"",(G46/C46)^(1/3)-1) -> 0.1024882244
A54: Note:
A56: 1 "BA" = Board-Approved
A57: 2 If it has been more than three years since the applicant last filed a cost of service application, additional years of historical actuals should be incorporated into the table, as necessary, to go back to the last cost of service application. If the applicant last filed a cost of service application less than three years ago, a minimum of three years of actual information is required.
A59: 3 Recoverable OM&A that is included on these tables should be identical to the recoverable OM&A that is shown for the corresponding periods on Appendix 2-H.

Sheet App.2-J_OM&A_Cost _Drivers
F1: File Number: | G1: ='LDC Info'!$E$18 -> EB-2013-0147
F2: Exhibit: | G2: 4
F3: Tab:
F4: Schedule:
F5: Page:
F7: Date:
A10: Appendix 2-J
A11: OM&A Cost Driver Table
A13: OM&A | B13: ="Last Rebasing Year (" & 'LDC Info'!E30 & " Actuals)" -> Last Rebasing Year (2010 Actuals) | C13: 2009 Actuals | D13: ='LDC Info'!E26 -2 & " Actuals" -> 2011 Actuals | E13: 2012 Actuals | F13: ='LDC Info'!E26 & " Bridge Year" -> 2013 Bridge Year | G13: ='LDC Info'!E28+1 & " Test Year" -> 2014 Test Year
A14: Reporting Basis | B14: CGAAP | D14: CGAAP | E14: CGAAP | F14: CGAAP | G14: CGAAP
A15: Opening Balance | B15: 13881503.38 | C15: 12270957.38 | D15: 12270957.38 | E15: 13724479.79 | F15: 16443729.41 | G15: 17431075.08
A16: Pension and Payroll Benefits | D16: 29260 | E16: 108143 | F16: 108013 | G16: 72373
A17: General Salary Increases | D17: 212237 | E17: 202021 | F17: 206745 | G17: 223623
A18: Human Resources - New Resource | E18: 67759 | F18: 51040 | G18: 4300
A19: Retirements and Resignations - Finance | B19: -102056
A20: Reduction in AR Credit insurance - End of program | B20: -106950 | D20: -58049
A21: LEAP | B21: -47476 | D21: 47475
A22: Diversion of resources to OPA Programs | B22: -38898 | D22: -25020 | E22: -46393
A23: Diversion and reallocation of resources to complete TS9 | B23: -779303 | D23: 881929.9709
A24: HST Impact | B24: -11504 | D24: -39810 | E24: -69902 | F24: -40000
A25: Increase in Non recoverable Pole accidents | D25: 99677 | E25: -32428
A26: Effect of the Smart Meter Decision | E26: 1084463 | F26: 345000 | G26: 351900
A27: Monthly Billing | F27: 178000 | G27: 164000
A28: Additional Admin Credit | B28: -257997
A29: Collection of a bad debt previously deemed uncollectible | B29: -266362 | D29: 146300
A30: Changes to accounting estimates | E30: 1227168.384
A31: Inflation | D31: 159522.441 | E31: 178418.2373 | F31: 138547.6706 | G31: 275928.5017
A33: Closing Balance | B33: =SUM(B15:B32) -> 12270957.38 | C33: 12270957.38 | D33: 13724479.79 | E33: 16443729.41 | F33: 17431075.08 | G33: 18523199.59
A35: Notes:
A37: 1 | B37: For each year, a detailed explanation for each cost driver and associated amount is
B38: required.
A39: 2 | B39: The closing balance for each year becomes the opening balance for the next year.
A40: 3 | B40: If it has been more than three years since the applicant last filed a cost of service application, additional years of historical actuals should be incorporated into the table, as necessary, to go back to the last cost of service application. If the applicant last filed a cost of service application less than three years ago, a minimum of three years of actual information is required.
A44: 4 | B44: Opening Balance for "Last Rebasing Year" (cell B15) should be equal to the Board-Approved amount.
B52: =+'App.2-G_Detailed_OM&A_Expenses'!C119 -> 12270957.28 | D52: =+'App.2-G_Detailed_OM&A_Expenses'!D119 -> 13724489.93 | E52: =+'App.2-G_Detailed_OM&A_Expenses'!E119 -> 16443729.45 | F52: =+'App.2-G_Detailed_OM&A_Expenses'!F119 -> 17431075 | G52: =+'App.2-G_Detailed_OM&A_Expenses'!G119 -> 18523200
B53: =+B52-B33 -> -0.1009950005 | C53: =+C52-C33 -> -12270957.38 | D53: 10.13713121 | E53: 0.03573301062 | F53: -0.08489526063 | G53: 0.413406834

Sheet App.2-K_Employee Costs
F1: File Number: | G1: ='LDC Info'!$E$18 -> EB-2013-0147
F2: Exhibit: | G2: 4
F3: Tab:
F4: Schedule:
F5: Page:
F7: Date:
A9: Appendix 2-K
A10: Employee Costs
B12: ="Last Rebasing Year (" & 'LDC Info'!E30 & " Board-Approved)" -> Last Rebasing Year (2010 Board-Approved) | C12: ="Last Rebasing Year (" & 'LDC Info'!E30 & " Actuals)" -> Last Rebasing Year (2010 Actuals) | D12: ='LDC Info'!E26 -2 & " Actuals" -> 2011 Actuals | E12: ='LDC Info'!E26 -1 & " Actuals" -> 2012 Actuals | F12: ='LDC Info'!E26 & " Bridge Year" -> 2013 Bridge Year | G12: ='LDC Info'!E28+1 & " Test Year" -> 2014 Test Year
A13: Reporting Basis | B13: CGAAP | C13: CGAAP | D13: CGAAP | E13: CGAAP | F13: CGAAP | G13: CGAAP
A14: Number of Employees (FTEs including Part-Time)1
A15: Executive | B15: 0 | C15: 0 | D15: 4 | E15: 4 | F15: 4 | G15: 4
A16: Management | B16: 32 | C16: 31 | D16: 26 | E16: 29 | F16: 29 | G16: 30
A17: Non-Union | B17: 27 | C17: 28 | D17: 28 | E17: 27 | F17: 27 | G17: 27
A18: Union | B18: 115 | C18: 113 | D18: 114 | E18: 114 | F18: 115 | G18: 116
A19: Total | B19: =SUM(B15:B18) -> 174 | C19: 172 | D19: 172 | E19: 174 | F19: 175 | G19: 177
A20: Number of Part-Time Employees
A21: Executive | B21: 0 | C21: 0 | D21: 0 | E21: 0 | F21: 0 | G21: 0
A22: Management | B22: 0 | C22: 0 | D22: 0 | E22: 0 | F22: 0 | G22: 0
A23: Non-Union | B23: 0 | C23: 0 | D23: 0 | E23: 0 | F23: 0 | G23: 0
A24: Union | B24: 0 | C24: 0 | D24: 0 | E24: 0 | F24: 0 | G24: 0
A25: Total | B25: =SUM(B21:B24) -> 0 | C25: 0 | D25: 0 | E25: 0 | F25: 0 | G25: 0
A26: Total Salary and Wages
A27: Executive | D27: 545363.44 | E27: 586913.87 | F27: 616228 | G27: 655228
A28: Management | B28: 3109607 | C28: 3097650 | D28: 2448007 | E28: 2677491 | F28: 2848667 | G28: 2955547
A29: Non-Union | B29: 2176020 | C29: 2186573 | D29: 2350504 | E29: 2333045 | F29: 2332608 | G29: 2432809
A30: Union | B30: 7796295 | C30: 7659516 | D30: 7985175 | E30: 7981362 | F30: 8173270 | G30: 8385119
A31: Total | B31: =SUM(B27:B30) -> 13081922 | C31: 12943739 | D31: 13329049.44 | E31: 13578811.87 | F31: 13970773 | G31: 14428703
A32: Current Benefits
A33: Executive | B33: 0 | C33: 0 | D33: =29778+78241 -> 108019 | E33: =33460+93002 -> 126462 | F33: =35552+107595 -> 143147 | G33: =36974+116304 -> 153278
A34: Management | B34: 182969 | C34: =181426+368370 -> 549796 | D34: =163034+342300 -> 505334 | E34: =420266+170646 -> 590912 | F34: =191255+485060 -> 676315 | G34: =507458+198905 -> 706363
A35: Non-Union | B35: 176267 | C35: =334854+153288 -> 488142 | D35: =155036+363174 -> 518210 | E35: =163802+401189 -> 564991 | F35: =178230+439571 -> 617801 | G35: =185359+462620 -> 647979
A36: Union | B36: 584062 | C36: =1078802+554427 -> 1633229 | D36: =555201+1170848 -> 1726049 | E36: =550650+1274084 -> 1824734 | F36: =1438228+582175 -> 2020403 | G36: =605462+1519668 -> 2125130
A37: Total | B37: =SUM(B33:B36) -> 943298 | C37: 2671167 | D37: 2857612 | E37: 3107099 | F37: 3457666 | G37: 3632750
A38: Accrued Pension and Post-Retirement Benefits
A39: Executive | B39: 0 | C39: 0
A40: Management | B40: 0 | C40: =12661.29+33140.9+1812.37*0.23 -> 46219.0351 | D40: =21473.95+43473.72+1979.46*0.23 -> 65402.9458 | E40: =16630.16+41708.1+2516.43*0.23 -> 58917.0389 | F40: =18696.96+39527.48+2369*0.23 -> 58769.31 | G40: =20192.72+39527.48+2490*0.39 -> 60691.3
A41: Non-Union | B41: 0 | C41: =38010.93+35721.06+1812.37*0.37 -> 74402.5669 | D41: =50070.56+43727.74+1979.46*0.38 -> 94550.4948 | E41: =50321.48+42256.19+2516.43*0.38 -> 93533.9134 | F41: =42060.96+40274.24+2369*0.38 -> 83235.42 | G41: =56083.68+45208.52+2490*0.38 -> 102238.4
A42: Union | B42: 0 | C42: =39824.86+36849.75+1812.37*0.39 -> 77381.4343 | D42: =38134.89+42327.54+1979.46*0.39 -> 81234.4194 | E42: =40700.95+40892.41+2516.43*0.39 -> 82574.7677 | F42: =44004+38645.42+2369*0.39 -> 83573.33 | G42: =49774.8+39741.98+2490*0.39 -> 90487.88
A43: Total | B43: =SUM(B39:B42) -> 0 | C43: 198003.0363 | D43: 241187.86 | E43: 235025.72 | F43: 225578.06 | G43: 253417.58
A44: Total Benefits (Current + Accrued)
A45: Executive | B45: =B33+B39 -> 0 | C45: 0 | D45: 108019 | E45: 126462 | F45: 143147 | G45: 153278
A46: Management | B46: 182969 | C46: 596015.0351 | D46: 570736.9458 | E46: 649829.0389 | F46: 735084.31 | G46: 767054.3
A47: Non-Union | B47: 176267 | C47: 562544.5669 | D47: 612760.4948 | E47: 658524.9134 | F47: 701036.42 | G47: 750217.4
A48: Union | B48: 584062 | C48: 1710610.434 | D48: 1807283.419 | E48: 1907308.768 | F48: 2103976.33 | G48: 2215617.88
A49: Total | B49: 943298 | C49: 2869170.036 | D49: 3098799.86 | E49: 3342124.72 | F49: 3683244.06 | G49: 3886167.58
A50: Total Compensation (Salary, Wages, & Benefits)
A51: Executive | B51: =B27+B45 -> 0 | C51: 0 | D51: 653382.44 | E51: 713375.87 | F51: 759375 | G51: 808506
A52: Management | B52: 3292576 | C52: 3693665.035 | D52: 3018743.946 | E52: 3327320.039 | F52: 3583751.31 | G52: 3722601.3
A53: Non-Union | B53: 2352287 | C53: 2749117.567 | D53: 2963264.495 | E53: 2991569.913 | F53: 3033644.42 | G53: 3183026.4
A54: Union | B54: 8380357 | C54: 9370126.434 | D54: 9792458.419 | E54: 9888670.768 | F54: 10277246.33 | G54: 10600736.88
A55: Total | B55: 14025220 | C55: 15812909.04 | D55: 16427849.3 | E55: 16920936.59 | F55: 17654017.06 | G55: 18314870.58
A56: Compensation - Average Yearly Base Wages
A57: Executive | D57: =+D27/D15 -> 136340.86 | E57: 146728.4675 | F57: 154057 | G57: 163807
A58: Management | B58: =+B28/B16 -> 97175.21875 | C58: 99924.19355 | D58: 94154.11538 | E58: 92327.27586 | F58: 98229.89655 | G58: 98518.23333
A59: Non-Union | B59: =+B29/B17 -> 80593.33333 | C59: 78091.89286 | D59: 83946.57143 | E59: 86409.07407 | F59: 86392.88889 | G59: 90104.03704
A60: Union | B60: 67793.86957 | C60: 67783.32743 | D60: 70045.39474 | E60: 70011.94737 | F60: 71071.91304 | G60: 72285.50862
A61: Total | B61: =SUM(B57:B60) -> 245562.4216 | C61: =SUM(C57:C60) -> 245799.4138 | D61: 384486.9416 | E61: 395476.7648 | F61: 409751.6985 | G61: 424714.779
A62: Compensation - Average Yearly Overtime
A63: Executive
A64: Management | B64: 1094 | C64: 1320 | D64: 1183 | E64: 724 | F64: 1648 | G64: 1777
A65: Non-Union | B65: 7639 | C65: 4995 | D65: 6966 | E65: 6801 | F65: 5663 | G65: 5897
A66: Union | B66: 9339 | C66: 7572 | D66: 8827 | E66: 7884 | F66: 5358 | G66: 5491
A67: Total | B67: =SUM(B63:B66) -> 18072 | C67: =SUM(C63:C66) -> 13887 | D67: 16976 | E67: 15409 | F67: 12669 | G67: =SUM(G63:G66) -> 13165
A68: Compensation - Average Yearly Incentive Pay
A69: Executive | B69: 0 | C69: 0 | D69: 0 | E69: 0 | F69: 0 | G69: 0
A70: Management | B70: 0 | C70: 0 | D70: 0 | E70: 0 | F70: 0 | G70: 0
A71: Non-Union | B71: 0 | C71: 0 | D71: 0 | E71: 0 | F71: 0 | G71: 0
A72: Union | B72: 0 | C72: 0 | D72: 0 | E72: 0 | F72: 0 | G72: 0
A73: Total | B73: =SUM(B69:B72) -> 0 | C73: =SUM(C69:C72) -> 0 | D73: 0 | E73: 0 | F73: 0 | G73: =SUM(G69:G72) -> 0
A74: Compensation - Average Yearly Benefits
A75: Executive | B75: 0 | C75: 0 | D75: =+D45/D15 -> 27004.75 | E75: 31615.5 | F75: 35786.75 | G75: 38319.5
A76: Management | B76: =+B46/B16 -> 5717.78125 | C76: 19226.29145 | D76: 21951.42099 | E76: 22407.89789 | F76: 25347.73483 | G76: 25568.47667
A77: Non-Union | B77: =+B47/B17 -> 6528.407407 | C77: 20090.87739 | D77: 21884.30339 | E77: 24389.81161 | F77: 25964.31185 | G77: 27785.82963
A78: Union | B78: 5078.8 | C78: 15138.14544 | D78: 15853.36333 | E78: 16730.77866 | F78: 18295.44635 | G78: 19100.15414
A79: Total | B79: =SUM(B75:B78) -> 17324.98866 | C79: =SUM(C75:C78) -> 54455.31428 | D79: 86693.83771 | E79: 95143.98816 | F79: 105394.243 | G79: =SUM(G75:G78) -> 110773.9604
A81: Total Compensation | B81: =SUM(B51:B54) -> 14025220 | C81: 15812909.04 | D81: 16427849.3 | E81: 16920936.59 | F81: 17654017.06 | G81: 18314870.58
A82: Total Compensation Capitalized (CGAAP) | B82: 5166799 | C82: 7400112 | D82: 7386205
A83: Total Compensation Charged to OM&A (CGAAP) | B83: =B81-B82 -> 8858421 | C83: =C81-C82 -> 8412797.036 | D83: =D81-D82 -> 9041644.3
A85: Total Compensation Capitalized (CGAAP) | E85: 6744361 | F85: 7224339 | G85: 7463153
A86: Total Compensation Charged to OM&A (CGAAP) | E86: =E81-E85 -> 10176575.59 | F86: =F81-F85 -> 10429678.06 | G86: =G81-G85 -> 10851717.58
A89: 1 If an applicant wishes to use headcount, it must also file the same schedule on an FTE basis.
A91: Note:
A92: 1 Please report compensation on a CGAAP and MIFRS basis for your transition year.

Sheet App.2-L_OM&A_per_Cust_FTEE
G1: File Number: | H1: ='LDC Info'!$E$18 -> EB-2013-0147
G2: Exhibit: | H2: 4
G3: Tab:
G4: Schedule:
G5: Page:
G7: Date:
A9: Appendix 2-L
A10: Recoverable OM&A Cost per Customer and per FTEE
C12: ="Last Rebasing Year (" & 'LDC Info'!E30 & " Board-Approved)" -> Last Rebasing Year (2010 Board-Approved) | D12: ="Last Rebasing Year (" & 'LDC Info'!E30 & " Actuals)" -> Last Rebasing Year (2010 Actuals) | E12: ='LDC Info'!E26 -2 & " Actuals" -> 2011 Actuals | F12: 2012 Actuals | G12: ='LDC Info'!E26 & " Bridge Year" -> 2013 Bridge Year | H12: ='LDC Info'!E28+1 & " Test Year" -> 2014 Test Year
A13: Reporting Basis | C13: CGAAP | D13: CGAAP | E13: CGAAP | F13: CGAAP | G13: CGAAP | H13: CGAAP
A14: Number of Customers | C14: 89034 | D14: 88330 | E14: 89686 | F14: 91039 | G14: 92412 | H14: 93835
A15: Total Recoverable OM&A from Appendix 2-I | C15: =+'App.2-I_OM&A_Summary_Analys'!B26 -> 13881503.38 | D15: =+'App.2-I_OM&A_Summary_Analys'!C26 -> 12270957.28 | E15: =+'App.2-I_OM&A_Summary_Analys'!D26 -> 13724489.93 | F15: =+'App.2-I_OM&A_Summary_Analys'!E26 -> 16443729.45 | G15: =+'App.2-I_OM&A_Summary_Analys'!F26 -> 17431075 | H15: =+'App.2-I_OM&A_Summary_Analys'!G26 -> 18523200
A16: OM&A cost per customer | C16: =IF(C14=0,"",C15/C14) -> 155.9123861 | D16: 138.9217398 | E16: 153.0282311 | F16: 180.6229138 | G16: 188.6235013 | H16: 197.4018223
A17: Number of FTEEs | C17: =+'App.2-K_Employee Costs'!B19 -> 174 | D17: =+'App.2-K_Employee Costs'!C19 -> 172 | E17: =+'App.2-K_Employee Costs'!D19 -> 172 | F17: =+'App.2-K_Employee Costs'!E19 -> 174 | G17: =+'App.2-K_Employee Costs'!F19 -> 175 | H17: =+'App.2-K_Employee Costs'!G19 -> 177
A18: Customers/FTEEs | C18: =IF(C17=0,"",C14/C17) -> 511.6896552 | D18: 513.5465116 | E18: 521.4302326 | F18: 523.2126437 | G18: 528.0685714 | H18: 530.1412429
A19: OM&A Cost per FTEE | C19: =IF(C17=0,"",C15/C17) -> 79778.75506 | D19: 71342.77488 | E19: 79793.5461 | F19: 94504.19224 | G19: 99606.14286 | H19: 104650.8475
A21: Notes:
A23: 1 | B23: If it has been more than three years since the applicant last filed a cost of service application, additional years of historical actuals should be incorporated into the table, as necessary, to go back to the last cost of service application. If the applicant last filed a cost of service application less than three years ago, a minimum of three years of actual information is required.
A27: 2 | B27: The method of calculating the number of customers must be identified.
A28: 3 | B28: The method of calculating the number of FTEEs must be identified. See also Appendix 2-K
A29: 4 | B29: The number of customers and the number of FTEEs should correspond to mid-year or average of January 1 and December 31 figures.

Sheet App.2-M_Regulatory_Costs
J1: File Number: | K1: ='LDC Info'!$E$18 -> EB-2013-0147
J2: Exhibit:
J3: Tab:
J4: Schedule:
J5: Page:
J7: Date:
A9: Appendix 2-M
A10: Regulatory Cost Schedule
E11: On-Going
E12: On-Time
A13: Regulatory Cost Category | C13: USoA Account | D13: USoA Account Balance | E13: Ongoing or One-time Cost? 2 | F13: ="Last Rebasing Year (" & 'LDC Info'!E30 & " Board Approved)" -> Last Rebasing Year (2010 Board Approved) | G13: Most Current Actuals Year 2012 | H13: ='LDC Info'!E26 & " Bridge Year" -> 2013 Bridge Year | I13: Annual % Change | J13: ='LDC Info'!E28+1 & " Test Year" -> 2014 Test Year | K13: Annual % Change
A14: (A) | C14: (B) | D14: (C ) | E14: (D) | F14: (E) | G14: (F) | H14: (G) | I14: (H) = [(G)-(F)]/(F) | J14: (I) | K14: (J) = [(I)-(G)]/(G)
A15: 1 | B15: OEB Annual Assessment | C15: 5655 | E15: On-Going | F15: 230000 | G15: 227600 | H15: =254500-17000 -> 237500 | I15: =IF(G15=0,"",(H15-G15)/G15) -> 0.0434973638 | J15: =254500-17000 -> 237500 | K15: =IF(H15=0,"",(J15-H15)/H15) -> 0
A16: 2 | B16: OEB Section 30 Costs (Applicant-originated) | C16: 5655 | I16: =IF(G16=0,"",(H16-G16)/G16) ->  | K16: =IF(H16=0,"",(J16-H16)/H16) -> 
A17: 3 | B17: OEB Section 30 Costs (OEB-initiated) | C17: 5655 | E17: On-Going | F17: 12200 | G17: 16373 | H17: 17000 | I17: 0.03829475356 | J17: 17000 | K17: 0
A18: 4 | B18: Expert Witness costs for regulatory matters | C18: 5655
A19: 5 | B19: Legal costs for regulatory matters | C19: 5655
A20: 6 | B20: Consultants' costs for regulatory matters | C20: 5655 | E20: On-Going | F20: 76500 | G20: 25000 | H20: 30000 | I20: 0.2 | J20: 40800 | K20: 0.36
A21: 6 | B21: Consultants' costs for regulatory matters | C21: 5655 | E21: On-Time | H21: 107000
A22: 7 | B22: Operating expenses associated with staff resources allocated to regulatory matters | C22: 5655 | E22: On-Going | F22: 164100 | G22: =55030/4+237082 -> 250839.5 | H22: 306800 | I22: 0.2230928542 | J22: 333700 | K22: 0.08767926988
A23: 7 | B23: Operating expenses associated with staff resources allocated to regulatory matters | C23: 5655 | E23: On-Time | H23: 67000
A24: 8 | B24: Operating expenses associated with other resources allocated to regulatory matters 1 | C24: 5655 | E24: On-Going | F24: 5700 | G24: =4176+32015-13553+4000 -> 26638 | H24: =49100-24000+13800 -> 38900 | I24: 0.4603198438 | J24: 50600 | K24: 0.3007712082
A25: 8 | B25: Operating expenses associated with other resources allocated to regulatory matters 1 | C25: 5655 | E25: On-Time | H25: 28400
A26: 9 | B26: Other regulatory agency fees or assessments | C26: 5655 | E26: On-Going | F26: 800 | G26: 800 | H26: 800 | I26: 0 | J26: 800 | K26: 0
A27: 10 | B27: Any other costs for regulatory matters (please define) | C27: 5655
A28: 11 | B28: Intervenor costs | C28: 5655 | E28: On-Going | G28: 9221 | H28: 9200 | I28: -0.002277410259 | J28: =70000/4 -> 17500 | K28: 0.902173913
A29: 11 | B29: Intervenor costs | C29: 5655 | E29: On-Time | H29: 70000
A30: 12 | B30: Sub-total - Ongoing Costs 3 | D30: =SUMIF($E15:$E28,$E11,D15:D28) -> 0 | F30: =SUMIF($E15:$E28,$E11,F15:F28) -> 489300 | G30: =SUMIF($E15:$E28,$E11,G15:G28) -> 556471.5 | H30: =SUMIF($E15:$E28,$E11,H15:H28) -> 640200 | I30: 0.1504632313 | J30: =SUMIF($E15:$E28,$E11,J15:J28) -> 697900 | K30: 0.09012808497
A31: 13 | B31: Sub-total - One-time Costs 4 | D31: =SUMIF($E15:$E28,$E12,D15:D28) -> 0 | F31: =SUMIF($E15:$E28,$E12,F15:F28) -> 0 | G31: =SUMIF($E15:$E28,$E12,G15:G28) -> 0 | H31: =SUMIF($E15:$E29,$E12,H15:H29) -> 272400 | J31: =SUMIF($E15:$E28,$E12,J15:J28) -> 0 | K31: -1
A32: 14 | B32: Total | D32: =D30+D31 -> 0 | F32: =F30+F31 -> 489300 | G32: =G30+G31 -> 556471.5 | H32: =H30+H31 -> 912600 | I32: 0.6399761713 | J32: =J30+J31 -> 697900 | K32: -0.2352618891
A35: 1 | B35: Please identify the resources involved.
A36: 2 | B36: Where a category's costs include both one-time and ongoing costs, the applicant should prove a separate breakdown between one-time and ongoing costs.
A37: 3 | B37: Sum of all ongoing costs identified in rows 1 to 11 inclusive.
A38: 4 | B38: Sum of all one-time costs identified in rows 1 to 11 inclusive.
A41: Please fill out the following table for all one-time costs related to this cost of service application
C43: Historical Year(s) | D43: =H13 -> 2013 Bridge Year | E43: =J13 -> 2014 Test Year
A44: 4 | B44: Expert Witness costs for regulatory matters | D44: =H18 -> 0 | E44: =J18 -> 0
A45: 6 | B45: Consultants' costs for regulatory matters | C45: 61788 | D45: =62000+25000+10000+10000 -> 107000 | E45: 0
A46: 7 | B46: Operating expenses associated with staff resources allocated to regulatory matters | C46: 55030 | D46: =12000+55000 -> 67000 | E46: 0
A47: 8 | B47: Operating expenses associated with other resources allocated to regulatory matters 1 | C47: 8352 | D47: =8400+20000 -> 28400 | E47: 0
A48: 11 | B48: Intervenor costs | C48: 36888 | D48: 70000

Sheet App.2-N_Corp_Cost_Allocatio 201
F1: File Number: | G1: ='LDC Info'!$E$18 -> EB-2013-0147
F2: Exhibit: | G2: 4
F3: Tab: | G3: 5
F4: Schedule: | G4: 1
F5: Page:
F7: Date:
A9: Appendix 2-N
A10: Shared Services and Corporate Cost Allocation
B12: Year: | C12: 2010
A14: Shared Services
A16: Name of Company | C16: Service Offered | D16: Pricing Methdology | E16: Price for the Service | F16: Cost for the Service
A17: From | B17: To
E18: $ | F18: $
A28: Corporate Cost Allocation
A30: Name of Company | C30: Service Offered | D30: Pricing Methdology | E30: % of Corporate Costs Allocated | F30: Amount Allocated
A31: From | B31: To
E32: % | F32: $
A42: Note:
A43: 1 | B43: Corporate cost allocation based on $17,809,575 of OM&A costs for 2014

Sheet App.2-N_Corp_Cost_Alloc2011
F1: File Number: | G1: ='LDC Info'!$E$18 -> EB-2013-0147
F2: Exhibit: | G2: 4
F3: Tab: | G3: 5
F4: Schedule: | G4: 1
F5: Page:
F7: Date:
A9: Appendix 2-N
A10: Shared Services and Corporate Cost Allocation
B12: Year: | C12: 2011
A14: Shared Services
A16: Name of Company | C16: Service Offered | D16: Pricing Methdology | E16: Price for the Service | F16: Cost for the Service
A17: From | B17: To
E18: $ | F18: $
A28: Corporate Cost Allocation
A30: Name of Company | C30: Service Offered | D30: Pricing Methdology | E30: % of Corporate Costs Allocated | F30: Amount Allocated
A31: From | B31: To
E32: % | F32: $
A42: Note:
A43: 1 | B43: Corporate cost allocation based on $17,809,575 of OM&A costs for 2014

Sheet App.2-N_Corp_Cost_Alloc2012
F1: File Number: | G1: ='LDC Info'!$E$18 -> EB-2013-0147
F2: Exhibit: | G2: 4
F3: Tab: | G3: 5
F4: Schedule: | G4: 1
F5: Page:
F7: Date:
A9: Appendix 2-N
A10: Shared Services and Corporate Cost Allocation
B12: Year: | C12: 2012
A14: Shared Services
A16: Name of Company | C16: Service Offered | D16: Pricing Methdology | E16: Price for the Service | F16: Cost for the Service
A17: From | B17: To
E18: $ | F18: $
A28: Corporate Cost Allocation
A30: Name of Company | C30: Service Offered | D30: Pricing Methdology | E30: % of Corporate Costs Allocated | F30: Amount Allocated
A31: From | B31: To
E32: % | F32: $
A42: Note:
A43: 1 | B43: Corporate cost allocation based on $17,809,575 of OM&A costs for 2014

Sheet App.2-N_Corp_Cost_Allocatio2013
F1: File Number: | G1: ='LDC Info'!$E$18 -> EB-2013-0147
F2: Exhibit: | G2: 4
F3: Tab: | G3: 5
F4: Schedule: | G4: 1
F5: Page:
F7: Date:
A9: Appendix 2-N
A10: Shared Services and Corporate Cost Allocation
B12: Year: | C12: 2013
A14: Shared Services
A16: Name of Company | C16: Service Offered | D16: Pricing Methdology | E16: Price for the Service | F16: Cost for the Service
A17: From | B17: To
E18: $ | F18: $
A28: Corporate Cost Allocation
A30: Name of Company | C30: Service Offered | D30: Pricing Methdology | E30: % of Corporate Costs Allocated | F30: Amount Allocated
A31: From | B31: To
E32: % | F32: $
A33: KWHI | B33: KPC | C33: Corporate Administration | D33: Fully Allocated Costs | E33: =F33/17809575 -> 0.0005558807552 | F33: 9900
A42: Note:
A43: 1 | B43: Corporate cost allocation based on $17,809,575 of OM&A costs for 2014

Sheet App.2-N_Corp_Cost_Allocati2014
F1: File Number: | G1: ='LDC Info'!$E$18 -> EB-2013-0147
F2: Exhibit: | G2: 4
F3: Tab: | G3: 5
F4: Schedule: | G4: 1
F5: Page:
F7: Date:
A9: Appendix 2-N
A10: Shared Services and Corporate Cost Allocation
B12: Year: | C12: 2014
A14: Shared Services
A16: Name of Company | C16: Service Offered | D16: Pricing Methdology | E16: Price for the Service | F16: Cost for the Service
A17: From | B17: To
E18: $ | F18: $
A28: Corporate Cost Allocation
A30: Name of Company | C30: Service Offered | D30: Pricing Methdology | E30: % of Corporate Costs Allocated | F30: Amount Allocated
A31: From | B31: To
E32: % | F32: $
A33: KWHI | B33: KPC | C33: Corporate Administration | D33: Fully Allocated Costs | E33: =F33/18918600 -> 0.0005285803389 | F33: 10000
A42: Note:
A43: 1 | B43: Corporate cost allocation based on $18,918,600 of OM&A costs for 2014

Sheet App.2-OA Capital Structure 2009
K1: File Number: | O1: ='LDC Info'!$E$18 -> EB-2013-0147
K2: Exhibit:
K3: Tab:
K4: Schedule:
K5: Page:
K7: Date:
C10: Appendix 2-OA
C11: Capital Structure and Cost of Capital
B12: 2009
A14: This table must be completed for the required years of all historical years, the bridge year and the test year.
A16: Line No.
C17: Particulars | E17: Capitalization Ratio | K17: Cost Rate | O17: Return
C20: Application
E21: (%) | I21: ($) | K21: (%) | O21: ($)
C22: Debt
A23: 1 | C23: Long-term Debt | E23: 0.6 | I23: =$I$32*E23 -> 92786789 | K23: 0.06 | O23: =K23*I23 -> 5567207.34
A24: 2 | C24: Short-term Debt | E24: 0 | G24: (1) | I24: =$I$32*E24 -> 0 | K24: 0 | O24: =K24*I24 -> 0
A25: 3 | C25: Total Debt | E25: =SUM(E23:E24) -> 0.6 | I25: =SUM(I23:I24) -> 92786789 | K25: =IF(E25=0,0,SUMPRODUCT(E23:E24,K23:K24)/E25) -> 0.06 | O25: =SUM(O23:O24) -> 5567207.34
C27: Equity
A28: 4 | C28: Common Equity | E28: 0.4 | I28: =$I$32*E28 -> 61857859.33 | K28: 0.09 | O28: =K28*I28 -> 5567207.34
A29: 5 | C29: Preferred Shares | E29: 0 | I29: =$I$32*E29 -> 0 | K29: 0 | O29: =K29*I29 -> 0
A30: 6 | C30: Total Equity | E30: =SUM(E28:E29) -> 0.4 | I30: =SUM(I28:I29) -> 61857859.33 | K30: =IF(E30=0,0,SUMPRODUCT(E28:E29,K28:K29)/E30) -> 0.09 | O30: =SUM(O28:O29) -> 5567207.34
A32: 7 | C32: Total | E32: 1 | I32: 154644648.3 | K32: =(K25*E25)+(K30*E30) -> 0.072 | O32: =O25+O30 -> 11134414.68
A35: Notes
A36: (1) | C36: 4.0% unless an applicant has proposed or been approved for a different amount.

Sheet App.2-OA Capital Structure 2010
K1: File Number: | O1: ='LDC Info'!$E$18 -> EB-2013-0147
K2: Exhibit:
K3: Tab:
K4: Schedule:
K5: Page:
K7: Date:
C10: Appendix 2-OA
C11: Capital Structure and Cost of Capital
B12: 2010
A14: This table must be completed for the required years of all historical years, the bridge year and the test year.
A16: Line No.
C17: Particulars | E17: Capitalization Ratio | K17: Cost Rate | O17: Return
C20: Application
E21: (%) | I21: ($) | K21: (%) | O21: ($)
C22: Debt
A23: 1 | C23: Long-term Debt | E23: 0.56 | I23: =$I$32*E23 -> 91228165.52 | K23: 0.0587 | O23: =K23*I23 -> 5355093.316
A24: 2 | C24: Short-term Debt | E24: 0.04 | G24: (1) | I24: =$I$32*E24 -> 6516297.537 | K24: 0.0207 | O24: =K24*I24 -> 134887.359
A25: 3 | C25: Total Debt | E25: =SUM(E23:E24) -> 0.6 | I25: =SUM(I23:I24) -> 97744463.06 | K25: =IF(E25=0,0,SUMPRODUCT(E23:E24,K23:K24)/E25) -> 0.05616666667 | O25: =SUM(O23:O24) -> 5489980.675
C27: Equity
